Workbook

Sheet سائقين
B2: =_xlfn.AGGREGATE(2,5,data.s[كود الشركة]) -> 289 | R2: =SUM(data.s[أساسي 7/2025]) -> 237336.9286 | S2: =SUM(data.s[أجر مقطوع]) -> 6600 | T2: =SUM(data.s[الحافز]) -> 40238.8183 | U2: =SUM(data.s[حافز أداء 15%]) -> 4470.979811 | V2: =SUM(data.s[حافز موانى]) -> 0 | W2: =SUM(data.s[عمولة انتاج]) -> 0 | X2: =SUM(data.s[أومر الشغل للملاكي]) -> 780 | Y2: =SUM(data.s[بدل مخاطر مواني 30%]) -> 0 | Z2: =SUM(data.s[بدل مخاطر]) -> 35514.22629 | AA2: =SUM(data.s[بدل انتقال]) -> 7500 | AB2: =SUM(data.s[بدل اقامة]) -> 157.4 | AC2: =SUM(data.s[بدل تمثيل]) -> 0 | AD2: =SUM(data.s[بدل ضيافة]) -> 0 | AE2: =SUM(data.s[بدل تفرغ]) -> 0 | AF2: =SUM(data.s[بدل تباع]) -> 0 | AG2: =SUM(data.s[إجمالي بدلات]) -> 43171.62629 | AH2: =SUM(data.s[علاوة 2014]) -> 4871.46723 | AI2: =SUM(data.s[علاوة 2015]) -> 5249.36719 | AJ2: =SUM(data.s[علاوة 2016]) -> 9879.52703 | AK2: =SUM(data.s[ع م من 14 حتى 18]) -> 0 | AL2: =SUM(data.s[علاوة استثنائية2018]) -> 40530 | AM2: =SUM(data.s[علاوة 2019]) -> 3196.83322 | AN2: =SUM(data.s[علاوة 2020]) -> 4741.76318 | AO2: =SUM(data.s[علاوة 2021]) -> 5171.21517 | AP2: =SUM(data.s[علاوة 2022]) -> 7471.95841 | AQ2: =SUM(data.s[علاوة 2023]) -> 8794.0504 | AR2: =SUM(data.s[علاوة 2024]) -> 10313.43057 | AS2: =SUM(data.s[إ.ع من14:24 أعمال+إجتماعية]) -> 106374.5938 | AT2: =SUM(data.s[علاوة 2025]) -> 11256.8893 | AU2: =SUM(data.s[علاوة غلاء معيشة]) -> 115200 | AV2: =SUM(data.s[علاوة اجتماعية]) -> 1802 | AW2: =SUM(data.s[إجمالي علاوات]) -> 334853.0955 | AX2: =SUM(data.s[م. عيد العمال]) -> 2775 | AY2: =SUM(data.s[متوسط المنحة]) -> 39460.25143 | AZ2: =SUM(data.s[رد مستحقات]) -> 7696.77 | BA2: =SUM(data.s[بدل سهر]) -> 580 | BB2: =SUM(data.s[الإضافي]) -> 0 | BC2: =SUM(data.s[الإجمالي]) -> 709686.6999 | BD2: =SUM(data.s[مكمل الأجر]) -> 1236430.871 | BE2: =SUM(data.s[إجمالي المستحق]) -> 1954394.341 | BF2: =SUM(data.s[عدد أيام الأجازات]) -> 0 | BG2: =SUM(data.s[أيام أجازات بعد السنوية]) -> 0 | BH2: =SUM(data.s[أيام الغياب]) -> 146 | BI2: =SUM(data.s[أيام جزاء]) -> 73 | BK2: =SUM(data.s[تأمينات 2026]) -> 292080.6929 | BL2: =SUM(data.s[ضريبة 2026]) -> 1513.04 | BM2: =SUM(data.s[خصم غياب عام]) -> 27533.23126 | BN2: =SUM(data.s[جزاءات]) -> 16783.68851 | BO2: =SUM(data.s[خصم غياب من الحافز]) -> 0 | BP2: =SUM(data.s[خصم حافز]) -> 0 | BQ2: =SUM(data.s[خصم حافز بعد السنوية]) -> 0 | BR2: =SUM(data.s[اشتراكات اجازات خاصة]) -> 29.06 | BS2: =SUM(data.s[مدة سابقة]) -> 21.64 | BT2: =SUM(data.s[إيجار سكن]) -> 300 | BU2: =SUM(data.s[نقابة]) -> 831 | BV2: =SUM(data.s[خصم نفقات]) -> 1010 | BW2: =SUM(data.s[أجر بالزيادة]) -> 9006.86 | BX2: =SUM(data.s[سولار]) -> 119023.6 | BY2: =SUM(data.s[عهد]) -> 15791 | BZ2: =SUM(data.s[تلفيات]) -> 18824.1 | CA2: =SUM(data.s[عجز]) -> 11611.4 | CB2: =SUM(data.s[تعويضات]) -> 0 | CC2: =SUM(data.s[سلفة]) -> 323.5 | CD2: =SUM(data.s[نقليات]) -> 0 | CE2: =SUM(data.s[مخالفات مرور]) -> 14622.95 | CF2: =SUM(data.s[تنفيذ أحكام]) -> 0 | CG2: =SUM(data.s[إجمالي المديونية]) -> 180196.55 | CH2: =SUM(data.s[الشهداء]) -> 1959.41 | CI2: =SUM(data.s[دعم ذوى الاعاقة]) -> 861 | CJ2: =SUM(data.s[تسويات مدينة]) -> 0 | CK2: =SUM(data.s[حج وعمرة]) -> 0 | CL2: =SUM(data.s[قسط تأمينات]) -> 4 | CM2: =SUM(data.s[صندوق تكافل]) -> 0 | CN2: =SUM(data.s[تأمين صحي بورسعيد]) -> 761.29 | CO2: =SUM(data.s[أخرى]) -> 914.26 | CP2: =SUM(data.s[نصف وقت]) -> 0 | CQ2: =SUM(data.s[متوسط منح]) -> 39460.25143 | CR2: =_xlfn.AGGREGATE(9,6,data.s[خصم 5% تأمين من المستحق]) -> 76056.0765 | CS2: =_xlfn.AGGREGATE(9,6,data.s[انقطاع]) -> 69981.99695 | CT2: =_xlfn.AGGREGATE(9,6,data.s[مرضي]) -> 16555.38981 | CU2: =_xlfn.AGGREGATE(9,6,data.s[أجازة]) -> 0 | CV2: =_xlfn.AGGREGATE(9,6,data.s[إعارة]) -> 18597.1687 | CX2: =SUM(data.s[معاش]) -> 0 | CY2: =_xlfn.AGGREGATE(9,6,data.s[إجمالي المستقطع]) -> 757552.3361 | CZ2: =_xlfn.AGGREGATE(9,6,data.s[صافي الأجر]) -> 1196842.005 | DA2: 1169012.29 | DB2: =CZ2-DA2 -> 27829.71488
B3: كود الشركة | C3: كود البيرول | D3: التعامل المالي | E3: اسم الموظف | F3: الموظف المختص | G3: حالة العمل | H3: التصنيف الادارى | I3: الدرجة | J3: ترقية 7/2025 | K3: الوظيفة | L3: الفرع | M3: المنطقه | N3: الرقم القومي | O3: مرجع بحث | P3: استعلام ترقية | Q3: الأجر الأساسي | R3: أساسي 7/2025 | S3: أجر مقطوع | T3: الحافز | U3: حافز أداء 15% | V3: حافز موانى | W3: عمولة انتاج | X3: أومر الشغل للملاكي | Y3: بدل مخاطر مواني 30% | Z3: بدل مخاطر | AA3: بدل انتقال | AB3: بدل اقامة | AC3: بدل تمثيل | AD3: بدل ضيافة | AE3: بدل تفرغ | AF3: بدل تباع | AG3: إجمالي بدلات | AH3: علاوة 2014 | AI3: علاوة 2015 | AJ3: علاوة 2016 | AK3: ع م من 14 حتى 18 | AL3: علاوة استثنائية2018 | AM3: علاوة 2019 | AN3: علاوة 2020 | AO3: علاوة 2021 | AP3: علاوة 2022 | AQ3: علاوة 2023 | AR3: علاوة 2024 | AS3: إ.ع من14:24 أعمال+إجتماعية | AT3: علاوة 2025 | AU3: علاوة غلاء معيشة | AV3: علاوة اجتماعية | AW3: إجمالي علاوات | AX3: م. عيد العمال | AY3: متوسط المنحة | AZ3: رد مستحقات | BA3: بدل سهر | BB3: الإضافي | BC3: الإجمالي | BD3: مكمل الأجر | BE3: إجمالي المستحق | BF3: عدد أيام الأجازات | BG3: أيام أجازات بعد السنوية | BH3: أيام الغياب | BI3: أيام جزاء | BJ3: الأجر الشامل | BK3: تأمينات 2026 | BL3: ضريبة 2026 | BM3: خصم غياب عام | BN3: جزاءات | BO3: خصم غياب من الحافز | BP3: خصم حافز | BQ3: خصم حافز بعد السنوية | BR3: اشتراكات اجازات خاصة | BS3: مدة سابقة | BT3: إيجار سكن | BU3: نقابة | BV3: خصم نفقات | BW3: أجر بالزيادة | BX3: سولار | BY3: عهد | BZ3: تلفيات | CA3: عجز | CB3: تعويضات | CC3: سلفة | CD3: نقليات | CE3: مخالفات مرور | CF3: تنفيذ أحكام | CG3: إجمالي المديونية | CH3: الشهداء | CI3: دعم ذوى الاعاقة | CJ3: تسويات مدينة | CK3: حج وعمرة | CL3: قسط تأمينات | CM3: صندوق تكافل | CN3: تأمين صحي بورسعيد | CO3: أخرى | CP3: نصف وقت | CQ3: متوسط منح | CR3: خصم 5% تأمين من المستحق | CS3: انقطاع | CT3: مرضي | CU3: أجازة | CV3: إعارة | CW3: انهاء | CX3: معاش | CY3: إجمالي المستقطع | CZ3: صافي الأجر
B4: 302001 | C4: 33630 | D4: =VLOOKUP(data.s[[#This Row],[كود الشركة]],#REF!,MATCH(data.s[[#Headers],[التعامل المالي]],#REF!,0),FALSE) ->  | E4: عوض عبد الحميد رياض | H4: سائق نقل | I4: الثالثة | J4: الثالثة | K4: سائق نقل | L4: فرع بنى سويف | M4: المنطقه الجنوبية | N4: =data.s[[#This Row],[كود الشركة]]&data.s[[#This Row],[كود البيرول]]&data.s[[#This Row],[التعامل المالي]]&data.s[[#This Row],[اسم الموظف]]&data.s[[#This Row],[الموظف المختص]]&data.s[[#This Row],[حالة العمل]]&data.s[[#This Row],[التصنيف الادارى]]&data.s[[#This Row],[الدرجة]] ->  | P4: =IF(data.s[[#This Row],[ترقية 7/2025]]<>"","نعم","") -> نعم | Q4: 1070.756 | R4: 1252.78452 | T4: =IF(data.s[[#This Row],[الوظيفة]]="سائق ملاكي",data.s[[#This Row],[أساسي 7/2025]]*135%,0) -> 0 | U4: =IF(data.s[[#This Row],[الوظيفة]]="سائق ملاكي",data.s[[#This Row],[أساسي 7/2025]]*15%,"") ->  | Z4: =data.s[[#This Row],[أساسي 7/2025]]*15% -> 187.917678 | AE4: 0 | AF4: =IFERROR(VLOOKUP(data.s[[#This Row],[كود الشركة]:[كود الشركة]],#REF!,MATCH(data.s[[#Headers],[بدل تباع]],#REF!,0),FALSE),0) -> 0 | AG4: =SUM(data.s[[#This Row],[بدل مخاطر]:[بدل تفرغ]])-data.s[[#This Row],[بدل تمثيل]] -> 187.917678 | AH4: 37.56735 | AI4: 41.79935 | AJ4: 65 | AL4: 200 | AM4: 25.0557 | AN4: 38.17 | AO4: 49.01248 | AP4: 69.92447 | AQ4: 74.81918 | AR4: 80.05653 | AS4: 0 | AT4: 53.5378 | AU4: 600 | AV4: 10 | AW4: =SUM(data.s[[#This Row],[علاوة 2014]:[علاوة اجتماعية]]) -> 1344.94286 | AX4: 10 | AY4: =(data.s[[#This Row],[أساسي 7/2025]]*2)/12 -> 208.79742 | BC4: =SUM(data.s[[#This Row],[أساسي 7/2025]:[حافز موانى]],data.s[[#This Row],[أومر الشغل للملاكي]],data.s[[#This Row],[إجمالي بدلات]],data.s[[#This Row],[إجمالي علاوات]:[متوسط المنحة]]) -> 3004.442478 | BD4: =IF(data.s[[#This Row],[الإجمالي]]<7000,7000-data.s[[#This Row],[الإجمالي]],0) -> 3995.557522 | BE4: =IF(data.s[[#This Row],[حالة العمل]]="إيقاف",data.s[[#This Row],[أساسي 7/2025]],SUM(data.s[[#This Row],[رد مستحقات]:[مكمل الأجر]])) -> 7000 | BJ4: =ROUND(data.s[[#This Row],[تأمينات 2026]]/11%,2) -> 16686.24 | BK4: 1835.485878 | BM4: =(((data.s[[#This Row],[إجمالي المستحق]]+data.s[[#This Row],[عمولة انتاج]])-(data.s[[#This Row],[الحافز]]+data.s[[#This Row],[عمولة انتاج]]+data.s[[#This Row],[متوسط المنحة]]+data.s[[#This Row],[رد مستحقات]]+data.s[[#This Row],[بدل سهر]]+data.s[[#This Row],[الإضافي]]))/30)*data.s[[#This Row],[أيام الغياب]] -> 0 | BN4: =(((data.s[[#This Row],[إجمالي المستحق]]+data.s[[#This Row],[عمولة انتاج]])-(data.s[[#This Row],[الحافز]]+data.s[[#This Row],[عمولة انتاج]]+data.s[[#This Row],[متوسط المنحة]]+data.s[[#This Row],[رد مستحقات]]+data.s[[#This Row],[بدل سهر]]+data.s[[#This Row],[الإضافي]]))/30)*data.s[[#This Row],[أيام جزاء]] -> 0 | BO4: =IF(data.s[[#This Row],[أيام الغياب]]=1,data.s[[#This Row],[الحافز]]*20%,IF(data.s[[#This Row],[أيام الغياب]]=2,data.s[[#This Row],[الحافز]]*30%,IF(data.s[[#This Row],[أيام الغياب]]>2,data.s[[#This Row],[الحافز]]*100%,""))) ->  | BQ4: =IFERROR(IF(data.s[[#This Row],[أيام أجازات بعد السنوية]]<=2,data.s[[#This Row],[الحافز]]*0,IF(data.s[[#This Row],[أيام أجازات بعد السنوية]]=3,data.s[[#This Row],[الحافز]]*30%,IF(data.s[[#This Row],[أيام أجازات بعد السنوية]]=4,data.s[[#This Row],[الحافز]]*40%,IF(data.s[[#This Row],[أيام أجازات بعد السنوية]]=5,data.s[[#This Row],[الحافز]]*50%,IF(data.s[[#This Row],[أيام أجازات بعد السنوية]]>5,data.s[[#This Row],[الحافز]]*100%,""))))),"") -> 0 | BU4: 3 | CG4: =data.s[[#This Row],[مخالفات مرور]]+data.s[[#This Row],[سلفة]]+data.s[[#This Row],[تعويضات]]+data.s[[#This Row],[عجز]]+data.s[[#This Row],[تلفيات]]+data.s[[#This Row],[عهد]]+data.s[[#This Row],[سولار]] -> 0 | CH4: 8.25 | CI4: 5 | CP4: =IF(G4=$CP$3,(BE4-AY4)*40%,0) -> 0 | CQ4: =data.s[[#This Row],[متوسط المنحة]] -> 208.79742 | CR4: =IF(data.s[[#This Row],[التصنيف الادارى]]="سائق نقل",data.s[[#This Row],[إجمالي المستحق]]*5%,0) -> 350 | CS4: =IF($G4=data.s[[#Headers],[انقطاع]],$BE4-SUM(data.s[[#This Row],[تأمينات 2026]:[تنفيذ أحكام]],data.s[[#This Row],[الشهداء]:[خصم 5% تأمين من المستحق]],0),0) -> 0 | CT4: =IF($G4=CT$3,$BE4-SUM(data.s[[#This Row],[تأمينات 2026]:[تنفيذ أحكام]],data.s[[#This Row],[الشهداء]:[خصم 5% تأمين من المستحق]],0),0) -> 0 | CU4: =IF($G4=CU$3,$BE4-SUM(data.s[[#This Row],[تأمينات 2026]:[تنفيذ أحكام]],data.s[[#This Row],[الشهداء]:[خصم 5% تأمين من المستحق]],0),0) -> 0 | CV4: =IF($G4=data.s[[#Headers],[إعارة]],$BE4-SUM(data.s[[#This Row],[تأمينات 2026]:[تنفيذ أحكام]],data.s[[#This Row],[الشهداء]:[خصم 5% تأمين من المستحق]],0),0) -> 0 | CW4: =IF($G4=data.s[[#Headers],[انهاء]],$BE4-SUM(data.s[[#This Row],[تأمينات 2026]:[تنفيذ أحكام]],data.s[[#This Row],[الشهداء]:[خصم 5% تأمين من المستحق]],0),0) -> 0 | CX4: =IF($G4=data.s[[#Headers],[معاش]],$BE4-SUM(data.s[[#This Row],[تأمينات 2026]:[تنفيذ أحكام]],data.s[[#This Row],[الشهداء]:[خصم 5% تأمين من المستحق]],0),0) -> 0 | CY4: =SUM(data.s[[#This Row],[تأمينات 2026]:[تنفيذ أحكام]],data.s[[#This Row],[الشهداء]:[معاش]]) -> 2410.533298 | CZ4: =data.s[[#This Row],[إجمالي المستحق]]-data.s[[#This Row],[إجمالي المستقطع]] -> 4589.466702
B5: 302004 | C5: 1211 | D5: =VLOOKUP(data.s[[#This Row],[كود الشركة]],#REF!,MATCH(data.s[[#Headers],[التعامل المالي]],#REF!,0),FALSE) ->  | E5: مصطفى عبد المجيد مصطفى ثعلب | H5: سائق نقل | I5: الثانية | J5: الثانية | K5: سائق نقل | L5: فرع الزقازيق | M5: المنطقه الشرقيه | N5: =data.s[[#This Row],[كود الشركة]]&data.s[[#This Row],[كود البيرول]]&data.s[[#This Row],[التعامل المالي]]&data.s[[#This Row],[اسم الموظف]]&data.s[[#This Row],[الموظف المختص]]&data.s[[#This Row],[حالة العمل]]&data.s[[#This Row],[التصنيف الادارى]]&data.s[[#This Row],[الدرجة]] ->  | P5: =IF(data.s[[#This Row],[ترقية 7/2025]]<>"","نعم","") -> نعم | Q5: 2186.22 | R5: 2557.8774 | T5: =IF(data.s[[#This Row],[الوظيفة]]="سائق ملاكي",data.s[[#This Row],[أساسي 7/2025]]*135%,0) -> 0 | U5: =IF(data.s[[#This Row],[الوظيفة]]="سائق ملاكي",data.s[[#This Row],[أساسي 7/2025]]*15%,"") ->  | Z5: =data.s[[#This Row],[أساسي 7/2025]]*15% -> 383.68161 | AE5: 0 | AF5: =IFERROR(VLOOKUP(data.s[[#This Row],[كود الشركة]:[كود الشركة]],#REF!,MATCH(data.s[[#Headers],[بدل تباع]],#REF!,0),FALSE),0) -> 0 | AG5: =SUM(data.s[[#This Row],[بدل مخاطر]:[بدل تفرغ]])-data.s[[#This Row],[بدل تمثيل]] -> 383.68161 | AH5: 76.78 | AI5: 85.54 | AJ5: 102.79 | AL5: 190 | AM5: 43.7 | AN5: 77.94 | AO5: 100.07 | AP5: 142.77 | AQ5: 152.76 | AR5: 163.46 | AS5: 0 | AT5: 109.311 | AU5: 600 | AV5: 10 | AW5: =SUM(data.s[[#This Row],[علاوة 2014]:[علاوة اجتماعية]]) -> 1855.121 | AX5: 10 | AY5: =(data.s[[#This Row],[أساسي 7/2025]]*2)/12 -> 426.3129 | BC5: =SUM(data.s[[#This Row],[أساسي 7/2025]:[حافز موانى]],data.s[[#This Row],[أومر الشغل للملاكي]],data.s[[#This Row],[إجمالي بدلات]],data.s[[#This Row],[إجمالي علاوات]:[متوسط المنحة]]) -> 5232.99291 | BD5: =IF(data.s[[#This Row],[الإجمالي]]<7000,7000-data.s[[#This Row],[الإجمالي]],0) -> 1767.00709 | BE5: =IF(data.s[[#This Row],[حالة العمل]]="إيقاف",data.s[[#This Row],[أساسي 7/2025]],SUM(data.s[[#This Row],[رد مستحقات]:[مكمل الأجر]])) -> 7000 | BJ5: =ROUND(data.s[[#This Row],[تأمينات 2026]]/11%,2) -> 13313.22 | BK5: 1464.453827 | BM5: =(((data.s[[#This Row],[إجمالي المستحق]]+data.s[[#This Row],[عمولة انتاج]])-(data.s[[#This Row],[الحافز]]+data.s[[#This Row],[عمولة انتاج]]+data.s[[#This Row],[متوسط المنحة]]+data.s[[#This Row],[رد مستحقات]]+data.s[[#This Row],[بدل سهر]]+data.s[[#This Row],[الإضافي]]))/30)*data.s[[#This Row],[أيام الغياب]] -> 0 | BN5: =(((data.s[[#This Row],[إجمالي المستحق]]+data.s[[#This Row],[عمولة انتاج]])-(data.s[[#This Row],[الحافز]]+data.s[[#This Row],[عمولة انتاج]]+data.s[[#This Row],[متوسط المنحة]]+data.s[[#This Row],[رد مستحقات]]+data.s[[#This Row],[بدل سهر]]+data.s[[#This Row],[الإضافي]]))/30)*data.s[[#This Row],[أيام جزاء]] -> 0 | BO5: =IF(data.s[[#This Row],[أيام الغياب]]=1,data.s[[#This Row],[الحافز]]*20%,IF(data.s[[#This Row],[أيام الغياب]]=2,data.s[[#This Row],[الحافز]]*30%,IF(data.s[[#This Row],[أيام الغياب]]>2,data.s[[#This Row],[الحافز]]*100%,""))) ->  | BQ5: =IFERROR(IF(data.s[[#This Row],[أيام أجازات بعد السنوية]]<=2,data.s[[#This Row],[الحافز]]*0,IF(data.s[[#This Row],[أيام أجازات بعد السنوية]]=3,data.s[[#This Row],[الحافز]]*30%,IF(data.s[[#This Row],[أيام أجازات بعد السنوية]]=4,data.s[[#This Row],[الحافز]]*40%,IF(data.s[[#This Row],[أيام أجازات بعد السنوية]]=5,data.s[[#This Row],[الحافز]]*50%,IF(data.s[[#This Row],[أيام أجازات بعد السنوية]]>5,data.s[[#This Row],[الحافز]]*100%,""))))),"") -> 0 | BU5: 3 | CG5: =data.s[[#This Row],[مخالفات مرور]]+data.s[[#This Row],[سلفة]]+data.s[[#This Row],[تعويضات]]+data.s[[#This Row],[عجز]]+data.s[[#This Row],[تلفيات]]+data.s[[#This Row],[عهد]]+data.s[[#This Row],[سولار]] -> 0 | CH5: 8.51 | CI5: 3 | CP5: 0 | CQ5: =data.s[[#This Row],[متوسط المنحة]] -> 426.3129 | CR5: =IF(data.s[[#This Row],[التصنيف الادارى]]="سائق نقل",data.s[[#This Row],[إجمالي المستحق]]*5%,0) -> 350 | CS5: =IF($G5=data.s[[#Headers],[انقطاع]],$BE5-SUM(data.s[[#This Row],[تأمينات 2026]:[تنفيذ أحكام]],data.s[[#This Row],[الشهداء]:[خصم 5% تأمين من المستحق]],0),0) -> 0 | CT5: =IF($G5=CT$3,$BE5-SUM(data.s[[#This Row],[تأمينات 2026]:[تنفيذ أحكام]],data.s[[#This Row],[الشهداء]:[خصم 5% تأمين من المستحق]],0),0) -> 0 | CU5: =IF($G5=CU$3,$BE5-SUM(data.s[[#This Row],[تأمينات 2026]:[تنفيذ أحكام]],data.s[[#This Row],[الشهداء]:[خصم 5% تأمين من المستحق]],0),0) -> 0 | CV5: =IF($G5=data.s[[#Headers],[إعارة]],$BE5-SUM(data.s[[#This Row],[تأمينات 2026]:[تنفيذ أحكام]],data.s[[#This Row],[الشهداء]:[خصم 5% تأمين من المستحق]],0),0) -> 0 | CW5: =IF($G5=data.s[[#Headers],[انهاء]],$BE5-SUM(data.s[[#This Row],[تأمينات 2026]:[تنفيذ أحكام]],data.s[[#This Row],[الشهداء]:[خصم 5% تأمين من المستحق]],0),0) -> 0 | CX5: =IF($G5=data.s[[#Headers],[معاش]],$BE5-SUM(data.s[[#This Row],[تأمينات 2026]:[تنفيذ أحكام]],data.s[[#This Row],[الشهداء]:[خصم 5% تأمين من المستحق]],0),0) -> 0 | CY5: =SUM(data.s[[#This Row],[تأمينات 2026]:[تنفيذ أحكام]],data.s[[#This Row],[الشهداء]:[معاش]]) -> 2255.276727 | CZ5: =data.s[[#This Row],[إجمالي المستحق]]-data.s[[#This Row],[إجمالي المستقطع]] -> 4744.723273
B6: 302005 | C6: 1213 | D6: =VLOOKUP(data.s[[#This Row],[كود الشركة]],#REF!,MATCH(data.s[[#Headers],[التعامل المالي]],#REF!,0),FALSE) ->  | E6: عبد الباسط متولي عزب جمعه | H6: سائق نقل | I6: الثالثة | J6: الثالثة | K6: سائق نقل | L6: فرع الزقازيق | M6: المنطقه الشرقيه | N6: =data.s[[#This Row],[كود الشركة]]&data.s[[#This Row],[كود البيرول]]&data.s[[#This Row],[التعامل المالي]]&data.s[[#This Row],[اسم الموظف]]&data.s[[#This Row],[الموظف المختص]]&data.s[[#This Row],[حالة العمل]]&data.s[[#This Row],[التصنيف الادارى]]&data.s[[#This Row],[الدرجة]] ->  | P6: =IF(data.s[[#This Row],[ترقية 7/2025]]<>"","نعم","") -> نعم | Q6: 1092.43 | R6: 1278.1431 | T6: =IF(data.s[[#This Row],[الوظيفة]]="سائق ملاكي",data.s[[#This Row],[أساسي 7/2025]]*135%,0) -> 0 | U6: =IF(data.s[[#This Row],[الوظيفة]]="سائق ملاكي",data.s[[#This Row],[أساسي 7/2025]]*15%,"") ->  | Z6: =data.s[[#This Row],[أساسي 7/2025]]*15% -> 191.721465 | AE6: 0 | AF6: =IFERROR(VLOOKUP(data.s[[#This Row],[كود الشركة]:[كود الشركة]],#REF!,MATCH(data.s[[#Headers],[بدل تباع]],#REF!,0),FALSE),0) -> 0 | AG6: =SUM(data.s[[#This Row],[بدل مخاطر]:[بدل تفرغ]])-data.s[[#This Row],[بدل تمثيل]] -> 191.721465 | AH6: 38.89 | AI6: 43.11 | AJ6: 65 | AL6: 200 | AM6: 24.04 | AN6: 38.94 | AO6: 50 | AP6: 71.34 | AQ6: 76.33 | AR6: 81.68 | AS6: 0 | AT6: 54.6215 | AU6: 600 | AV6: 10 | AW6: =SUM(data.s[[#This Row],[علاوة 2014]:[علاوة اجتماعية]]) -> 1353.9515 | AX6: 10 | AY6: =(data.s[[#This Row],[أساسي 7/2025]]*2)/12 -> 213.02385 | BC6: =SUM(data.s[[#This Row],[أساسي 7/2025]:[حافز موانى]],data.s[[#This Row],[أومر الشغل للملاكي]],data.s[[#This Row],[إجمالي بدلات]],data.s[[#This Row],[إجمالي علاوات]:[متوسط المنحة]]) -> 3046.839915 | BD6: =IF(data.s[[#This Row],[الإجمالي]]<7000,7000-data.s[[#This Row],[الإجمالي]],0) -> 3953.160085 | BE6: =IF(data.s[[#This Row],[حالة العمل]]="إيقاف",data.s[[#This Row],[أساسي 7/2025]],SUM(data.s[[#This Row],[رد مستحقات]:[مكمل الأجر]])) -> 7000 | BJ6: =ROUND(data.s[[#This Row],[تأمينات 2026]]/11%,2) -> 8881.2 | BK6: 976.931558 | BM6: =(((data.s[[#This Row],[إجمالي المستحق]]+data.s[[#This Row],[عمولة انتاج]])-(data.s[[#This Row],[الحافز]]+data.s[[#This Row],[عمولة انتاج]]+data.s[[#This Row],[متوسط المنحة]]+data.s[[#This Row],[رد مستحقات]]+data.s[[#This Row],[بدل سهر]]+data.s[[#This Row],[الإضافي]]))/30)*data.s[[#This Row],[أيام الغياب]] -> 0 | BN6: =(((data.s[[#This Row],[إجمالي المستحق]]+data.s[[#This Row],[عمولة انتاج]])-(data.s[[#This Row],[الحافز]]+data.s[[#This Row],[عمولة انتاج]]+data.s[[#This Row],[متوسط المنحة]]+data.s[[#This Row],[رد مستحقات]]+data.s[[#This Row],[بدل سهر]]+data.s[[#This Row],[الإضافي]]))/30)*data.s[[#This Row],[أيام جزاء]] -> 0 | BO6: =IF(data.s[[#This Row],[أيام الغياب]]=1,data.s[[#This Row],[الحافز]]*20%,IF(data.s[[#This Row],[أيام الغياب]]=2,data.s[[#This Row],[الحافز]]*30%,IF(data.s[[#This Row],[أيام الغياب]]>2,data.s[[#This Row],[الحافز]]*100%,""))) ->  | BQ6: =IFERROR(IF(data.s[[#This Row],[أيام أجازات بعد السنوية]]<=2,data.s[[#This Row],[الحافز]]*0,IF(data.s[[#This Row],[أيام أجازات بعد السنوية]]=3,data.s[[#This Row],[الحافز]]*30%,IF(data.s[[#This Row],[أيام أجازات بعد السنوية]]=4,data.s[[#This Row],[الحافز]]*40%,IF(data.s[[#This Row],[أيام أجازات بعد السنوية]]=5,data.s[[#This Row],[الحافز]]*50%,IF(data.s[[#This Row],[أيام أجازات بعد السنوية]]>5,data.s[[#This Row],[الحافز]]*100%,""))))),"") -> 0 | BU6: 3 | BY6: 1750 | CG6: =data.s[[#This Row],[مخالفات مرور]]+data.s[[#This Row],[سلفة]]+data.s[[#This Row],[تعويضات]]+data.s[[#This Row],[عجز]]+data.s[[#This Row],[تلفيات]]+data.s[[#This Row],[عهد]]+data.s[[#This Row],[سولار]] -> 1750 | CH6: 8.11 | CI6: 3 | CP6: 0 | CQ6: =data.s[[#This Row],[متوسط المنحة]] -> 213.02385 | CR6: =IF(data.s[[#This Row],[التصنيف الادارى]]="سائق نقل",data.s[[#This Row],[إجمالي المستحق]]*5%,0) -> 350 | CS6: =IF($G6=data.s[[#Headers],[انقطاع]],$BE6-SUM(data.s[[#This Row],[تأمينات 2026]:[تنفيذ أحكام]],data.s[[#This Row],[الشهداء]:[خصم 5% تأمين من المستحق]],0),0) -> 0 | CT6: =IF($G6=CT$3,$BE6-SUM(data.s[[#This Row],[تأمينات 2026]:[تنفيذ أحكام]],data.s[[#This Row],[الشهداء]:[خصم 5% تأمين من المستحق]],0),0) -> 0 | CU6: =IF($G6=CU$3,$BE6-SUM(data.s[[#This Row],[تأمينات 2026]:[تنفيذ أحكام]],data.s[[#This Row],[الشهداء]:[خصم 5% تأمين من المستحق]],0),0) -> 0 | CV6: =IF($G6=data.s[[#Headers],[إعارة]],$BE6-SUM(data.s[[#This Row],[تأمينات 2026]:[تنفيذ أحكام]],data.s[[#This Row],[الشهداء]:[خصم 5% تأمين من المستحق]],0),0) -> 0 | CW6: =IF($G6=data.s[[#Headers],[انهاء]],$BE6-SUM(data.s[[#This Row],[تأمينات 2026]:[تنفيذ أحكام]],data.s[[#This Row],[الشهداء]:[خصم 5% تأمين من المستحق]],0),0) -> 0 | CX6: =IF($G6=data.s[[#Headers],[معاش]],$BE6-SUM(data.s[[#This Row],[تأمينات 2026]:[تنفيذ أحكام]],data.s[[#This Row],[الشهداء]:[خصم 5% تأمين من المستحق]],0),0) -> 0 | CY6: =SUM(data.s[[#This Row],[تأمينات 2026]:[تنفيذ أحكام]],data.s[[#This Row],[الشهداء]:[معاش]]) -> 3304.065408 | CZ6: =data.s[[#This Row],[إجمالي المستحق]]-data.s[[#This Row],[إجمالي المستقطع]] -> 3695.934592
B7: 302006 | C7: 1230 | D7: =VLOOKUP(data.s[[#This Row],[كود الشركة]],#REF!,MATCH(data.s[[#Headers],[التعامل المالي]],#REF!,0),FALSE) ->  | E7: نبيل إسماعيل جاد إسماعيل | H7: سائق نقل | I7: الثالثة | J7: الثالثة | K7: سائق نقل | L7: فرع الزقازيق | M7: المنطقه الشرقيه | N7: =data.s[[#This Row],[كود الشركة]]&data.s[[#This Row],[كود البيرول]]&data.s[[#This Row],[التعامل المالي]]&data.s[[#This Row],[اسم الموظف]]&data.s[[#This Row],[الموظف المختص]]&data.s[[#This Row],[حالة العمل]]&data.s[[#This Row],[التصنيف الادارى]]&data.s[[#This Row],[الدرجة]] ->  | P7: =IF(data.s[[#This Row],[ترقية 7/2025]]<>"","نعم","") -> نعم | Q7: 1058.07 | R7: 1237.9419 | T7: =IF(data.s[[#This Row],[الوظيفة]]="سائق ملاكي",data.s[[#This Row],[أساسي 7/2025]]*135%,0) -> 0 | U7: =IF(data.s[[#This Row],[الوظيفة]]="سائق ملاكي",data.s[[#This Row],[أساسي 7/2025]]*15%,"") ->  | Z7: =data.s[[#This Row],[أساسي 7/2025]]*15% -> 185.691285 | AE7: 0 | AF7: =IFERROR(VLOOKUP(data.s[[#This Row],[كود الشركة]:[كود الشركة]],#REF!,MATCH(data.s[[#Headers],[بدل تباع]],#REF!,0),FALSE),0) -> 0 | AG7: =SUM(data.s[[#This Row],[بدل مخاطر]:[بدل تفرغ]])-data.s[[#This Row],[بدل تمثيل]] -> 185.691285 | AH7: 35.41 | AI7: 42.14 | AJ7: 65 | AL7: 200 | AM7: 25.65 | AN7: 37.72 | AO7: 48.43 | AP7: 69.1 | AQ7: 73.93 | AR7: 80.78 | AS7: 0 | AT7: 52.9035 | AU7: 600 | AV7: 4 | AW7: =SUM(data.s[[#This Row],[علاوة 2014]:[علاوة اجتماعية]]) -> 1335.0635 | AX7: 10 | AY7: =(data.s[[#This Row],[أساسي 7/2025]]*2)/12 -> 206.32365 | BC7: =SUM(data.s[[#This Row],[أساسي 7/2025]:[حافز موانى]],data.s[[#This Row],[أومر الشغل للملاكي]],data.s[[#This Row],[إجمالي بدلات]],data.s[[#This Row],[إجمالي علاوات]:[متوسط المنحة]]) -> 2975.020335 | BD7: =IF(data.s[[#This Row],[الإجمالي]]<7000,7000-data.s[[#This Row],[الإجمالي]],0) -> 4024.979665 | BE7: =IF(data.s[[#This Row],[حالة العمل]]="إيقاف",data.s[[#This Row],[أساسي 7/2025]],SUM(data.s[[#This Row],[رد مستحقات]:[مكمل الأجر]])) -> 7000 | BJ7: =ROUND(data.s[[#This Row],[تأمينات 2026]]/11%,2) -> 9130.03 | BK7: 1004.302836 | BM7: =(((data.s[[#This Row],[إجمالي المستحق]]+data.s[[#This Row],[عمولة انتاج]])-(data.s[[#This Row],[الحافز]]+data.s[[#This Row],[عمولة انتاج]]+data.s[[#This Row],[متوسط المنحة]]+data.s[[#This Row],[رد مستحقات]]+data.s[[#This Row],[بدل سهر]]+data.s[[#This Row],[الإضافي]]))/30)*data.s[[#This Row],[أيام الغياب]] -> 0 | BN7: =(((data.s[[#This Row],[إجمالي المستحق]]+data.s[[#This Row],[عمولة انتاج]])-(data.s[[#This Row],[الحافز]]+data.s[[#This Row],[عمولة انتاج]]+data.s[[#This Row],[متوسط المنحة]]+data.s[[#This Row],[رد مستحقات]]+data.s[[#This Row],[بدل سهر]]+data.s[[#This Row],[الإضافي]]))/30)*data.s[[#This Row],[أيام جزاء]] -> 0 | BO7: =IF(data.s[[#This Row],[أيام الغياب]]=1,data.s[[#This Row],[الحافز]]*20%,IF(data.s[[#This Row],[أيام الغياب]]=2,data.s[[#This Row],[الحافز]]*30%,IF(data.s[[#This Row],[أيام الغياب]]>2,data.s[[#This Row],[الحافز]]*100%,""))) ->  | BQ7: =IFERROR(IF(data.s[[#This Row],[أيام أجازات بعد السنوية]]<=2,data.s[[#This Row],[الحافز]]*0,IF(data.s[[#This Row],[أيام أجازات بعد السنوية]]=3,data.s[[#This Row],[الحافز]]*30%,IF(data.s[[#This Row],[أيام أجازات بعد السنوية]]=4,data.s[[#This Row],[الحافز]]*40%,IF(data.s[[#This Row],[أيام أجازات بعد السنوية]]=5,data.s[[#This Row],[الحافز]]*50%,IF(data.s[[#This Row],[أيام أجازات بعد السنوية]]>5,data.s[[#This Row],[الحافز]]*100%,""))))),"") -> 0 | BU7: 3 | BX7: 750 | CC7: 323.5 | CE7: 676.5 | CG7: =data.s[[#This Row],[مخالفات مرور]]+data.s[[#This Row],[سلفة]]+data.s[[#This Row],[تعويضات]]+data.s[[#This Row],[عجز]]+data.s[[#This Row],[تلفيات]]+data.s[[#This Row],[عهد]]+data.s[[#This Row],[سولار]] -> 1750 | CH7: 5.76 | CI7: 3 | CP7: 0 | CQ7: =data.s[[#This Row],[متوسط المنحة]] -> 206.32365 | CR7: =IF(data.s[[#This Row],[التصنيف الادارى]]="سائق نقل",data.s[[#This Row],[إجمالي المستحق]]*5%,0) -> 350 | CS7: =IF($G7=data.s[[#Headers],[انقطاع]],$BE7-SUM(data.s[[#This Row],[تأمينات 2026]:[تنفيذ أحكام]],data.s[[#This Row],[الشهداء]:[خصم 5% تأمين من المستحق]],0),0) -> 0 | CT7: =IF($G7=CT$3,$BE7-SUM(data.s[[#This Row],[تأمينات 2026]:[تنفيذ أحكام]],data.s[[#This Row],[الشهداء]:[خصم 5% تأمين من المستحق]],0),0) -> 0 | CU7: =IF($G7=CU$3,$BE7-SUM(data.s[[#This Row],[تأمينات 2026]:[تنفيذ أحكام]],data.s[[#This Row],[الشهداء]:[خصم 5% تأمين من المستحق]],0),0) -> 0 | CV7: =IF($G7=data.s[[#Headers],[إعارة]],$BE7-SUM(data.s[[#This Row],[تأمينات 2026]:[تنفيذ أحكام]],data.s[[#This Row],[الشهداء]:[خصم 5% تأمين من المستحق]],0),0) -> 0 | CW7: =IF($G7=data.s[[#Headers],[انهاء]],$BE7-SUM(data.s[[#This Row],[تأمينات 2026]:[تنفيذ أحكام]],data.s[[#This Row],[الشهداء]:[خصم 5% تأمين من المستحق]],0),0) -> 0 | CX7: =IF($G7=data.s[[#Headers],[معاش]],$BE7-SUM(data.s[[#This Row],[تأمينات 2026]:[تنفيذ أحكام]],data.s[[#This Row],[الشهداء]:[خصم 5% تأمين من المستحق]],0),0) -> 0 | CY7: =SUM(data.s[[#This Row],[تأمينات 2026]:[تنفيذ أحكام]],data.s[[#This Row],[الشهداء]:[معاش]]) -> 3322.386486 | CZ7: =data.s[[#This Row],[إجمالي المستحق]]-data.s[[#This Row],[إجمالي المستقطع]] -> 3677.613514
B8: 302007 | C8: 1215 | D8: =VLOOKUP(data.s[[#This Row],[كود الشركة]],#REF!,MATCH(data.s[[#Headers],[التعامل المالي]],#REF!,0),FALSE) ->  | E8: محمد أحمد محمد محمد صابر | H8: سائق نقل | I8: الثالثة | J8: الثالثة | K8: سائق نقل | L8: إنهاء | M8: المنطقه الشرقيه | N8: =data.s[[#This Row],[كود الشركة]]&data.s[[#This Row],[كود البيرول]]&data.s[[#This Row],[التعامل المالي]]&data.s[[#This Row],[اسم الموظف]]&data.s[[#This Row],[الموظف المختص]]&data.s[[#This Row],[حالة العمل]]&data.s[[#This Row],[التصنيف الادارى]]&data.s[[#This Row],[الدرجة]] ->  | P8: =IF(data.s[[#This Row],[ترقية 7/2025]]<>"","نعم","") -> نعم | Q8: 1026.98 | R8: 1201.5666 | T8: =IF(data.s[[#This Row],[الوظيفة]]="سائق ملاكي",data.s[[#This Row],[أساسي 7/2025]]*135%,0) -> 0 | U8: =IF(data.s[[#This Row],[الوظيفة]]="سائق ملاكي",data.s[[#This Row],[أساسي 7/2025]]*15%,"") ->  | Z8: =data.s[[#This Row],[أساسي 7/2025]]*15% -> 180.23499 | AE8: 0 | AF8: =IFERROR(VLOOKUP(data.s[[#This Row],[كود الشركة]:[كود الشركة]],#REF!,MATCH(data.s[[#Headers],[بدل تباع]],#REF!,0),FALSE),0) -> 0 | AG8: =SUM(data.s[[#This Row],[بدل مخاطر]:[بدل تفرغ]])-data.s[[#This Row],[بدل تمثيل]] -> 180.23499 | AH8: 34.03 | AI8: 37.91 | AJ8: 65 | AL8: 200 | AM8: 27.1 | AN8: 36.61 | AO8: 47.01 | AP8: 67.07 | AQ8: 71.76 | AR8: 82.81 | AS8: 0 | AT8: 51.349 | AU8: 600 | AV8: 4 | AW8: =SUM(data.s[[#This Row],[علاوة 2014]:[علاوة اجتماعية]]) -> 1324.649 | AX8: 10 | AY8: =(data.s[[#This Row],[أساسي 7/2025]]*2)/12 -> 200.2611 | BC8: =SUM(data.s[[#This Row],[أساسي 7/2025]:[حافز موانى]],data.s[[#This Row],[أومر الشغل للملاكي]],data.s[[#This Row],[إجمالي بدلات]],data.s[[#This Row],[إجمالي علاوات]:[متوسط المنحة]]) -> 2916.71169 | BD8: =IF(data.s[[#This Row],[الإجمالي]]<7000,7000-data.s[[#This Row],[الإجمالي]],0) -> 4083.28831 | BE8: =IF(data.s[[#This Row],[حالة العمل]]="إيقاف",data.s[[#This Row],[أساسي 7/2025]],SUM(data.s[[#This Row],[رد مستحقات]:[مكمل الأجر]])) -> 7000 | BJ8: =ROUND(data.s[[#This Row],[تأمينات 2026]]/11%,2) -> 10081.02 | BK8: 1108.912532 | BM8: =(((data.s[[#This Row],[إجمالي المستحق]]+data.s[[#This Row],[عمولة انتاج]])-(data.s[[#This Row],[الحافز]]+data.s[[#This Row],[عمولة انتاج]]+data.s[[#This Row],[متوسط المنحة]]+data.s[[#This Row],[رد مستحقات]]+data.s[[#This Row],[بدل سهر]]+data.s[[#This Row],[الإضافي]]))/30)*data.s[[#This Row],[أيام الغياب]] -> 0 | BN8: =(((data.s[[#This Row],[إجمالي المستحق]]+data.s[[#This Row],[عمولة انتاج]])-(data.s[[#This Row],[الحافز]]+data.s[[#This Row],[عمولة انتاج]]+data.s[[#This Row],[متوسط المنحة]]+data.s[[#This Row],[رد مستحقات]]+data.s[[#This Row],[بدل سهر]]+data.s[[#This Row],[الإضافي]]))/30)*data.s[[#This Row],[أيام جزاء]] -> 0 | BO8: =IF(data.s[[#This Row],[أيام الغياب]]=1,data.s[[#This Row],[الحافز]]*20%,IF(data.s[[#This Row],[أيام الغياب]]=2,data.s[[#This Row],[الحافز]]*30%,IF(data.s[[#This Row],[أيام الغياب]]>2,data.s[[#This Row],[الحافز]]*100%,""))) ->  | BQ8: =IFERROR(IF(data.s[[#This Row],[أيام أجازات بعد السنوية]]<=2,data.s[[#This Row],[الحافز]]*0,IF(data.s[[#This Row],[أيام أجازات بعد السنوية]]=3,data.s[[#This Row],[الحافز]]*30%,IF(data.s[[#This Row],[أيام أجازات بعد السنوية]]=4,data.s[[#This Row],[الحافز]]*40%,IF(data.s[[#This Row],[أيام أجازات بعد السنوية]]=5,data.s[[#This Row],[الحافز]]*50%,IF(data.s[[#This Row],[أيام أجازات بعد السنوية]]>5,data.s[[#This Row],[الحافز]]*100%,""))))),"") -> 0 | BU8: 3 | CG8: =data.s[[#This Row],[مخالفات مرور]]+data.s[[#This Row],[سلفة]]+data.s[[#This Row],[تعويضات]]+data.s[[#This Row],[عجز]]+data.s[[#This Row],[تلفيات]]+data.s[[#This Row],[عهد]]+data.s[[#This Row],[سولار]] -> 0 | CH8: 5.81 | CI8: 3 | CP8: 0 | CQ8: =data.s[[#This Row],[متوسط المنحة]] -> 200.2611 | CR8: =IF(data.s[[#This Row],[التصنيف الادارى]]="سائق نقل",data.s[[#This Row],[إجمالي المستحق]]*5%,0) -> 350 | CS8: =IF($G8=data.s[[#Headers],[انقطاع]],$BE8-SUM(data.s[[#This Row],[تأمينات 2026]:[تنفيذ أحكام]],data.s[[#This Row],[الشهداء]:[خصم 5% تأمين من المستحق]],0),0) -> 0 | CT8: =IF($G8=CT$3,$BE8-SUM(data.s[[#This Row],[تأمينات 2026]:[تنفيذ أحكام]],data.s[[#This Row],[الشهداء]:[خصم 5% تأمين من المستحق]],0),0) -> 0 | CU8: =IF($G8=CU$3,$BE8-SUM(data.s[[#This Row],[تأمينات 2026]:[تنفيذ أحكام]],data.s[[#This Row],[الشهداء]:[خصم 5% تأمين من المستحق]],0),0) -> 0 | CV8: =IF($G8=data.s[[#Headers],[إعارة]],$BE8-SUM(data.s[[#This Row],[تأمينات 2026]:[تنفيذ أحكام]],data.s[[#This Row],[الشهداء]:[خصم 5% تأمين من المستحق]],0),0) -> 0 | CW8: =IF($G8=data.s[[#Headers],[انهاء]],$BE8-SUM(data.s[[#This Row],[تأمينات 2026]:[تنفيذ أحكام]],data.s[[#This Row],[الشهداء]:[خصم 5% تأمين من المستحق]],0),0) -> 0 | CX8: =IF($G8=data.s[[#Headers],[معاش]],$BE8-SUM(data.s[[#This Row],[تأمينات 2026]:[تنفيذ أحكام]],data.s[[#This Row],[الشهداء]:[خصم 5% تأمين من المستحق]],0),0) -> 0 | CY8: =SUM(data.s[[#This Row],[تأمينات 2026]:[تنفيذ أحكام]],data.s[[#This Row],[الشهداء]:[معاش]]) -> 1670.983632 | CZ8: =data.s[[#This Row],[إجمالي المستحق]]-data.s[[#This Row],[إجمالي المستقطع]] -> 5329.016368
B9: 302008 | C9: 1231 | D9: =VLOOKUP(data.s[[#This Row],[كود الشركة]],#REF!,MATCH(data.s[[#Headers],[التعامل المالي]],#REF!,0),FALSE) ->  | E9: رضا السيد نفادى عثمان | H9: سائق نقل | I9: الخامسة | L9: فرع الزقازيق | M9: المنطقه الشرقيه | N9: =data.s[[#This Row],[كود الشركة]]&data.s[[#This Row],[كود البيرول]]&data.s[[#This Row],[التعامل المالي]]&data.s[[#This Row],[اسم الموظف]]&data.s[[#This Row],[الموظف المختص]]&data.s[[#This Row],[حالة العمل]]&data.s[[#This Row],[التصنيف الادارى]]&data.s[[#This Row],[الدرجة]] ->  | P9: =IF(data.s[[#This Row],[ترقية 7/2025]]<>"","نعم","") ->  | Q9: 937.66 | R9: 1097.06 | T9: =IF(data.s[[#This Row],[الوظيفة]]="سائق ملاكي",data.s[[#This Row],[أساسي 7/2025]]*135%,0) -> 0 | U9: =IF(data.s[[#This Row],[الوظيفة]]="سائق ملاكي",data.s[[#This Row],[أساسي 7/2025]]*15%,"") ->  | Z9: =data.s[[#This Row],[أساسي 7/2025]]*15% -> 164.559 | AE9: 0 | AF9: =IFERROR(VLOOKUP(data.s[[#This Row],[كود الشركة]:[كود الشركة]],#REF!,MATCH(data.s[[#Headers],[بدل تباع]],#REF!,0),FALSE),0) -> 0 | AG9: =SUM(data.s[[#This Row],[بدل مخاطر]:[بدل تفرغ]])-data.s[[#This Row],[بدل تمثيل]] -> 164.559 | AH9: 32.5 | AI9: 36.28 | AJ9: 65 | AL9: 200 | AM9: 31.26 | AN9: 33.43 | AO9: 42.92 | AP9: 61.23 | AQ9: 67.67 | AR9: 88.66 | AS9: 0 | AT9: 56.234 | AU9: 600 | AV9: 6 | AW9: =SUM(data.s[[#This Row],[علاوة 2014]:[علاوة اجتماعية]]) -> 1321.184 | AX9: 10 | AY9: =(data.s[[#This Row],[أساسي 7/2025]]*2)/12 -> 182.8433333 | BC9: =SUM(data.s[[#This Row],[أساسي 7/2025]:[حافز موانى]],data.s[[#This Row],[أومر الشغل للملاكي]],data.s[[#This Row],[إجمالي بدلات]],data.s[[#This Row],[إجمالي علاوات]:[متوسط المنحة]]) -> 2775.646333 | BD9: =IF(data.s[[#This Row],[الإجمالي]]<7000,7000-data.s[[#This Row],[الإجمالي]],0) -> 4224.353667 | BE9: =IF(data.s[[#This Row],[حالة العمل]]="إيقاف",data.s[[#This Row],[أساسي 7/2025]],SUM(data.s[[#This Row],[رد مستحقات]:[مكمل الأجر]])) -> 7000 | BJ9: =ROUND(data.s[[#This Row],[تأمينات 2026]]/11%,2) -> 11466.59 | BK9: 1261.325075 | BM9: =(((data.s[[#This Row],[إجمالي المستحق]]+data.s[[#This Row],[عمولة انتاج]])-(data.s[[#This Row],[الحافز]]+data.s[[#This Row],[عمولة انتاج]]+data.s[[#This Row],[متوسط المنحة]]+data.s[[#This Row],[رد مستحقات]]+data.s[[#This Row],[بدل سهر]]+data.s[[#This Row],[الإضافي]]))/30)*data.s[[#This Row],[أيام الغياب]] -> 0 | BN9: =(((data.s[[#This Row],[إجمالي المستحق]]+data.s[[#This Row],[عمولة انتاج]])-(data.s[[#This Row],[الحافز]]+data.s[[#This Row],[عمولة انتاج]]+data.s[[#This Row],[متوسط المنحة]]+data.s[[#This Row],[رد مستحقات]]+data.s[[#This Row],[بدل سهر]]+data.s[[#This Row],[الإضافي]]))/30)*data.s[[#This Row],[أيام جزاء]] -> 0 | BO9: =IF(data.s[[#This Row],[أيام الغياب]]=1,data.s[[#This Row],[الحافز]]*20%,IF(data.s[[#This Row],[أيام الغياب]]=2,data.s[[#This Row],[الحافز]]*30%,IF(data.s[[#This Row],[أيام الغياب]]>2,data.s[[#This Row],[الحافز]]*100%,""))) ->  | BQ9: =IFERROR(IF(data.s[[#This Row],[أيام أجازات بعد السنوية]]<=2,data.s[[#This Row],[الحافز]]*0,IF(data.s[[#This Row],[أيام أجازات بعد السنوية]]=3,data.s[[#This Row],[الحافز]]*30%,IF(data.s[[#This Row],[أيام أجازات بعد السنوية]]=4,data.s[[#This Row],[الحافز]]*40%,IF(data.s[[#This Row],[أيام أجازات بعد السنوية]]=5,data.s[[#This Row],[الحافز]]*50%,IF(data.s[[#This Row],[أيام أجازات بعد السنوية]]>5,data.s[[#This Row],[الحافز]]*100%,""))))),"") -> 0 | BU9: 3 | BX9: 1750 | CG9: =data.s[[#This Row],[مخالفات مرور]]+data.s[[#This Row],[سلفة]]+data.s[[#This Row],[تعويضات]]+data.s[[#This Row],[عجز]]+data.s[[#This Row],[تلفيات]]+data.s[[#This Row],[عهد]]+data.s[[#This Row],[سولار]] -> 1750 | CH9: 9.63 | CI9: 3 | CP9: 0 | CQ9: =data.s[[#This Row],[متوسط المنحة]] -> 182.8433333 | CR9: =IF(data.s[[#This Row],[التصنيف الادارى]]="سائق نقل",data.s[[#This Row],[إجمالي المستحق]]*5%,0) -> 350 | CS9: =IF($G9=data.s[[#Headers],[انقطاع]],$BE9-SUM(data.s[[#This Row],[تأمينات 2026]:[تنفيذ أحكام]],data.s[[#This Row],[الشهداء]:[خصم 5% تأمين من المستحق]],0),0) -> 0 | CT9: =IF($G9=CT$3,$BE9-SUM(data.s[[#This Row],[تأمينات 2026]:[تنفيذ أحكام]],data.s[[#This Row],[الشهداء]:[خصم 5% تأمين من المستحق]],0),0) -> 0 | CU9: =IF($G9=CU$3,$BE9-SUM(data.s[[#This Row],[تأمينات 2026]:[تنفيذ أحكام]],data.s[[#This Row],[الشهداء]:[خصم 5% تأمين من المستحق]],0),0) -> 0 | CV9: =IF($G9=data.s[[#Headers],[إعارة]],$BE9-SUM(data.s[[#This Row],[تأمينات 2026]:[تنفيذ أحكام]],data.s[[#This Row],[الشهداء]:[خصم 5% تأمين من المستحق]],0),0) -> 0 | CW9: =IF($G9=data.s[[#Headers],[انهاء]],$BE9-SUM(data.s[[#This Row],[تأمينات 2026]:[تنفيذ أحكام]],data.s[[#This Row],[الشهداء]:[خصم 5% تأمين من المستحق]],0),0) -> 0 | CX9: =IF($G9=data.s[[#Headers],[معاش]],$BE9-SUM(data.s[[#This Row],[تأمينات 2026]:[تنفيذ أحكام]],data.s[[#This Row],[الشهداء]:[خصم 5% تأمين من المستحق]],0),0) -> 0 | CY9: =SUM(data.s[[#This Row],[تأمينات 2026]:[تنفيذ أحكام]],data.s[[#This Row],[الشهداء]:[معاش]]) -> 3559.798409 | CZ9: =data.s[[#This Row],[إجمالي المستحق]]-data.s[[#This Row],[إجمالي المستقطع]] -> 3440.201591
B10: 302009 | C10: 1216 | D10: =VLOOKUP(data.s[[#This Row],[كود الشركة]],#REF!,MATCH(data.s[[#Headers],[التعامل المالي]],#REF!,0),FALSE) ->  | E10: عبد الله عبد الحميد إبراهيم عمران | H10: سائق نقل | I10: الخامسة | L10: فرع الاميرية | M10: المنطقه المركزية | N10: =data.s[[#This Row],[كود الشركة]]&data.s[[#This Row],[كود البيرول]]&data.s[[#This Row],[التعامل المالي]]&data.s[[#This Row],[اسم الموظف]]&data.s[[#This Row],[الموظف المختص]]&data.s[[#This Row],[حالة العمل]]&data.s[[#This Row],[التصنيف الادارى]]&data.s[[#This Row],[الدرجة]] ->  | P10: =IF(data.s[[#This Row],[ترقية 7/2025]]<>"","نعم","") ->  | Q10: 1022.77 | R10: 1196.64 | T10: =IF(data.s[[#This Row],[الوظيفة]]="سائق ملاكي",data.s[[#This Row],[أساسي 7/2025]]*135%,0) -> 0 | U10: =IF(data.s[[#This Row],[الوظيفة]]="سائق ملاكي",data.s[[#This Row],[أساسي 7/2025]]*15%,"") ->  | Z10: =data.s[[#This Row],[أساسي 7/2025]]*15% -> 179.496 | AE10: 0 | AF10: =IFERROR(VLOOKUP(data.s[[#This Row],[كود الشركة]:[كود الشركة]],#REF!,MATCH(data.s[[#Headers],[بدل تباع]],#REF!,0),FALSE),0) -> 0 | AG10: =SUM(data.s[[#This Row],[بدل مخاطر]:[بدل تفرغ]])-data.s[[#This Row],[بدل تمثيل]] -> 179.496 | AH10: 35.98 | AI10: 39.95 | AJ10: 65 | AL10: 200 | AM10: 27.29 | AN10: 36.46 | AO10: 46.82 | AP10: 66.79 | AQ10: 71.47 | AR10: 83.09 | AS10: 0 | AT10: 51.1385 | AU10: 600 | AV10: 10 | AW10: =SUM(data.s[[#This Row],[علاوة 2014]:[علاوة اجتماعية]]) -> 1333.9885 | AX10: 10 | AY10: =(data.s[[#This Row],[أساسي 7/2025]]*2)/12 -> 199.44 | BC10: =SUM(data.s[[#This Row],[أساسي 7/2025]:[حافز موانى]],data.s[[#This Row],[أومر الشغل للملاكي]],data.s[[#This Row],[إجمالي بدلات]],data.s[[#This Row],[إجمالي علاوات]:[متوسط المنحة]]) -> 2919.5645 | BD10: =IF(data.s[[#This Row],[الإجمالي]]<7000,7000-data.s[[#This Row],[الإجمالي]],0) -> 4080.4355 | BE10: =IF(data.s[[#This Row],[حالة العمل]]="إيقاف",data.s[[#This Row],[أساسي 7/2025]],SUM(data.s[[#This Row],[رد مستحقات]:[مكمل الأجر]])) -> 7000 | BJ10: =ROUND(data.s[[#This Row],[تأمينات 2026]]/11%,2) -> 15341.31 | BK10: 1687.54441 | BM10: =(((data.s[[#This Row],[إجمالي المستحق]]+data.s[[#This Row],[عمولة انتاج]])-(data.s[[#This Row],[الحافز]]+data.s[[#This Row],[عمولة انتاج]]+data.s[[#This Row],[متوسط المنحة]]+data.s[[#This Row],[رد مستحقات]]+data.s[[#This Row],[بدل سهر]]+data.s[[#This Row],[الإضافي]]))/30)*data.s[[#This Row],[أيام الغياب]] -> 0 | BN10: =(((data.s[[#This Row],[إجمالي المستحق]]+data.s[[#This Row],[عمولة انتاج]])-(data.s[[#This Row],[الحافز]]+data.s[[#This Row],[عمولة انتاج]]+data.s[[#This Row],[متوسط المنحة]]+data.s[[#This Row],[رد مستحقات]]+data.s[[#This Row],[بدل سهر]]+data.s[[#This Row],[الإضافي]]))/30)*data.s[[#This Row],[أيام جزاء]] -> 0 | BO10: =IF(data.s[[#This Row],[أيام الغياب]]=1,data.s[[#This Row],[الحافز]]*20%,IF(data.s[[#This Row],[أيام الغياب]]=2,data.s[[#This Row],[الحافز]]*30%,IF(data.s[[#This Row],[أيام الغياب]]>2,data.s[[#This Row],[الحافز]]*100%,""))) ->  | BQ10: =IFERROR(IF(data.s[[#This Row],[أيام أجازات بعد السنوية]]<=2,data.s[[#This Row],[الحافز]]*0,IF(data.s[[#This Row],[أيام أجازات بعد السنوية]]=3,data.s[[#This Row],[الحافز]]*30%,IF(data.s[[#This Row],[أيام أجازات بعد السنوية]]=4,data.s[[#This Row],[الحافز]]*40%,IF(data.s[[#This Row],[أيام أجازات بعد السنوية]]=5,data.s[[#This Row],[الحافز]]*50%,IF(data.s[[#This Row],[أيام أجازات بعد السنوية]]>5,data.s[[#This Row],[الحافز]]*100%,""))))),"") -> 0 | BU10: 3 | CG10: =data.s[[#This Row],[مخالفات مرور]]+data.s[[#This Row],[سلفة]]+data.s[[#This Row],[تعويضات]]+data.s[[#This Row],[عجز]]+data.s[[#This Row],[تلفيات]]+data.s[[#This Row],[عهد]]+data.s[[#This Row],[سولار]] -> 0 | CH10: 16.15 | CI10: 3 | CP10: 0 | CQ10: =data.s[[#This Row],[متوسط المنحة]] -> 199.44 | CR10: =IF(data.s[[#This Row],[التصنيف الادارى]]="سائق نقل",data.s[[#This Row],[إجمالي المستحق]]*5%,0) -> 350 | CS10: =IF($G10=data.s[[#Headers],[انقطاع]],$BE10-SUM(data.s[[#This Row],[تأمينات 2026]:[تنفيذ أحكام]],data.s[[#This Row],[الشهداء]:[خصم 5% تأمين من المستحق]],0),0) -> 0 | CT10: =IF($G10=CT$3,$BE10-SUM(data.s[[#This Row],[تأمينات 2026]:[تنفيذ أحكام]],data.s[[#This Row],[الشهداء]:[خصم 5% تأمين من المستحق]],0),0) -> 0 | CU10: =IF($G10=CU$3,$BE10-SUM(data.s[[#This Row],[تأمينات 2026]:[تنفيذ أحكام]],data.s[[#This Row],[الشهداء]:[خصم 5% تأمين من المستحق]],0),0) -> 0 | CV10: =IF($G10=data.s[[#Headers],[إعارة]],$BE10-SUM(data.s[[#This Row],[تأمينات 2026]:[تنفيذ أحكام]],data.s[[#This Row],[الشهداء]:[خصم 5% تأمين من المستحق]],0),0) -> 0 | CW10: =IF($G10=data.s[[#Headers],[انهاء]],$BE10-SUM(data.s[[#This Row],[تأمينات 2026]:[تنفيذ أحكام]],data.s[[#This Row],[الشهداء]:[خصم 5% تأمين من المستحق]],0),0) -> 0 | CX10: =IF($G10=data.s[[#Headers],[معاش]],$BE10-SUM(data.s[[#This Row],[تأمينات 2026]:[تنفيذ أحكام]],data.s[[#This Row],[الشهداء]:[خصم 5% تأمين من المستحق]],0),0) -> 0 | CY10: =SUM(data.s[[#This Row],[تأمينات 2026]:[تنفيذ أحكام]],data.s[[#This Row],[الشهداء]:[معاش]]) -> 2259.13441 | CZ10: =data.s[[#This Row],[إجمالي المستحق]]-data.s[[#This Row],[إجمالي المستقطع]] -> 4740.86559
B11: 302010 | C11: 1232 | D11: =VLOOKUP(data.s[[#This Row],[كود الشركة]],#REF!,MATCH(data.s[[#Headers],[التعامل المالي]],#REF!,0),FALSE) ->  | E11: محمد أحمد أحمد شحاتة جلال | H11: سائق نقل | I11: الثالثة | J11: الثالثة | K11: سائق نقل | L11: فرع الاسكندرية | M11: المنطقه الشماليه | N11: =data.s[[#This Row],[كود الشركة]]&data.s[[#This Row],[كود البيرول]]&data.s[[#This Row],[التعامل المالي]]&data.s[[#This Row],[اسم الموظف]]&data.s[[#This Row],[الموظف المختص]]&data.s[[#This Row],[حالة العمل]]&data.s[[#This Row],[التصنيف الادارى]]&data.s[[#This Row],[الدرجة]] ->  | P11: =IF(data.s[[#This Row],[ترقية 7/2025]]<>"","نعم","") -> نعم | Q11: 989.69 | R11: 1157.9373 | T11: =IF(data.s[[#This Row],[الوظيفة]]="سائق ملاكي",data.s[[#This Row],[أساسي 7/2025]]*135%,0) -> 0 | U11: =IF(data.s[[#This Row],[الوظيفة]]="سائق ملاكي",data.s[[#This Row],[أساسي 7/2025]]*15%,"") ->  | Z11: =data.s[[#This Row],[أساسي 7/2025]]*15% -> 173.690595 | AE11: 0 | AF11: =IFERROR(VLOOKUP(data.s[[#This Row],[كود الشركة]:[كود الشركة]],#REF!,MATCH(data.s[[#Headers],[بدل تباع]],#REF!,0),FALSE),0) -> 0 | AG11: =SUM(data.s[[#This Row],[بدل مخاطر]:[بدل تفرغ]])-data.s[[#This Row],[بدل تمثيل]] -> 173.690595 | AH11: 32.5 | AI11: 36.28 | AJ11: 65 | AL11: 200 | AM11: 28.84 | AN11: 35.28 | AO11: 45.3 | AP11: 64.63 | AQ11: 69.15 | AR11: 85.25 | AS11: 0 | AT11: 51.031 | AU11: 600 | AV11: 4 | AW11: =SUM(data.s[[#This Row],[علاوة 2014]:[علاوة اجتماعية]]) -> 1317.261 | AX11: 10 | AY11: =(data.s[[#This Row],[أساسي 7/2025]]*2)/12 -> 192.98955 | BC11: =SUM(data.s[[#This Row],[أساسي 7/2025]:[حافز موانى]],data.s[[#This Row],[أومر الشغل للملاكي]],data.s[[#This Row],[إجمالي بدلات]],data.s[[#This Row],[إجمالي علاوات]:[متوسط المنحة]]) -> 2851.878445 | BD11: =IF(data.s[[#This Row],[الإجمالي]]<7000,7000-data.s[[#This Row],[الإجمالي]],0) -> 4148.121555 | BE11: =IF(data.s[[#This Row],[حالة العمل]]="إيقاف",data.s[[#This Row],[أساسي 7/2025]],SUM(data.s[[#This Row],[رد مستحقات]:[مكمل الأجر]])) -> 7000 | BJ11: =ROUND(data.s[[#This Row],[تأمينات 2026]]/11%,2) -> 13705.92 | BK11: 1507.650933 | BM11: =(((data.s[[#This Row],[إجمالي المستحق]]+data.s[[#This Row],[عمولة انتاج]])-(data.s[[#This Row],[الحافز]]+data.s[[#This Row],[عمولة انتاج]]+data.s[[#This Row],[متوسط المنحة]]+data.s[[#This Row],[رد مستحقات]]+data.s[[#This Row],[بدل سهر]]+data.s[[#This Row],[الإضافي]]))/30)*data.s[[#This Row],[أيام الغياب]] -> 0 | BN11: =(((data.s[[#This Row],[إجمالي المستحق]]+data.s[[#This Row],[عمولة انتاج]])-(data.s[[#This Row],[الحافز]]+data.s[[#This Row],[عمولة انتاج]]+data.s[[#This Row],[متوسط المنحة]]+data.s[[#This Row],[رد مستحقات]]+data.s[[#This Row],[بدل سهر]]+data.s[[#This Row],[الإضافي]]))/30)*data.s[[#This Row],[أيام جزاء]] -> 0 | BO11: =IF(data.s[[#This Row],[أيام الغياب]]=1,data.s[[#This Row],[الحافز]]*20%,IF(data.s[[#This Row],[أيام الغياب]]=2,data.s[[#This Row],[الحافز]]*30%,IF(data.s[[#This Row],[أيام الغياب]]>2,data.s[[#This Row],[الحافز]]*100%,""))) ->  | BQ11: =IFERROR(IF(data.s[[#This Row],[أيام أجازات بعد السنوية]]<=2,data.s[[#This Row],[الحافز]]*0,IF(data.s[[#This Row],[أيام أجازات بعد السنوية]]=3,data.s[[#This Row],[الحافز]]*30%,IF(data.s[[#This Row],[أيام أجازات بعد السنوية]]=4,data.s[[#This Row],[الحافز]]*40%,IF(data.s[[#This Row],[أيام أجازات بعد السنوية]]=5,data.s[[#This Row],[الحافز]]*50%,IF(data.s[[#This Row],[أيام أجازات بعد السنوية]]>5,data.s[[#This Row],[الحافز]]*100%,""))))),"") -> 0 | BU11: 3 | CG11: =data.s[[#This Row],[مخالفات مرور]]+data.s[[#This Row],[سلفة]]+data.s[[#This Row],[تعويضات]]+data.s[[#This Row],[عجز]]+data.s[[#This Row],[تلفيات]]+data.s[[#This Row],[عهد]]+data.s[[#This Row],[سولار]] -> 0 | CH11: 10.47 | CI11: 3 | CP11: 0 | CQ11: =data.s[[#This Row],[متوسط المنحة]] -> 192.98955 | CR11: =IF(data.s[[#This Row],[التصنيف الادارى]]="سائق نقل",data.s[[#This Row],[إجمالي المستحق]]*5%,0) -> 350 | CS11: =IF($G11=data.s[[#Headers],[انقطاع]],$BE11-SUM(data.s[[#This Row],[تأمينات 2026]:[تنفيذ أحكام]],data.s[[#This Row],[الشهداء]:[خصم 5% تأمين من المستحق]],0),0) -> 0 | CT11: =IF($G11=CT$3,$BE11-SUM(data.s[[#This Row],[تأمينات 2026]:[تنفيذ أحكام]],data.s[[#This Row],[الشهداء]:[خصم 5% تأمين من المستحق]],0),0) -> 0 | CU11: =IF($G11=CU$3,$BE11-SUM(data.s[[#This Row],[تأمينات 2026]:[تنفيذ أحكام]],data.s[[#This Row],[الشهداء]:[خصم 5% تأمين من المستحق]],0),0) -> 0 | CV11: =IF($G11=data.s[[#Headers],[إعارة]],$BE11-SUM(data.s[[#This Row],[تأمينات 2026]:[تنفيذ أحكام]],data.s[[#This Row],[الشهداء]:[خصم 5% تأمين من المستحق]],0),0) -> 0 | CW11: =IF($G11=data.s[[#Headers],[انهاء]],$BE11-SUM(data.s[[#This Row],[تأمينات 2026]:[تنفيذ أحكام]],data.s[[#This Row],[الشهداء]:[خصم 5% تأمين من المستحق]],0),0) -> 0 | CX11: =IF($G11=data.s[[#Headers],[معاش]],$BE11-SUM(data.s[[#This Row],[تأمينات 2026]:[تنفيذ أحكام]],data.s[[#This Row],[الشهداء]:[خصم 5% تأمين من المستحق]],0),0) -> 0 | CY11: =SUM(data.s[[#This Row],[تأمينات 2026]:[تنفيذ أحكام]],data.s[[#This Row],[الشهداء]:[معاش]]) -> 2067.110483 | CZ11: =data.s[[#This Row],[إجمالي المستحق]]-data.s[[#This Row],[إجمالي المستقطع]] -> 4932.889517
B12: 302011 | C12: 1218 | D12: =VLOOKUP(data.s[[#This Row],[كود الشركة]],#REF!,MATCH(data.s[[#Headers],[التعامل المالي]],#REF!,0),FALSE) ->  | E12: سيد محمد محمد رشوان | H12: سائق نقل | I12: الخامسة | L12: فرع المنصورة | M12: المنطقه الشرقيه | N12: =data.s[[#This Row],[كود الشركة]]&data.s[[#This Row],[كود البيرول]]&data.s[[#This Row],[التعامل المالي]]&data.s[[#This Row],[اسم الموظف]]&data.s[[#This Row],[الموظف المختص]]&data.s[[#This Row],[حالة العمل]]&data.s[[#This Row],[التصنيف الادارى]]&data.s[[#This Row],[الدرجة]] ->  | P12: =IF(data.s[[#This Row],[ترقية 7/2025]]<>"","نعم","") ->  | Q12: 749.75 | R12: 877.21 | T12: =IF(data.s[[#This Row],[الوظيفة]]="سائق ملاكي",data.s[[#This Row],[أساسي 7/2025]]*135%,0) -> 0 | U12: =IF(data.s[[#This Row],[الوظيفة]]="سائق ملاكي",data.s[[#This Row],[أساسي 7/2025]]*15%,"") ->  | Z12: =data.s[[#This Row],[أساسي 7/2025]]*15% -> 131.5815 | AE12: 0 | AF12: =IFERROR(VLOOKUP(data.s[[#This Row],[كود الشركة]:[كود الشركة]],#REF!,MATCH(data.s[[#Headers],[بدل تباع]],#REF!,0),FALSE),0) -> 0 | AG12: =SUM(data.s[[#This Row],[بدل مخاطر]:[بدل تفرغ]])-data.s[[#This Row],[بدل تمثيل]] -> 131.5815 | AH12: 28.79 | AI12: 30.29 | AJ12: 65 | AL12: 200 | AM12: 40.03 | AN12: 37.58 | AO12: 34.96 | AP12: 57.16 | AQ12: 79.16 | AR12: 100.95 | AS12: 0 | AT12: 75.025 | AU12: 600 | AV12: 8 | AW12: =SUM(data.s[[#This Row],[علاوة 2014]:[علاوة اجتماعية]]) -> 1356.945 | AX12: 10 | AY12: =(data.s[[#This Row],[أساسي 7/2025]]*2)/12 -> 146.2016667 | BC12: =SUM(data.s[[#This Row],[أساسي 7/2025]:[حافز موانى]],data.s[[#This Row],[أومر الشغل للملاكي]],data.s[[#This Row],[إجمالي بدلات]],data.s[[#This Row],[إجمالي علاوات]:[متوسط المنحة]]) -> 2521.938167 | BD12: =IF(data.s[[#This Row],[الإجمالي]]<7000,7000-data.s[[#This Row],[الإجمالي]],0) -> 4478.061833 | BE12: =IF(data.s[[#This Row],[حالة العمل]]="إيقاف",data.s[[#This Row],[أساسي 7/2025]],SUM(data.s[[#This Row],[رد مستحقات]:[مكمل الأجر]])) -> 7000 | BJ12: =ROUND(data.s[[#This Row],[تأمينات 2026]]/11%,2) -> 10388.11 | BK12: 1142.692273 | BM12: =(((data.s[[#This Row],[إجمالي المستحق]]+data.s[[#This Row],[عمولة انتاج]])-(data.s[[#This Row],[الحافز]]+data.s[[#This Row],[عمولة انتاج]]+data.s[[#This Row],[متوسط المنحة]]+data.s[[#This Row],[رد مستحقات]]+data.s[[#This Row],[بدل سهر]]+data.s[[#This Row],[الإضافي]]))/30)*data.s[[#This Row],[أيام الغياب]] -> 0 | BN12: =(((data.s[[#This Row],[إجمالي المستحق]]+data.s[[#This Row],[عمولة انتاج]])-(data.s[[#This Row],[الحافز]]+data.s[[#This Row],[عمولة انتاج]]+data.s[[#This Row],[متوسط المنحة]]+data.s[[#This Row],[رد مستحقات]]+data.s[[#This Row],[بدل سهر]]+data.s[[#This Row],[الإضافي]]))/30)*data.s[[#This Row],[أيام جزاء]] -> 0 | BO12: =IF(data.s[[#This Row],[أيام الغياب]]=1,data.s[[#This Row],[الحافز]]*20%,IF(data.s[[#This Row],[أيام الغياب]]=2,data.s[[#This Row],[الحافز]]*30%,IF(data.s[[#This Row],[أيام الغياب]]>2,data.s[[#This Row],[الحافز]]*100%,""))) ->  | BQ12: =IFERROR(IF(data.s[[#This Row],[أيام أجازات بعد السنوية]]<=2,data.s[[#This Row],[الحافز]]*0,IF(data.s[[#This Row],[أيام أجازات بعد السنوية]]=3,data.s[[#This Row],[الحافز]]*30%,IF(data.s[[#This Row],[أيام أجازات بعد السنوية]]=4,data.s[[#This Row],[الحافز]]*40%,IF(data.s[[#This Row],[أيام أجازات بعد السنوية]]=5,data.s[[#This Row],[الحافز]]*50%,IF(data.s[[#This Row],[أيام أجازات بعد السنوية]]>5,data.s[[#This Row],[الحافز]]*100%,""))))),"") -> 0 | BU12: 3 | CG12: =data.s[[#This Row],[مخالفات مرور]]+data.s[[#This Row],[سلفة]]+data.s[[#This Row],[تعويضات]]+data.s[[#This Row],[عجز]]+data.s[[#This Row],[تلفيات]]+data.s[[#This Row],[عهد]]+data.s[[#This Row],[سولار]] -> 0 | CH12: 6.25 | CI12: 3 | CP12: 0 | CQ12: =data.s[[#This Row],[متوسط المنحة]] -> 146.2016667 | CR12: =IF(data.s[[#This Row],[التصنيف الادارى]]="سائق نقل",data.s[[#This Row],[إجمالي المستحق]]*5%,0) -> 350 | CS12: =IF($G12=data.s[[#Headers],[انقطاع]],$BE12-SUM(data.s[[#This Row],[تأمينات 2026]:[تنفيذ أحكام]],data.s[[#This Row],[الشهداء]:[خصم 5% تأمين من المستحق]],0),0) -> 0 | CT12: =IF($G12=CT$3,$BE12-SUM(data.s[[#This Row],[تأمينات 2026]:[تنفيذ أحكام]],data.s[[#This Row],[الشهداء]:[خصم 5% تأمين من المستحق]],0),0) -> 0 | CU12: =IF($G12=CU$3,$BE12-SUM(data.s[[#This Row],[تأمينات 2026]:[تنفيذ أحكام]],data.s[[#This Row],[الشهداء]:[خصم 5% تأمين من المستحق]],0),0) -> 0 | CV12: =IF($G12=data.s[[#Headers],[إعارة]],$BE12-SUM(data.s[[#This Row],[تأمينات 2026]:[تنفيذ أحكام]],data.s[[#This Row],[الشهداء]:[خصم 5% تأمين من المستحق]],0),0) -> 0 | CW12: =IF($G12=data.s[[#Headers],[انهاء]],$BE12-SUM(data.s[[#This Row],[تأمينات 2026]:[تنفيذ أحكام]],data.s[[#This Row],[الشهداء]:[خصم 5% تأمين من المستحق]],0),0) -> 0 | CX12: =IF($G12=data.s[[#Headers],[معاش]],$BE12-SUM(data.s[[#This Row],[تأمينات 2026]:[تنفيذ أحكام]],data.s[[#This Row],[الشهداء]:[خصم 5% تأمين من المستحق]],0),0) -> 0 | CY12: =SUM(data.s[[#This Row],[تأمينات 2026]:[تنفيذ أحكام]],data.s[[#This Row],[الشهداء]:[معاش]]) -> 1651.14394 | CZ12: =data.s[[#This Row],[إجمالي المستحق]]-data.s[[#This Row],[إجمالي المستقطع]] -> 5348.85606
B13: 302012 | C13: 1235 | D13: =VLOOKUP(data.s[[#This Row],[كود الشركة]],#REF!,MATCH(data.s[[#Headers],[التعامل المالي]],#REF!,0),FALSE) ->  | E13: علاء محمد كامل محمد عفصه | H13: سائق نقل | I13: الخامسة | L13: فرع المنصورة | M13: المنطقه الشرقيه | N13: =data.s[[#This Row],[كود الشركة]]&data.s[[#This Row],[كود البيرول]]&data.s[[#This Row],[التعامل المالي]]&data.s[[#This Row],[اسم الموظف]]&data.s[[#This Row],[الموظف المختص]]&data.s[[#This Row],[حالة العمل]]&data.s[[#This Row],[التصنيف الادارى]]&data.s[[#This Row],[الدرجة]] ->  | P13: =IF(data.s[[#This Row],[ترقية 7/2025]]<>"","نعم","") ->  | Q13: 749.75 | R13: 877.21 | T13: =IF(data.s[[#This Row],[الوظيفة]]="سائق ملاكي",data.s[[#This Row],[أساسي 7/2025]]*135%,0) -> 0 | U13: =IF(data.s[[#This Row],[الوظيفة]]="سائق ملاكي",data.s[[#This Row],[أساسي 7/2025]]*15%,"") ->  | Z13: =data.s[[#This Row],[أساسي 7/2025]]*15% -> 131.5815 | AE13: 0 | AF13: =IFERROR(VLOOKUP(data.s[[#This Row],[كود الشركة]:[كود الشركة]],#REF!,MATCH(data.s[[#Headers],[بدل تباع]],#REF!,0),FALSE),0) -> 0 | AG13: =SUM(data.s[[#This Row],[بدل مخاطر]:[بدل تفرغ]])-data.s[[#This Row],[بدل تمثيل]] -> 131.5815 | AH13: 28.79 | AI13: 30.29 | AJ13: 65 | AL13: 200 | AM13: 40.3 | AN13: 37.58 | AO13: 34.96 | AP13: 57.16 | AQ13: 79.16 | AR13: 100.95 | AS13: 0 | AT13: 75.025 | AU13: 600 | AV13: 10 | AW13: =SUM(data.s[[#This Row],[علاوة 2014]:[علاوة اجتماعية]]) -> 1359.215 | AX13: 10 | AY13: =(data.s[[#This Row],[أساسي 7/2025]]*2)/12 -> 146.2016667 | BC13: =SUM(data.s[[#This Row],[أساسي 7/2025]:[حافز موانى]],data.s[[#This Row],[أومر الشغل للملاكي]],data.s[[#This Row],[إجمالي بدلات]],data.s[[#This Row],[إجمالي علاوات]:[متوسط المنحة]]) -> 2524.208167 | BD13: =IF(data.s[[#This Row],[الإجمالي]]<7000,7000-data.s[[#This Row],[الإجمالي]],0) -> 4475.791833 | BE13: =IF(data.s[[#This Row],[حالة العمل]]="إيقاف",data.s[[#This Row],[أساسي 7/2025]],SUM(data.s[[#This Row],[رد مستحقات]:[مكمل الأجر]])) -> 7000 | BJ13: =ROUND(data.s[[#This Row],[تأمينات 2026]]/11%,2) -> 9500.63 | BK13: 1045.069473 | BM13: =(((data.s[[#This Row],[إجمالي المستحق]]+data.s[[#This Row],[عمولة انتاج]])-(data.s[[#This Row],[الحافز]]+data.s[[#This Row],[عمولة انتاج]]+data.s[[#This Row],[متوسط المنحة]]+data.s[[#This Row],[رد مستحقات]]+data.s[[#This Row],[بدل سهر]]+data.s[[#This Row],[الإضافي]]))/30)*data.s[[#This Row],[أيام الغياب]] -> 0 | BN13: =(((data.s[[#This Row],[إجمالي المستحق]]+data.s[[#This Row],[عمولة انتاج]])-(data.s[[#This Row],[الحافز]]+data.s[[#This Row],[عمولة انتاج]]+data.s[[#This Row],[متوسط المنحة]]+data.s[[#This Row],[رد مستحقات]]+data.s[[#This Row],[بدل سهر]]+data.s[[#This Row],[الإضافي]]))/30)*data.s[[#This Row],[أيام جزاء]] -> 0 | BO13: =IF(data.s[[#This Row],[أيام الغياب]]=1,data.s[[#This Row],[الحافز]]*20%,IF(data.s[[#This Row],[أيام الغياب]]=2,data.s[[#This Row],[الحافز]]*30%,IF(data.s[[#This Row],[أيام الغياب]]>2,data.s[[#This Row],[الحافز]]*100%,""))) ->  | BQ13: =IFERROR(IF(data.s[[#This Row],[أيام أجازات بعد السنوية]]<=2,data.s[[#This Row],[الحافز]]*0,IF(data.s[[#This Row],[أيام أجازات بعد السنوية]]=3,data.s[[#This Row],[الحافز]]*30%,IF(data.s[[#This Row],[أيام أجازات بعد السنوية]]=4,data.s[[#This Row],[الحافز]]*40%,IF(data.s[[#This Row],[أيام أجازات بعد السنوية]]=5,data.s[[#This Row],[الحافز]]*50%,IF(data.s[[#This Row],[أيام أجازات بعد السنوية]]>5,data.s[[#This Row],[الحافز]]*100%,""))))),"") -> 0 | BU13: 3 | BX13: 1750 | CG13: =data.s[[#This Row],[مخالفات مرور]]+data.s[[#This Row],[سلفة]]+data.s[[#This Row],[تعويضات]]+data.s[[#This Row],[عجز]]+data.s[[#This Row],[تلفيات]]+data.s[[#This Row],[عهد]]+data.s[[#This Row],[سولار]] -> 1750 | CH13: 6.97 | CI13: 3 | CP13: 0 | CQ13: =data.s[[#This Row],[متوسط المنحة]] -> 146.2016667 | CR13: =IF(data.s[[#This Row],[التصنيف الادارى]]="سائق نقل",data.s[[#This Row],[إجمالي المستحق]]*5%,0) -> 350 | CS13: =IF($G13=data.s[[#Headers],[انقطاع]],$BE13-SUM(data.s[[#This Row],[تأمينات 2026]:[تنفيذ أحكام]],data.s[[#This Row],[الشهداء]:[خصم 5% تأمين من المستحق]],0),0) -> 0 | CT13: =IF($G13=CT$3,$BE13-SUM(data.s[[#This Row],[تأمينات 2026]:[تنفيذ أحكام]],data.s[[#This Row],[الشهداء]:[خصم 5% تأمين من المستحق]],0),0) -> 0 | CU13: =IF($G13=CU$3,$BE13-SUM(data.s[[#This Row],[تأمينات 2026]:[تنفيذ أحكام]],data.s[[#This Row],[الشهداء]:[خصم 5% تأمين من المستحق]],0),0) -> 0 | CV13: =IF($G13=data.s[[#Headers],[إعارة]],$BE13-SUM(data.s[[#This Row],[تأمينات 2026]:[تنفيذ أحكام]],data.s[[#This Row],[الشهداء]:[خصم 5% تأمين من المستحق]],0),0) -> 0 | CW13: =IF($G13=data.s[[#Headers],[انهاء]],$BE13-SUM(data.s[[#This Row],[تأمينات 2026]:[تنفيذ أحكام]],data.s[[#This Row],[الشهداء]:[خصم 5% تأمين من المستحق]],0),0) -> 0 | CX13: =IF($G13=data.s[[#Headers],[معاش]],$BE13-SUM(data.s[[#This Row],[تأمينات 2026]:[تنفيذ أحكام]],data.s[[#This Row],[الشهداء]:[خصم 5% تأمين من المستحق]],0),0) -> 0 | CY13: =SUM(data.s[[#This Row],[تأمينات 2026]:[تنفيذ أحكام]],data.s[[#This Row],[الشهداء]:[معاش]]) -> 3304.24114 | CZ13: =data.s[[#This Row],[إجمالي المستحق]]-data.s[[#This Row],[إجمالي المستقطع]] -> 3695.75886
B14: 302013 | C14: 1233 | D14: =VLOOKUP(data.s[[#This Row],[كود الشركة]],#REF!,MATCH(data.s[[#Headers],[التعامل المالي]],#REF!,0),FALSE) ->  | E14: محمد مصطفى عبد المطلب حسين | H14: سائق نقل | I14: الرابعة | J14: الرابعة | K14: سائق نقل | L14: فرع الاسكندرية | M14: المنطقه الشماليه | N14: =data.s[[#This Row],[كود الشركة]]&data.s[[#This Row],[كود البيرول]]&data.s[[#This Row],[التعامل المالي]]&data.s[[#This Row],[اسم الموظف]]&data.s[[#This Row],[الموظف المختص]]&data.s[[#This Row],[حالة العمل]]&data.s[[#This Row],[التصنيف الادارى]]&data.s[[#This Row],[الدرجة]] ->  | P14: =IF(data.s[[#This Row],[ترقية 7/2025]]<>"","نعم","") -> نعم | Q14: 845.64 | R14: 989.3988 | T14: =IF(data.s[[#This Row],[الوظيفة]]="سائق ملاكي",data.s[[#This Row],[أساسي 7/2025]]*135%,0) -> 0 | U14: =IF(data.s[[#This Row],[الوظيفة]]="سائق ملاكي",data.s[[#This Row],[أساسي 7/2025]]*15%,"") ->  | Z14: =data.s[[#This Row],[أساسي 7/2025]]*15% -> 148.40982 | AE14: 0 | AF14: =IFERROR(VLOOKUP(data.s[[#This Row],[كود الشركة]:[كود الشركة]],#REF!,MATCH(data.s[[#Headers],[بدل تباع]],#REF!,0),FALSE),0) -> 0 | AG14: =SUM(data.s[[#This Row],[بدل مخاطر]:[بدل تفرغ]])-data.s[[#This Row],[بدل تمثيل]] -> 148.40982 | AH14: 28.18 | AI14: 31.61 | AJ14: 65 | AL14: 200 | AM14: 35.56 | AN14: 32.79 | AO14: 38.71 | AP14: 55.22 | AQ14: 73.3 | AR14: 94.68 | AS14: 0 | AT14: 65.436 | AU14: 600 | AV14: 10 | AW14: =SUM(data.s[[#This Row],[علاوة 2014]:[علاوة اجتماعية]]) -> 1330.486 | AX14: 10 | AY14: =(data.s[[#This Row],[أساسي 7/2025]]*2)/12 -> 164.8998 | BC14: =SUM(data.s[[#This Row],[أساسي 7/2025]:[حافز موانى]],data.s[[#This Row],[أومر الشغل للملاكي]],data.s[[#This Row],[إجمالي بدلات]],data.s[[#This Row],[إجمالي علاوات]:[متوسط المنحة]]) -> 2643.19442 | BD14: =IF(data.s[[#This Row],[الإجمالي]]<7000,7000-data.s[[#This Row],[الإجمالي]],0) -> 4356.80558 | BE14: =IF(data.s[[#This Row],[حالة العمل]]="إيقاف",data.s[[#This Row],[أساسي 7/2025]],SUM(data.s[[#This Row],[رد مستحقات]:[مكمل الأجر]])) -> 7000 | BJ14: =ROUND(data.s[[#This Row],[تأمينات 2026]]/11%,2) -> 10415.54 | BK14: 1145.709235 | BM14: =(((data.s[[#This Row],[إجمالي المستحق]]+data.s[[#This Row],[عمولة انتاج]])-(data.s[[#This Row],[الحافز]]+data.s[[#This Row],[عمولة انتاج]]+data.s[[#This Row],[متوسط المنحة]]+data.s[[#This Row],[رد مستحقات]]+data.s[[#This Row],[بدل سهر]]+data.s[[#This Row],[الإضافي]]))/30)*data.s[[#This Row],[أيام الغياب]] -> 0 | BN14: =(((data.s[[#This Row],[إجمالي المستحق]]+data.s[[#This Row],[عمولة انتاج]])-(data.s[[#This Row],[الحافز]]+data.s[[#This Row],[عمولة انتاج]]+data.s[[#This Row],[متوسط المنحة]]+data.s[[#This Row],[رد مستحقات]]+data.s[[#This Row],[بدل سهر]]+data.s[[#This Row],[الإضافي]]))/30)*data.s[[#This Row],[أيام جزاء]] -> 0 | BO14: =IF(data.s[[#This Row],[أيام الغياب]]=1,data.s[[#This Row],[الحافز]]*20%,IF(data.s[[#This Row],[أيام الغياب]]=2,data.s[[#This Row],[الحافز]]*30%,IF(data.s[[#This Row],[أيام الغياب]]>2,data.s[[#This Row],[الحافز]]*100%,""))) ->  | BQ14: =IFERROR(IF(data.s[[#This Row],[أيام أجازات بعد السنوية]]<=2,data.s[[#This Row],[الحافز]]*0,IF(data.s[[#This Row],[أيام أجازات بعد السنوية]]=3,data.s[[#This Row],[الحافز]]*30%,IF(data.s[[#This Row],[أيام أجازات بعد السنوية]]=4,data.s[[#This Row],[الحافز]]*40%,IF(data.s[[#This Row],[أيام أجازات بعد السنوية]]=5,data.s[[#This Row],[الحافز]]*50%,IF(data.s[[#This Row],[أيام أجازات بعد السنوية]]>5,data.s[[#This Row],[الحافز]]*100%,""))))),"") -> 0 | BU14: 3 | BX14: 1750 | CG14: =data.s[[#This Row],[مخالفات مرور]]+data.s[[#This Row],[سلفة]]+data.s[[#This Row],[تعويضات]]+data.s[[#This Row],[عجز]]+data.s[[#This Row],[تلفيات]]+data.s[[#This Row],[عهد]]+data.s[[#This Row],[سولار]] -> 1750 | CH14: 4.54 | CI14: 3 | CP14: 0 | CQ14: =data.s[[#This Row],[متوسط المنحة]] -> 164.8998 | CR14: =IF(data.s[[#This Row],[التصنيف الادارى]]="سائق نقل",data.s[[#This Row],[إجمالي المستحق]]*5%,0) -> 350 | CS14: =IF($G14=data.s[[#Headers],[انقطاع]],$BE14-SUM(data.s[[#This Row],[تأمينات 2026]:[تنفيذ أحكام]],data.s[[#This Row],[الشهداء]:[خصم 5% تأمين من المستحق]],0),0) -> 0 | CT14: =IF($G14=CT$3,$BE14-SUM(data.s[[#This Row],[تأمينات 2026]:[تنفيذ أحكام]],data.s[[#This Row],[الشهداء]:[خصم 5% تأمين من المستحق]],0),0) -> 0 | CU14: =IF($G14=CU$3,$BE14-SUM(data.s[[#This Row],[تأمينات 2026]:[تنفيذ أحكام]],data.s[[#This Row],[الشهداء]:[خصم 5% تأمين من المستحق]],0),0) -> 0 | CV14: =IF($G14=data.s[[#Headers],[إعارة]],$BE14-SUM(data.s[[#This Row],[تأمينات 2026]:[تنفيذ أحكام]],data.s[[#This Row],[الشهداء]:[خصم 5% تأمين من المستحق]],0),0) -> 0 | CW14: =IF($G14=data.s[[#Headers],[انهاء]],$BE14-SUM(data.s[[#This Row],[تأمينات 2026]:[تنفيذ أحكام]],data.s[[#This Row],[الشهداء]:[خصم 5% تأمين من المستحق]],0),0) -> 0 | CX14: =IF($G14=data.s[[#Headers],[معاش]],$BE14-SUM(data.s[[#This Row],[تأمينات 2026]:[تنفيذ أحكام]],data.s[[#This Row],[الشهداء]:[خصم 5% تأمين من المستحق]],0),0) -> 0 | CY14: =SUM(data.s[[#This Row],[تأمينات 2026]:[تنفيذ أحكام]],data.s[[#This Row],[الشهداء]:[معاش]]) -> 3421.149035 | CZ14: =data.s[[#This Row],[إجمالي المستحق]]-data.s[[#This Row],[إجمالي المستقطع]] -> 3578.850965
B15: 302014 | C15: 1222 | D15: =VLOOKUP(data.s[[#This Row],[كود الشركة]],#REF!,MATCH(data.s[[#Headers],[التعامل المالي]],#REF!,0),FALSE) ->  | E15: محمد سمير محمد الشحات | H15: سائق نقل | I15: الخامسة | L15: فرع الاسكندرية | M15: المنطقه الشماليه | N15: =data.s[[#This Row],[كود الشركة]]&data.s[[#This Row],[كود البيرول]]&data.s[[#This Row],[التعامل المالي]]&data.s[[#This Row],[اسم الموظف]]&data.s[[#This Row],[الموظف المختص]]&data.s[[#This Row],[حالة العمل]]&data.s[[#This Row],[التصنيف الادارى]]&data.s[[#This Row],[الدرجة]] ->  | P15: =IF(data.s[[#This Row],[ترقية 7/2025]]<>"","نعم","") ->  | Q15: 713.25 | R15: 834.5 | T15: =IF(data.s[[#This Row],[الوظيفة]]="سائق ملاكي",data.s[[#This Row],[أساسي 7/2025]]*135%,0) -> 0 | U15: =IF(data.s[[#This Row],[الوظيفة]]="سائق ملاكي",data.s[[#This Row],[أساسي 7/2025]]*15%,"") ->  | Z15: =data.s[[#This Row],[أساسي 7/2025]]*15% -> 125.175 | AE15: 0 | AF15: =IFERROR(VLOOKUP(data.s[[#This Row],[كود الشركة]:[كود الشركة]],#REF!,MATCH(data.s[[#Headers],[بدل تباع]],#REF!,0),FALSE),0) -> 0 | AG15: =SUM(data.s[[#This Row],[بدل مخاطر]:[بدل تفرغ]])-data.s[[#This Row],[بدل تمثيل]] -> 125.175 | AH15: 28.79 | AI15: 30.29 | AJ15: 65 | AL15: 200 | AM15: 41.73 | AN15: 39.4 | AO15: 36.91 | AP15: 59.24 | AQ15: 81.39 | AR15: 103.34 | AS15: 0 | AT15: 78.675 | AU15: 600 | AV15: 4 | AW15: =SUM(data.s[[#This Row],[علاوة 2014]:[علاوة اجتماعية]]) -> 1368.765 | AX15: 10 | AY15: =(data.s[[#This Row],[أساسي 7/2025]]*2)/12 -> 139.0833333 | BC15: =SUM(data.s[[#This Row],[أساسي 7/2025]:[حافز موانى]],data.s[[#This Row],[أومر الشغل للملاكي]],data.s[[#This Row],[إجمالي بدلات]],data.s[[#This Row],[إجمالي علاوات]:[متوسط المنحة]]) -> 2477.523333 | BD15: =IF(data.s[[#This Row],[الإجمالي]]<7000,7000-data.s[[#This Row],[الإجمالي]],0) -> 4522.476667 | BE15: =IF(data.s[[#This Row],[حالة العمل]]="إيقاف",data.s[[#This Row],[أساسي 7/2025]],SUM(data.s[[#This Row],[رد مستحقات]:[مكمل الأجر]])) -> 7000 | BJ15: =ROUND(data.s[[#This Row],[تأمينات 2026]]/11%,2) -> 8185.5 | BK15: 900.4050917 | BM15: =(((data.s[[#This Row],[إجمالي المستحق]]+data.s[[#This Row],[عمولة انتاج]])-(data.s[[#This Row],[الحافز]]+data.s[[#This Row],[عمولة انتاج]]+data.s[[#This Row],[متوسط المنحة]]+data.s[[#This Row],[رد مستحقات]]+data.s[[#This Row],[بدل سهر]]+data.s[[#This Row],[الإضافي]]))/30)*data.s[[#This Row],[أيام الغياب]] -> 0 | BN15: =(((data.s[[#This Row],[إجمالي المستحق]]+data.s[[#This Row],[عمولة انتاج]])-(data.s[[#This Row],[الحافز]]+data.s[[#This Row],[عمولة انتاج]]+data.s[[#This Row],[متوسط المنحة]]+data.s[[#This Row],[رد مستحقات]]+data.s[[#This Row],[بدل سهر]]+data.s[[#This Row],[الإضافي]]))/30)*data.s[[#This Row],[أيام جزاء]] -> 0 | BO15: =IF(data.s[[#This Row],[أيام الغياب]]=1,data.s[[#This Row],[الحافز]]*20%,IF(data.s[[#This Row],[أيام الغياب]]=2,data.s[[#This Row],[الحافز]]*30%,IF(data.s[[#This Row],[أيام الغياب]]>2,data.s[[#This Row],[الحافز]]*100%,""))) ->  | BQ15: =IFERROR(IF(data.s[[#This Row],[أيام أجازات بعد السنوية]]<=2,data.s[[#This Row],[الحافز]]*0,IF(data.s[[#This Row],[أيام أجازات بعد السنوية]]=3,data.s[[#This Row],[الحافز]]*30%,IF(data.s[[#This Row],[أيام أجازات بعد السنوية]]=4,data.s[[#This Row],[الحافز]]*40%,IF(data.s[[#This Row],[أيام أجازات بعد السنوية]]=5,data.s[[#This Row],[الحافز]]*50%,IF(data.s[[#This Row],[أيام أجازات بعد السنوية]]>5,data.s[[#This Row],[الحافز]]*100%,""))))),"") -> 0 | BU15: 3 | CG15: =data.s[[#This Row],[مخالفات مرور]]+data.s[[#This Row],[سلفة]]+data.s[[#This Row],[تعويضات]]+data.s[[#This Row],[عجز]]+data.s[[#This Row],[تلفيات]]+data.s[[#This Row],[عهد]]+data.s[[#This Row],[سولار]] -> 0 | CH15: 7.6 | CI15: 3 | CP15: 0 | CQ15: =data.s[[#This Row],[متوسط المنحة]] -> 139.0833333 | CR15: =IF(data.s[[#This Row],[التصنيف الادارى]]="سائق نقل",data.s[[#This Row],[إجمالي المستحق]]*5%,0) -> 350 | CS15: =IF($G15=data.s[[#Headers],[انقطاع]],$BE15-SUM(data.s[[#This Row],[تأمينات 2026]:[تنفيذ أحكام]],data.s[[#This Row],[الشهداء]:[خصم 5% تأمين من المستحق]],0),0) -> 0 | CT15: =IF($G15=CT$3,$BE15-SUM(data.s[[#This Row],[تأمينات 2026]:[تنفيذ أحكام]],data.s[[#This Row],[الشهداء]:[خصم 5% تأمين من المستحق]],0),0) -> 0 | CU15: =IF($G15=CU$3,$BE15-SUM(data.s[[#This Row],[تأمينات 2026]:[تنفيذ أحكام]],data.s[[#This Row],[الشهداء]:[خصم 5% تأمين من المستحق]],0),0) -> 0 | CV15: =IF($G15=data.s[[#Headers],[إعارة]],$BE15-SUM(data.s[[#This Row],[تأمينات 2026]:[تنفيذ أحكام]],data.s[[#This Row],[الشهداء]:[خصم 5% تأمين من المستحق]],0),0) -> 0 | CW15: =IF($G15=data.s[[#Headers],[انهاء]],$BE15-SUM(data.s[[#This Row],[تأمينات 2026]:[تنفيذ أحكام]],data.s[[#This Row],[الشهداء]:[خصم 5% تأمين من المستحق]],0),0) -> 0 | CX15: =IF($G15=data.s[[#Headers],[معاش]],$BE15-SUM(data.s[[#This Row],[تأمينات 2026]:[تنفيذ أحكام]],data.s[[#This Row],[الشهداء]:[خصم 5% تأمين من المستحق]],0),0) -> 0 | CY15: =SUM(data.s[[#This Row],[تأمينات 2026]:[تنفيذ أحكام]],data.s[[#This Row],[الشهداء]:[معاش]]) -> 1403.088425 | CZ15: =data.s[[#This Row],[إجمالي المستحق]]-data.s[[#This Row],[إجمالي المستقطع]] -> 5596.911575
B16: 302015 | C16: 1310 | D16: =VLOOKUP(data.s[[#This Row],[كود الشركة]],#REF!,MATCH(data.s[[#Headers],[التعامل المالي]],#REF!,0),FALSE) ->  | E16: احمد محمد محمد درويش | H16: سائق نقل | I16: الرابعة | J16: الرابعة | K16: سائق نقل | L16: فرع الاسكندرية | M16: المنطقه الشماليه | N16: =data.s[[#This Row],[كود الشركة]]&data.s[[#This Row],[كود البيرول]]&data.s[[#This Row],[التعامل المالي]]&data.s[[#This Row],[اسم الموظف]]&data.s[[#This Row],[الموظف المختص]]&data.s[[#This Row],[حالة العمل]]&data.s[[#This Row],[التصنيف الادارى]]&data.s[[#This Row],[الدرجة]] ->  | P16: =IF(data.s[[#This Row],[ترقية 7/2025]]<>"","نعم","") -> نعم | Q16: 615.69 | R16: 720.3573 | T16: =IF(data.s[[#This Row],[الوظيفة]]="سائق ملاكي",data.s[[#This Row],[أساسي 7/2025]]*135%,0) -> 0 | U16: =IF(data.s[[#This Row],[الوظيفة]]="سائق ملاكي",data.s[[#This Row],[أساسي 7/2025]]*15%,"") ->  | Z16: =data.s[[#This Row],[أساسي 7/2025]]*15% -> 108.053595 | AE16: 0 | AF16: =IFERROR(VLOOKUP(data.s[[#This Row],[كود الشركة]:[كود الشركة]],#REF!,MATCH(data.s[[#Headers],[بدل تباع]],#REF!,0),FALSE),0) -> 0 | AG16: =SUM(data.s[[#This Row],[بدل مخاطر]:[بدل تفرغ]])-data.s[[#This Row],[بدل تمثيل]] -> 108.053595 | AH16: 28.79 | AI16: 30.29 | AJ16: 65 | AL16: 200 | AM16: 46.28 | AN16: 44.27 | AO16: 42.12 | AP16: 64.82 | AQ16: 87.36 | AR16: 109.72 | AS16: 0 | AT16: 88.431 | AU16: 600 | AV16: 10 | AW16: =SUM(data.s[[#This Row],[علاوة 2014]:[علاوة اجتماعية]]) -> 1417.081 | AX16: 10 | AY16: =(data.s[[#This Row],[أساسي 7/2025]]*2)/12 -> 120.05955 | BC16: =SUM(data.s[[#This Row],[أساسي 7/2025]:[حافز موانى]],data.s[[#This Row],[أومر الشغل للملاكي]],data.s[[#This Row],[إجمالي بدلات]],data.s[[#This Row],[إجمالي علاوات]:[متوسط المنحة]]) -> 2375.551445 | BD16: =IF(data.s[[#This Row],[الإجمالي]]<7000,7000-data.s[[#This Row],[الإجمالي]],0) -> 4624.448555 | BE16: =IF(data.s[[#This Row],[حالة العمل]]="إيقاف",data.s[[#This Row],[أساسي 7/2025]],SUM(data.s[[#This Row],[رد مستحقات]:[مكمل الأجر]])) -> 7000 | BJ16: =ROUND(data.s[[#This Row],[تأمينات 2026]]/11%,2) -> 6150.24 | BK16: 676.5263267 | BM16: =(((data.s[[#This Row],[إجمالي المستحق]]+data.s[[#This Row],[عمولة انتاج]])-(data.s[[#This Row],[الحافز]]+data.s[[#This Row],[عمولة انتاج]]+data.s[[#This Row],[متوسط المنحة]]+data.s[[#This Row],[رد مستحقات]]+data.s[[#This Row],[بدل سهر]]+data.s[[#This Row],[الإضافي]]))/30)*data.s[[#This Row],[أيام الغياب]] -> 0 | BN16: =(((data.s[[#This Row],[إجمالي المستحق]]+data.s[[#This Row],[عمولة انتاج]])-(data.s[[#This Row],[الحافز]]+data.s[[#This Row],[عمولة انتاج]]+data.s[[#This Row],[متوسط المنحة]]+data.s[[#This Row],[رد مستحقات]]+data.s[[#This Row],[بدل سهر]]+data.s[[#This Row],[الإضافي]]))/30)*data.s[[#This Row],[أيام جزاء]] -> 0 | BO16: =IF(data.s[[#This Row],[أيام الغياب]]=1,data.s[[#This Row],[الحافز]]*20%,IF(data.s[[#This Row],[أيام الغياب]]=2,data.s[[#This Row],[الحافز]]*30%,IF(data.s[[#This Row],[أيام الغياب]]>2,data.s[[#This Row],[الحافز]]*100%,""))) ->  | BQ16: =IFERROR(IF(data.s[[#This Row],[أيام أجازات بعد السنوية]]<=2,data.s[[#This Row],[الحافز]]*0,IF(data.s[[#This Row],[أيام أجازات بعد السنوية]]=3,data.s[[#This Row],[الحافز]]*30%,IF(data.s[[#This Row],[أيام أجازات بعد السنوية]]=4,data.s[[#This Row],[الحافز]]*40%,IF(data.s[[#This Row],[أيام أجازات بعد السنوية]]=5,data.s[[#This Row],[الحافز]]*50%,IF(data.s[[#This Row],[أيام أجازات بعد السنوية]]>5,data.s[[#This Row],[الحافز]]*100%,""))))),"") -> 0 | BU16: 3 | CG16: =data.s[[#This Row],[مخالفات مرور]]+data.s[[#This Row],[سلفة]]+data.s[[#This Row],[تعويضات]]+data.s[[#This Row],[عجز]]+data.s[[#This Row],[تلفيات]]+data.s[[#This Row],[عهد]]+data.s[[#This Row],[سولار]] -> 0 | CH16: 7.38 | CI16: 3 | CP16: 0 | CQ16: =data.s[[#This Row],[متوسط المنحة]] -> 120.05955 | CR16: =IF(data.s[[#This Row],[التصنيف الادارى]]="سائق نقل",data.s[[#This Row],[إجمالي المستحق]]*5%,0) -> 350 | CS16: =IF($G16=data.s[[#Headers],[انقطاع]],$BE16-SUM(data.s[[#This Row],[تأمينات 2026]:[تنفيذ أحكام]],data.s[[#This Row],[الشهداء]:[خصم 5% تأمين من المستحق]],0),0) -> 0 | CT16: =IF($G16=CT$3,$BE16-SUM(data.s[[#This Row],[تأمينات 2026]:[تنفيذ أحكام]],data.s[[#This Row],[الشهداء]:[خصم 5% تأمين من المستحق]],0),0) -> 0 | CU16: =IF($G16=CU$3,$BE16-SUM(data.s[[#This Row],[تأمينات 2026]:[تنفيذ أحكام]],data.s[[#This Row],[الشهداء]:[خصم 5% تأمين من المستحق]],0),0) -> 0 | CV16: =IF($G16=data.s[[#Headers],[إعارة]],$BE16-SUM(data.s[[#This Row],[تأمينات 2026]:[تنفيذ أحكام]],data.s[[#This Row],[الشهداء]:[خصم 5% تأمين من المستحق]],0),0) -> 0 | CW16: =IF($G16=data.s[[#Headers],[انهاء]],$BE16-SUM(data.s[[#This Row],[تأمينات 2026]:[تنفيذ أحكام]],data.s[[#This Row],[الشهداء]:[خصم 5% تأمين من المستحق]],0),0) -> 0 | CX16: =IF($G16=data.s[[#Headers],[معاش]],$BE16-SUM(data.s[[#This Row],[تأمينات 2026]:[تنفيذ أحكام]],data.s[[#This Row],[الشهداء]:[خصم 5% تأمين من المستحق]],0),0) -> 0 | CY16: =SUM(data.s[[#This Row],[تأمينات 2026]:[تنفيذ أحكام]],data.s[[#This Row],[الشهداء]:[معاش]]) -> 1159.965877 | CZ16: =data.s[[#This Row],[إجمالي المستحق]]-data.s[[#This Row],[إجمالي المستقطع]] -> 5840.034123
B17: 302016 | C17: 1252 | D17: =VLOOKUP(data.s[[#This Row],[كود الشركة]],#REF!,MATCH(data.s[[#Headers],[التعامل المالي]],#REF!,0),FALSE) ->  | E17: رمضان سالم أحمد شحاتة | H17: سائق نقل | I17: الخامسة | L17: فرع الاسكندرية | M17: المنطقه الشماليه | N17: =data.s[[#This Row],[كود الشركة]]&data.s[[#This Row],[كود البيرول]]&data.s[[#This Row],[التعامل المالي]]&data.s[[#This Row],[اسم الموظف]]&data.s[[#This Row],[الموظف المختص]]&data.s[[#This Row],[حالة العمل]]&data.s[[#This Row],[التصنيف الادارى]]&data.s[[#This Row],[الدرجة]] ->  | P17: =IF(data.s[[#This Row],[ترقية 7/2025]]<>"","نعم","") ->  | Q17: 845.64 | R17: 989.39 | T17: =IF(data.s[[#This Row],[الوظيفة]]="سائق ملاكي",data.s[[#This Row],[أساسي 7/2025]]*135%,0) -> 0 | U17: =IF(data.s[[#This Row],[الوظيفة]]="سائق ملاكي",data.s[[#This Row],[أساسي 7/2025]]*15%,"") ->  | Z17: =data.s[[#This Row],[أساسي 7/2025]]*15% -> 148.4085 | AE17: 0 | AF17: =IFERROR(VLOOKUP(data.s[[#This Row],[كود الشركة]:[كود الشركة]],#REF!,MATCH(data.s[[#Headers],[بدل تباع]],#REF!,0),FALSE),0) -> 0 | AG17: =SUM(data.s[[#This Row],[بدل مخاطر]:[بدل تفرغ]])-data.s[[#This Row],[بدل تمثيل]] -> 148.4085 | AH17: 28.18 | AI17: 31.61 | AJ17: 65 | AL17: 200 | AM17: 35.56 | AN17: 32.79 | AO17: 38.71 | AP17: 55.22 | AQ17: 73.3 | AR17: 94.68 | AS17: 0 | AT17: 65.436 | AU17: 600 | AV17: 10 | AW17: =SUM(data.s[[#This Row],[علاوة 2014]:[علاوة اجتماعية]]) -> 1330.486 | AX17: 10 | AY17: =(data.s[[#This Row],[أساسي 7/2025]]*2)/12 -> 164.8983333 | BC17: =SUM(data.s[[#This Row],[أساسي 7/2025]:[حافز موانى]],data.s[[#This Row],[أومر الشغل للملاكي]],data.s[[#This Row],[إجمالي بدلات]],data.s[[#This Row],[إجمالي علاوات]:[متوسط المنحة]]) -> 2643.182833 | BD17: =IF(data.s[[#This Row],[الإجمالي]]<7000,7000-data.s[[#This Row],[الإجمالي]],0) -> 4356.817167 | BE17: =IF(data.s[[#This Row],[حالة العمل]]="إيقاف",data.s[[#This Row],[أساسي 7/2025]],SUM(data.s[[#This Row],[رد مستحقات]:[مكمل الأجر]])) -> 7000 | BJ17: =ROUND(data.s[[#This Row],[تأمينات 2026]]/11%,2) -> 9577.66 | BK17: 1053.542343 | BM17: =(((data.s[[#This Row],[إجمالي المستحق]]+data.s[[#This Row],[عمولة انتاج]])-(data.s[[#This Row],[الحافز]]+data.s[[#This Row],[عمولة انتاج]]+data.s[[#This Row],[متوسط المنحة]]+data.s[[#This Row],[رد مستحقات]]+data.s[[#This Row],[بدل سهر]]+data.s[[#This Row],[الإضافي]]))/30)*data.s[[#This Row],[أيام الغياب]] -> 0 | BN17: =(((data.s[[#This Row],[إجمالي المستحق]]+data.s[[#This Row],[عمولة انتاج]])-(data.s[[#This Row],[الحافز]]+data.s[[#This Row],[عمولة انتاج]]+data.s[[#This Row],[متوسط المنحة]]+data.s[[#This Row],[رد مستحقات]]+data.s[[#This Row],[بدل سهر]]+data.s[[#This Row],[الإضافي]]))/30)*data.s[[#This Row],[أيام جزاء]] -> 0 | BO17: =IF(data.s[[#This Row],[أيام الغياب]]=1,data.s[[#This Row],[الحافز]]*20%,IF(data.s[[#This Row],[أيام الغياب]]=2,data.s[[#This Row],[الحافز]]*30%,IF(data.s[[#This Row],[أيام الغياب]]>2,data.s[[#This Row],[الحافز]]*100%,""))) ->  | BQ17: =IFERROR(IF(data.s[[#This Row],[أيام أجازات بعد السنوية]]<=2,data.s[[#This Row],[الحافز]]*0,IF(data.s[[#This Row],[أيام أجازات بعد السنوية]]=3,data.s[[#This Row],[الحافز]]*30%,IF(data.s[[#This Row],[أيام أجازات بعد السنوية]]=4,data.s[[#This Row],[الحافز]]*40%,IF(data.s[[#This Row],[أيام أجازات بعد السنوية]]=5,data.s[[#This Row],[الحافز]]*50%,IF(data.s[[#This Row],[أيام أجازات بعد السنوية]]>5,data.s[[#This Row],[الحافز]]*100%,""))))),"") -> 0 | BU17: 3 | CG17: =data.s[[#This Row],[مخالفات مرور]]+data.s[[#This Row],[سلفة]]+data.s[[#This Row],[تعويضات]]+data.s[[#This Row],[عجز]]+data.s[[#This Row],[تلفيات]]+data.s[[#This Row],[عهد]]+data.s[[#This Row],[سولار]] -> 0 | CH17: 6.81 | CI17: 3 | CP17: 0 | CQ17: =data.s[[#This Row],[متوسط المنحة]] -> 164.8983333 | CR17: =IF(data.s[[#This Row],[التصنيف الادارى]]="سائق نقل",data.s[[#This Row],[إجمالي المستحق]]*5%,0) -> 350 | CS17: =IF($G17=data.s[[#Headers],[انقطاع]],$BE17-SUM(data.s[[#This Row],[تأمينات 2026]:[تنفيذ أحكام]],data.s[[#This Row],[الشهداء]:[خصم 5% تأمين من المستحق]],0),0) -> 0 | CT17: =IF($G17=CT$3,$BE17-SUM(data.s[[#This Row],[تأمينات 2026]:[تنفيذ أحكام]],data.s[[#This Row],[الشهداء]:[خصم 5% تأمين من المستحق]],0),0) -> 0 | CU17: =IF($G17=CU$3,$BE17-SUM(data.s[[#This Row],[تأمينات 2026]:[تنفيذ أحكام]],data.s[[#This Row],[الشهداء]:[خصم 5% تأمين من المستحق]],0),0) -> 0 | CV17: =IF($G17=data.s[[#Headers],[إعارة]],$BE17-SUM(data.s[[#This Row],[تأمينات 2026]:[تنفيذ أحكام]],data.s[[#This Row],[الشهداء]:[خصم 5% تأمين من المستحق]],0),0) -> 0 | CW17: =IF($G17=data.s[[#Headers],[انهاء]],$BE17-SUM(data.s[[#This Row],[تأمينات 2026]:[تنفيذ أحكام]],data.s[[#This Row],[الشهداء]:[خصم 5% تأمين من المستحق]],0),0) -> 0 | CX17: =IF($G17=data.s[[#Headers],[معاش]],$BE17-SUM(data.s[[#This Row],[تأمينات 2026]:[تنفيذ أحكام]],data.s[[#This Row],[الشهداء]:[خصم 5% تأمين من المستحق]],0),0) -> 0 | CY17: =SUM(data.s[[#This Row],[تأمينات 2026]:[تنفيذ أحكام]],data.s[[#This Row],[الشهداء]:[معاش]]) -> 1581.250677 | CZ17: =data.s[[#This Row],[إجمالي المستحق]]-data.s[[#This Row],[إجمالي المستقطع]] -> 5418.749323
B18: 302017 | C18: 1320 | D18: =VLOOKUP(data.s[[#This Row],[كود الشركة]],#REF!,MATCH(data.s[[#Headers],[التعامل المالي]],#REF!,0),FALSE) ->  | E18: ناصر أحمد احمد شحاتة | H18: سائق نقل | I18: الرابعة | J18: الرابعة | K18: سائق نقل | L18: فرع الاسكندرية | M18: المنطقه الشماليه | N18: =data.s[[#This Row],[كود الشركة]]&data.s[[#This Row],[كود البيرول]]&data.s[[#This Row],[التعامل المالي]]&data.s[[#This Row],[اسم الموظف]]&data.s[[#This Row],[الموظف المختص]]&data.s[[#This Row],[حالة العمل]]&data.s[[#This Row],[التصنيف الادارى]]&data.s[[#This Row],[الدرجة]] ->  | P18: =IF(data.s[[#This Row],[ترقية 7/2025]]<>"","نعم","") -> نعم | Q18: 537.77 | R18: 629.1909 | T18: =IF(data.s[[#This Row],[الوظيفة]]="سائق ملاكي",data.s[[#This Row],[أساسي 7/2025]]*135%,0) -> 0 | U18: =IF(data.s[[#This Row],[الوظيفة]]="سائق ملاكي",data.s[[#This Row],[أساسي 7/2025]]*15%,"") ->  | Z18: =data.s[[#This Row],[أساسي 7/2025]]*15% -> 94.378635 | AE18: 0 | AF18: =IFERROR(VLOOKUP(data.s[[#This Row],[كود الشركة]:[كود الشركة]],#REF!,MATCH(data.s[[#Headers],[بدل تباع]],#REF!,0),FALSE),0) -> 0 | AG18: =SUM(data.s[[#This Row],[بدل مخاطر]:[بدل تفرغ]])-data.s[[#This Row],[بدل تمثيل]] -> 94.378635 | AH18: 28.79 | AI18: 30.29 | AJ18: 65 | AL18: 200 | AM18: 0 | AN18: 0 | AO18: 46.28 | AP18: 69.27 | AQ18: 92.12 | AR18: 114.82 | AS18: 0 | AT18: 96.223 | AU18: 600 | AV18: 6 | AW18: =SUM(data.s[[#This Row],[علاوة 2014]:[علاوة اجتماعية]]) -> 1348.793 | AX18: 10 | AY18: =(data.s[[#This Row],[أساسي 7/2025]]*2)/12 -> 104.86515 | BC18: =SUM(data.s[[#This Row],[أساسي 7/2025]:[حافز موانى]],data.s[[#This Row],[أومر الشغل للملاكي]],data.s[[#This Row],[إجمالي بدلات]],data.s[[#This Row],[إجمالي علاوات]:[متوسط المنحة]]) -> 2187.227685 | BD18: =IF(data.s[[#This Row],[الإجمالي]]<7000,7000-data.s[[#This Row],[الإجمالي]],0) -> 4812.772315 | BE18: =IF(data.s[[#This Row],[حالة العمل]]="إيقاف",data.s[[#This Row],[أساسي 7/2025]],SUM(data.s[[#This Row],[رد مستحقات]:[مكمل الأجر]])) -> 7000 | BJ18: =ROUND(data.s[[#This Row],[تأمينات 2026]]/11%,2) -> 10575.54 | BK18: 1163.309781 | BM18: =(((data.s[[#This Row],[إجمالي المستحق]]+data.s[[#This Row],[عمولة انتاج]])-(data.s[[#This Row],[الحافز]]+data.s[[#This Row],[عمولة انتاج]]+data.s[[#This Row],[متوسط المنحة]]+data.s[[#This Row],[رد مستحقات]]+data.s[[#This Row],[بدل سهر]]+data.s[[#This Row],[الإضافي]]))/30)*data.s[[#This Row],[أيام الغياب]] -> 0 | BN18: =(((data.s[[#This Row],[إجمالي المستحق]]+data.s[[#This Row],[عمولة انتاج]])-(data.s[[#This Row],[الحافز]]+data.s[[#This Row],[عمولة انتاج]]+data.s[[#This Row],[متوسط المنحة]]+data.s[[#This Row],[رد مستحقات]]+data.s[[#This Row],[بدل سهر]]+data.s[[#This Row],[الإضافي]]))/30)*data.s[[#This Row],[أيام جزاء]] -> 0 | BO18: =IF(data.s[[#This Row],[أيام الغياب]]=1,data.s[[#This Row],[الحافز]]*20%,IF(data.s[[#This Row],[أيام الغياب]]=2,data.s[[#This Row],[الحافز]]*30%,IF(data.s[[#This Row],[أيام الغياب]]>2,data.s[[#This Row],[الحافز]]*100%,""))) ->  | BQ18: =IFERROR(IF(data.s[[#This Row],[أيام أجازات بعد السنوية]]<=2,data.s[[#This Row],[الحافز]]*0,IF(data.s[[#This Row],[أيام أجازات بعد السنوية]]=3,data.s[[#This Row],[الحافز]]*30%,IF(data.s[[#This Row],[أيام أجازات بعد السنوية]]=4,data.s[[#This Row],[الحافز]]*40%,IF(data.s[[#This Row],[أيام أجازات بعد السنوية]]=5,data.s[[#This Row],[الحافز]]*50%,IF(data.s[[#This Row],[أيام أجازات بعد السنوية]]>5,data.s[[#This Row],[الحافز]]*100%,""))))),"") -> 0 | BU18: 3 | CG18: =data.s[[#This Row],[مخالفات مرور]]+data.s[[#This Row],[سلفة]]+data.s[[#This Row],[تعويضات]]+data.s[[#This Row],[عجز]]+data.s[[#This Row],[تلفيات]]+data.s[[#This Row],[عهد]]+data.s[[#This Row],[سولار]] -> 0 | CH18: 9.14 | CI18: 3 | CP18: 0 | CQ18: =data.s[[#This Row],[متوسط المنحة]] -> 104.86515 | CR18: =IF(data.s[[#This Row],[التصنيف الادارى]]="سائق نقل",data.s[[#This Row],[إجمالي المستحق]]*5%,0) -> 350 | CS18: =IF($G18=data.s[[#Headers],[انقطاع]],$BE18-SUM(data.s[[#This Row],[تأمينات 2026]:[تنفيذ أحكام]],data.s[[#This Row],[الشهداء]:[خصم 5% تأمين من المستحق]],0),0) -> 0 | CT18: =IF($G18=CT$3,$BE18-SUM(data.s[[#This Row],[تأمينات 2026]:[تنفيذ أحكام]],data.s[[#This Row],[الشهداء]:[خصم 5% تأمين من المستحق]],0),0) -> 0 | CU18: =IF($G18=CU$3,$BE18-SUM(data.s[[#This Row],[تأمينات 2026]:[تنفيذ أحكام]],data.s[[#This Row],[الشهداء]:[خصم 5% تأمين من المستحق]],0),0) -> 0 | CV18: =IF($G18=data.s[[#Headers],[إعارة]],$BE18-SUM(data.s[[#This Row],[تأمينات 2026]:[تنفيذ أحكام]],data.s[[#This Row],[الشهداء]:[خصم 5% تأمين من المستحق]],0),0) -> 0 | CW18: =IF($G18=data.s[[#Headers],[انهاء]],$BE18-SUM(data.s[[#This Row],[تأمينات 2026]:[تنفيذ أحكام]],data.s[[#This Row],[الشهداء]:[خصم 5% تأمين من المستحق]],0),0) -> 0 | CX18: =IF($G18=data.s[[#Headers],[معاش]],$BE18-SUM(data.s[[#This Row],[تأمينات 2026]:[تنفيذ أحكام]],data.s[[#This Row],[الشهداء]:[خصم 5% تأمين من المستحق]],0),0) -> 0 | CY18: =SUM(data.s[[#This Row],[تأمينات 2026]:[تنفيذ أحكام]],data.s[[#This Row],[الشهداء]:[معاش]]) -> 1633.314931 | CZ18: =data.s[[#This Row],[إجمالي المستحق]]-data.s[[#This Row],[إجمالي المستقطع]] -> 5366.685069
B19: 302018 | C19: 31350 | D19: =VLOOKUP(data.s[[#This Row],[كود الشركة]],#REF!,MATCH(data.s[[#Headers],[التعامل المالي]],#REF!,0),FALSE) ->  | E19: محمد العزب رزق جعفر | H19: سائق نقل | I19: عقد مؤقت | L19: فرع الزقازيق | M19: المنطقه الشرقيه | N19: =data.s[[#This Row],[كود الشركة]]&data.s[[#This Row],[كود البيرول]]&data.s[[#This Row],[التعامل المالي]]&data.s[[#This Row],[اسم الموظف]]&data.s[[#This Row],[الموظف المختص]]&data.s[[#This Row],[حالة العمل]]&data.s[[#This Row],[التصنيف الادارى]]&data.s[[#This Row],[الدرجة]] ->  | P19: =IF(data.s[[#This Row],[ترقية 7/2025]]<>"","نعم","") ->  | Q19: 410.26 | R19: 410.26 | T19: =IF(data.s[[#This Row],[الوظيفة]]="سائق ملاكي",data.s[[#This Row],[أساسي 7/2025]]*135%,0) -> 0 | U19: =IF(data.s[[#This Row],[الوظيفة]]="سائق ملاكي",data.s[[#This Row],[أساسي 7/2025]]*15%,"") ->  | Z19: =data.s[[#This Row],[أساسي 7/2025]]*15% -> 61.539 | AE19: 0 | AF19: =IFERROR(VLOOKUP(data.s[[#This Row],[كود الشركة]:[كود الشركة]],#REF!,MATCH(data.s[[#Headers],[بدل تباع]],#REF!,0),FALSE),0) -> 0 | AG19: =SUM(data.s[[#This Row],[بدل مخاطر]:[بدل تفرغ]])-data.s[[#This Row],[بدل تمثيل]] -> 61.539 | AH19: 28.79 | AI19: 30.29 | AJ19: 65 | AL19: 200 | AM19: 0 | AN19: 0 | AO19: 0 | AP19: 0 | AQ19: 0 | AR19: 0 | AS19: 0 | AU19: 600 | AV19: 10 | AW19: =SUM(data.s[[#This Row],[علاوة 2014]:[علاوة اجتماعية]]) -> 934.08 | AX19: 10 | AY19: =(data.s[[#This Row],[أساسي 7/2025]]*2)/12 -> 68.37666667 | BC19: =SUM(data.s[[#This Row],[أساسي 7/2025]:[حافز موانى]],data.s[[#This Row],[أومر الشغل للملاكي]],data.s[[#This Row],[إجمالي بدلات]],data.s[[#This Row],[إجمالي علاوات]:[متوسط المنحة]]) -> 1484.255667 | BD19: =IF(data.s[[#This Row],[الإجمالي]]<7000,7000-data.s[[#This Row],[الإجمالي]],0) -> 5515.744333 | BE19: =IF(data.s[[#This Row],[حالة العمل]]="إيقاف",data.s[[#This Row],[أساسي 7/2025]],SUM(data.s[[#This Row],[رد مستحقات]:[مكمل الأجر]])) -> 7000 | BJ19: =ROUND(data.s[[#This Row],[تأمينات 2026]]/11%,2) -> 9996.26 | BK19: 1099.588592 | BM19: =(((data.s[[#This Row],[إجمالي المستحق]]+data.s[[#This Row],[عمولة انتاج]])-(data.s[[#This Row],[الحافز]]+data.s[[#This Row],[عمولة انتاج]]+data.s[[#This Row],[متوسط المنحة]]+data.s[[#This Row],[رد مستحقات]]+data.s[[#This Row],[بدل سهر]]+data.s[[#This Row],[الإضافي]]))/30)*data.s[[#This Row],[أيام الغياب]] -> 0 | BN19: =(((data.s[[#This Row],[إجمالي المستحق]]+data.s[[#This Row],[عمولة انتاج]])-(data.s[[#This Row],[الحافز]]+data.s[[#This Row],[عمولة انتاج]]+data.s[[#This Row],[متوسط المنحة]]+data.s[[#This Row],[رد مستحقات]]+data.s[[#This Row],[بدل سهر]]+data.s[[#This Row],[الإضافي]]))/30)*data.s[[#This Row],[أيام جزاء]] -> 0 | BO19: =IF(data.s[[#This Row],[أيام الغياب]]=1,data.s[[#This Row],[الحافز]]*20%,IF(data.s[[#This Row],[أيام الغياب]]=2,data.s[[#This Row],[الحافز]]*30%,IF(data.s[[#This Row],[أيام الغياب]]>2,data.s[[#This Row],[الحافز]]*100%,""))) ->  | BQ19: =IFERROR(IF(data.s[[#This Row],[أيام أجازات بعد السنوية]]<=2,data.s[[#This Row],[الحافز]]*0,IF(data.s[[#This Row],[أيام أجازات بعد السنوية]]=3,data.s[[#This Row],[الحافز]]*30%,IF(data.s[[#This Row],[أيام أجازات بعد السنوية]]=4,data.s[[#This Row],[الحافز]]*40%,IF(data.s[[#This Row],[أيام أجازات بعد السنوية]]=5,data.s[[#This Row],[الحافز]]*50%,IF(data.s[[#This Row],[أيام أجازات بعد السنوية]]>5,data.s[[#This Row],[الحافز]]*100%,""))))),"") -> 0 | BU19: 3 | BW19: 72.25 | BX19: 1459.3 | CA19: 290.7 | CG19: =data.s[[#This Row],[مخالفات مرور]]+data.s[[#This Row],[سلفة]]+data.s[[#This Row],[تعويضات]]+data.s[[#This Row],[عجز]]+data.s[[#This Row],[تلفيات]]+data.s[[#This Row],[عهد]]+data.s[[#This Row],[سولار]] -> 1750 | CH19: 8.36 | CI19: 3 | CP19: 0 | CQ19: =data.s[[#This Row],[متوسط المنحة]] -> 68.37666667 | CR19: =IF(data.s[[#This Row],[التصنيف الادارى]]="سائق نقل",data.s[[#This Row],[إجمالي المستحق]]*5%,0) -> 350 | CS19: =IF($G19=data.s[[#Headers],[انقطاع]],$BE19-SUM(data.s[[#This Row],[تأمينات 2026]:[تنفيذ أحكام]],data.s[[#This Row],[الشهداء]:[خصم 5% تأمين من المستحق]],0),0) -> 0 | CT19: =IF($G19=CT$3,$BE19-SUM(data.s[[#This Row],[تأمينات 2026]:[تنفيذ أحكام]],data.s[[#This Row],[الشهداء]:[خصم 5% تأمين من المستحق]],0),0) -> 0 | CU19: =IF($G19=CU$3,$BE19-SUM(data.s[[#This Row],[تأمينات 2026]:[تنفيذ أحكام]],data.s[[#This Row],[الشهداء]:[خصم 5% تأمين من المستحق]],0),0) -> 0 | CV19: =IF($G19=data.s[[#Headers],[إعارة]],$BE19-SUM(data.s[[#This Row],[تأمينات 2026]:[تنفيذ أحكام]],data.s[[#This Row],[الشهداء]:[خصم 5% تأمين من المستحق]],0),0) -> 0 | CW19: =IF($G19=data.s[[#Headers],[انهاء]],$BE19-SUM(data.s[[#This Row],[تأمينات 2026]:[تنفيذ أحكام]],data.s[[#This Row],[الشهداء]:[خصم 5% تأمين من المستحق]],0),0) -> 0 | CX19: =IF($G19=data.s[[#Headers],[معاش]],$BE19-SUM(data.s[[#This Row],[تأمينات 2026]:[تنفيذ أحكام]],data.s[[#This Row],[الشهداء]:[خصم 5% تأمين من المستحق]],0),0) -> 0 | CY19: =SUM(data.s[[#This Row],[تأمينات 2026]:[تنفيذ أحكام]],data.s[[#This Row],[الشهداء]:[معاش]]) -> 3354.575259 | CZ19: =data.s[[#This Row],[إجمالي المستحق]]-data.s[[#This Row],[إجمالي المستقطع]] -> 3645.424741
B20: 302019 | C20: 311310 | D20: =VLOOKUP(data.s[[#This Row],[كود الشركة]],#REF!,MATCH(data.s[[#Headers],[التعامل المالي]],#REF!,0),FALSE) ->  | E20: محمود سيد احمد عفصه | H20: سائق نقل | I20: عقد مؤقت | L20: فرع الاسكندرية | M20: المنطقه الشماليه | N20: =data.s[[#This Row],[كود الشركة]]&data.s[[#This Row],[كود البيرول]]&data.s[[#This Row],[التعامل المالي]]&data.s[[#This Row],[اسم الموظف]]&data.s[[#This Row],[الموظف المختص]]&data.s[[#This Row],[حالة العمل]]&data.s[[#This Row],[التصنيف الادارى]]&data.s[[#This Row],[الدرجة]] ->  | P20: =IF(data.s[[#This Row],[ترقية 7/2025]]<>"","نعم","") ->  | Q20: 428.23 | R20: 428.23 | T20: =IF(data.s[[#This Row],[الوظيفة]]="سائق ملاكي",data.s[[#This Row],[أساسي 7/2025]]*135%,0) -> 0 | U20: =IF(data.s[[#This Row],[الوظيفة]]="سائق ملاكي",data.s[[#This Row],[أساسي 7/2025]]*15%,"") ->  | Z20: =data.s[[#This Row],[أساسي 7/2025]]*15% -> 64.2345 | AE20: 0 | AF20: =IFERROR(VLOOKUP(data.s[[#This Row],[كود الشركة]:[كود الشركة]],#REF!,MATCH(data.s[[#Headers],[بدل تباع]],#REF!,0),FALSE),0) -> 0 | AG20: =SUM(data.s[[#This Row],[بدل مخاطر]:[بدل تفرغ]])-data.s[[#This Row],[بدل تمثيل]] -> 64.2345 | AH20: 28.79 | AI20: 30.21 | AJ20: 65 | AL20: 200 | AM20: 0 | AN20: 0 | AO20: 0 | AP20: 0 | AQ20: 0 | AR20: 0 | AS20: 0 | AU20: 600 | AV20: 8 | AW20: =SUM(data.s[[#This Row],[علاوة 2014]:[علاوة اجتماعية]]) -> 932 | AX20: 10 | AY20: =(data.s[[#This Row],[أساسي 7/2025]]*2)/12 -> 71.37166667 | BC20: =SUM(data.s[[#This Row],[أساسي 7/2025]:[حافز موانى]],data.s[[#This Row],[أومر الشغل للملاكي]],data.s[[#This Row],[إجمالي بدلات]],data.s[[#This Row],[إجمالي علاوات]:[متوسط المنحة]]) -> 1505.836167 | BD20: =IF(data.s[[#This Row],[الإجمالي]]<7000,7000-data.s[[#This Row],[الإجمالي]],0) -> 5494.163833 | BE20: =IF(data.s[[#This Row],[حالة العمل]]="إيقاف",data.s[[#This Row],[أساسي 7/2025]],SUM(data.s[[#This Row],[رد مستحقات]:[مكمل الأجر]])) -> 7000 | BH20: 6 | BJ20: =ROUND(data.s[[#This Row],[تأمينات 2026]]/11%,2) -> 8731.17 | BK20: 960.4284413 | BM20: =(((data.s[[#This Row],[إجمالي المستحق]]+data.s[[#This Row],[عمولة انتاج]])-(data.s[[#This Row],[الحافز]]+data.s[[#This Row],[عمولة انتاج]]+data.s[[#This Row],[متوسط المنحة]]+data.s[[#This Row],[رد مستحقات]]+data.s[[#This Row],[بدل سهر]]+data.s[[#This Row],[الإضافي]]))/30)*data.s[[#This Row],[أيام الغياب]] -> 1385.725667 | BN20: =(((data.s[[#This Row],[إجمالي المستحق]]+data.s[[#This Row],[عمولة انتاج]])-(data.s[[#This Row],[الحافز]]+data.s[[#This Row],[عمولة انتاج]]+data.s[[#This Row],[متوسط المنحة]]+data.s[[#This Row],[رد مستحقات]]+data.s[[#This Row],[بدل سهر]]+data.s[[#This Row],[الإضافي]]))/30)*data.s[[#This Row],[أيام جزاء]] -> 0 | BO20: =IF(data.s[[#This Row],[أيام الغياب]]=1,data.s[[#This Row],[الحافز]]*20%,IF(data.s[[#This Row],[أيام الغياب]]=2,data.s[[#This Row],[الحافز]]*30%,IF(data.s[[#This Row],[أيام الغياب]]>2,data.s[[#This Row],[الحافز]]*100%,""))) -> 0 | BQ20: =IFERROR(IF(data.s[[#This Row],[أيام أجازات بعد السنوية]]<=2,data.s[[#This Row],[الحافز]]*0,IF(data.s[[#This Row],[أيام أجازات بعد السنوية]]=3,data.s[[#This Row],[الحافز]]*30%,IF(data.s[[#This Row],[أيام أجازات بعد السنوية]]=4,data.s[[#This Row],[الحافز]]*40%,IF(data.s[[#This Row],[أيام أجازات بعد السنوية]]=5,data.s[[#This Row],[الحافز]]*50%,IF(data.s[[#This Row],[أيام أجازات بعد السنوية]]>5,data.s[[#This Row],[الحافز]]*100%,""))))),"") -> 0 | BU20: 3 | CG20: =data.s[[#This Row],[مخالفات مرور]]+data.s[[#This Row],[سلفة]]+data.s[[#This Row],[تعويضات]]+data.s[[#This Row],[عجز]]+data.s[[#This Row],[تلفيات]]+data.s[[#This Row],[عهد]]+data.s[[#This Row],[سولار]] -> 0 | CH20: 5.93 | CI20: 3 | CP20: 0 | CQ20: =data.s[[#This Row],[متوسط المنحة]] -> 71.37166667 | CR20: =IF(data.s[[#This Row],[التصنيف الادارى]]="سائق نقل",data.s[[#This Row],[إجمالي المستحق]]*5%,0) -> 350 | CS20: =IF($G20=data.s[[#Headers],[انقطاع]],$BE20-SUM(data.s[[#This Row],[تأمينات 2026]:[تنفيذ أحكام]],data.s[[#This Row],[الشهداء]:[خصم 5% تأمين من المستحق]],0),0) -> 0 | CT20: =IF($G20=CT$3,$BE20-SUM(data.s[[#This Row],[تأمينات 2026]:[تنفيذ أحكام]],data.s[[#This Row],[الشهداء]:[خصم 5% تأمين من المستحق]],0),0) -> 0 | CU20: =IF($G20=CU$3,$BE20-SUM(data.s[[#This Row],[تأمينات 2026]:[تنفيذ أحكام]],data.s[[#This Row],[الشهداء]:[خصم 5% تأمين من المستحق]],0),0) -> 0 | CV20: =IF($G20=data.s[[#Headers],[إعارة]],$BE20-SUM(data.s[[#This Row],[تأمينات 2026]:[تنفيذ أحكام]],data.s[[#This Row],[الشهداء]:[خصم 5% تأمين من المستحق]],0),0) -> 0 | CW20: =IF($G20=data.s[[#Headers],[انهاء]],$BE20-SUM(data.s[[#This Row],[تأمينات 2026]:[تنفيذ أحكام]],data.s[[#This Row],[الشهداء]:[خصم 5% تأمين من المستحق]],0),0) -> 0 | CX20: =IF($G20=data.s[[#Headers],[معاش]],$BE20-SUM(data.s[[#This Row],[تأمينات 2026]:[تنفيذ أحكام]],data.s[[#This Row],[الشهداء]:[خصم 5% تأمين من المستحق]],0),0) -> 0 | CY20: =SUM(data.s[[#This Row],[تأمينات 2026]:[تنفيذ أحكام]],data.s[[#This Row],[الشهداء]:[معاش]]) -> 2779.455775 | CZ20: =data.s[[#This Row],[إجمالي المستحق]]-data.s[[#This Row],[إجمالي المستقطع]] -> 4220.544225
B21: 302020 | C21: 1314 | D21: =VLOOKUP(data.s[[#This Row],[كود الشركة]],#REF!,MATCH(data.s[[#Headers],[التعامل المالي]],#REF!,0),FALSE) ->  | E21: رضا عبد الحميد عبد العظيم كشك | H21: سائق نقل | I21: عقد مؤقت | L21: فرع الاميرية | M21: المنطقه المركزية | N21: =data.s[[#This Row],[كود الشركة]]&data.s[[#This Row],[كود البيرول]]&data.s[[#This Row],[التعامل المالي]]&data.s[[#This Row],[اسم الموظف]]&data.s[[#This Row],[الموظف المختص]]&data.s[[#This Row],[حالة العمل]]&data.s[[#This Row],[التصنيف الادارى]]&data.s[[#This Row],[الدرجة]] ->  | P21: =IF(data.s[[#This Row],[ترقية 7/2025]]<>"","نعم","") ->  | Q21: 410.26 | R21: 410.26 | T21: =IF(data.s[[#This Row],[الوظيفة]]="سائق ملاكي",data.s[[#This Row],[أساسي 7/2025]]*135%,0) -> 0 | U21: =IF(data.s[[#This Row],[الوظيفة]]="سائق ملاكي",data.s[[#This Row],[أساسي 7/2025]]*15%,"") ->  | Z21: =data.s[[#This Row],[أساسي 7/2025]]*15% -> 61.539 | AE21: 0 | AF21: =IFERROR(VLOOKUP(data.s[[#This Row],[كود الشركة]:[كود الشركة]],#REF!,MATCH(data.s[[#Headers],[بدل تباع]],#REF!,0),FALSE),0) -> 0 | AG21: =SUM(data.s[[#This Row],[بدل مخاطر]:[بدل تفرغ]])-data.s[[#This Row],[بدل تمثيل]] -> 61.539 | AH21: 28.79 | AI21: 30.29 | AJ21: 65 | AL21: 200 | AM21: 0 | AN21: 0 | AO21: 0 | AP21: 0 | AQ21: 0 | AR21: 0 | AS21: 0 | AU21: 600 | AV21: 10 | AW21: =SUM(data.s[[#This Row],[علاوة 2014]:[علاوة اجتماعية]]) -> 934.08 | AX21: 10 | AY21: =(data.s[[#This Row],[أساسي 7/2025]]*2)/12 -> 68.37666667 | BC21: =SUM(data.s[[#This Row],[أساسي 7/2025]:[حافز موانى]],data.s[[#This Row],[أومر الشغل للملاكي]],data.s[[#This Row],[إجمالي بدلات]],data.s[[#This Row],[إجمالي علاوات]:[متوسط المنحة]]) -> 1484.255667 | BD21: =IF(data.s[[#This Row],[الإجمالي]]<7000,7000-data.s[[#This Row],[الإجمالي]],0) -> 5515.744333 | BE21: =IF(data.s[[#This Row],[حالة العمل]]="إيقاف",data.s[[#This Row],[أساسي 7/2025]],SUM(data.s[[#This Row],[رد مستحقات]:[مكمل الأجر]])) -> 7000 | BJ21: =ROUND(data.s[[#This Row],[تأمينات 2026]]/11%,2) -> 7817.05 | BK21: 859.8755835 | BM21: =(((data.s[[#This Row],[إجمالي المستحق]]+data.s[[#This Row],[عمولة انتاج]])-(data.s[[#This Row],[الحافز]]+data.s[[#This Row],[عمولة انتاج]]+data.s[[#This Row],[متوسط المنحة]]+data.s[[#This Row],[رد مستحقات]]+data.s[[#This Row],[بدل سهر]]+data.s[[#This Row],[الإضافي]]))/30)*data.s[[#This Row],[أيام الغياب]] -> 0 | BN21: =(((data.s[[#This Row],[إجمالي المستحق]]+data.s[[#This Row],[عمولة انتاج]])-(data.s[[#This Row],[الحافز]]+data.s[[#This Row],[عمولة انتاج]]+data.s[[#This Row],[متوسط المنحة]]+data.s[[#This Row],[رد مستحقات]]+data.s[[#This Row],[بدل سهر]]+data.s[[#This Row],[الإضافي]]))/30)*data.s[[#This Row],[أيام جزاء]] -> 0 | BO21: =IF(data.s[[#This Row],[أيام الغياب]]=1,data.s[[#This Row],[الحافز]]*20%,IF(data.s[[#This Row],[أيام الغياب]]=2,data.s[[#This Row],[الحافز]]*30%,IF(data.s[[#This Row],[أيام الغياب]]>2,data.s[[#This Row],[الحافز]]*100%,""))) ->  | BQ21: =IFERROR(IF(data.s[[#This Row],[أيام أجازات بعد السنوية]]<=2,data.s[[#This Row],[الحافز]]*0,IF(data.s[[#This Row],[أيام أجازات بعد السنوية]]=3,data.s[[#This Row],[الحافز]]*30%,IF(data.s[[#This Row],[أيام أجازات بعد السنوية]]=4,data.s[[#This Row],[الحافز]]*40%,IF(data.s[[#This Row],[أيام أجازات بعد السنوية]]=5,data.s[[#This Row],[الحافز]]*50%,IF(data.s[[#This Row],[أيام أجازات بعد السنوية]]>5,data.s[[#This Row],[الحافز]]*100%,""))))),"") -> 0 | BU21: 3 | CG21: =data.s[[#This Row],[مخالفات مرور]]+data.s[[#This Row],[سلفة]]+data.s[[#This Row],[تعويضات]]+data.s[[#This Row],[عجز]]+data.s[[#This Row],[تلفيات]]+data.s[[#This Row],[عهد]]+data.s[[#This Row],[سولار]] -> 0 | CH21: 6.86 | CI21: 5 | CP21: 0 | CQ21: =data.s[[#This Row],[متوسط المنحة]] -> 68.37666667 | CR21: =IF(data.s[[#This Row],[التصنيف الادارى]]="سائق نقل",data.s[[#This Row],[إجمالي المستحق]]*5%,0) -> 350 | CS21: =IF($G21=data.s[[#Headers],[انقطاع]],$BE21-SUM(data.s[[#This Row],[تأمينات 2026]:[تنفيذ أحكام]],data.s[[#This Row],[الشهداء]:[خصم 5% تأمين من المستحق]],0),0) -> 0 | CT21: =IF($G21=CT$3,$BE21-SUM(data.s[[#This Row],[تأمينات 2026]:[تنفيذ أحكام]],data.s[[#This Row],[الشهداء]:[خصم 5% تأمين من المستحق]],0),0) -> 0 | CU21: =IF($G21=CU$3,$BE21-SUM(data.s[[#This Row],[تأمينات 2026]:[تنفيذ أحكام]],data.s[[#This Row],[الشهداء]:[خصم 5% تأمين من المستحق]],0),0) -> 0 | CV21: =IF($G21=data.s[[#Headers],[إعارة]],$BE21-SUM(data.s[[#This Row],[تأمينات 2026]:[تنفيذ أحكام]],data.s[[#This Row],[الشهداء]:[خصم 5% تأمين من المستحق]],0),0) -> 0 | CW21: =IF($G21=data.s[[#Headers],[انهاء]],$BE21-SUM(data.s[[#This Row],[تأمينات 2026]:[تنفيذ أحكام]],data.s[[#This Row],[الشهداء]:[خصم 5% تأمين من المستحق]],0),0) -> 0 | CX21: =IF($G21=data.s[[#Headers],[معاش]],$BE21-SUM(data.s[[#This Row],[تأمينات 2026]:[تنفيذ أحكام]],data.s[[#This Row],[الشهداء]:[خصم 5% تأمين من المستحق]],0),0) -> 0 | CY21: =SUM(data.s[[#This Row],[تأمينات 2026]:[تنفيذ أحكام]],data.s[[#This Row],[الشهداء]:[معاش]]) -> 1293.11225 | CZ21: =data.s[[#This Row],[إجمالي المستحق]]-data.s[[#This Row],[إجمالي المستقطع]] -> 5706.88775
B22: 302021 | C22: 31321 | D22: =VLOOKUP(data.s[[#This Row],[كود الشركة]],#REF!,MATCH(data.s[[#Headers],[التعامل المالي]],#REF!,0),FALSE) ->  | E22: صابر عبد الله رزق | H22: سائق نقل | I22: عقد مؤقت | L22: فرع الزقازيق | M22: المنطقه الشرقيه | N22: =data.s[[#This Row],[كود الشركة]]&data.s[[#This Row],[كود البيرول]]&data.s[[#This Row],[التعامل المالي]]&data.s[[#This Row],[اسم الموظف]]&data.s[[#This Row],[الموظف المختص]]&data.s[[#This Row],[حالة العمل]]&data.s[[#This Row],[التصنيف الادارى]]&data.s[[#This Row],[الدرجة]] ->  | P22: =IF(data.s[[#This Row],[ترقية 7/2025]]<>"","نعم","") ->  | Q22: 410.26 | R22: 410.26 | T22: =IF(data.s[[#This Row],[الوظيفة]]="سائق ملاكي",data.s[[#This Row],[أساسي 7/2025]]*135%,0) -> 0 | U22: =IF(data.s[[#This Row],[الوظيفة]]="سائق ملاكي",data.s[[#This Row],[أساسي 7/2025]]*15%,"") ->  | Z22: =data.s[[#This Row],[أساسي 7/2025]]*15% -> 61.539 | AE22: 0 | AF22: =IFERROR(VLOOKUP(data.s[[#This Row],[كود الشركة]:[كود الشركة]],#REF!,MATCH(data.s[[#Headers],[بدل تباع]],#REF!,0),FALSE),0) -> 0 | AG22: =SUM(data.s[[#This Row],[بدل مخاطر]:[بدل تفرغ]])-data.s[[#This Row],[بدل تمثيل]] -> 61.539 | AH22: 28.79 | AI22: 30.29 | AJ22: 65 | AL22: 200 | AM22: 0 | AN22: 0 | AO22: 0 | AP22: 0 | AQ22: 0 | AR22: 0 | AS22: 0 | AU22: 600 | AV22: 10 | AW22: =SUM(data.s[[#This Row],[علاوة 2014]:[علاوة اجتماعية]]) -> 934.08 | AX22: 10 | AY22: =(data.s[[#This Row],[أساسي 7/2025]]*2)/12 -> 68.37666667 | BC22: =SUM(data.s[[#This Row],[أساسي 7/2025]:[حافز موانى]],data.s[[#This Row],[أومر الشغل للملاكي]],data.s[[#This Row],[إجمالي بدلات]],data.s[[#This Row],[إجمالي علاوات]:[متوسط المنحة]]) -> 1484.255667 | BD22: =IF(data.s[[#This Row],[الإجمالي]]<7000,7000-data.s[[#This Row],[الإجمالي]],0) -> 5515.744333 | BE22: =IF(data.s[[#This Row],[حالة العمل]]="إيقاف",data.s[[#This Row],[أساسي 7/2025]],SUM(data.s[[#This Row],[رد مستحقات]:[مكمل الأجر]])) -> 7000 | BH22: 8 | BI22: 3 | BJ22: =ROUND(data.s[[#This Row],[تأمينات 2026]]/11%,2) -> 10173.01 | BK22: 1119.031 | BM22: =(((data.s[[#This Row],[إجمالي المستحق]]+data.s[[#This Row],[عمولة انتاج]])-(data.s[[#This Row],[الحافز]]+data.s[[#This Row],[عمولة انتاج]]+data.s[[#This Row],[متوسط المنحة]]+data.s[[#This Row],[رد مستحقات]]+data.s[[#This Row],[بدل سهر]]+data.s[[#This Row],[الإضافي]]))/30)*data.s[[#This Row],[أيام الغياب]] -> 1848.432889 | BN22: =(((data.s[[#This Row],[إجمالي المستحق]]+data.s[[#This Row],[عمولة انتاج]])-(data.s[[#This Row],[الحافز]]+data.s[[#This Row],[عمولة انتاج]]+data.s[[#This Row],[متوسط المنحة]]+data.s[[#This Row],[رد مستحقات]]+data.s[[#This Row],[بدل سهر]]+data.s[[#This Row],[الإضافي]]))/30)*data.s[[#This Row],[أيام جزاء]] -> 693.1623333 | BO22: =IF(data.s[[#This Row],[أيام الغياب]]=1,data.s[[#This Row],[الحافز]]*20%,IF(data.s[[#This Row],[أيام الغياب]]=2,data.s[[#This Row],[الحافز]]*30%,IF(data.s[[#This Row],[أيام الغياب]]>2,data.s[[#This Row],[الحافز]]*100%,""))) -> 0 | BQ22: =IFERROR(IF(data.s[[#This Row],[أيام أجازات بعد السنوية]]<=2,data.s[[#This Row],[الحافز]]*0,IF(data.s[[#This Row],[أيام أجازات بعد السنوية]]=3,data.s[[#This Row],[الحافز]]*30%,IF(data.s[[#This Row],[أيام أجازات بعد السنوية]]=4,data.s[[#This Row],[الحافز]]*40%,IF(data.s[[#This Row],[أيام أجازات بعد السنوية]]=5,data.s[[#This Row],[الحافز]]*50%,IF(data.s[[#This Row],[أيام أجازات بعد السنوية]]>5,data.s[[#This Row],[الحافز]]*100%,""))))),"") -> 0 | BU22: 3 | BX22: 1000 | CA22: 750 | CG22: =data.s[[#This Row],[مخالفات مرور]]+data.s[[#This Row],[سلفة]]+data.s[[#This Row],[تعويضات]]+data.s[[#This Row],[عجز]]+data.s[[#This Row],[تلفيات]]+data.s[[#This Row],[عهد]]+data.s[[#This Row],[سولار]] -> 1750 | CH22: 6.22 | CI22: 3 | CP22: 0 | CQ22: =data.s[[#This Row],[متوسط المنحة]] -> 68.37666667 | CR22: =IF(data.s[[#This Row],[التصنيف الادارى]]="سائق نقل",data.s[[#This Row],[إجمالي المستحق]]*5%,0) -> 350 | CS22: =IF($G22=data.s[[#Headers],[انقطاع]],$BE22-SUM(data.s[[#This Row],[تأمينات 2026]:[تنفيذ أحكام]],data.s[[#This Row],[الشهداء]:[خصم 5% تأمين من المستحق]],0),0) -> 0 | CT22: =IF($G22=CT$3,$BE22-SUM(data.s[[#This Row],[تأمينات 2026]:[تنفيذ أحكام]],data.s[[#This Row],[الشهداء]:[خصم 5% تأمين من المستحق]],0),0) -> 0 | CU22: =IF($G22=CU$3,$BE22-SUM(data.s[[#This Row],[تأمينات 2026]:[تنفيذ أحكام]],data.s[[#This Row],[الشهداء]:[خصم 5% تأمين من المستحق]],0),0) -> 0 | CV22: =IF($G22=data.s[[#Headers],[إعارة]],$BE22-SUM(data.s[[#This Row],[تأمينات 2026]:[تنفيذ أحكام]],data.s[[#This Row],[الشهداء]:[خصم 5% تأمين من المستحق]],0),0) -> 0 | CW22: =IF($G22=data.s[[#Headers],[انهاء]],$BE22-SUM(data.s[[#This Row],[تأمينات 2026]:[تنفيذ أحكام]],data.s[[#This Row],[الشهداء]:[خصم 5% تأمين من المستحق]],0),0) -> 0 | CX22: =IF($G22=data.s[[#Headers],[معاش]],$BE22-SUM(data.s[[#This Row],[تأمينات 2026]:[تنفيذ أحكام]],data.s[[#This Row],[الشهداء]:[خصم 5% تأمين من المستحق]],0),0) -> 0 | CY22: =SUM(data.s[[#This Row],[تأمينات 2026]:[تنفيذ أحكام]],data.s[[#This Row],[الشهداء]:[معاش]]) -> 5841.222889 | CZ22: =data.s[[#This Row],[إجمالي المستحق]]-data.s[[#This Row],[إجمالي المستقطع]] -> 1158.777111
B23: 302022 | C23: 31322 | D23: =VLOOKUP(data.s[[#This Row],[كود الشركة]],#REF!,MATCH(data.s[[#Headers],[التعامل المالي]],#REF!,0),FALSE) ->  | E23: تامر صبحى محمد خليفة | H23: سائق نقل | I23: عقد مؤقت | L23: فرع الاميرية | M23: المنطقه المركزية | N23: =data.s[[#This Row],[كود الشركة]]&data.s[[#This Row],[كود البيرول]]&data.s[[#This Row],[التعامل المالي]]&data.s[[#This Row],[اسم الموظف]]&data.s[[#This Row],[الموظف المختص]]&data.s[[#This Row],[حالة العمل]]&data.s[[#This Row],[التصنيف الادارى]]&data.s[[#This Row],[الدرجة]] ->  | P23: =IF(data.s[[#This Row],[ترقية 7/2025]]<>"","نعم","") ->  | Q23: 410.26 | R23: 410.26 | T23: =IF(data.s[[#This Row],[الوظيفة]]="سائق ملاكي",data.s[[#This Row],[أساسي 7/2025]]*135%,0) -> 0 | U23: =IF(data.s[[#This Row],[الوظيفة]]="سائق ملاكي",data.s[[#This Row],[أساسي 7/2025]]*15%,"") ->  | Z23: =data.s[[#This Row],[أساسي 7/2025]]*15% -> 61.539 | AE23: 0 | AF23: =IFERROR(VLOOKUP(data.s[[#This Row],[كود الشركة]:[كود الشركة]],#REF!,MATCH(data.s[[#Headers],[بدل تباع]],#REF!,0),FALSE),0) -> 0 | AG23: =SUM(data.s[[#This Row],[بدل مخاطر]:[بدل تفرغ]])-data.s[[#This Row],[بدل تمثيل]] -> 61.539 | AH23: 28.79 | AI23: 30.29 | AJ23: 65 | AL23: 200 | AM23: 0 | AN23: 0 | AO23: 0 | AP23: 0 | AQ23: 0 | AR23: 0 | AS23: 0 | AU23: 600 | AV23: 10 | AW23: =SUM(data.s[[#This Row],[علاوة 2014]:[علاوة اجتماعية]]) -> 934.08 | AX23: 10 | AY23: =(data.s[[#This Row],[أساسي 7/2025]]*2)/12 -> 68.37666667 | AZ23: 47.06 | BC23: =SUM(data.s[[#This Row],[أساسي 7/2025]:[حافز موانى]],data.s[[#This Row],[أومر الشغل للملاكي]],data.s[[#This Row],[إجمالي بدلات]],data.s[[#This Row],[إجمالي علاوات]:[متوسط المنحة]]) -> 1484.255667 | BD23: =IF(data.s[[#This Row],[الإجمالي]]<7000,7000-data.s[[#This Row],[الإجمالي]],0) -> 5515.744333 | BE23: =IF(data.s[[#This Row],[حالة العمل]]="إيقاف",data.s[[#This Row],[أساسي 7/2025]],SUM(data.s[[#This Row],[رد مستحقات]:[مكمل الأجر]])) -> 7047.06 | BI23: 2 | BJ23: =ROUND(data.s[[#This Row],[تأمينات 2026]]/11%,2) -> 7674.61 | BK23: 844.2071835 | BM23: =(((data.s[[#This Row],[إجمالي المستحق]]+data.s[[#This Row],[عمولة انتاج]])-(data.s[[#This Row],[الحافز]]+data.s[[#This Row],[عمولة انتاج]]+data.s[[#This Row],[متوسط المنحة]]+data.s[[#This Row],[رد مستحقات]]+data.s[[#This Row],[بدل سهر]]+data.s[[#This Row],[الإضافي]]))/30)*data.s[[#This Row],[أيام الغياب]] -> 0 | BN23: =(((data.s[[#This Row],[إجمالي المستحق]]+data.s[[#This Row],[عمولة انتاج]])-(data.s[[#This Row],[الحافز]]+data.s[[#This Row],[عمولة انتاج]]+data.s[[#This Row],[متوسط المنحة]]+data.s[[#This Row],[رد مستحقات]]+data.s[[#This Row],[بدل سهر]]+data.s[[#This Row],[الإضافي]]))/30)*data.s[[#This Row],[أيام جزاء]] -> 462.1082222 | BO23: =IF(data.s[[#This Row],[أيام الغياب]]=1,data.s[[#This Row],[الحافز]]*20%,IF(data.s[[#This Row],[أيام الغياب]]=2,data.s[[#This Row],[الحافز]]*30%,IF(data.s[[#This Row],[أيام الغياب]]>2,data.s[[#This Row],[الحافز]]*100%,""))) ->  | BQ23: =IFERROR(IF(data.s[[#This Row],[أيام أجازات بعد السنوية]]<=2,data.s[[#This Row],[الحافز]]*0,IF(data.s[[#This Row],[أيام أجازات بعد السنوية]]=3,data.s[[#This Row],[الحافز]]*30%,IF(data.s[[#This Row],[أيام أجازات بعد السنوية]]=4,data.s[[#This Row],[الحافز]]*40%,IF(data.s[[#This Row],[أيام أجازات بعد السنوية]]=5,data.s[[#This Row],[الحافز]]*50%,IF(data.s[[#This Row],[أيام أجازات بعد السنوية]]>5,data.s[[#This Row],[الحافز]]*100%,""))))),"") -> 0 | BU23: 3 | CG23: =data.s[[#This Row],[مخالفات مرور]]+data.s[[#This Row],[سلفة]]+data.s[[#This Row],[تعويضات]]+data.s[[#This Row],[عجز]]+data.s[[#This Row],[تلفيات]]+data.s[[#This Row],[عهد]]+data.s[[#This Row],[سولار]] -> 0 | CH23: 7.24 | CI23: 3 | CP23: 0 | CQ23: =data.s[[#This Row],[متوسط المنحة]] -> 68.37666667 | CR23: =IF(data.s[[#This Row],[التصنيف الادارى]]="سائق نقل",data.s[[#This Row],[إجمالي المستحق]]*5%,0) -> 352.353 | CS23: =IF($G23=data.s[[#Headers],[انقطاع]],$BE23-SUM(data.s[[#This Row],[تأمينات 2026]:[تنفيذ أحكام]],data.s[[#This Row],[الشهداء]:[خصم 5% تأمين من المستحق]],0),0) -> 0 | CT23: =IF($G23=CT$3,$BE23-SUM(data.s[[#This Row],[تأمينات 2026]:[تنفيذ أحكام]],data.s[[#This Row],[الشهداء]:[خصم 5% تأمين من المستحق]],0),0) -> 0 | CU23: =IF($G23=CU$3,$BE23-SUM(data.s[[#This Row],[تأمينات 2026]:[تنفيذ أحكام]],data.s[[#This Row],[الشهداء]:[خصم 5% تأمين من المستحق]],0),0) -> 0 | CV23: =IF($G23=data.s[[#Headers],[إعارة]],$BE23-SUM(data.s[[#This Row],[تأمينات 2026]:[تنفيذ أحكام]],data.s[[#This Row],[الشهداء]:[خصم 5% تأمين من المستحق]],0),0) -> 0 | CW23: =IF($G23=data.s[[#Headers],[انهاء]],$BE23-SUM(data.s[[#This Row],[تأمينات 2026]:[تنفيذ أحكام]],data.s[[#This Row],[الشهداء]:[خصم 5% تأمين من المستحق]],0),0) -> 0 | CX23: =IF($G23=data.s[[#Headers],[معاش]],$BE23-SUM(data.s[[#This Row],[تأمينات 2026]:[تنفيذ أحكام]],data.s[[#This Row],[الشهداء]:[خصم 5% تأمين من المستحق]],0),0) -> 0 | CY23: =SUM(data.s[[#This Row],[تأمينات 2026]:[تنفيذ أحكام]],data.s[[#This Row],[الشهداء]:[معاش]]) -> 1740.285072 | CZ23: =data.s[[#This Row],[إجمالي المستحق]]-data.s[[#This Row],[إجمالي المستقطع]] -> 5306.774928
B24: 302023 | C24: 31356 | D24: =VLOOKUP(data.s[[#This Row],[كود الشركة]],#REF!,MATCH(data.s[[#Headers],[التعامل المالي]],#REF!,0),FALSE) ->  | E24: محمد حسن محمد على | H24: سائق نقل | I24: عقد مؤقت | L24: فرع الاميرية | M24: المنطقه المركزية | N24: =data.s[[#This Row],[كود الشركة]]&data.s[[#This Row],[كود البيرول]]&data.s[[#This Row],[التعامل المالي]]&data.s[[#This Row],[اسم الموظف]]&data.s[[#This Row],[الموظف المختص]]&data.s[[#This Row],[حالة العمل]]&data.s[[#This Row],[التصنيف الادارى]]&data.s[[#This Row],[الدرجة]] ->  | P24: =IF(data.s[[#This Row],[ترقية 7/2025]]<>"","نعم","") ->  | Q24: 428.23 | R24: 428.23 | T24: =IF(data.s[[#This Row],[الوظيفة]]="سائق ملاكي",data.s[[#This Row],[أساسي 7/2025]]*135%,0) -> 0 | U24: =IF(data.s[[#This Row],[الوظيفة]]="سائق ملاكي",data.s[[#This Row],[أساسي 7/2025]]*15%,"") ->  | Z24: =data.s[[#This Row],[أساسي 7/2025]]*15% -> 64.2345 | AE24: 0 | AF24: =IFERROR(VLOOKUP(data.s[[#This Row],[كود الشركة]:[كود الشركة]],#REF!,MATCH(data.s[[#Headers],[بدل تباع]],#REF!,0),FALSE),0) -> 0 | AG24: =SUM(data.s[[#This Row],[بدل مخاطر]:[بدل تفرغ]])-data.s[[#This Row],[بدل تمثيل]] -> 64.2345 | AH24: 28.79 | AI24: 30.29 | AJ24: 65 | AL24: 200 | AM24: 0 | AN24: 0 | AO24: 0 | AP24: 0 | AQ24: 0 | AR24: 0 | AS24: 0 | AU24: 600 | AV24: 10 | AW24: =SUM(data.s[[#This Row],[علاوة 2014]:[علاوة اجتماعية]]) -> 934.08 | AX24: 10 | AY24: =(data.s[[#This Row],[أساسي 7/2025]]*2)/12 -> 71.37166667 | BC24: =SUM(data.s[[#This Row],[أساسي 7/2025]:[حافز موانى]],data.s[[#This Row],[أومر الشغل للملاكي]],data.s[[#This Row],[إجمالي بدلات]],data.s[[#This Row],[إجمالي علاوات]:[متوسط المنحة]]) -> 1507.916167 | BD24: =IF(data.s[[#This Row],[الإجمالي]]<7000,7000-data.s[[#This Row],[الإجمالي]],0) -> 5492.083833 | BE24: =IF(data.s[[#This Row],[حالة العمل]]="إيقاف",data.s[[#This Row],[أساسي 7/2025]],SUM(data.s[[#This Row],[رد مستحقات]:[مكمل الأجر]])) -> 7000 | BH24: 0 | BJ24: =ROUND(data.s[[#This Row],[تأمينات 2026]]/11%,2) -> 10151.12 | BK24: 1116.623675 | BM24: =(((data.s[[#This Row],[إجمالي المستحق]]+data.s[[#This Row],[عمولة انتاج]])-(data.s[[#This Row],[الحافز]]+data.s[[#This Row],[عمولة انتاج]]+data.s[[#This Row],[متوسط المنحة]]+data.s[[#This Row],[رد مستحقات]]+data.s[[#This Row],[بدل سهر]]+data.s[[#This Row],[الإضافي]]))/30)*data.s[[#This Row],[أيام الغياب]] -> 0 | BN24: =(((data.s[[#This Row],[إجمالي المستحق]]+data.s[[#This Row],[عمولة انتاج]])-(data.s[[#This Row],[الحافز]]+data.s[[#This Row],[عمولة انتاج]]+data.s[[#This Row],[متوسط المنحة]]+data.s[[#This Row],[رد مستحقات]]+data.s[[#This Row],[بدل سهر]]+data.s[[#This Row],[الإضافي]]))/30)*data.s[[#This Row],[أيام جزاء]] -> 0 | BO24: =IF(data.s[[#This Row],[أيام الغياب]]=1,data.s[[#This Row],[الحافز]]*20%,IF(data.s[[#This Row],[أيام الغياب]]=2,data.s[[#This Row],[الحافز]]*30%,IF(data.s[[#This Row],[أيام الغياب]]>2,data.s[[#This Row],[الحافز]]*100%,""))) ->  | BQ24: =IFERROR(IF(data.s[[#This Row],[أيام أجازات بعد السنوية]]<=2,data.s[[#This Row],[الحافز]]*0,IF(data.s[[#This Row],[أيام أجازات بعد السنوية]]=3,data.s[[#This Row],[الحافز]]*30%,IF(data.s[[#This Row],[أيام أجازات بعد السنوية]]=4,data.s[[#This Row],[الحافز]]*40%,IF(data.s[[#This Row],[أيام أجازات بعد السنوية]]=5,data.s[[#This Row],[الحافز]]*50%,IF(data.s[[#This Row],[أيام أجازات بعد السنوية]]>5,data.s[[#This Row],[الحافز]]*100%,""))))),"") -> 0 | BU24: 3 | CG24: =data.s[[#This Row],[مخالفات مرور]]+data.s[[#This Row],[سلفة]]+data.s[[#This Row],[تعويضات]]+data.s[[#This Row],[عجز]]+data.s[[#This Row],[تلفيات]]+data.s[[#This Row],[عهد]]+data.s[[#This Row],[سولار]] -> 0 | CH24: 8.9 | CI24: 3 | CP24: 0 | CQ24: =data.s[[#This Row],[متوسط المنحة]] -> 71.37166667 | CR24: =IF(data.s[[#This Row],[التصنيف الادارى]]="سائق نقل",data.s[[#This Row],[إجمالي المستحق]]*5%,0) -> 350 | CS24: =IF($G24=data.s[[#Headers],[انقطاع]],$BE24-SUM(data.s[[#This Row],[تأمينات 2026]:[تنفيذ أحكام]],data.s[[#This Row],[الشهداء]:[خصم 5% تأمين من المستحق]],0),0) -> 0 | CT24: =IF($G24=CT$3,$BE24-SUM(data.s[[#This Row],[تأمينات 2026]:[تنفيذ أحكام]],data.s[[#This Row],[الشهداء]:[خصم 5% تأمين من المستحق]],0),0) -> 0 | CU24: =IF($G24=CU$3,$BE24-SUM(data.s[[#This Row],[تأمينات 2026]:[تنفيذ أحكام]],data.s[[#This Row],[الشهداء]:[خصم 5% تأمين من المستحق]],0),0) -> 0 | CV24: =IF($G24=data.s[[#Headers],[إعارة]],$BE24-SUM(data.s[[#This Row],[تأمينات 2026]:[تنفيذ أحكام]],data.s[[#This Row],[الشهداء]:[خصم 5% تأمين من المستحق]],0),0) -> 0 | CW24: =IF($G24=data.s[[#Headers],[انهاء]],$BE24-SUM(data.s[[#This Row],[تأمينات 2026]:[تنفيذ أحكام]],data.s[[#This Row],[الشهداء]:[خصم 5% تأمين من المستحق]],0),0) -> 0 | CX24: =IF($G24=data.s[[#Headers],[معاش]],$BE24-SUM(data.s[[#This Row],[تأمينات 2026]:[تنفيذ أحكام]],data.s[[#This Row],[الشهداء]:[خصم 5% تأمين من المستحق]],0),0) -> 0 | CY24: =SUM(data.s[[#This Row],[تأمينات 2026]:[تنفيذ أحكام]],data.s[[#This Row],[الشهداء]:[معاش]]) -> 1552.895341 | CZ24: =data.s[[#This Row],[إجمالي المستحق]]-data.s[[#This Row],[إجمالي المستقطع]] -> 5447.104659
B25: 302024 | C25: 44032 | D25: =VLOOKUP(data.s[[#This Row],[كود الشركة]],#REF!,MATCH(data.s[[#Headers],[التعامل المالي]],#REF!,0),FALSE) ->  | E25: على عبد الحميد على زهرة | H25: سائق نقل | I25: عقد مؤقت | L25: فرع المنصورة | M25: المنطقه الشرقيه | N25: =data.s[[#This Row],[كود الشركة]]&data.s[[#This Row],[كود البيرول]]&data.s[[#This Row],[التعامل المالي]]&data.s[[#This Row],[اسم الموظف]]&data.s[[#This Row],[الموظف المختص]]&data.s[[#This Row],[حالة العمل]]&data.s[[#This Row],[التصنيف الادارى]]&data.s[[#This Row],[الدرجة]] ->  | P25: =IF(data.s[[#This Row],[ترقية 7/2025]]<>"","نعم","") ->  | Q25: 428.32 | R25: 428.23 | T25: =IF(data.s[[#This Row],[الوظيفة]]="سائق ملاكي",data.s[[#This Row],[أساسي 7/2025]]*135%,0) -> 0 | U25: =IF(data.s[[#This Row],[الوظيفة]]="سائق ملاكي",data.s[[#This Row],[أساسي 7/2025]]*15%,"") ->  | Z25: =data.s[[#This Row],[أساسي 7/2025]]*15% -> 64.2345 | AE25: 0 | AF25: =IFERROR(VLOOKUP(data.s[[#This Row],[كود الشركة]:[كود الشركة]],#REF!,MATCH(data.s[[#Headers],[بدل تباع]],#REF!,0),FALSE),0) -> 0 | AG25: =SUM(data.s[[#This Row],[بدل مخاطر]:[بدل تفرغ]])-data.s[[#This Row],[بدل تمثيل]] -> 64.2345 | AS25: 934.63 | AW25: =SUM(data.s[[#This Row],[علاوة 2014]:[علاوة اجتماعية]]) -> 934.63 | AX25: 10 | AY25: =(data.s[[#This Row],[أساسي 7/2025]]*2)/12 -> 71.37166667 | BC25: =SUM(data.s[[#This Row],[أساسي 7/2025]:[حافز موانى]],data.s[[#This Row],[أومر الشغل للملاكي]],data.s[[#This Row],[إجمالي بدلات]],data.s[[#This Row],[إجمالي علاوات]:[متوسط المنحة]]) -> 1508.466167 | BD25: =IF(data.s[[#This Row],[الإجمالي]]<7000,7000-data.s[[#This Row],[الإجمالي]],0) -> 5491.533833 | BE25: =IF(data.s[[#This Row],[حالة العمل]]="إيقاف",data.s[[#This Row],[أساسي 7/2025]],SUM(data.s[[#This Row],[رد مستحقات]:[مكمل الأجر]])) -> 7000 | BJ25: =ROUND(data.s[[#This Row],[تأمينات 2026]]/11%,2) -> 9180.34 | BK25: 1009.836976 | BM25: =(((data.s[[#This Row],[إجمالي المستحق]]+data.s[[#This Row],[عمولة انتاج]])-(data.s[[#This Row],[الحافز]]+data.s[[#This Row],[عمولة انتاج]]+data.s[[#This Row],[متوسط المنحة]]+data.s[[#This Row],[رد مستحقات]]+data.s[[#This Row],[بدل سهر]]+data.s[[#This Row],[الإضافي]]))/30)*data.s[[#This Row],[أيام الغياب]] -> 0 | BN25: =(((data.s[[#This Row],[إجمالي المستحق]]+data.s[[#This Row],[عمولة انتاج]])-(data.s[[#This Row],[الحافز]]+data.s[[#This Row],[عمولة انتاج]]+data.s[[#This Row],[متوسط المنحة]]+data.s[[#This Row],[رد مستحقات]]+data.s[[#This Row],[بدل سهر]]+data.s[[#This Row],[الإضافي]]))/30)*data.s[[#This Row],[أيام جزاء]] -> 0 | BO25: =IF(data.s[[#This Row],[أيام الغياب]]=1,data.s[[#This Row],[الحافز]]*20%,IF(data.s[[#This Row],[أيام الغياب]]=2,data.s[[#This Row],[الحافز]]*30%,IF(data.s[[#This Row],[أيام الغياب]]>2,data.s[[#This Row],[الحافز]]*100%,""))) ->  | BQ25: =IFERROR(IF(data.s[[#This Row],[أيام أجازات بعد السنوية]]<=2,data.s[[#This Row],[الحافز]]*0,IF(data.s[[#This Row],[أيام أجازات بعد السنوية]]=3,data.s[[#This Row],[الحافز]]*30%,IF(data.s[[#This Row],[أيام أجازات بعد السنوية]]=4,data.s[[#This Row],[الحافز]]*40%,IF(data.s[[#This Row],[أيام أجازات بعد السنوية]]=5,data.s[[#This Row],[الحافز]]*50%,IF(data.s[[#This Row],[أيام أجازات بعد السنوية]]>5,data.s[[#This Row],[الحافز]]*100%,""))))),"") -> 0 | BU25: 3 | BW25: 1910.94 | BX25: 1750 | CG25: =data.s[[#This Row],[مخالفات مرور]]+data.s[[#This Row],[سلفة]]+data.s[[#This Row],[تعويضات]]+data.s[[#This Row],[عجز]]+data.s[[#This Row],[تلفيات]]+data.s[[#This Row],[عهد]]+data.s[[#This Row],[سولار]] -> 1750 | CH25: 7.3 | CI25: 3 | CP25: 0 | CQ25: =data.s[[#This Row],[متوسط المنحة]] -> 71.37166667 | CR25: =IF(data.s[[#This Row],[التصنيف الادارى]]="سائق نقل",data.s[[#This Row],[إجمالي المستحق]]*5%,0) -> 350 | CS25: =IF($G25=data.s[[#Headers],[انقطاع]],$BE25-SUM(data.s[[#This Row],[تأمينات 2026]:[تنفيذ أحكام]],data.s[[#This Row],[الشهداء]:[خصم 5% تأمين من المستحق]],0),0) -> 0 | CT25: =IF($G25=CT$3,$BE25-SUM(data.s[[#This Row],[تأمينات 2026]:[تنفيذ أحكام]],data.s[[#This Row],[الشهداء]:[خصم 5% تأمين من المستحق]],0),0) -> 0 | CU25: =IF($G25=CU$3,$BE25-SUM(data.s[[#This Row],[تأمينات 2026]:[تنفيذ أحكام]],data.s[[#This Row],[الشهداء]:[خصم 5% تأمين من المستحق]],0),0) -> 0 | CV25: =IF($G25=data.s[[#Headers],[إعارة]],$BE25-SUM(data.s[[#This Row],[تأمينات 2026]:[تنفيذ أحكام]],data.s[[#This Row],[الشهداء]:[خصم 5% تأمين من المستحق]],0),0) -> 0 | CW25: =IF($G25=data.s[[#Headers],[انهاء]],$BE25-SUM(data.s[[#This Row],[تأمينات 2026]:[تنفيذ أحكام]],data.s[[#This Row],[الشهداء]:[خصم 5% تأمين من المستحق]],0),0) -> 0 | CX25: =IF($G25=data.s[[#Headers],[معاش]],$BE25-SUM(data.s[[#This Row],[تأمينات 2026]:[تنفيذ أحكام]],data.s[[#This Row],[الشهداء]:[خصم 5% تأمين من المستحق]],0),0) -> 0 | CY25: =SUM(data.s[[#This Row],[تأمينات 2026]:[تنفيذ أحكام]],data.s[[#This Row],[الشهداء]:[معاش]]) -> 5105.448643 | CZ25: =data.s[[#This Row],[إجمالي المستحق]]-data.s[[#This Row],[إجمالي المستقطع]] -> 1894.551357
B26: 302025 | C26: 44025 | D26: =VLOOKUP(data.s[[#This Row],[كود الشركة]],#REF!,MATCH(data.s[[#Headers],[التعامل المالي]],#REF!,0),FALSE) ->  | E26: عادل عباس على | H26: سائق نقل | I26: عقد مؤقت | L26: فرع الاميرية | M26: المنطقه المركزية | N26: =data.s[[#This Row],[كود الشركة]]&data.s[[#This Row],[كود البيرول]]&data.s[[#This Row],[التعامل المالي]]&data.s[[#This Row],[اسم الموظف]]&data.s[[#This Row],[الموظف المختص]]&data.s[[#This Row],[حالة العمل]]&data.s[[#This Row],[التصنيف الادارى]]&data.s[[#This Row],[الدرجة]] ->  | P26: =IF(data.s[[#This Row],[ترقية 7/2025]]<>"","نعم","") ->  | Q26: 410.26 | R26: 410.17 | T26: =IF(data.s[[#This Row],[الوظيفة]]="سائق ملاكي",data.s[[#This Row],[أساسي 7/2025]]*135%,0) -> 0 | U26: =IF(data.s[[#This Row],[الوظيفة]]="سائق ملاكي",data.s[[#This Row],[أساسي 7/2025]]*15%,"") ->  | Z26: =data.s[[#This Row],[أساسي 7/2025]]*15% -> 61.5255 | AE26: 0 | AF26: =IFERROR(VLOOKUP(data.s[[#This Row],[كود الشركة]:[كود الشركة]],#REF!,MATCH(data.s[[#Headers],[بدل تباع]],#REF!,0),FALSE),0) -> 0 | AG26: =SUM(data.s[[#This Row],[بدل مخاطر]:[بدل تفرغ]])-data.s[[#This Row],[بدل تمثيل]] -> 61.5255 | AS26: 934.08 | AW26: =SUM(data.s[[#This Row],[علاوة 2014]:[علاوة اجتماعية]]) -> 934.08 | AX26: 10 | AY26: =(data.s[[#This Row],[أساسي 7/2025]]*2)/12 -> 68.36166667 | BC26: =SUM(data.s[[#This Row],[أساسي 7/2025]:[حافز موانى]],data.s[[#This Row],[أومر الشغل للملاكي]],data.s[[#This Row],[إجمالي بدلات]],data.s[[#This Row],[إجمالي علاوات]:[متوسط المنحة]]) -> 1484.137167 | BD26: =IF(data.s[[#This Row],[الإجمالي]]<7000,7000-data.s[[#This Row],[الإجمالي]],0) -> 5515.862833 | BE26: =IF(data.s[[#This Row],[حالة العمل]]="إيقاف",data.s[[#This Row],[أساسي 7/2025]],SUM(data.s[[#This Row],[رد مستحقات]:[مكمل الأجر]])) -> 7000 | BJ26: =ROUND(data.s[[#This Row],[تأمينات 2026]]/11%,2) -> 7328.68 | BK26: 806.1550669 | BM26: =(((data.s[[#This Row],[إجمالي المستحق]]+data.s[[#This Row],[عمولة انتاج]])-(data.s[[#This Row],[الحافز]]+data.s[[#This Row],[عمولة انتاج]]+data.s[[#This Row],[متوسط المنحة]]+data.s[[#This Row],[رد مستحقات]]+data.s[[#This Row],[بدل سهر]]+data.s[[#This Row],[الإضافي]]))/30)*data.s[[#This Row],[أيام الغياب]] -> 0 | BN26: =(((data.s[[#This Row],[إجمالي المستحق]]+data.s[[#This Row],[عمولة انتاج]])-(data.s[[#This Row],[الحافز]]+data.s[[#This Row],[عمولة انتاج]]+data.s[[#This Row],[متوسط المنحة]]+data.s[[#This Row],[رد مستحقات]]+data.s[[#This Row],[بدل سهر]]+data.s[[#This Row],[الإضافي]]))/30)*data.s[[#This Row],[أيام جزاء]] -> 0 | BO26: =IF(data.s[[#This Row],[أيام الغياب]]=1,data.s[[#This Row],[الحافز]]*20%,IF(data.s[[#This Row],[أيام الغياب]]=2,data.s[[#This Row],[الحافز]]*30%,IF(data.s[[#This Row],[أيام الغياب]]>2,data.s[[#This Row],[الحافز]]*100%,""))) ->  | BQ26: =IFERROR(IF(data.s[[#This Row],[أيام أجازات بعد السنوية]]<=2,data.s[[#This Row],[الحافز]]*0,IF(data.s[[#This Row],[أيام أجازات بعد السنوية]]=3,data.s[[#This Row],[الحافز]]*30%,IF(data.s[[#This Row],[أيام أجازات بعد السنوية]]=4,data.s[[#This Row],[الحافز]]*40%,IF(data.s[[#This Row],[أيام أجازات بعد السنوية]]=5,data.s[[#This Row],[الحافز]]*50%,IF(data.s[[#This Row],[أيام أجازات بعد السنوية]]>5,data.s[[#This Row],[الحافز]]*100%,""))))),"") -> 0 | BU26: 3 | CG26: =data.s[[#This Row],[مخالفات مرور]]+data.s[[#This Row],[سلفة]]+data.s[[#This Row],[تعويضات]]+data.s[[#This Row],[عجز]]+data.s[[#This Row],[تلفيات]]+data.s[[#This Row],[عهد]]+data.s[[#This Row],[سولار]] -> 0 | CH26: 7.82 | CI26: 3 | CP26: 0 | CQ26: =data.s[[#This Row],[متوسط المنحة]] -> 68.36166667 | CR26: =IF(data.s[[#This Row],[التصنيف الادارى]]="سائق نقل",data.s[[#This Row],[إجمالي المستحق]]*5%,0) -> 350 | CS26: =IF($G26=data.s[[#Headers],[انقطاع]],$BE26-SUM(data.s[[#This Row],[تأمينات 2026]:[تنفيذ أحكام]],data.s[[#This Row],[الشهداء]:[خصم 5% تأمين من المستحق]],0),0) -> 0 | CT26: =IF($G26=CT$3,$BE26-SUM(data.s[[#This Row],[تأمينات 2026]:[تنفيذ أحكام]],data.s[[#This Row],[الشهداء]:[خصم 5% تأمين من المستحق]],0),0) -> 0 | CU26: =IF($G26=CU$3,$BE26-SUM(data.s[[#This Row],[تأمينات 2026]:[تنفيذ أحكام]],data.s[[#This Row],[الشهداء]:[خصم 5% تأمين من المستحق]],0),0) -> 0 | CV26: =IF($G26=data.s[[#Headers],[إعارة]],$BE26-SUM(data.s[[#This Row],[تأمينات 2026]:[تنفيذ أحكام]],data.s[[#This Row],[الشهداء]:[خصم 5% تأمين من المستحق]],0),0) -> 0 | CW26: =IF($G26=data.s[[#Headers],[انهاء]],$BE26-SUM(data.s[[#This Row],[تأمينات 2026]:[تنفيذ أحكام]],data.s[[#This Row],[الشهداء]:[خصم 5% تأمين من المستحق]],0),0) -> 0 | CX26: =IF($G26=data.s[[#Headers],[معاش]],$BE26-SUM(data.s[[#This Row],[تأمينات 2026]:[تنفيذ أحكام]],data.s[[#This Row],[الشهداء]:[خصم 5% تأمين من المستحق]],0),0) -> 0 | CY26: =SUM(data.s[[#This Row],[تأمينات 2026]:[تنفيذ أحكام]],data.s[[#This Row],[الشهداء]:[معاش]]) -> 1238.336734 | CZ26: =data.s[[#This Row],[إجمالي المستحق]]-data.s[[#This Row],[إجمالي المستقطع]] -> 5761.663266
B27: 302026 | C27: 33104 | D27: =VLOOKUP(data.s[[#This Row],[كود الشركة]],#REF!,MATCH(data.s[[#Headers],[التعامل المالي]],#REF!,0),FALSE) ->  | E27: يوسف صلاح احمد محمود | H27: سائق نقل | I27: الثانية | J27: الثانية | K27: سائق نقل | L27: فرع الزقازيق | M27: المنطقه الشرقيه | N27: =data.s[[#This Row],[كود الشركة]]&data.s[[#This Row],[كود البيرول]]&data.s[[#This Row],[التعامل المالي]]&data.s[[#This Row],[اسم الموظف]]&data.s[[#This Row],[الموظف المختص]]&data.s[[#This Row],[حالة العمل]]&data.s[[#This Row],[التصنيف الادارى]]&data.s[[#This Row],[الدرجة]] ->  | P27: =IF(data.s[[#This Row],[ترقية 7/2025]]<>"","نعم","") -> نعم | Q27: 1624.02 | R27: 1900.1034 | T27: =IF(data.s[[#This Row],[الوظيفة]]="سائق ملاكي",data.s[[#This Row],[أساسي 7/2025]]*135%,0) -> 0 | U27: =IF(data.s[[#This Row],[الوظيفة]]="سائق ملاكي",data.s[[#This Row],[أساسي 7/2025]]*15%,"") ->  | Z27: =data.s[[#This Row],[أساسي 7/2025]]*15% -> 285.01551 | AF27: =IFERROR(VLOOKUP(data.s[[#This Row],[كود الشركة]:[كود الشركة]],#REF!,MATCH(data.s[[#Headers],[بدل تباع]],#REF!,0),FALSE),0) -> 0 | AG27: =SUM(data.s[[#This Row],[بدل مخاطر]:[بدل تفرغ]])-data.s[[#This Row],[بدل تمثيل]] -> 285.01551 | AH27: 57.76 | AI27: 64.38 | AJ27: 76.62 | AL27: 190 | AM27: 32.46 | AN27: 57.89 | AO27: 74.34 | AP27: 106.06 | AQ27: 113.48 | AR27: 121.42 | AS27: 0 | AT27: 81.201 | AU27: 600 | AV27: 10 | AW27: =SUM(data.s[[#This Row],[علاوة 2014]:[علاوة اجتماعية]]) -> 1585.611 | AX27: 10 | AY27: =(data.s[[#This Row],[أساسي 7/2025]]*2)/12 -> 316.6839 | BC27: =SUM(data.s[[#This Row],[أساسي 7/2025]:[حافز موانى]],data.s[[#This Row],[أومر الشغل للملاكي]],data.s[[#This Row],[إجمالي بدلات]],data.s[[#This Row],[إجمالي علاوات]:[متوسط المنحة]]) -> 4097.41381 | BD27: =IF(data.s[[#This Row],[الإجمالي]]<7000,7000-data.s[[#This Row],[الإجمالي]],0) -> 2902.58619 | BE27: =IF(data.s[[#This Row],[حالة العمل]]="إيقاف",data.s[[#This Row],[أساسي 7/2025]],SUM(data.s[[#This Row],[رد مستحقات]:[مكمل الأجر]])) -> 7000 | BI27: 1 | BJ27: =ROUND(data.s[[#This Row],[تأمينات 2026]]/11%,2) -> 11499.52 | BK27: 1264.946949 | BM27: =(((data.s[[#This Row],[إجمالي المستحق]]+data.s[[#This Row],[عمولة انتاج]])-(data.s[[#This Row],[الحافز]]+data.s[[#This Row],[عمولة انتاج]]+data.s[[#This Row],[متوسط المنحة]]+data.s[[#This Row],[رد مستحقات]]+data.s[[#This Row],[بدل سهر]]+data.s[[#This Row],[الإضافي]]))/30)*data.s[[#This Row],[أيام الغياب]] -> 0 | BN27: =(((data.s[[#This Row],[إجمالي المستحق]]+data.s[[#This Row],[عمولة انتاج]])-(data.s[[#This Row],[الحافز]]+data.s[[#This Row],[عمولة انتاج]]+data.s[[#This Row],[متوسط المنحة]]+data.s[[#This Row],[رد مستحقات]]+data.s[[#This Row],[بدل سهر]]+data.s[[#This Row],[الإضافي]]))/30)*data.s[[#This Row],[أيام جزاء]] -> 222.7772033 | BO27: =IF(data.s[[#This Row],[أيام الغياب]]=1,data.s[[#This Row],[الحافز]]*20%,IF(data.s[[#This Row],[أيام الغياب]]=2,data.s[[#This Row],[الحافز]]*30%,IF(data.s[[#This Row],[أيام الغياب]]>2,data.s[[#This Row],[الحافز]]*100%,""))) ->  | BQ27: =IFERROR(IF(data.s[[#This Row],[أيام أجازات بعد السنوية]]<=2,data.s[[#This Row],[الحافز]]*0,IF(data.s[[#This Row],[أيام أجازات بعد السنوية]]=3,data.s[[#This Row],[الحافز]]*30%,IF(data.s[[#This Row],[أيام أجازات بعد السنوية]]=4,data.s[[#This Row],[الحافز]]*40%,IF(data.s[[#This Row],[أيام أجازات بعد السنوية]]=5,data.s[[#This Row],[الحافز]]*50%,IF(data.s[[#This Row],[أيام أجازات بعد السنوية]]>5,data.s[[#This Row],[الحافز]]*100%,""))))),"") -> 0 | BR27: 0 | BU27: 3 | BV27: 0 | BW27: 588.57 | BX27: 1750 | CG27: =data.s[[#This Row],[مخالفات مرور]]+data.s[[#This Row],[سلفة]]+data.s[[#This Row],[تعويضات]]+data.s[[#This Row],[عجز]]+data.s[[#This Row],[تلفيات]]+data.s[[#This Row],[عهد]]+data.s[[#This Row],[سولار]] -> 1750 | CH27: 5.79 | CI27: 3 | CL27: 0 | CM27: 0 | CP27: 0 | CQ27: =data.s[[#This Row],[متوسط المنحة]] -> 316.6839 | CR27: =IF(data.s[[#This Row],[التصنيف الادارى]]="سائق نقل",data.s[[#This Row],[إجمالي المستحق]]*5%,0) -> 350 | CS27: =IF($G27=data.s[[#Headers],[انقطاع]],$BE27-SUM(data.s[[#This Row],[تأمينات 2026]:[تنفيذ أحكام]],data.s[[#This Row],[الشهداء]:[خصم 5% تأمين من المستحق]],0),0) -> 0 | CT27: =IF($G27=CT$3,$BE27-SUM(data.s[[#This Row],[تأمينات 2026]:[تنفيذ أحكام]],data.s[[#This Row],[الشهداء]:[خصم 5% تأمين من المستحق]],0),0) -> 0 | CU27: =IF($G27=CU$3,$BE27-SUM(data.s[[#This Row],[تأمينات 2026]:[تنفيذ أحكام]],data.s[[#This Row],[الشهداء]:[خصم 5% تأمين من المستحق]],0),0) -> 0 | CV27: =IF($G27=data.s[[#Headers],[إعارة]],$BE27-SUM(data.s[[#This Row],[تأمينات 2026]:[تنفيذ أحكام]],data.s[[#This Row],[الشهداء]:[خصم 5% تأمين من المستحق]],0),0) -> 0 | CW27: =IF($G27=data.s[[#Headers],[انهاء]],$BE27-SUM(data.s[[#This Row],[تأمينات 2026]:[تنفيذ أحكام]],data.s[[#This Row],[الشهداء]:[خصم 5% تأمين من المستحق]],0),0) -> 0 | CX27: =IF($G27=data.s[[#Headers],[معاش]],$BE27-SUM(data.s[[#This Row],[تأمينات 2026]:[تنفيذ أحكام]],data.s[[#This Row],[الشهداء]:[خصم 5% تأمين من المستحق]],0),0) -> 0 | CY27: =SUM(data.s[[#This Row],[تأمينات 2026]:[تنفيذ أحكام]],data.s[[#This Row],[الشهداء]:[معاش]]) -> 4504.768053 | CZ27: =data.s[[#This Row],[إجمالي المستحق]]-data.s[[#This Row],[إجمالي المستقطع]] -> 2495.231947
B28: 302027 | C28: 33285 | D28: =VLOOKUP(data.s[[#This Row],[كود الشركة]],#REF!,MATCH(data.s[[#Headers],[التعامل المالي]],#REF!,0),FALSE) ->  | E28: محمد صالح زيدان عبد السلام | H28: سائق نقل | I28: عقد مؤقت | L28: فرع سفاجا | M28: المنطقه الجنوبية | N28: =data.s[[#This Row],[كود الشركة]]&data.s[[#This Row],[كود البيرول]]&data.s[[#This Row],[التعامل المالي]]&data.s[[#This Row],[اسم الموظف]]&data.s[[#This Row],[الموظف المختص]]&data.s[[#This Row],[حالة العمل]]&data.s[[#This Row],[التصنيف الادارى]]&data.s[[#This Row],[الدرجة]] ->  | P28: =IF(data.s[[#This Row],[ترقية 7/2025]]<>"","نعم","") ->  | Q28: 428.23 | R28: 428.23 | T28: =IF(data.s[[#This Row],[الوظيفة]]="سائق ملاكي",data.s[[#This Row],[أساسي 7/2025]]*135%,0) -> 0 | U28: =IF(data.s[[#This Row],[الوظيفة]]="سائق ملاكي",data.s[[#This Row],[أساسي 7/2025]]*15%,"") ->  | Z28: =data.s[[#This Row],[أساسي 7/2025]]*15% -> 64.2345 | AF28: =IFERROR(VLOOKUP(data.s[[#This Row],[كود الشركة]:[كود الشركة]],#REF!,MATCH(data.s[[#Headers],[بدل تباع]],#REF!,0),FALSE),0) -> 0 | AG28: =SUM(data.s[[#This Row],[بدل مخاطر]:[بدل تفرغ]])-data.s[[#This Row],[بدل تمثيل]] -> 64.2345 | AH28: 30.03 | AI28: 31.61 | AJ28: 65 | AL28: 200 | AM28: 75 | AN28: 75 | AO28: 0 | AP28: 0 | AQ28: 0 | AR28: 0 | AS28: 0 | AU28: 600 | AV28: 10 | AW28: =SUM(data.s[[#This Row],[علاوة 2014]:[علاوة اجتماعية]]) -> 1086.64 | AX28: 10 | AY28: =(data.s[[#This Row],[أساسي 7/2025]]*2)/12 -> 71.37166667 | BC28: =SUM(data.s[[#This Row],[أساسي 7/2025]:[حافز موانى]],data.s[[#This Row],[أومر الشغل للملاكي]],data.s[[#This Row],[إجمالي بدلات]],data.s[[#This Row],[إجمالي علاوات]:[متوسط المنحة]]) -> 1660.476167 | BD28: =IF(data.s[[#This Row],[الإجمالي]]<7000,7000-data.s[[#This Row],[الإجمالي]],0) -> 5339.523833 | BE28: =IF(data.s[[#This Row],[حالة العمل]]="إيقاف",data.s[[#This Row],[أساسي 7/2025]],SUM(data.s[[#This Row],[رد مستحقات]:[مكمل الأجر]])) -> 7000 | BJ28: =ROUND(data.s[[#This Row],[تأمينات 2026]]/11%,2) -> 11072.87 | BK28: 1218.015166 | BM28: =(((data.s[[#This Row],[إجمالي المستحق]]+data.s[[#This Row],[عمولة انتاج]])-(data.s[[#This Row],[الحافز]]+data.s[[#This Row],[عمولة انتاج]]+data.s[[#This Row],[متوسط المنحة]]+data.s[[#This Row],[رد مستحقات]]+data.s[[#This Row],[بدل سهر]]+data.s[[#This Row],[الإضافي]]))/30)*data.s[[#This Row],[أيام الغياب]] -> 0 | BN28: =(((data.s[[#This Row],[إجمالي المستحق]]+data.s[[#This Row],[عمولة انتاج]])-(data.s[[#This Row],[الحافز]]+data.s[[#This Row],[عمولة انتاج]]+data.s[[#This Row],[متوسط المنحة]]+data.s[[#This Row],[رد مستحقات]]+data.s[[#This Row],[بدل سهر]]+data.s[[#This Row],[الإضافي]]))/30)*data.s[[#This Row],[أيام جزاء]] -> 0 | BO28: =IF(data.s[[#This Row],[أيام الغياب]]=1,data.s[[#This Row],[الحافز]]*20%,IF(data.s[[#This Row],[أيام الغياب]]=2,data.s[[#This Row],[الحافز]]*30%,IF(data.s[[#This Row],[أيام الغياب]]>2,data.s[[#This Row],[الحافز]]*100%,""))) ->  | BQ28: =IFERROR(IF(data.s[[#This Row],[أيام أجازات بعد السنوية]]<=2,data.s[[#This Row],[الحافز]]*0,IF(data.s[[#This Row],[أيام أجازات بعد السنوية]]=3,data.s[[#This Row],[الحافز]]*30%,IF(data.s[[#This Row],[أيام أجازات بعد السنوية]]=4,data.s[[#This Row],[الحافز]]*40%,IF(data.s[[#This Row],[أيام أجازات بعد السنوية]]=5,data.s[[#This Row],[الحافز]]*50%,IF(data.s[[#This Row],[أيام أجازات بعد السنوية]]>5,data.s[[#This Row],[الحافز]]*100%,""))))),"") -> 0 | BR28: 0 | BU28: 3 | BV28: 0 | BX28: 750 | BY28: 1000 | CG28: =data.s[[#This Row],[مخالفات مرور]]+data.s[[#This Row],[سلفة]]+data.s[[#This Row],[تعويضات]]+data.s[[#This Row],[عجز]]+data.s[[#This Row],[تلفيات]]+data.s[[#This Row],[عهد]]+data.s[[#This Row],[سولار]] -> 1750 | CH28: 9.59 | CI28: 3 | CL28: 0 | CM28: 0 | CP28: 0 | CQ28: =data.s[[#This Row],[متوسط المنحة]] -> 71.37166667 | CR28: =IF(data.s[[#This Row],[التصنيف الادارى]]="سائق نقل",data.s[[#This Row],[إجمالي المستحق]]*5%,0) -> 350 | CS28: =IF($G28=data.s[[#Headers],[انقطاع]],$BE28-SUM(data.s[[#This Row],[تأمينات 2026]:[تنفيذ أحكام]],data.s[[#This Row],[الشهداء]:[خصم 5% تأمين من المستحق]],0),0) -> 0 | CT28: =IF($G28=CT$3,$BE28-SUM(data.s[[#This Row],[تأمينات 2026]:[تنفيذ أحكام]],data.s[[#This Row],[الشهداء]:[خصم 5% تأمين من المستحق]],0),0) -> 0 | CU28: =IF($G28=CU$3,$BE28-SUM(data.s[[#This Row],[تأمينات 2026]:[تنفيذ أحكام]],data.s[[#This Row],[الشهداء]:[خصم 5% تأمين من المستحق]],0),0) -> 0 | CV28: =IF($G28=data.s[[#Headers],[إعارة]],$BE28-SUM(data.s[[#This Row],[تأمينات 2026]:[تنفيذ أحكام]],data.s[[#This Row],[الشهداء]:[خصم 5% تأمين من المستحق]],0),0) -> 0 | CW28: =IF($G28=data.s[[#Headers],[انهاء]],$BE28-SUM(data.s[[#This Row],[تأمينات 2026]:[تنفيذ أحكام]],data.s[[#This Row],[الشهداء]:[خصم 5% تأمين من المستحق]],0),0) -> 0 | CX28: =IF($G28=data.s[[#Headers],[معاش]],$BE28-SUM(data.s[[#This Row],[تأمينات 2026]:[تنفيذ أحكام]],data.s[[#This Row],[الشهداء]:[خصم 5% تأمين من المستحق]],0),0) -> 0 | CY28: =SUM(data.s[[#This Row],[تأمينات 2026]:[تنفيذ أحكام]],data.s[[#This Row],[الشهداء]:[معاش]]) -> 3404.976833 | CZ28: =data.s[[#This Row],[إجمالي المستحق]]-data.s[[#This Row],[إجمالي المستقطع]] -> 3595.023167
B29: 302028 | C29: 33286 | D29: =VLOOKUP(data.s[[#This Row],[كود الشركة]],#REF!,MATCH(data.s[[#Headers],[التعامل المالي]],#REF!,0),FALSE) ->  | E29: محمود صالح زيدان عبد السلام | H29: سائق نقل | I29: عقد مؤقت | L29: فرع سفاجا | M29: المنطقه الجنوبية | N29: =data.s[[#This Row],[كود الشركة]]&data.s[[#This Row],[كود البيرول]]&data.s[[#This Row],[التعامل المالي]]&data.s[[#This Row],[اسم الموظف]]&data.s[[#This Row],[الموظف المختص]]&data.s[[#This Row],[حالة العمل]]&data.s[[#This Row],[التصنيف الادارى]]&data.s[[#This Row],[الدرجة]] ->  | P29: =IF(data.s[[#This Row],[ترقية 7/2025]]<>"","نعم","") ->  | Q29: 410.25 | R29: 410.25 | T29: =IF(data.s[[#This Row],[الوظيفة]]="سائق ملاكي",data.s[[#This Row],[أساسي 7/2025]]*135%,0) -> 0 | U29: =IF(data.s[[#This Row],[الوظيفة]]="سائق ملاكي",data.s[[#This Row],[أساسي 7/2025]]*15%,"") ->  | Z29: =data.s[[#This Row],[أساسي 7/2025]]*15% -> 61.5375 | AF29: =IFERROR(VLOOKUP(data.s[[#This Row],[كود الشركة]:[كود الشركة]],#REF!,MATCH(data.s[[#Headers],[بدل تباع]],#REF!,0),FALSE),0) -> 0 | AG29: =SUM(data.s[[#This Row],[بدل مخاطر]:[بدل تفرغ]])-data.s[[#This Row],[بدل تمثيل]] -> 61.5375 | AH29: 30.03 | AI29: 31.61 | AJ29: 65 | AL29: 200 | AM29: 75 | AN29: 75 | AO29: 0 | AP29: 0 | AQ29: 0 | AR29: 0 | AS29: 0 | AU29: 600 | AV29: 10 | AW29: =SUM(data.s[[#This Row],[علاوة 2014]:[علاوة اجتماعية]]) -> 1086.64 | AX29: 10 | AY29: =(data.s[[#This Row],[أساسي 7/2025]]*2)/12 -> 68.375 | AZ29: 12.41 | BC29: =SUM(data.s[[#This Row],[أساسي 7/2025]:[حافز موانى]],data.s[[#This Row],[أومر الشغل للملاكي]],data.s[[#This Row],[إجمالي بدلات]],data.s[[#This Row],[إجمالي علاوات]:[متوسط المنحة]]) -> 1636.8025 | BD29: =IF(data.s[[#This Row],[الإجمالي]]<7000,7000-data.s[[#This Row],[الإجمالي]],0) -> 5363.1975 | BE29: =IF(data.s[[#This Row],[حالة العمل]]="إيقاف",data.s[[#This Row],[أساسي 7/2025]],SUM(data.s[[#This Row],[رد مستحقات]:[مكمل الأجر]])) -> 7012.41 | BJ29: =ROUND(data.s[[#This Row],[تأمينات 2026]]/11%,2) -> 9810.64 | BK29: 1079.170156 | BM29: =(((data.s[[#This Row],[إجمالي المستحق]]+data.s[[#This Row],[عمولة انتاج]])-(data.s[[#This Row],[الحافز]]+data.s[[#This Row],[عمولة انتاج]]+data.s[[#This Row],[متوسط المنحة]]+data.s[[#This Row],[رد مستحقات]]+data.s[[#This Row],[بدل سهر]]+data.s[[#This Row],[الإضافي]]))/30)*data.s[[#This Row],[أيام الغياب]] -> 0 | BN29: =(((data.s[[#This Row],[إجمالي المستحق]]+data.s[[#This Row],[عمولة انتاج]])-(data.s[[#This Row],[الحافز]]+data.s[[#This Row],[عمولة انتاج]]+data.s[[#This Row],[متوسط المنحة]]+data.s[[#This Row],[رد مستحقات]]+data.s[[#This Row],[بدل سهر]]+data.s[[#This Row],[الإضافي]]))/30)*data.s[[#This Row],[أيام جزاء]] -> 0 | BO29: =IF(data.s[[#This Row],[أيام الغياب]]=1,data.s[[#This Row],[الحافز]]*20%,IF(data.s[[#This Row],[أيام الغياب]]=2,data.s[[#This Row],[الحافز]]*30%,IF(data.s[[#This Row],[أيام الغياب]]>2,data.s[[#This Row],[الحافز]]*100%,""))) ->  | BQ29: =IFERROR(IF(data.s[[#This Row],[أيام أجازات بعد السنوية]]<=2,data.s[[#This Row],[الحافز]]*0,IF(data.s[[#This Row],[أيام أجازات بعد السنوية]]=3,data.s[[#This Row],[الحافز]]*30%,IF(data.s[[#This Row],[أيام أجازات بعد السنوية]]=4,data.s[[#This Row],[الحافز]]*40%,IF(data.s[[#This Row],[أيام أجازات بعد السنوية]]=5,data.s[[#This Row],[الحافز]]*50%,IF(data.s[[#This Row],[أيام أجازات بعد السنوية]]>5,data.s[[#This Row],[الحافز]]*100%,""))))),"") -> 0 | BR29: 0 | BU29: 3 | BV29: 0 | BX29: 750 | BY29: 381 | BZ29: 619 | CG29: =data.s[[#This Row],[مخالفات مرور]]+data.s[[#This Row],[سلفة]]+data.s[[#This Row],[تعويضات]]+data.s[[#This Row],[عجز]]+data.s[[#This Row],[تلفيات]]+data.s[[#This Row],[عهد]]+data.s[[#This Row],[سولار]] -> 1750 | CH29: 22.32 | CI29: 3 | CL29: 0 | CM29: 0 | CP29: 0 | CQ29: =data.s[[#This Row],[متوسط المنحة]] -> 68.375 | CR29: =IF(data.s[[#This Row],[التصنيف الادارى]]="سائق نقل",data.s[[#This Row],[إجمالي المستحق]]*5%,0) -> 350.6205 | CS29: =IF($G29=data.s[[#Headers],[انقطاع]],$BE29-SUM(data.s[[#This Row],[تأمينات 2026]:[تنفيذ أحكام]],data.s[[#This Row],[الشهداء]:[خصم 5% تأمين من المستحق]],0),0) -> 0 | CT29: =IF($G29=CT$3,$BE29-SUM(data.s[[#This Row],[تأمينات 2026]:[تنفيذ أحكام]],data.s[[#This Row],[الشهداء]:[خصم 5% تأمين من المستحق]],0),0) -> 0 | CU29: =IF($G29=CU$3,$BE29-SUM(data.s[[#This Row],[تأمينات 2026]:[تنفيذ أحكام]],data.s[[#This Row],[الشهداء]:[خصم 5% تأمين من المستحق]],0),0) -> 0 | CV29: =IF($G29=data.s[[#Headers],[إعارة]],$BE29-SUM(data.s[[#This Row],[تأمينات 2026]:[تنفيذ أحكام]],data.s[[#This Row],[الشهداء]:[خصم 5% تأمين من المستحق]],0),0) -> 0 | CW29: =IF($G29=data.s[[#Headers],[انهاء]],$BE29-SUM(data.s[[#This Row],[تأمينات 2026]:[تنفيذ أحكام]],data.s[[#This Row],[الشهداء]:[خصم 5% تأمين من المستحق]],0),0) -> 0 | CX29: =IF($G29=data.s[[#Headers],[معاش]],$BE29-SUM(data.s[[#This Row],[تأمينات 2026]:[تنفيذ أحكام]],data.s[[#This Row],[الشهداء]:[خصم 5% تأمين من المستحق]],0),0) -> 0 | CY29: =SUM(data.s[[#This Row],[تأمينات 2026]:[تنفيذ أحكام]],data.s[[#This Row],[الشهداء]:[معاش]]) -> 3276.485656 | CZ29: =data.s[[#This Row],[إجمالي المستحق]]-data.s[[#This Row],[إجمالي المستقطع]] -> 3735.924344
B30: 302029 | C30: 33283 | D30: =VLOOKUP(data.s[[#This Row],[كود الشركة]],#REF!,MATCH(data.s[[#Headers],[التعامل المالي]],#REF!,0),FALSE) ->  | E30: عبد الرحيم عمر ابراهيم احمد | H30: سائق نقل | I30: عقد مؤقت | L30: فرع قنا | M30: المنطقه الجنوبية | N30: =data.s[[#This Row],[كود الشركة]]&data.s[[#This Row],[كود البيرول]]&data.s[[#This Row],[التعامل المالي]]&data.s[[#This Row],[اسم الموظف]]&data.s[[#This Row],[الموظف المختص]]&data.s[[#This Row],[حالة العمل]]&data.s[[#This Row],[التصنيف الادارى]]&data.s[[#This Row],[الدرجة]] ->  | P30: =IF(data.s[[#This Row],[ترقية 7/2025]]<>"","نعم","") ->  | Q30: 428.23 | R30: 428.23 | T30: =IF(data.s[[#This Row],[الوظيفة]]="سائق ملاكي",data.s[[#This Row],[أساسي 7/2025]]*135%,0) -> 0 | U30: =IF(data.s[[#This Row],[الوظيفة]]="سائق ملاكي",data.s[[#This Row],[أساسي 7/2025]]*15%,"") ->  | Z30: =data.s[[#This Row],[أساسي 7/2025]]*15% -> 64.2345 | AF30: =IFERROR(VLOOKUP(data.s[[#This Row],[كود الشركة]:[كود الشركة]],#REF!,MATCH(data.s[[#Headers],[بدل تباع]],#REF!,0),FALSE),0) -> 0 | AG30: =SUM(data.s[[#This Row],[بدل مخاطر]:[بدل تفرغ]])-data.s[[#This Row],[بدل تمثيل]] -> 64.2345 | AH30: 30.03 | AI30: 31.61 | AJ30: 65 | AL30: 200 | AM30: 75 | AN30: 75 | AO30: 0 | AP30: 0 | AQ30: 0 | AR30: 0 | AS30: 0 | AU30: 600 | AV30: 4 | AW30: =SUM(data.s[[#This Row],[علاوة 2014]:[علاوة اجتماعية]]) -> 1080.64 | AX30: 10 | AY30: =(data.s[[#This Row],[أساسي 7/2025]]*2)/12 -> 71.37166667 | BC30: =SUM(data.s[[#This Row],[أساسي 7/2025]:[حافز موانى]],data.s[[#This Row],[أومر الشغل للملاكي]],data.s[[#This Row],[إجمالي بدلات]],data.s[[#This Row],[إجمالي علاوات]:[متوسط المنحة]]) -> 1654.476167 | BD30: =IF(data.s[[#This Row],[الإجمالي]]<7000,7000-data.s[[#This Row],[الإجمالي]],0) -> 5345.523833 | BE30: =IF(data.s[[#This Row],[حالة العمل]]="إيقاف",data.s[[#This Row],[أساسي 7/2025]],SUM(data.s[[#This Row],[رد مستحقات]:[مكمل الأجر]])) -> 7000 | BJ30: =ROUND(data.s[[#This Row],[تأمينات 2026]]/11%,2) -> 9973.48 | BK30: 1097.082358 | BM30: =(((data.s[[#This Row],[إجمالي المستحق]]+data.s[[#This Row],[عمولة انتاج]])-(data.s[[#This Row],[الحافز]]+data.s[[#This Row],[عمولة انتاج]]+data.s[[#This Row],[متوسط المنحة]]+data.s[[#This Row],[رد مستحقات]]+data.s[[#This Row],[بدل سهر]]+data.s[[#This Row],[الإضافي]]))/30)*data.s[[#This Row],[أيام الغياب]] -> 0 | BN30: =(((data.s[[#This Row],[إجمالي المستحق]]+data.s[[#This Row],[عمولة انتاج]])-(data.s[[#This Row],[الحافز]]+data.s[[#This Row],[عمولة انتاج]]+data.s[[#This Row],[متوسط المنحة]]+data.s[[#This Row],[رد مستحقات]]+data.s[[#This Row],[بدل سهر]]+data.s[[#This Row],[الإضافي]]))/30)*data.s[[#This Row],[أيام جزاء]] -> 0 | BO30: =IF(data.s[[#This Row],[أيام الغياب]]=1,data.s[[#This Row],[الحافز]]*20%,IF(data.s[[#This Row],[أيام الغياب]]=2,data.s[[#This Row],[الحافز]]*30%,IF(data.s[[#This Row],[أيام الغياب]]>2,data.s[[#This Row],[الحافز]]*100%,""))) ->  | BQ30: =IFERROR(IF(data.s[[#This Row],[أيام أجازات بعد السنوية]]<=2,data.s[[#This Row],[الحافز]]*0,IF(data.s[[#This Row],[أيام أجازات بعد السنوية]]=3,data.s[[#This Row],[الحافز]]*30%,IF(data.s[[#This Row],[أيام أجازات بعد السنوية]]=4,data.s[[#This Row],[الحافز]]*40%,IF(data.s[[#This Row],[أيام أجازات بعد السنوية]]=5,data.s[[#This Row],[الحافز]]*50%,IF(data.s[[#This Row],[أيام أجازات بعد السنوية]]>5,data.s[[#This Row],[الحافز]]*100%,""))))),"") -> 0 | BR30: 0 | BU30: 3 | BV30: 0 | BX30: 1750 | CG30: =data.s[[#This Row],[مخالفات مرور]]+data.s[[#This Row],[سلفة]]+data.s[[#This Row],[تعويضات]]+data.s[[#This Row],[عجز]]+data.s[[#This Row],[تلفيات]]+data.s[[#This Row],[عهد]]+data.s[[#This Row],[سولار]] -> 1750 | CH30: 9.11 | CI30: 3 | CL30: 0 | CM30: 0 | CP30: 0 | CQ30: =data.s[[#This Row],[متوسط المنحة]] -> 71.37166667 | CR30: =IF(data.s[[#This Row],[التصنيف الادارى]]="سائق نقل",data.s[[#This Row],[إجمالي المستحق]]*5%,0) -> 350 | CS30: =IF($G30=data.s[[#Headers],[انقطاع]],$BE30-SUM(data.s[[#This Row],[تأمينات 2026]:[تنفيذ أحكام]],data.s[[#This Row],[الشهداء]:[خصم 5% تأمين من المستحق]],0),0) -> 0 | CT30: =IF($G30=CT$3,$BE30-SUM(data.s[[#This Row],[تأمينات 2026]:[تنفيذ أحكام]],data.s[[#This Row],[الشهداء]:[خصم 5% تأمين من المستحق]],0),0) -> 0 | CU30: =IF($G30=CU$3,$BE30-SUM(data.s[[#This Row],[تأمينات 2026]:[تنفيذ أحكام]],data.s[[#This Row],[الشهداء]:[خصم 5% تأمين من المستحق]],0),0) -> 0 | CV30: =IF($G30=data.s[[#Headers],[إعارة]],$BE30-SUM(data.s[[#This Row],[تأمينات 2026]:[تنفيذ أحكام]],data.s[[#This Row],[الشهداء]:[خصم 5% تأمين من المستحق]],0),0) -> 0 | CW30: =IF($G30=data.s[[#Headers],[انهاء]],$BE30-SUM(data.s[[#This Row],[تأمينات 2026]:[تنفيذ أحكام]],data.s[[#This Row],[الشهداء]:[خصم 5% تأمين من المستحق]],0),0) -> 0 | CX30: =IF($G30=data.s[[#Headers],[معاش]],$BE30-SUM(data.s[[#This Row],[تأمينات 2026]:[تنفيذ أحكام]],data.s[[#This Row],[الشهداء]:[خصم 5% تأمين من المستحق]],0),0) -> 0 | CY30: =SUM(data.s[[#This Row],[تأمينات 2026]:[تنفيذ أحكام]],data.s[[#This Row],[الشهداء]:[معاش]]) -> 3283.564025 | CZ30: =data.s[[#This Row],[إجمالي المستحق]]-data.s[[#This Row],[إجمالي المستقطع]] -> 3716.435975
B31: 302030 | C31: 33222 | D31: =VLOOKUP(data.s[[#This Row],[كود الشركة]],#REF!,MATCH(data.s[[#Headers],[التعامل المالي]],#REF!,0),FALSE) ->  | E31: محمد عبد النبي عبد الله فرحات | H31: سائق نقل | I31: الثالثة | J31: الثالثة | K31: سائق نقل | L31: فرع الاميرية | M31: المنطقه المركزية | N31: =data.s[[#This Row],[كود الشركة]]&data.s[[#This Row],[كود البيرول]]&data.s[[#This Row],[التعامل المالي]]&data.s[[#This Row],[اسم الموظف]]&data.s[[#This Row],[الموظف المختص]]&data.s[[#This Row],[حالة العمل]]&data.s[[#This Row],[التصنيف الادارى]]&data.s[[#This Row],[الدرجة]] ->  | P31: =IF(data.s[[#This Row],[ترقية 7/2025]]<>"","نعم","") -> نعم | Q31: 1109.8 | R31: 1298.466 | T31: =IF(data.s[[#This Row],[الوظيفة]]="سائق ملاكي",data.s[[#This Row],[أساسي 7/2025]]*135%,0) -> 0 | U31: =IF(data.s[[#This Row],[الوظيفة]]="سائق ملاكي",data.s[[#This Row],[أساسي 7/2025]]*15%,"") ->  | Z31: =data.s[[#This Row],[أساسي 7/2025]]*15% -> 194.7699 | AF31: =IFERROR(VLOOKUP(data.s[[#This Row],[كود الشركة]:[كود الشركة]],#REF!,MATCH(data.s[[#Headers],[بدل تباع]],#REF!,0),FALSE),0) -> 0 | AG31: =SUM(data.s[[#This Row],[بدل مخاطر]:[بدل تفرغ]])-data.s[[#This Row],[بدل تمثيل]] -> 194.7699 | AH31: 39.2 | AI31: 43.63 | AJ31: 65 | AL31: 200 | AM31: 23.56 | AN31: 39.54 | AO31: 50.8 | AP31: 72.47 | AQ31: 77.55 | AR31: 82.98 | AS31: 0 | AT31: 55.49 | AU31: 600 | AV31: 10 | AW31: =SUM(data.s[[#This Row],[علاوة 2014]:[علاوة اجتماعية]]) -> 1360.22 | AX31: 10 | AY31: =(data.s[[#This Row],[أساسي 7/2025]]*2)/12 -> 216.411 | BC31: =SUM(data.s[[#This Row],[أساسي 7/2025]:[حافز موانى]],data.s[[#This Row],[أومر الشغل للملاكي]],data.s[[#This Row],[إجمالي بدلات]],data.s[[#This Row],[إجمالي علاوات]:[متوسط المنحة]]) -> 3079.8669 | BD31: =IF(data.s[[#This Row],[الإجمالي]]<7000,7000-data.s[[#This Row],[الإجمالي]],0) -> 3920.1331 | BE31: =IF(data.s[[#This Row],[حالة العمل]]="إيقاف",data.s[[#This Row],[أساسي 7/2025]],SUM(data.s[[#This Row],[رد مستحقات]:[مكمل الأجر]])) -> 7000 | BJ31: =ROUND(data.s[[#This Row],[تأمينات 2026]]/11%,2) -> 10769.81 | BK31: 1184.678805 | BM31: =(((data.s[[#This Row],[إجمالي المستحق]]+data.s[[#This Row],[عمولة انتاج]])-(data.s[[#This Row],[الحافز]]+data.s[[#This Row],[عمولة انتاج]]+data.s[[#This Row],[متوسط المنحة]]+data.s[[#This Row],[رد مستحقات]]+data.s[[#This Row],[بدل سهر]]+data.s[[#This Row],[الإضافي]]))/30)*data.s[[#This Row],[أيام الغياب]] -> 0 | BN31: =(((data.s[[#This Row],[إجمالي المستحق]]+data.s[[#This Row],[عمولة انتاج]])-(data.s[[#This Row],[الحافز]]+data.s[[#This Row],[عمولة انتاج]]+data.s[[#This Row],[متوسط المنحة]]+data.s[[#This Row],[رد مستحقات]]+data.s[[#This Row],[بدل سهر]]+data.s[[#This Row],[الإضافي]]))/30)*data.s[[#This Row],[أيام جزاء]] -> 0 | BO31: =IF(data.s[[#This Row],[أيام الغياب]]=1,data.s[[#This Row],[الحافز]]*20%,IF(data.s[[#This Row],[أيام الغياب]]=2,data.s[[#This Row],[الحافز]]*30%,IF(data.s[[#This Row],[أيام الغياب]]>2,data.s[[#This Row],[الحافز]]*100%,""))) ->  | BQ31: =IFERROR(IF(data.s[[#This Row],[أيام أجازات بعد السنوية]]<=2,data.s[[#This Row],[الحافز]]*0,IF(data.s[[#This Row],[أيام أجازات بعد السنوية]]=3,data.s[[#This Row],[الحافز]]*30%,IF(data.s[[#This Row],[أيام أجازات بعد السنوية]]=4,data.s[[#This Row],[الحافز]]*40%,IF(data.s[[#This Row],[أيام أجازات بعد السنوية]]=5,data.s[[#This Row],[الحافز]]*50%,IF(data.s[[#This Row],[أيام أجازات بعد السنوية]]>5,data.s[[#This Row],[الحافز]]*100%,""))))),"") -> 0 | BR31: 0 | BU31: 3 | BV31: 0 | CE31: 615 | CG31: =data.s[[#This Row],[مخالفات مرور]]+data.s[[#This Row],[سلفة]]+data.s[[#This Row],[تعويضات]]+data.s[[#This Row],[عجز]]+data.s[[#This Row],[تلفيات]]+data.s[[#This Row],[عهد]]+data.s[[#This Row],[سولار]] -> 615 | CH31: 7.89 | CI31: 3 | CL31: 0 | CM31: 0 | CP31: 0 | CQ31: =data.s[[#This Row],[متوسط المنحة]] -> 216.411 | CR31: =IF(data.s[[#This Row],[التصنيف الادارى]]="سائق نقل",data.s[[#This Row],[إجمالي المستحق]]*5%,0) -> 350 | CS31: =IF($G31=data.s[[#Headers],[انقطاع]],$BE31-SUM(data.s[[#This Row],[تأمينات 2026]:[تنفيذ أحكام]],data.s[[#This Row],[الشهداء]:[خصم 5% تأمين من المستحق]],0),0) -> 0 | CT31: =IF($G31=CT$3,$BE31-SUM(data.s[[#This Row],[تأمينات 2026]:[تنفيذ أحكام]],data.s[[#This Row],[الشهداء]:[خصم 5% تأمين من المستحق]],0),0) -> 0 | CU31: =IF($G31=CU$3,$BE31-SUM(data.s[[#This Row],[تأمينات 2026]:[تنفيذ أحكام]],data.s[[#This Row],[الشهداء]:[خصم 5% تأمين من المستحق]],0),0) -> 0 | CV31: =IF($G31=data.s[[#Headers],[إعارة]],$BE31-SUM(data.s[[#This Row],[تأمينات 2026]:[تنفيذ أحكام]],data.s[[#This Row],[الشهداء]:[خصم 5% تأمين من المستحق]],0),0) -> 0 | CW31: =IF($G31=data.s[[#Headers],[انهاء]],$BE31-SUM(data.s[[#This Row],[تأمينات 2026]:[تنفيذ أحكام]],data.s[[#This Row],[الشهداء]:[خصم 5% تأمين من المستحق]],0),0) -> 0 | CX31: =IF($G31=data.s[[#Headers],[معاش]],$BE31-SUM(data.s[[#This Row],[تأمينات 2026]:[تنفيذ أحكام]],data.s[[#This Row],[الشهداء]:[خصم 5% تأمين من المستحق]],0),0) -> 0 | CY31: =SUM(data.s[[#This Row],[تأمينات 2026]:[تنفيذ أحكام]],data.s[[#This Row],[الشهداء]:[معاش]]) -> 2379.979805 | CZ31: =data.s[[#This Row],[إجمالي المستحق]]-data.s[[#This Row],[إجمالي المستقطع]] -> 4620.020195
B32: 302033 | C32: 32760 | D32: =VLOOKUP(data.s[[#This Row],[كود الشركة]],#REF!,MATCH(data.s[[#Headers],[التعامل المالي]],#REF!,0),FALSE) ->  | E32: عبد الله محمد محمد مسلم | H32: سائق نقل | I32: عقد خبرة | L32: عقود خبرة | M32: المنطقه الشرقيه | N32: =data.s[[#This Row],[كود الشركة]]&data.s[[#This Row],[كود البيرول]]&data.s[[#This Row],[التعامل المالي]]&data.s[[#This Row],[اسم الموظف]]&data.s[[#This Row],[الموظف المختص]]&data.s[[#This Row],[حالة العمل]]&data.s[[#This Row],[التصنيف الادارى]]&data.s[[#This Row],[الدرجة]] ->  | P32: =IF(data.s[[#This Row],[ترقية 7/2025]]<>"","نعم","") ->  | Q32: 600 | S32: 600 | T32: =IF(data.s[[#This Row],[الوظيفة]]="سائق ملاكي",data.s[[#This Row],[أساسي 7/2025]]*135%,0) -> 0 | U32: =IF(data.s[[#This Row],[الوظيفة]]="سائق ملاكي",data.s[[#This Row],[أساسي 7/2025]]*15%,"") ->  | AF32: =IFERROR(VLOOKUP(data.s[[#This Row],[كود الشركة]:[كود الشركة]],#REF!,MATCH(data.s[[#Headers],[بدل تباع]],#REF!,0),FALSE),0) -> 0 | AG32: =SUM(data.s[[#This Row],[بدل مخاطر]:[بدل تفرغ]])-data.s[[#This Row],[بدل تمثيل]] -> 0 | AS32: 0 | AW32: =SUM(data.s[[#This Row],[علاوة 2014]:[علاوة اجتماعية]]) -> 0 | AY32: =(data.s[[#This Row],[أساسي 7/2025]]*2)/12 -> 0 | BC32: =SUM(data.s[[#This Row],[أساسي 7/2025]:[حافز موانى]],data.s[[#This Row],[أومر الشغل للملاكي]],data.s[[#This Row],[إجمالي بدلات]],data.s[[#This Row],[إجمالي علاوات]:[متوسط المنحة]]) -> 600 | BE32: =IF(data.s[[#This Row],[حالة العمل]]="إيقاف",data.s[[#This Row],[أساسي 7/2025]],SUM(data.s[[#This Row],[رد مستحقات]:[مكمل الأجر]])) -> 600 | BH32: 15 | BJ32: =ROUND(data.s[[#This Row],[تأمينات 2026]]/11%,2) -> 1385.18 | BK32: 152.37 | BM32: =(((data.s[[#This Row],[إجمالي المستحق]]+data.s[[#This Row],[عمولة انتاج]])-(data.s[[#This Row],[الحافز]]+data.s[[#This Row],[عمولة انتاج]]+data.s[[#This Row],[متوسط المنحة]]+data.s[[#This Row],[رد مستحقات]]+data.s[[#This Row],[بدل سهر]]+data.s[[#This Row],[الإضافي]]))/30)*data.s[[#This Row],[أيام الغياب]] -> 300 | BN32: =(((data.s[[#This Row],[إجمالي المستحق]]+data.s[[#This Row],[عمولة انتاج]])-(data.s[[#This Row],[الحافز]]+data.s[[#This Row],[عمولة انتاج]]+data.s[[#This Row],[متوسط المنحة]]+data.s[[#This Row],[رد مستحقات]]+data.s[[#This Row],[بدل سهر]]+data.s[[#This Row],[الإضافي]]))/30)*data.s[[#This Row],[أيام جزاء]] -> 0 | BO32: =IF(data.s[[#This Row],[أيام الغياب]]=1,data.s[[#This Row],[الحافز]]*20%,IF(data.s[[#This Row],[أيام الغياب]]=2,data.s[[#This Row],[الحافز]]*30%,IF(data.s[[#This Row],[أيام الغياب]]>2,data.s[[#This Row],[الحافز]]*100%,""))) -> 0 | BQ32: =IFERROR(IF(data.s[[#This Row],[أيام أجازات بعد السنوية]]<=2,data.s[[#This Row],[الحافز]]*0,IF(data.s[[#This Row],[أيام أجازات بعد السنوية]]=3,data.s[[#This Row],[الحافز]]*30%,IF(data.s[[#This Row],[أيام أجازات بعد السنوية]]=4,data.s[[#This Row],[الحافز]]*40%,IF(data.s[[#This Row],[أيام أجازات بعد السنوية]]=5,data.s[[#This Row],[الحافز]]*50%,IF(data.s[[#This Row],[أيام أجازات بعد السنوية]]>5,data.s[[#This Row],[الحافز]]*100%,""))))),"") -> 0 | CG32: =data.s[[#This Row],[مخالفات مرور]]+data.s[[#This Row],[سلفة]]+data.s[[#This Row],[تعويضات]]+data.s[[#This Row],[عجز]]+data.s[[#This Row],[تلفيات]]+data.s[[#This Row],[عهد]]+data.s[[#This Row],[سولار]] -> 0 | CH32: 7.48 | CP32: 0 | CQ32: =data.s[[#This Row],[متوسط المنحة]] -> 0 | CR32: =IF(data.s[[#This Row],[التصنيف الادارى]]="سائق نقل",data.s[[#This Row],[إجمالي المستحق]]*5%,0) -> 30 | CS32: =IF($G32=data.s[[#Headers],[انقطاع]],$BE32-SUM(data.s[[#This Row],[تأمينات 2026]:[تنفيذ أحكام]],data.s[[#This Row],[الشهداء]:[خصم 5% تأمين من المستحق]],0),0) -> 0 | CT32: =IF($G32=CT$3,$BE32-SUM(data.s[[#This Row],[تأمينات 2026]:[تنفيذ أحكام]],data.s[[#This Row],[الشهداء]:[خصم 5% تأمين من المستحق]],0),0) -> 0 | CU32: =IF($G32=CU$3,$BE32-SUM(data.s[[#This Row],[تأمينات 2026]:[تنفيذ أحكام]],data.s[[#This Row],[الشهداء]:[خصم 5% تأمين من المستحق]],0),0) -> 0 | CV32: =IF($G32=data.s[[#Headers],[إعارة]],$BE32-SUM(data.s[[#This Row],[تأمينات 2026]:[تنفيذ أحكام]],data.s[[#This Row],[الشهداء]:[خصم 5% تأمين من المستحق]],0),0) -> 0 | CW32: =IF($G32=data.s[[#Headers],[انهاء]],$BE32-SUM(data.s[[#This Row],[تأمينات 2026]:[تنفيذ أحكام]],data.s[[#This Row],[الشهداء]:[خصم 5% تأمين من المستحق]],0),0) -> 0 | CX32: =IF($G32=data.s[[#Headers],[معاش]],$BE32-SUM(data.s[[#This Row],[تأمينات 2026]:[تنفيذ أحكام]],data.s[[#This Row],[الشهداء]:[خصم 5% تأمين من المستحق]],0),0) -> 0 | CY32: =SUM(data.s[[#This Row],[تأمينات 2026]:[تنفيذ أحكام]],data.s[[#This Row],[الشهداء]:[معاش]]) -> 489.85 | CZ32: =data.s[[#This Row],[إجمالي المستحق]]-data.s[[#This Row],[إجمالي المستقطع]] -> 110.15
B33: 302034 | C33: 41874 | D33: =VLOOKUP(data.s[[#This Row],[كود الشركة]],#REF!,MATCH(data.s[[#Headers],[التعامل المالي]],#REF!,0),FALSE) ->  | E33: رمضان يوسف عبد التواب | H33: سائق نقل | I33: عقد خبرة | L33: عقود خبرة | M33: المنطقه الشرقيه | N33: =data.s[[#This Row],[كود الشركة]]&data.s[[#This Row],[كود البيرول]]&data.s[[#This Row],[التعامل المالي]]&data.s[[#This Row],[اسم الموظف]]&data.s[[#This Row],[الموظف المختص]]&data.s[[#This Row],[حالة العمل]]&data.s[[#This Row],[التصنيف الادارى]]&data.s[[#This Row],[الدرجة]] ->  | P33: =IF(data.s[[#This Row],[ترقية 7/2025]]<>"","نعم","") ->  | Q33: 600 | S33: 600 | T33: =IF(data.s[[#This Row],[الوظيفة]]="سائق ملاكي",data.s[[#This Row],[أساسي 7/2025]]*135%,0) -> 0 | U33: =IF(data.s[[#This Row],[الوظيفة]]="سائق ملاكي",data.s[[#This Row],[أساسي 7/2025]]*15%,"") ->  | AF33: =IFERROR(VLOOKUP(data.s[[#This Row],[كود الشركة]:[كود الشركة]],#REF!,MATCH(data.s[[#Headers],[بدل تباع]],#REF!,0),FALSE),0) -> 0 | AG33: =SUM(data.s[[#This Row],[بدل مخاطر]:[بدل تفرغ]])-data.s[[#This Row],[بدل تمثيل]] -> 0 | AS33: 0 | AT33: 0 | AW33: =SUM(data.s[[#This Row],[علاوة 2014]:[علاوة اجتماعية]]) -> 0 | AY33: =(data.s[[#This Row],[أساسي 7/2025]]*2)/12 -> 0 | BC33: =SUM(data.s[[#This Row],[أساسي 7/2025]:[حافز موانى]],data.s[[#This Row],[أومر الشغل للملاكي]],data.s[[#This Row],[إجمالي بدلات]],data.s[[#This Row],[إجمالي علاوات]:[متوسط المنحة]]) -> 600 | BE33: =IF(data.s[[#This Row],[حالة العمل]]="إيقاف",data.s[[#This Row],[أساسي 7/2025]],SUM(data.s[[#This Row],[رد مستحقات]:[مكمل الأجر]])) -> 600 | BJ33: =ROUND(data.s[[#This Row],[تأمينات 2026]]/11%,2) -> 1385.18 | BK33: 152.37 | BM33: =(((data.s[[#This Row],[إجمالي المستحق]]+data.s[[#This Row],[عمولة انتاج]])-(data.s[[#This Row],[الحافز]]+data.s[[#This Row],[عمولة انتاج]]+data.s[[#This Row],[متوسط المنحة]]+data.s[[#This Row],[رد مستحقات]]+data.s[[#This Row],[بدل سهر]]+data.s[[#This Row],[الإضافي]]))/30)*data.s[[#This Row],[أيام الغياب]] -> 0 | BN33: =(((data.s[[#This Row],[إجمالي المستحق]]+data.s[[#This Row],[عمولة انتاج]])-(data.s[[#This Row],[الحافز]]+data.s[[#This Row],[عمولة انتاج]]+data.s[[#This Row],[متوسط المنحة]]+data.s[[#This Row],[رد مستحقات]]+data.s[[#This Row],[بدل سهر]]+data.s[[#This Row],[الإضافي]]))/30)*data.s[[#This Row],[أيام جزاء]] -> 0 | BO33: =IF(data.s[[#This Row],[أيام الغياب]]=1,data.s[[#This Row],[الحافز]]*20%,IF(data.s[[#This Row],[أيام الغياب]]=2,data.s[[#This Row],[الحافز]]*30%,IF(data.s[[#This Row],[أيام الغياب]]>2,data.s[[#This Row],[الحافز]]*100%,""))) ->  | BQ33: =IFERROR(IF(data.s[[#This Row],[أيام أجازات بعد السنوية]]<=2,data.s[[#This Row],[الحافز]]*0,IF(data.s[[#This Row],[أيام أجازات بعد السنوية]]=3,data.s[[#This Row],[الحافز]]*30%,IF(data.s[[#This Row],[أيام أجازات بعد السنوية]]=4,data.s[[#This Row],[الحافز]]*40%,IF(data.s[[#This Row],[أيام أجازات بعد السنوية]]=5,data.s[[#This Row],[الحافز]]*50%,IF(data.s[[#This Row],[أيام أجازات بعد السنوية]]>5,data.s[[#This Row],[الحافز]]*100%,""))))),"") -> 0 | CG33: =data.s[[#This Row],[مخالفات مرور]]+data.s[[#This Row],[سلفة]]+data.s[[#This Row],[تعويضات]]+data.s[[#This Row],[عجز]]+data.s[[#This Row],[تلفيات]]+data.s[[#This Row],[عهد]]+data.s[[#This Row],[سولار]] -> 0 | CH33: 3.49 | CP33: 0 | CQ33: =data.s[[#This Row],[متوسط المنحة]] -> 0 | CR33: =IF(data.s[[#This Row],[التصنيف الادارى]]="سائق نقل",data.s[[#This Row],[إجمالي المستحق]]*5%,0) -> 30 | CS33: =IF($G33=data.s[[#Headers],[انقطاع]],$BE33-SUM(data.s[[#This Row],[تأمينات 2026]:[تنفيذ أحكام]],data.s[[#This Row],[الشهداء]:[خصم 5% تأمين من المستحق]],0),0) -> 0 | CT33: =IF($G33=CT$3,$BE33-SUM(data.s[[#This Row],[تأمينات 2026]:[تنفيذ أحكام]],data.s[[#This Row],[الشهداء]:[خصم 5% تأمين من المستحق]],0),0) -> 0 | CU33: =IF($G33=CU$3,$BE33-SUM(data.s[[#This Row],[تأمينات 2026]:[تنفيذ أحكام]],data.s[[#This Row],[الشهداء]:[خصم 5% تأمين من المستحق]],0),0) -> 0 | CV33: =IF($G33=data.s[[#Headers],[إعارة]],$BE33-SUM(data.s[[#This Row],[تأمينات 2026]:[تنفيذ أحكام]],data.s[[#This Row],[الشهداء]:[خصم 5% تأمين من المستحق]],0),0) -> 0 | CW33: =IF($G33=data.s[[#Headers],[انهاء]],$BE33-SUM(data.s[[#This Row],[تأمينات 2026]:[تنفيذ أحكام]],data.s[[#This Row],[الشهداء]:[خصم 5% تأمين من المستحق]],0),0) -> 0 | CX33: =IF($G33=data.s[[#Headers],[معاش]],$BE33-SUM(data.s[[#This Row],[تأمينات 2026]:[تنفيذ أحكام]],data.s[[#This Row],[الشهداء]:[خصم 5% تأمين من المستحق]],0),0) -> 0 | CY33: =SUM(data.s[[#This Row],[تأمينات 2026]:[تنفيذ أحكام]],data.s[[#This Row],[الشهداء]:[معاش]]) -> 185.86 | CZ33: =data.s[[#This Row],[إجمالي المستحق]]-data.s[[#This Row],[إجمالي المستقطع]] -> 414.14
B34: 302036 | C34: 29059 | D34: =VLOOKUP(data.s[[#This Row],[كود الشركة]],#REF!,MATCH(data.s[[#Headers],[التعامل المالي]],#REF!,0),FALSE) ->  | E34: طارق سعيد سرحان محمد | H34: سائق نقل | I34: الرابعة | L34: فرع الاميرية | M34: المنطقه المركزية | N34: =data.s[[#This Row],[كود الشركة]]&data.s[[#This Row],[كود البيرول]]&data.s[[#This Row],[التعامل المالي]]&data.s[[#This Row],[اسم الموظف]]&data.s[[#This Row],[الموظف المختص]]&data.s[[#This Row],[حالة العمل]]&data.s[[#This Row],[التصنيف الادارى]]&data.s[[#This Row],[الدرجة]] ->  | P34: =IF(data.s[[#This Row],[ترقية 7/2025]]<>"","نعم","") ->  | Q34: 1123.54 | R34: 1314.54 | T34: =IF(data.s[[#This Row],[الوظيفة]]="سائق ملاكي",data.s[[#This Row],[أساسي 7/2025]]*135%,0) -> 0 | U34: =IF(data.s[[#This Row],[الوظيفة]]="سائق ملاكي",data.s[[#This Row],[أساسي 7/2025]]*15%,"") ->  | Z34: =data.s[[#This Row],[أساسي 7/2025]]*15% -> 197.181 | AE34: 0 | AF34: =IFERROR(VLOOKUP(data.s[[#This Row],[كود الشركة]:[كود الشركة]],#REF!,MATCH(data.s[[#Headers],[بدل تباع]],#REF!,0),FALSE),0) -> 0 | AG34: =SUM(data.s[[#This Row],[بدل مخاطر]:[بدل تفرغ]])-data.s[[#This Row],[بدل تمثيل]] -> 197.181 | AS34: 1301.736751 | AT34: 56.177 | AW34: =SUM(data.s[[#This Row],[علاوة 2014]:[علاوة اجتماعية]]) -> 1357.913751 | AX34: 10 | AY34: =(data.s[[#This Row],[أساسي 7/2025]]*2)/12 -> 219.09 | BC34: =SUM(data.s[[#This Row],[أساسي 7/2025]:[حافز موانى]],data.s[[#This Row],[أومر الشغل للملاكي]],data.s[[#This Row],[إجمالي بدلات]],data.s[[#This Row],[إجمالي علاوات]:[متوسط المنحة]]) -> 3098.724751 | BD34: =IF(data.s[[#This Row],[الإجمالي]]<7000,7000-data.s[[#This Row],[الإجمالي]],0) -> 3901.275249 | BE34: =IF(data.s[[#This Row],[حالة العمل]]="إيقاف",data.s[[#This Row],[أساسي 7/2025]],SUM(data.s[[#This Row],[رد مستحقات]:[مكمل الأجر]])) -> 7000 | BJ34: =ROUND(data.s[[#This Row],[تأمينات 2026]]/11%,2) -> 16700 | BK34: 1837 | BM34: =(((data.s[[#This Row],[إجمالي المستحق]]+data.s[[#This Row],[عمولة انتاج]])-(data.s[[#This Row],[الحافز]]+data.s[[#This Row],[عمولة انتاج]]+data.s[[#This Row],[متوسط المنحة]]+data.s[[#This Row],[رد مستحقات]]+data.s[[#This Row],[بدل سهر]]+data.s[[#This Row],[الإضافي]]))/30)*data.s[[#This Row],[أيام الغياب]] -> 0 | BN34: =(((data.s[[#This Row],[إجمالي المستحق]]+data.s[[#This Row],[عمولة انتاج]])-(data.s[[#This Row],[الحافز]]+data.s[[#This Row],[عمولة انتاج]]+data.s[[#This Row],[متوسط المنحة]]+data.s[[#This Row],[رد مستحقات]]+data.s[[#This Row],[بدل سهر]]+data.s[[#This Row],[الإضافي]]))/30)*data.s[[#This Row],[أيام جزاء]] -> 0 | BO34: =IF(data.s[[#This Row],[أيام الغياب]]=1,data.s[[#This Row],[الحافز]]*20%,IF(data.s[[#This Row],[أيام الغياب]]=2,data.s[[#This Row],[الحافز]]*30%,IF(data.s[[#This Row],[أيام الغياب]]>2,data.s[[#This Row],[الحافز]]*100%,""))) ->  | BQ34: =IFERROR(IF(data.s[[#This Row],[أيام أجازات بعد السنوية]]<=2,data.s[[#This Row],[الحافز]]*0,IF(data.s[[#This Row],[أيام أجازات بعد السنوية]]=3,data.s[[#This Row],[الحافز]]*30%,IF(data.s[[#This Row],[أيام أجازات بعد السنوية]]=4,data.s[[#This Row],[الحافز]]*40%,IF(data.s[[#This Row],[أيام أجازات بعد السنوية]]=5,data.s[[#This Row],[الحافز]]*50%,IF(data.s[[#This Row],[أيام أجازات بعد السنوية]]>5,data.s[[#This Row],[الحافز]]*100%,""))))),"") -> 0 | BU34: 3 | CG34: =data.s[[#This Row],[مخالفات مرور]]+data.s[[#This Row],[سلفة]]+data.s[[#This Row],[تعويضات]]+data.s[[#This Row],[عجز]]+data.s[[#This Row],[تلفيات]]+data.s[[#This Row],[عهد]]+data.s[[#This Row],[سولار]] -> 0 | CH34: 17.35 | CI34: 3 | CP34: 0 | CQ34: =data.s[[#This Row],[متوسط المنحة]] -> 219.09 | CR34: =IF(data.s[[#This Row],[التصنيف الادارى]]="سائق نقل",data.s[[#This Row],[إجمالي المستحق]]*5%,0) -> 350 | CS34: =IF($G34=data.s[[#Headers],[انقطاع]],$BE34-SUM(data.s[[#This Row],[تأمينات 2026]:[تنفيذ أحكام]],data.s[[#This Row],[الشهداء]:[خصم 5% تأمين من المستحق]],0),0) -> 0 | CT34: =IF($G34=CT$3,$BE34-SUM(data.s[[#This Row],[تأمينات 2026]:[تنفيذ أحكام]],data.s[[#This Row],[الشهداء]:[خصم 5% تأمين من المستحق]],0),0) -> 0 | CU34: =IF($G34=CU$3,$BE34-SUM(data.s[[#This Row],[تأمينات 2026]:[تنفيذ أحكام]],data.s[[#This Row],[الشهداء]:[خصم 5% تأمين من المستحق]],0),0) -> 0 | CV34: =IF($G34=data.s[[#Headers],[إعارة]],$BE34-SUM(data.s[[#This Row],[تأمينات 2026]:[تنفيذ أحكام]],data.s[[#This Row],[الشهداء]:[خصم 5% تأمين من المستحق]],0),0) -> 0 | CW34: =IF($G34=data.s[[#Headers],[انهاء]],$BE34-SUM(data.s[[#This Row],[تأمينات 2026]:[تنفيذ أحكام]],data.s[[#This Row],[الشهداء]:[خصم 5% تأمين من المستحق]],0),0) -> 0 | CX34: =IF($G34=data.s[[#Headers],[معاش]],$BE34-SUM(data.s[[#This Row],[تأمينات 2026]:[تنفيذ أحكام]],data.s[[#This Row],[الشهداء]:[خصم 5% تأمين من المستحق]],0),0) -> 0 | CY34: =SUM(data.s[[#This Row],[تأمينات 2026]:[تنفيذ أحكام]],data.s[[#This Row],[الشهداء]:[معاش]]) -> 2429.44 | CZ34: =data.s[[#This Row],[إجمالي المستحق]]-data.s[[#This Row],[إجمالي المستقطع]] -> 4570.56
B35: 302037 | C35: 29063 | D35: =VLOOKUP(data.s[[#This Row],[كود الشركة]],#REF!,MATCH(data.s[[#Headers],[التعامل المالي]],#REF!,0),FALSE) ->  | E35: بدر عبد المقصود السيد بدر | H35: سائق نقل | I35: الثالثة | J35: الثالثة | K35: سائق نقل | L35: فرع الاميرية | M35: المنطقه المركزية | N35: =data.s[[#This Row],[كود الشركة]]&data.s[[#This Row],[كود البيرول]]&data.s[[#This Row],[التعامل المالي]]&data.s[[#This Row],[اسم الموظف]]&data.s[[#This Row],[الموظف المختص]]&data.s[[#This Row],[حالة العمل]]&data.s[[#This Row],[التصنيف الادارى]]&data.s[[#This Row],[الدرجة]] ->  | P35: =IF(data.s[[#This Row],[ترقية 7/2025]]<>"","نعم","") -> نعم | Q35: 997.08 | R35: 1166.5836 | T35: =IF(data.s[[#This Row],[الوظيفة]]="سائق ملاكي",data.s[[#This Row],[أساسي 7/2025]]*135%,0) -> 0 | U35: =IF(data.s[[#This Row],[الوظيفة]]="سائق ملاكي",data.s[[#This Row],[أساسي 7/2025]]*15%,"") ->  | Z35: =data.s[[#This Row],[أساسي 7/2025]]*15% -> 174.98754 | AE35: 0 | AF35: =IFERROR(VLOOKUP(data.s[[#This Row],[كود الشركة]:[كود الشركة]],#REF!,MATCH(data.s[[#Headers],[بدل تباع]],#REF!,0),FALSE),0) -> 0 | AG35: =SUM(data.s[[#This Row],[بدل مخاطر]:[بدل تفرغ]])-data.s[[#This Row],[بدل تمثيل]] -> 174.98754 | AS35: 1264.644839 | AT35: 50.292 | AW35: =SUM(data.s[[#This Row],[علاوة 2014]:[علاوة اجتماعية]]) -> 1314.936839 | AX35: 10 | AY35: =(data.s[[#This Row],[أساسي 7/2025]]*2)/12 -> 194.4306 | BC35: =SUM(data.s[[#This Row],[أساسي 7/2025]:[حافز موانى]],data.s[[#This Row],[أومر الشغل للملاكي]],data.s[[#This Row],[إجمالي بدلات]],data.s[[#This Row],[إجمالي علاوات]:[متوسط المنحة]]) -> 2860.938579 | BD35: =IF(data.s[[#This Row],[الإجمالي]]<7000,7000-data.s[[#This Row],[الإجمالي]],0) -> 4139.061421 | BE35: =IF(data.s[[#This Row],[حالة العمل]]="إيقاف",data.s[[#This Row],[أساسي 7/2025]],SUM(data.s[[#This Row],[رد مستحقات]:[مكمل الأجر]])) -> 7000 | BJ35: =ROUND(data.s[[#This Row],[تأمينات 2026]]/11%,2) -> 14741.9 | BK35: 1621.609373 | BM35: =(((data.s[[#This Row],[إجمالي المستحق]]+data.s[[#This Row],[عمولة انتاج]])-(data.s[[#This Row],[الحافز]]+data.s[[#This Row],[عمولة انتاج]]+data.s[[#This Row],[متوسط المنحة]]+data.s[[#This Row],[رد مستحقات]]+data.s[[#This Row],[بدل سهر]]+data.s[[#This Row],[الإضافي]]))/30)*data.s[[#This Row],[أيام الغياب]] -> 0 | BN35: =(((data.s[[#This Row],[إجمالي المستحق]]+data.s[[#This Row],[عمولة انتاج]])-(data.s[[#This Row],[الحافز]]+data.s[[#This Row],[عمولة انتاج]]+data.s[[#This Row],[متوسط المنحة]]+data.s[[#This Row],[رد مستحقات]]+data.s[[#This Row],[بدل سهر]]+data.s[[#This Row],[الإضافي]]))/30)*data.s[[#This Row],[أيام جزاء]] -> 0 | BO35: =IF(data.s[[#This Row],[أيام الغياب]]=1,data.s[[#This Row],[الحافز]]*20%,IF(data.s[[#This Row],[أيام الغياب]]=2,data.s[[#This Row],[الحافز]]*30%,IF(data.s[[#This Row],[أيام الغياب]]>2,data.s[[#This Row],[الحافز]]*100%,""))) ->  | BQ35: =IFERROR(IF(data.s[[#This Row],[أيام أجازات بعد السنوية]]<=2,data.s[[#This Row],[الحافز]]*0,IF(data.s[[#This Row],[أيام أجازات بعد السنوية]]=3,data.s[[#This Row],[الحافز]]*30%,IF(data.s[[#This Row],[أيام أجازات بعد السنوية]]=4,data.s[[#This Row],[الحافز]]*40%,IF(data.s[[#This Row],[أيام أجازات بعد السنوية]]=5,data.s[[#This Row],[الحافز]]*50%,IF(data.s[[#This Row],[أيام أجازات بعد السنوية]]>5,data.s[[#This Row],[الحافز]]*100%,""))))),"") -> 0 | BU35: 3 | BX35: 1750 | CG35: =data.s[[#This Row],[مخالفات مرور]]+data.s[[#This Row],[سلفة]]+data.s[[#This Row],[تعويضات]]+data.s[[#This Row],[عجز]]+data.s[[#This Row],[تلفيات]]+data.s[[#This Row],[عهد]]+data.s[[#This Row],[سولار]] -> 1750 | CH35: 15.2 | CI35: 3 | CP35: 0 | CQ35: =data.s[[#This Row],[متوسط المنحة]] -> 194.4306 | CR35: =IF(data.s[[#This Row],[التصنيف الادارى]]="سائق نقل",data.s[[#This Row],[إجمالي المستحق]]*5%,0) -> 350 | CS35: =IF($G35=data.s[[#Headers],[انقطاع]],$BE35-SUM(data.s[[#This Row],[تأمينات 2026]:[تنفيذ أحكام]],data.s[[#This Row],[الشهداء]:[خصم 5% تأمين من المستحق]],0),0) -> 0 | CT35: =IF($G35=CT$3,$BE35-SUM(data.s[[#This Row],[تأمينات 2026]:[تنفيذ أحكام]],data.s[[#This Row],[الشهداء]:[خصم 5% تأمين من المستحق]],0),0) -> 0 | CU35: =IF($G35=CU$3,$BE35-SUM(data.s[[#This Row],[تأمينات 2026]:[تنفيذ أحكام]],data.s[[#This Row],[الشهداء]:[خصم 5% تأمين من المستحق]],0),0) -> 0 | CV35: =IF($G35=data.s[[#Headers],[إعارة]],$BE35-SUM(data.s[[#This Row],[تأمينات 2026]:[تنفيذ أحكام]],data.s[[#This Row],[الشهداء]:[خصم 5% تأمين من المستحق]],0),0) -> 0 | CW35: =IF($G35=data.s[[#Headers],[انهاء]],$BE35-SUM(data.s[[#This Row],[تأمينات 2026]:[تنفيذ أحكام]],data.s[[#This Row],[الشهداء]:[خصم 5% تأمين من المستحق]],0),0) -> 0 | CX35: =IF($G35=data.s[[#Headers],[معاش]],$BE35-SUM(data.s[[#This Row],[تأمينات 2026]:[تنفيذ أحكام]],data.s[[#This Row],[الشهداء]:[خصم 5% تأمين من المستحق]],0),0) -> 0 | CY35: =SUM(data.s[[#This Row],[تأمينات 2026]:[تنفيذ أحكام]],data.s[[#This Row],[الشهداء]:[معاش]]) -> 3937.239973 | CZ35: =data.s[[#This Row],[إجمالي المستحق]]-data.s[[#This Row],[إجمالي المستقطع]] -> 3062.760027
B36: 302038 | C36: 2932 | D36: =VLOOKUP(data.s[[#This Row],[كود الشركة]],#REF!,MATCH(data.s[[#Headers],[التعامل المالي]],#REF!,0),FALSE) ->  | E36: علي محمود علي عبدالرحمن | H36: سائق نقل | I36: الخامسة | L36: فرع الاميرية | M36: المنطقه المركزية | N36: =data.s[[#This Row],[كود الشركة]]&data.s[[#This Row],[كود البيرول]]&data.s[[#This Row],[التعامل المالي]]&data.s[[#This Row],[اسم الموظف]]&data.s[[#This Row],[الموظف المختص]]&data.s[[#This Row],[حالة العمل]]&data.s[[#This Row],[التصنيف الادارى]]&data.s[[#This Row],[الدرجة]] ->  | P36: =IF(data.s[[#This Row],[ترقية 7/2025]]<>"","نعم","") ->  | Q36: 901.96 | R36: 992.156 | T36: =IF(data.s[[#This Row],[الوظيفة]]="سائق ملاكي",data.s[[#This Row],[أساسي 7/2025]]*135%,0) -> 0 | U36: =IF(data.s[[#This Row],[الوظيفة]]="سائق ملاكي",data.s[[#This Row],[أساسي 7/2025]]*15%,"") ->  | Z36: =data.s[[#This Row],[أساسي 7/2025]]*15% -> 148.8234 | AE36: 0 | AF36: =IFERROR(VLOOKUP(data.s[[#This Row],[كود الشركة]:[كود الشركة]],#REF!,MATCH(data.s[[#Headers],[بدل تباع]],#REF!,0),FALSE),0) -> 0 | AG36: =SUM(data.s[[#This Row],[بدل مخاطر]:[بدل تفرغ]])-data.s[[#This Row],[بدل تمثيل]] -> 148.8234 | AS36: 1253.541815 | AT36: 59.804 | AW36: =SUM(data.s[[#This Row],[علاوة 2014]:[علاوة اجتماعية]]) -> 1313.345815 | AX36: 10 | AY36: =(data.s[[#This Row],[أساسي 7/2025]]*2)/12 -> 165.3593333 | BC36: =SUM(data.s[[#This Row],[أساسي 7/2025]:[حافز موانى]],data.s[[#This Row],[أومر الشغل للملاكي]],data.s[[#This Row],[إجمالي بدلات]],data.s[[#This Row],[إجمالي علاوات]:[متوسط المنحة]]) -> 2629.684549 | BD36: =IF(data.s[[#This Row],[الإجمالي]]<7000,7000-data.s[[#This Row],[الإجمالي]],0) -> 4370.315451 | BE36: =IF(data.s[[#This Row],[حالة العمل]]="إيقاف",data.s[[#This Row],[أساسي 7/2025]],SUM(data.s[[#This Row],[رد مستحقات]:[مكمل الأجر]])) -> 7000 | BI36: 5 | BJ36: =ROUND(data.s[[#This Row],[تأمينات 2026]]/11%,2) -> 15291.96 | BK36: 1682.115347 | BM36: =(((data.s[[#This Row],[إجمالي المستحق]]+data.s[[#This Row],[عمولة انتاج]])-(data.s[[#This Row],[الحافز]]+data.s[[#This Row],[عمولة انتاج]]+data.s[[#This Row],[متوسط المنحة]]+data.s[[#This Row],[رد مستحقات]]+data.s[[#This Row],[بدل سهر]]+data.s[[#This Row],[الإضافي]]))/30)*data.s[[#This Row],[أيام الغياب]] -> 0 | BN36: =(((data.s[[#This Row],[إجمالي المستحق]]+data.s[[#This Row],[عمولة انتاج]])-(data.s[[#This Row],[الحافز]]+data.s[[#This Row],[عمولة انتاج]]+data.s[[#This Row],[متوسط المنحة]]+data.s[[#This Row],[رد مستحقات]]+data.s[[#This Row],[بدل سهر]]+data.s[[#This Row],[الإضافي]]))/30)*data.s[[#This Row],[أيام جزاء]] -> 1139.106778 | BO36: =IF(data.s[[#This Row],[أيام الغياب]]=1,data.s[[#This Row],[الحافز]]*20%,IF(data.s[[#This Row],[أيام الغياب]]=2,data.s[[#This Row],[الحافز]]*30%,IF(data.s[[#This Row],[أيام الغياب]]>2,data.s[[#This Row],[الحافز]]*100%,""))) ->  | BQ36: =IFERROR(IF(data.s[[#This Row],[أيام أجازات بعد السنوية]]<=2,data.s[[#This Row],[الحافز]]*0,IF(data.s[[#This Row],[أيام أجازات بعد السنوية]]=3,data.s[[#This Row],[الحافز]]*30%,IF(data.s[[#This Row],[أيام أجازات بعد السنوية]]=4,data.s[[#This Row],[الحافز]]*40%,IF(data.s[[#This Row],[أيام أجازات بعد السنوية]]=5,data.s[[#This Row],[الحافز]]*50%,IF(data.s[[#This Row],[أيام أجازات بعد السنوية]]>5,data.s[[#This Row],[الحافز]]*100%,""))))),"") -> 0 | BU36: 3 | BX36: 1090 | CE36: 660 | CG36: =data.s[[#This Row],[مخالفات مرور]]+data.s[[#This Row],[سلفة]]+data.s[[#This Row],[تعويضات]]+data.s[[#This Row],[عجز]]+data.s[[#This Row],[تلفيات]]+data.s[[#This Row],[عهد]]+data.s[[#This Row],[سولار]] -> 1750 | CH36: 14.56 | CI36: 3 | CP36: 0 | CQ36: =data.s[[#This Row],[متوسط المنحة]] -> 165.3593333 | CR36: =IF(data.s[[#This Row],[التصنيف الادارى]]="سائق نقل",data.s[[#This Row],[إجمالي المستحق]]*5%,0) -> 350 | CS36: =IF($G36=data.s[[#Headers],[انقطاع]],$BE36-SUM(data.s[[#This Row],[تأمينات 2026]:[تنفيذ أحكام]],data.s[[#This Row],[الشهداء]:[خصم 5% تأمين من المستحق]],0),0) -> 0 | CT36: =IF($G36=CT$3,$BE36-SUM(data.s[[#This Row],[تأمينات 2026]:[تنفيذ أحكام]],data.s[[#This Row],[الشهداء]:[خصم 5% تأمين من المستحق]],0),0) -> 0 | CU36: =IF($G36=CU$3,$BE36-SUM(data.s[[#This Row],[تأمينات 2026]:[تنفيذ أحكام]],data.s[[#This Row],[الشهداء]:[خصم 5% تأمين من المستحق]],0),0) -> 0 | CV36: =IF($G36=data.s[[#Headers],[إعارة]],$BE36-SUM(data.s[[#This Row],[تأمينات 2026]:[تنفيذ أحكام]],data.s[[#This Row],[الشهداء]:[خصم 5% تأمين من المستحق]],0),0) -> 0 | CW36: =IF($G36=data.s[[#Headers],[انهاء]],$BE36-SUM(data.s[[#This Row],[تأمينات 2026]:[تنفيذ أحكام]],data.s[[#This Row],[الشهداء]:[خصم 5% تأمين من المستحق]],0),0) -> 0 | CX36: =IF($G36=data.s[[#Headers],[معاش]],$BE36-SUM(data.s[[#This Row],[تأمينات 2026]:[تنفيذ أحكام]],data.s[[#This Row],[الشهداء]:[خصم 5% تأمين من المستحق]],0),0) -> 0 | CY36: =SUM(data.s[[#This Row],[تأمينات 2026]:[تنفيذ أحكام]],data.s[[#This Row],[الشهداء]:[معاش]]) -> 5107.141459 | CZ36: =data.s[[#This Row],[إجمالي المستحق]]-data.s[[#This Row],[إجمالي المستقطع]] -> 1892.858541
B37: 302039 | C37: 29103 | D37: =VLOOKUP(data.s[[#This Row],[كود الشركة]],#REF!,MATCH(data.s[[#Headers],[التعامل المالي]],#REF!,0),FALSE) ->  | E37: اسماعيل احمد قرنى | H37: سائق نقل | I37: الرابعة | J37: الرابعة | K37: سائق نقل | L37: فرع الاميرية | M37: المنطقه المركزية | N37: =data.s[[#This Row],[كود الشركة]]&data.s[[#This Row],[كود البيرول]]&data.s[[#This Row],[التعامل المالي]]&data.s[[#This Row],[اسم الموظف]]&data.s[[#This Row],[الموظف المختص]]&data.s[[#This Row],[حالة العمل]]&data.s[[#This Row],[التصنيف الادارى]]&data.s[[#This Row],[الدرجة]] ->  | P37: =IF(data.s[[#This Row],[ترقية 7/2025]]<>"","نعم","") -> نعم | Q37: 919.47 | R37: 1075.7799 | T37: =IF(data.s[[#This Row],[الوظيفة]]="سائق ملاكي",data.s[[#This Row],[أساسي 7/2025]]*135%,0) -> 0 | U37: =IF(data.s[[#This Row],[الوظيفة]]="سائق ملاكي",data.s[[#This Row],[أساسي 7/2025]]*15%,"") ->  | Z37: =data.s[[#This Row],[أساسي 7/2025]]*15% -> 161.366985 | AE37: 0 | AF37: =IFERROR(VLOOKUP(data.s[[#This Row],[كود الشركة]:[كود الشركة]],#REF!,MATCH(data.s[[#Headers],[بدل تباع]],#REF!,0),FALSE),0) -> 0 | AG37: =SUM(data.s[[#This Row],[بدل مخاطر]:[بدل تفرغ]])-data.s[[#This Row],[بدل تمثيل]] -> 161.366985 | AS37: 1261.4407 | AT37: 58.053 | AW37: =SUM(data.s[[#This Row],[علاوة 2014]:[علاوة اجتماعية]]) -> 1319.4937 | AX37: 10 | AY37: =(data.s[[#This Row],[أساسي 7/2025]]*2)/12 -> 179.29665 | BC37: =SUM(data.s[[#This Row],[أساسي 7/2025]:[حافز موانى]],data.s[[#This Row],[أومر الشغل للملاكي]],data.s[[#This Row],[إجمالي بدلات]],data.s[[#This Row],[إجمالي علاوات]:[متوسط المنحة]]) -> 2745.937235 | BD37: =IF(data.s[[#This Row],[الإجمالي]]<7000,7000-data.s[[#This Row],[الإجمالي]],0) -> 4254.062765 | BE37: =IF(data.s[[#This Row],[حالة العمل]]="إيقاف",data.s[[#This Row],[أساسي 7/2025]],SUM(data.s[[#This Row],[رد مستحقات]:[مكمل الأجر]])) -> 7000 | BJ37: =ROUND(data.s[[#This Row],[تأمينات 2026]]/11%,2) -> 14005.39 | BK37: 1540.592619 | BM37: =(((data.s[[#This Row],[إجمالي المستحق]]+data.s[[#This Row],[عمولة انتاج]])-(data.s[[#This Row],[الحافز]]+data.s[[#This Row],[عمولة انتاج]]+data.s[[#This Row],[متوسط المنحة]]+data.s[[#This Row],[رد مستحقات]]+data.s[[#This Row],[بدل سهر]]+data.s[[#This Row],[الإضافي]]))/30)*data.s[[#This Row],[أيام الغياب]] -> 0 | BN37: =(((data.s[[#This Row],[إجمالي المستحق]]+data.s[[#This Row],[عمولة انتاج]])-(data.s[[#This Row],[الحافز]]+data.s[[#This Row],[عمولة انتاج]]+data.s[[#This Row],[متوسط المنحة]]+data.s[[#This Row],[رد مستحقات]]+data.s[[#This Row],[بدل سهر]]+data.s[[#This Row],[الإضافي]]))/30)*data.s[[#This Row],[أيام جزاء]] -> 0 | BO37: =IF(data.s[[#This Row],[أيام الغياب]]=1,data.s[[#This Row],[الحافز]]*20%,IF(data.s[[#This Row],[أيام الغياب]]=2,data.s[[#This Row],[الحافز]]*30%,IF(data.s[[#This Row],[أيام الغياب]]>2,data.s[[#This Row],[الحافز]]*100%,""))) ->  | BQ37: =IFERROR(IF(data.s[[#This Row],[أيام أجازات بعد السنوية]]<=2,data.s[[#This Row],[الحافز]]*0,IF(data.s[[#This Row],[أيام أجازات بعد السنوية]]=3,data.s[[#This Row],[الحافز]]*30%,IF(data.s[[#This Row],[أيام أجازات بعد السنوية]]=4,data.s[[#This Row],[الحافز]]*40%,IF(data.s[[#This Row],[أيام أجازات بعد السنوية]]=5,data.s[[#This Row],[الحافز]]*50%,IF(data.s[[#This Row],[أيام أجازات بعد السنوية]]>5,data.s[[#This Row],[الحافز]]*100%,""))))),"") -> 0 | BU37: 3 | BX37: 1750 | CG37: =data.s[[#This Row],[مخالفات مرور]]+data.s[[#This Row],[سلفة]]+data.s[[#This Row],[تعويضات]]+data.s[[#This Row],[عجز]]+data.s[[#This Row],[تلفيات]]+data.s[[#This Row],[عهد]]+data.s[[#This Row],[سولار]] -> 1750 | CH37: 9.79 | CI37: 3 | CP37: 0 | CQ37: =data.s[[#This Row],[متوسط المنحة]] -> 179.29665 | CR37: =IF(data.s[[#This Row],[التصنيف الادارى]]="سائق نقل",data.s[[#This Row],[إجمالي المستحق]]*5%,0) -> 350 | CS37: =IF($G37=data.s[[#Headers],[انقطاع]],$BE37-SUM(data.s[[#This Row],[تأمينات 2026]:[تنفيذ أحكام]],data.s[[#This Row],[الشهداء]:[خصم 5% تأمين من المستحق]],0),0) -> 0 | CT37: =IF($G37=CT$3,$BE37-SUM(data.s[[#This Row],[تأمينات 2026]:[تنفيذ أحكام]],data.s[[#This Row],[الشهداء]:[خصم 5% تأمين من المستحق]],0),0) -> 0 | CU37: =IF($G37=CU$3,$BE37-SUM(data.s[[#This Row],[تأمينات 2026]:[تنفيذ أحكام]],data.s[[#This Row],[الشهداء]:[خصم 5% تأمين من المستحق]],0),0) -> 0 | CV37: =IF($G37=data.s[[#Headers],[إعارة]],$BE37-SUM(data.s[[#This Row],[تأمينات 2026]:[تنفيذ أحكام]],data.s[[#This Row],[الشهداء]:[خصم 5% تأمين من المستحق]],0),0) -> 0 | CW37: =IF($G37=data.s[[#Headers],[انهاء]],$BE37-SUM(data.s[[#This Row],[تأمينات 2026]:[تنفيذ أحكام]],data.s[[#This Row],[الشهداء]:[خصم 5% تأمين من المستحق]],0),0) -> 0 | CX37: =IF($G37=data.s[[#Headers],[معاش]],$BE37-SUM(data.s[[#This Row],[تأمينات 2026]:[تنفيذ أحكام]],data.s[[#This Row],[الشهداء]:[خصم 5% تأمين من المستحق]],0),0) -> 0 | CY37: =SUM(data.s[[#This Row],[تأمينات 2026]:[تنفيذ أحكام]],data.s[[#This Row],[الشهداء]:[معاش]]) -> 3835.679269 | CZ37: =data.s[[#This Row],[إجمالي المستحق]]-data.s[[#This Row],[إجمالي المستقطع]] -> 3164.320731
B38: 302040 | C38: 2926 | D38: =VLOOKUP(data.s[[#This Row],[كود الشركة]],#REF!,MATCH(data.s[[#Headers],[التعامل المالي]],#REF!,0),FALSE) ->  | E38: عربى عبد القادر اسماعيل | H38: سائق نقل | I38: الرابعة | J38: الرابعة | K38: سائق نقل | L38: فرع الاميرية | M38: المنطقه المركزية | N38: =data.s[[#This Row],[كود الشركة]]&data.s[[#This Row],[كود البيرول]]&data.s[[#This Row],[التعامل المالي]]&data.s[[#This Row],[اسم الموظف]]&data.s[[#This Row],[الموظف المختص]]&data.s[[#This Row],[حالة العمل]]&data.s[[#This Row],[التصنيف الادارى]]&data.s[[#This Row],[الدرجة]] ->  | P38: =IF(data.s[[#This Row],[ترقية 7/2025]]<>"","نعم","") -> نعم | Q38: 713.23 | R38: 834.4791 | T38: =IF(data.s[[#This Row],[الوظيفة]]="سائق ملاكي",data.s[[#This Row],[أساسي 7/2025]]*135%,0) -> 0 | U38: =IF(data.s[[#This Row],[الوظيفة]]="سائق ملاكي",data.s[[#This Row],[أساسي 7/2025]]*15%,"") ->  | Z38: =data.s[[#This Row],[أساسي 7/2025]]*15% -> 125.171865 | AE38: 0 | AF38: =IFERROR(VLOOKUP(data.s[[#This Row],[كود الشركة]:[كود الشركة]],#REF!,MATCH(data.s[[#Headers],[بدل تباع]],#REF!,0),FALSE),0) -> 0 | AG38: =SUM(data.s[[#This Row],[بدل مخاطر]:[بدل تفرغ]])-data.s[[#This Row],[بدل تمثيل]] -> 125.171865 | AS38: 1263.098639 | AT38: 78.677 | AW38: =SUM(data.s[[#This Row],[علاوة 2014]:[علاوة اجتماعية]]) -> 1341.775639 | AX38: 10 | AY38: =(data.s[[#This Row],[أساسي 7/2025]]*2)/12 -> 139.07985 | BC38: =SUM(data.s[[#This Row],[أساسي 7/2025]:[حافز موانى]],data.s[[#This Row],[أومر الشغل للملاكي]],data.s[[#This Row],[إجمالي بدلات]],data.s[[#This Row],[إجمالي علاوات]:[متوسط المنحة]]) -> 2450.506454 | BD38: =IF(data.s[[#This Row],[الإجمالي]]<7000,7000-data.s[[#This Row],[الإجمالي]],0) -> 4549.493546 | BE38: =IF(data.s[[#This Row],[حالة العمل]]="إيقاف",data.s[[#This Row],[أساسي 7/2025]],SUM(data.s[[#This Row],[رد مستحقات]:[مكمل الأجر]])) -> 7000 | BJ38: =ROUND(data.s[[#This Row],[تأمينات 2026]]/11%,2) -> 11991.36 | BK38: 1319.049677 | BM38: =(((data.s[[#This Row],[إجمالي المستحق]]+data.s[[#This Row],[عمولة انتاج]])-(data.s[[#This Row],[الحافز]]+data.s[[#This Row],[عمولة انتاج]]+data.s[[#This Row],[متوسط المنحة]]+data.s[[#This Row],[رد مستحقات]]+data.s[[#This Row],[بدل سهر]]+data.s[[#This Row],[الإضافي]]))/30)*data.s[[#This Row],[أيام الغياب]] -> 0 | BN38: =(((data.s[[#This Row],[إجمالي المستحق]]+data.s[[#This Row],[عمولة انتاج]])-(data.s[[#This Row],[الحافز]]+data.s[[#This Row],[عمولة انتاج]]+data.s[[#This Row],[متوسط المنحة]]+data.s[[#This Row],[رد مستحقات]]+data.s[[#This Row],[بدل سهر]]+data.s[[#This Row],[الإضافي]]))/30)*data.s[[#This Row],[أيام جزاء]] -> 0 | BO38: =IF(data.s[[#This Row],[أيام الغياب]]=1,data.s[[#This Row],[الحافز]]*20%,IF(data.s[[#This Row],[أيام الغياب]]=2,data.s[[#This Row],[الحافز]]*30%,IF(data.s[[#This Row],[أيام الغياب]]>2,data.s[[#This Row],[الحافز]]*100%,""))) ->  | BQ38: =IFERROR(IF(data.s[[#This Row],[أيام أجازات بعد السنوية]]<=2,data.s[[#This Row],[الحافز]]*0,IF(data.s[[#This Row],[أيام أجازات بعد السنوية]]=3,data.s[[#This Row],[الحافز]]*30%,IF(data.s[[#This Row],[أيام أجازات بعد السنوية]]=4,data.s[[#This Row],[الحافز]]*40%,IF(data.s[[#This Row],[أيام أجازات بعد السنوية]]=5,data.s[[#This Row],[الحافز]]*50%,IF(data.s[[#This Row],[أيام أجازات بعد السنوية]]>5,data.s[[#This Row],[الحافز]]*100%,""))))),"") -> 0 | BU38: 3 | BX38: 560.65 | CG38: =data.s[[#This Row],[مخالفات مرور]]+data.s[[#This Row],[سلفة]]+data.s[[#This Row],[تعويضات]]+data.s[[#This Row],[عجز]]+data.s[[#This Row],[تلفيات]]+data.s[[#This Row],[عهد]]+data.s[[#This Row],[سولار]] -> 560.65 | CH38: 13.34 | CI38: 3 | CP38: 0 | CQ38: =data.s[[#This Row],[متوسط المنحة]] -> 139.07985 | CR38: =IF(data.s[[#This Row],[التصنيف الادارى]]="سائق نقل",data.s[[#This Row],[إجمالي المستحق]]*5%,0) -> 350 | CS38: =IF($G38=data.s[[#Headers],[انقطاع]],$BE38-SUM(data.s[[#This Row],[تأمينات 2026]:[تنفيذ أحكام]],data.s[[#This Row],[الشهداء]:[خصم 5% تأمين من المستحق]],0),0) -> 0 | CT38: =IF($G38=CT$3,$BE38-SUM(data.s[[#This Row],[تأمينات 2026]:[تنفيذ أحكام]],data.s[[#This Row],[الشهداء]:[خصم 5% تأمين من المستحق]],0),0) -> 0 | CU38: =IF($G38=CU$3,$BE38-SUM(data.s[[#This Row],[تأمينات 2026]:[تنفيذ أحكام]],data.s[[#This Row],[الشهداء]:[خصم 5% تأمين من المستحق]],0),0) -> 0 | CV38: =IF($G38=data.s[[#Headers],[إعارة]],$BE38-SUM(data.s[[#This Row],[تأمينات 2026]:[تنفيذ أحكام]],data.s[[#This Row],[الشهداء]:[خصم 5% تأمين من المستحق]],0),0) -> 0 | CW38: =IF($G38=data.s[[#Headers],[انهاء]],$BE38-SUM(data.s[[#This Row],[تأمينات 2026]:[تنفيذ أحكام]],data.s[[#This Row],[الشهداء]:[خصم 5% تأمين من المستحق]],0),0) -> 0 | CX38: =IF($G38=data.s[[#Headers],[معاش]],$BE38-SUM(data.s[[#This Row],[تأمينات 2026]:[تنفيذ أحكام]],data.s[[#This Row],[الشهداء]:[خصم 5% تأمين من المستحق]],0),0) -> 0 | CY38: =SUM(data.s[[#This Row],[تأمينات 2026]:[تنفيذ أحكام]],data.s[[#This Row],[الشهداء]:[معاش]]) -> 2388.119527 | CZ38: =data.s[[#This Row],[إجمالي المستحق]]-data.s[[#This Row],[إجمالي المستقطع]] -> 4611.880473
B39: 302041 | C39: 44034 | D39: =VLOOKUP(data.s[[#This Row],[كود الشركة]],#REF!,MATCH(data.s[[#Headers],[التعامل المالي]],#REF!,0),FALSE) ->  | E39: عماد حمدى صالح محمود | H39: سائق نقل | I39: عقد مؤقت | L39: فرع الاميرية | M39: المنطقه المركزية | N39: =data.s[[#This Row],[كود الشركة]]&data.s[[#This Row],[كود البيرول]]&data.s[[#This Row],[التعامل المالي]]&data.s[[#This Row],[اسم الموظف]]&data.s[[#This Row],[الموظف المختص]]&data.s[[#This Row],[حالة العمل]]&data.s[[#This Row],[التصنيف الادارى]]&data.s[[#This Row],[الدرجة]] ->  | P39: =IF(data.s[[#This Row],[ترقية 7/2025]]<>"","نعم","") ->  | Q39: 410.26 | R39: 410.26 | T39: =IF(data.s[[#This Row],[الوظيفة]]="سائق ملاكي",data.s[[#This Row],[أساسي 7/2025]]*135%,0) -> 0 | U39: =IF(data.s[[#This Row],[الوظيفة]]="سائق ملاكي",data.s[[#This Row],[أساسي 7/2025]]*15%,"") ->  | Z39: =data.s[[#This Row],[أساسي 7/2025]]*15% -> 61.539 | AE39: 0 | AF39: =IFERROR(VLOOKUP(data.s[[#This Row],[كود الشركة]:[كود الشركة]],#REF!,MATCH(data.s[[#Headers],[بدل تباع]],#REF!,0),FALSE),0) -> 0 | AG39: =SUM(data.s[[#This Row],[بدل مخاطر]:[بدل تفرغ]])-data.s[[#This Row],[بدل تمثيل]] -> 61.539 | AS39: 928.08 | AW39: =SUM(data.s[[#This Row],[علاوة 2014]:[علاوة اجتماعية]]) -> 928.08 | AX39: 10 | AY39: =(data.s[[#This Row],[أساسي 7/2025]]*2)/12 -> 68.37666667 | BC39: =SUM(data.s[[#This Row],[أساسي 7/2025]:[حافز موانى]],data.s[[#This Row],[أومر الشغل للملاكي]],data.s[[#This Row],[إجمالي بدلات]],data.s[[#This Row],[إجمالي علاوات]:[متوسط المنحة]]) -> 1478.255667 | BD39: =IF(data.s[[#This Row],[الإجمالي]]<7000,7000-data.s[[#This Row],[الإجمالي]],0) -> 5521.744333 | BE39: =IF(data.s[[#This Row],[حالة العمل]]="إيقاف",data.s[[#This Row],[أساسي 7/2025]],SUM(data.s[[#This Row],[رد مستحقات]:[مكمل الأجر]])) -> 7000 | BJ39: =ROUND(data.s[[#This Row],[تأمينات 2026]]/11%,2) -> 12375.63 | BK39: 1361.318925 | BM39: =(((data.s[[#This Row],[إجمالي المستحق]]+data.s[[#This Row],[عمولة انتاج]])-(data.s[[#This Row],[الحافز]]+data.s[[#This Row],[عمولة انتاج]]+data.s[[#This Row],[متوسط المنحة]]+data.s[[#This Row],[رد مستحقات]]+data.s[[#This Row],[بدل سهر]]+data.s[[#This Row],[الإضافي]]))/30)*data.s[[#This Row],[أيام الغياب]] -> 0 | BN39: =(((data.s[[#This Row],[إجمالي المستحق]]+data.s[[#This Row],[عمولة انتاج]])-(data.s[[#This Row],[الحافز]]+data.s[[#This Row],[عمولة انتاج]]+data.s[[#This Row],[متوسط المنحة]]+data.s[[#This Row],[رد مستحقات]]+data.s[[#This Row],[بدل سهر]]+data.s[[#This Row],[الإضافي]]))/30)*data.s[[#This Row],[أيام جزاء]] -> 0 | BO39: =IF(data.s[[#This Row],[أيام الغياب]]=1,data.s[[#This Row],[الحافز]]*20%,IF(data.s[[#This Row],[أيام الغياب]]=2,data.s[[#This Row],[الحافز]]*30%,IF(data.s[[#This Row],[أيام الغياب]]>2,data.s[[#This Row],[الحافز]]*100%,""))) ->  | BQ39: =IFERROR(IF(data.s[[#This Row],[أيام أجازات بعد السنوية]]<=2,data.s[[#This Row],[الحافز]]*0,IF(data.s[[#This Row],[أيام أجازات بعد السنوية]]=3,data.s[[#This Row],[الحافز]]*30%,IF(data.s[[#This Row],[أيام أجازات بعد السنوية]]=4,data.s[[#This Row],[الحافز]]*40%,IF(data.s[[#This Row],[أيام أجازات بعد السنوية]]=5,data.s[[#This Row],[الحافز]]*50%,IF(data.s[[#This Row],[أيام أجازات بعد السنوية]]>5,data.s[[#This Row],[الحافز]]*100%,""))))),"") -> 0 | BU39: 3 | BW39: 820.5 | BX39: 1222.55 | CG39: =data.s[[#This Row],[مخالفات مرور]]+data.s[[#This Row],[سلفة]]+data.s[[#This Row],[تعويضات]]+data.s[[#This Row],[عجز]]+data.s[[#This Row],[تلفيات]]+data.s[[#This Row],[عهد]]+data.s[[#This Row],[سولار]] -> 1222.55 | CH39: 9.57 | CI39: 3 | CP39: 0 | CQ39: =data.s[[#This Row],[متوسط المنحة]] -> 68.37666667 | CR39: =IF(data.s[[#This Row],[التصنيف الادارى]]="سائق نقل",data.s[[#This Row],[إجمالي المستحق]]*5%,0) -> 350 | CS39: =IF($G39=data.s[[#Headers],[انقطاع]],$BE39-SUM(data.s[[#This Row],[تأمينات 2026]:[تنفيذ أحكام]],data.s[[#This Row],[الشهداء]:[خصم 5% تأمين من المستحق]],0),0) -> 0 | CT39: =IF($G39=CT$3,$BE39-SUM(data.s[[#This Row],[تأمينات 2026]:[تنفيذ أحكام]],data.s[[#This Row],[الشهداء]:[خصم 5% تأمين من المستحق]],0),0) -> 0 | CU39: =IF($G39=CU$3,$BE39-SUM(data.s[[#This Row],[تأمينات 2026]:[تنفيذ أحكام]],data.s[[#This Row],[الشهداء]:[خصم 5% تأمين من المستحق]],0),0) -> 0 | CV39: =IF($G39=data.s[[#Headers],[إعارة]],$BE39-SUM(data.s[[#This Row],[تأمينات 2026]:[تنفيذ أحكام]],data.s[[#This Row],[الشهداء]:[خصم 5% تأمين من المستحق]],0),0) -> 0 | CW39: =IF($G39=data.s[[#Headers],[انهاء]],$BE39-SUM(data.s[[#This Row],[تأمينات 2026]:[تنفيذ أحكام]],data.s[[#This Row],[الشهداء]:[خصم 5% تأمين من المستحق]],0),0) -> 0 | CX39: =IF($G39=data.s[[#Headers],[معاش]],$BE39-SUM(data.s[[#This Row],[تأمينات 2026]:[تنفيذ أحكام]],data.s[[#This Row],[الشهداء]:[خصم 5% تأمين من المستحق]],0),0) -> 0 | CY39: =SUM(data.s[[#This Row],[تأمينات 2026]:[تنفيذ أحكام]],data.s[[#This Row],[الشهداء]:[معاش]]) -> 3838.315592 | CZ39: =data.s[[#This Row],[إجمالي المستحق]]-data.s[[#This Row],[إجمالي المستقطع]] -> 3161.684408
B40: 302042 | C40: 44040 | D40: =VLOOKUP(data.s[[#This Row],[كود الشركة]],#REF!,MATCH(data.s[[#Headers],[التعامل المالي]],#REF!,0),FALSE) ->  | E40: محمد احمد منصور حبيب | H40: سائق نقل | I40: عقد مؤقت | L40: فرع الاميرية | M40: المنطقه المركزية | N40: =data.s[[#This Row],[كود الشركة]]&data.s[[#This Row],[كود البيرول]]&data.s[[#This Row],[التعامل المالي]]&data.s[[#This Row],[اسم الموظف]]&data.s[[#This Row],[الموظف المختص]]&data.s[[#This Row],[حالة العمل]]&data.s[[#This Row],[التصنيف الادارى]]&data.s[[#This Row],[الدرجة]] ->  | P40: =IF(data.s[[#This Row],[ترقية 7/2025]]<>"","نعم","") ->  | Q40: 410.26 | R40: 410.26 | T40: =IF(data.s[[#This Row],[الوظيفة]]="سائق ملاكي",data.s[[#This Row],[أساسي 7/2025]]*135%,0) -> 0 | U40: =IF(data.s[[#This Row],[الوظيفة]]="سائق ملاكي",data.s[[#This Row],[أساسي 7/2025]]*15%,"") ->  | Z40: =data.s[[#This Row],[أساسي 7/2025]]*15% -> 61.539 | AE40: 0 | AF40: =IFERROR(VLOOKUP(data.s[[#This Row],[كود الشركة]:[كود الشركة]],#REF!,MATCH(data.s[[#Headers],[بدل تباع]],#REF!,0),FALSE),0) -> 0 | AG40: =SUM(data.s[[#This Row],[بدل مخاطر]:[بدل تفرغ]])-data.s[[#This Row],[بدل تمثيل]] -> 61.539 | AS40: 928.08 | AW40: =SUM(data.s[[#This Row],[علاوة 2014]:[علاوة اجتماعية]]) -> 928.08 | AX40: 10 | AY40: =(data.s[[#This Row],[أساسي 7/2025]]*2)/12 -> 68.37666667 | BC40: =SUM(data.s[[#This Row],[أساسي 7/2025]:[حافز موانى]],data.s[[#This Row],[أومر الشغل للملاكي]],data.s[[#This Row],[إجمالي بدلات]],data.s[[#This Row],[إجمالي علاوات]:[متوسط المنحة]]) -> 1478.255667 | BD40: =IF(data.s[[#This Row],[الإجمالي]]<7000,7000-data.s[[#This Row],[الإجمالي]],0) -> 5521.744333 | BE40: =IF(data.s[[#This Row],[حالة العمل]]="إيقاف",data.s[[#This Row],[أساسي 7/2025]],SUM(data.s[[#This Row],[رد مستحقات]:[مكمل الأجر]])) -> 7000 | BI40: 5 | BJ40: =ROUND(data.s[[#This Row],[تأمينات 2026]]/11%,2) -> 9027.47 | BK40: 993.0219669 | BM40: =(((data.s[[#This Row],[إجمالي المستحق]]+data.s[[#This Row],[عمولة انتاج]])-(data.s[[#This Row],[الحافز]]+data.s[[#This Row],[عمولة انتاج]]+data.s[[#This Row],[متوسط المنحة]]+data.s[[#This Row],[رد مستحقات]]+data.s[[#This Row],[بدل سهر]]+data.s[[#This Row],[الإضافي]]))/30)*data.s[[#This Row],[أيام الغياب]] -> 0 | BN40: =(((data.s[[#This Row],[إجمالي المستحق]]+data.s[[#This Row],[عمولة انتاج]])-(data.s[[#This Row],[الحافز]]+data.s[[#This Row],[عمولة انتاج]]+data.s[[#This Row],[متوسط المنحة]]+data.s[[#This Row],[رد مستحقات]]+data.s[[#This Row],[بدل سهر]]+data.s[[#This Row],[الإضافي]]))/30)*data.s[[#This Row],[أيام جزاء]] -> 1155.270556 | BO40: =IF(data.s[[#This Row],[أيام الغياب]]=1,data.s[[#This Row],[الحافز]]*20%,IF(data.s[[#This Row],[أيام الغياب]]=2,data.s[[#This Row],[الحافز]]*30%,IF(data.s[[#This Row],[أيام الغياب]]>2,data.s[[#This Row],[الحافز]]*100%,""))) ->  | BQ40: =IFERROR(IF(data.s[[#This Row],[أيام أجازات بعد السنوية]]<=2,data.s[[#This Row],[الحافز]]*0,IF(data.s[[#This Row],[أيام أجازات بعد السنوية]]=3,data.s[[#This Row],[الحافز]]*30%,IF(data.s[[#This Row],[أيام أجازات بعد السنوية]]=4,data.s[[#This Row],[الحافز]]*40%,IF(data.s[[#This Row],[أيام أجازات بعد السنوية]]=5,data.s[[#This Row],[الحافز]]*50%,IF(data.s[[#This Row],[أيام أجازات بعد السنوية]]>5,data.s[[#This Row],[الحافز]]*100%,""))))),"") -> 0 | BU40: 3 | BW40: 1490.26 | BX40: 500 | BY40: 1000 | BZ40: 250 | CG40: =data.s[[#This Row],[مخالفات مرور]]+data.s[[#This Row],[سلفة]]+data.s[[#This Row],[تعويضات]]+data.s[[#This Row],[عجز]]+data.s[[#This Row],[تلفيات]]+data.s[[#This Row],[عهد]]+data.s[[#This Row],[سولار]] -> 1750 | CH40: 7.2 | CI40: 3 | CP40: 0 | CQ40: =data.s[[#This Row],[متوسط المنحة]] -> 68.37666667 | CR40: =IF(data.s[[#This Row],[التصنيف الادارى]]="سائق نقل",data.s[[#This Row],[إجمالي المستحق]]*5%,0) -> 350 | CS40: =IF($G40=data.s[[#Headers],[انقطاع]],$BE40-SUM(data.s[[#This Row],[تأمينات 2026]:[تنفيذ أحكام]],data.s[[#This Row],[الشهداء]:[خصم 5% تأمين من المستحق]],0),0) -> 0 | CT40: =IF($G40=CT$3,$BE40-SUM(data.s[[#This Row],[تأمينات 2026]:[تنفيذ أحكام]],data.s[[#This Row],[الشهداء]:[خصم 5% تأمين من المستحق]],0),0) -> 0 | CU40: =IF($G40=CU$3,$BE40-SUM(data.s[[#This Row],[تأمينات 2026]:[تنفيذ أحكام]],data.s[[#This Row],[الشهداء]:[خصم 5% تأمين من المستحق]],0),0) -> 0 | CV40: =IF($G40=data.s[[#Headers],[إعارة]],$BE40-SUM(data.s[[#This Row],[تأمينات 2026]:[تنفيذ أحكام]],data.s[[#This Row],[الشهداء]:[خصم 5% تأمين من المستحق]],0),0) -> 0 | CW40: =IF($G40=data.s[[#Headers],[انهاء]],$BE40-SUM(data.s[[#This Row],[تأمينات 2026]:[تنفيذ أحكام]],data.s[[#This Row],[الشهداء]:[خصم 5% تأمين من المستحق]],0),0) -> 0 | CX40: =IF($G40=data.s[[#Headers],[معاش]],$BE40-SUM(data.s[[#This Row],[تأمينات 2026]:[تنفيذ أحكام]],data.s[[#This Row],[الشهداء]:[خصم 5% تأمين من المستحق]],0),0) -> 0 | CY40: =SUM(data.s[[#This Row],[تأمينات 2026]:[تنفيذ أحكام]],data.s[[#This Row],[الشهداء]:[معاش]]) -> 5820.129189 | CZ40: =data.s[[#This Row],[إجمالي المستحق]]-data.s[[#This Row],[إجمالي المستقطع]] -> 1179.870811
B41: 302043 | C41: 44026 | D41: =VLOOKUP(data.s[[#This Row],[كود الشركة]],#REF!,MATCH(data.s[[#Headers],[التعامل المالي]],#REF!,0),FALSE) ->  | E41: عبد الشافى السيد عبد الشافي مشعل | H41: سائق نقل | I41: عقد مؤقت | L41: فرع الاميرية | M41: المنطقه المركزية | N41: =data.s[[#This Row],[كود الشركة]]&data.s[[#This Row],[كود البيرول]]&data.s[[#This Row],[التعامل المالي]]&data.s[[#This Row],[اسم الموظف]]&data.s[[#This Row],[الموظف المختص]]&data.s[[#This Row],[حالة العمل]]&data.s[[#This Row],[التصنيف الادارى]]&data.s[[#This Row],[الدرجة]] ->  | P41: =IF(data.s[[#This Row],[ترقية 7/2025]]<>"","نعم","") ->  | Q41: 428.23 | R41: 428.23 | T41: =IF(data.s[[#This Row],[الوظيفة]]="سائق ملاكي",data.s[[#This Row],[أساسي 7/2025]]*135%,0) -> 0 | U41: =IF(data.s[[#This Row],[الوظيفة]]="سائق ملاكي",data.s[[#This Row],[أساسي 7/2025]]*15%,"") ->  | Z41: =data.s[[#This Row],[أساسي 7/2025]]*15% -> 64.2345 | AE41: 0 | AF41: =IFERROR(VLOOKUP(data.s[[#This Row],[كود الشركة]:[كود الشركة]],#REF!,MATCH(data.s[[#Headers],[بدل تباع]],#REF!,0),FALSE),0) -> 0 | AG41: =SUM(data.s[[#This Row],[بدل مخاطر]:[بدل تفرغ]])-data.s[[#This Row],[بدل تمثيل]] -> 64.2345 | AS41: 930.63 | AW41: =SUM(data.s[[#This Row],[علاوة 2014]:[علاوة اجتماعية]]) -> 930.63 | AX41: 10 | AY41: =(data.s[[#This Row],[أساسي 7/2025]]*2)/12 -> 71.37166667 | BC41: =SUM(data.s[[#This Row],[أساسي 7/2025]:[حافز موانى]],data.s[[#This Row],[أومر الشغل للملاكي]],data.s[[#This Row],[إجمالي بدلات]],data.s[[#This Row],[إجمالي علاوات]:[متوسط المنحة]]) -> 1504.466167 | BD41: =IF(data.s[[#This Row],[الإجمالي]]<7000,7000-data.s[[#This Row],[الإجمالي]],0) -> 5495.533833 | BE41: =IF(data.s[[#This Row],[حالة العمل]]="إيقاف",data.s[[#This Row],[أساسي 7/2025]],SUM(data.s[[#This Row],[رد مستحقات]:[مكمل الأجر]])) -> 7000 | BH41: 4 | BJ41: =ROUND(data.s[[#This Row],[تأمينات 2026]]/11%,2) -> 11291.24 | BK41: 1242.036233 | BM41: =(((data.s[[#This Row],[إجمالي المستحق]]+data.s[[#This Row],[عمولة انتاج]])-(data.s[[#This Row],[الحافز]]+data.s[[#This Row],[عمولة انتاج]]+data.s[[#This Row],[متوسط المنحة]]+data.s[[#This Row],[رد مستحقات]]+data.s[[#This Row],[بدل سهر]]+data.s[[#This Row],[الإضافي]]))/30)*data.s[[#This Row],[أيام الغياب]] -> 923.8171111 | BN41: =(((data.s[[#This Row],[إجمالي المستحق]]+data.s[[#This Row],[عمولة انتاج]])-(data.s[[#This Row],[الحافز]]+data.s[[#This Row],[عمولة انتاج]]+data.s[[#This Row],[متوسط المنحة]]+data.s[[#This Row],[رد مستحقات]]+data.s[[#This Row],[بدل سهر]]+data.s[[#This Row],[الإضافي]]))/30)*data.s[[#This Row],[أيام جزاء]] -> 0 | BO41: =IF(data.s[[#This Row],[أيام الغياب]]=1,data.s[[#This Row],[الحافز]]*20%,IF(data.s[[#This Row],[أيام الغياب]]=2,data.s[[#This Row],[الحافز]]*30%,IF(data.s[[#This Row],[أيام الغياب]]>2,data.s[[#This Row],[الحافز]]*100%,""))) -> 0 | BQ41: =IFERROR(IF(data.s[[#This Row],[أيام أجازات بعد السنوية]]<=2,data.s[[#This Row],[الحافز]]*0,IF(data.s[[#This Row],[أيام أجازات بعد السنوية]]=3,data.s[[#This Row],[الحافز]]*30%,IF(data.s[[#This Row],[أيام أجازات بعد السنوية]]=4,data.s[[#This Row],[الحافز]]*40%,IF(data.s[[#This Row],[أيام أجازات بعد السنوية]]=5,data.s[[#This Row],[الحافز]]*50%,IF(data.s[[#This Row],[أيام أجازات بعد السنوية]]>5,data.s[[#This Row],[الحافز]]*100%,""))))),"") -> 0 | BU41: 3 | CG41: =data.s[[#This Row],[مخالفات مرور]]+data.s[[#This Row],[سلفة]]+data.s[[#This Row],[تعويضات]]+data.s[[#This Row],[عجز]]+data.s[[#This Row],[تلفيات]]+data.s[[#This Row],[عهد]]+data.s[[#This Row],[سولار]] -> 0 | CH41: 10.67 | CI41: 3 | CP41: 0 | CQ41: =data.s[[#This Row],[متوسط المنحة]] -> 71.37166667 | CR41: =IF(data.s[[#This Row],[التصنيف الادارى]]="سائق نقل",data.s[[#This Row],[إجمالي المستحق]]*5%,0) -> 350 | CS41: =IF($G41=data.s[[#Headers],[انقطاع]],$BE41-SUM(data.s[[#This Row],[تأمينات 2026]:[تنفيذ أحكام]],data.s[[#This Row],[الشهداء]:[خصم 5% تأمين من المستحق]],0),0) -> 0 | CT41: =IF($G41=CT$3,$BE41-SUM(data.s[[#This Row],[تأمينات 2026]:[تنفيذ أحكام]],data.s[[#This Row],[الشهداء]:[خصم 5% تأمين من المستحق]],0),0) -> 0 | CU41: =IF($G41=CU$3,$BE41-SUM(data.s[[#This Row],[تأمينات 2026]:[تنفيذ أحكام]],data.s[[#This Row],[الشهداء]:[خصم 5% تأمين من المستحق]],0),0) -> 0 | CV41: =IF($G41=data.s[[#Headers],[إعارة]],$BE41-SUM(data.s[[#This Row],[تأمينات 2026]:[تنفيذ أحكام]],data.s[[#This Row],[الشهداء]:[خصم 5% تأمين من المستحق]],0),0) -> 0 | CW41: =IF($G41=data.s[[#Headers],[انهاء]],$BE41-SUM(data.s[[#This Row],[تأمينات 2026]:[تنفيذ أحكام]],data.s[[#This Row],[الشهداء]:[خصم 5% تأمين من المستحق]],0),0) -> 0 | CX41: =IF($G41=data.s[[#Headers],[معاش]],$BE41-SUM(data.s[[#This Row],[تأمينات 2026]:[تنفيذ أحكام]],data.s[[#This Row],[الشهداء]:[خصم 5% تأمين من المستحق]],0),0) -> 0 | CY41: =SUM(data.s[[#This Row],[تأمينات 2026]:[تنفيذ أحكام]],data.s[[#This Row],[الشهداء]:[معاش]]) -> 2603.895011 | CZ41: =data.s[[#This Row],[إجمالي المستحق]]-data.s[[#This Row],[إجمالي المستقطع]] -> 4396.104989
B42: 302044 | C42: 29049 | D42: =VLOOKUP(data.s[[#This Row],[كود الشركة]],#REF!,MATCH(data.s[[#Headers],[التعامل المالي]],#REF!,0),FALSE) ->  | E42: عادل محمد محمد عوض | H42: سائق نقل | I42: الرابعة | J42: الرابعة | K42: سائق نقل | L42: فرع الاميرية | M42: المنطقه المركزية | N42: =data.s[[#This Row],[كود الشركة]]&data.s[[#This Row],[كود البيرول]]&data.s[[#This Row],[التعامل المالي]]&data.s[[#This Row],[اسم الموظف]]&data.s[[#This Row],[الموظف المختص]]&data.s[[#This Row],[حالة العمل]]&data.s[[#This Row],[التصنيف الادارى]]&data.s[[#This Row],[الدرجة]] ->  | P42: =IF(data.s[[#This Row],[ترقية 7/2025]]<>"","نعم","") -> نعم | Q42: 575.41 | R42: 673.2297 | T42: =IF(data.s[[#This Row],[الوظيفة]]="سائق ملاكي",data.s[[#This Row],[أساسي 7/2025]]*135%,0) -> 0 | U42: =IF(data.s[[#This Row],[الوظيفة]]="سائق ملاكي",data.s[[#This Row],[أساسي 7/2025]]*15%,"") ->  | Z42: =data.s[[#This Row],[أساسي 7/2025]]*15% -> 100.984455 | AE42: 0 | AF42: =IFERROR(VLOOKUP(data.s[[#This Row],[كود الشركة]:[كود الشركة]],#REF!,MATCH(data.s[[#Headers],[بدل تباع]],#REF!,0),FALSE),0) -> 0 | AG42: =SUM(data.s[[#This Row],[بدل مخاطر]:[بدل تفرغ]])-data.s[[#This Row],[بدل تمثيل]] -> 100.984455 | AS42: 1238.318456 | AT42: 92.459 | AW42: =SUM(data.s[[#This Row],[علاوة 2014]:[علاوة اجتماعية]]) -> 1330.777456 | AX42: 10 | AY42: =(data.s[[#This Row],[أساسي 7/2025]]*2)/12 -> 112.20495 | BC42: =SUM(data.s[[#This Row],[أساسي 7/2025]:[حافز موانى]],data.s[[#This Row],[أومر الشغل للملاكي]],data.s[[#This Row],[إجمالي بدلات]],data.s[[#This Row],[إجمالي علاوات]:[متوسط المنحة]]) -> 2227.196561 | BD42: =IF(data.s[[#This Row],[الإجمالي]]<7000,7000-data.s[[#This Row],[الإجمالي]],0) -> 4772.803439 | BE42: =IF(data.s[[#This Row],[حالة العمل]]="إيقاف",data.s[[#This Row],[أساسي 7/2025]],SUM(data.s[[#This Row],[رد مستحقات]:[مكمل الأجر]])) -> 7000 | BI42: 5 | BJ42: =ROUND(data.s[[#This Row],[تأمينات 2026]]/11%,2) -> 11183.75 | BK42: 1230.2124 | BM42: =(((data.s[[#This Row],[إجمالي المستحق]]+data.s[[#This Row],[عمولة انتاج]])-(data.s[[#This Row],[الحافز]]+data.s[[#This Row],[عمولة انتاج]]+data.s[[#This Row],[متوسط المنحة]]+data.s[[#This Row],[رد مستحقات]]+data.s[[#This Row],[بدل سهر]]+data.s[[#This Row],[الإضافي]]))/30)*data.s[[#This Row],[أيام الغياب]] -> 0 | BN42: =(((data.s[[#This Row],[إجمالي المستحق]]+data.s[[#This Row],[عمولة انتاج]])-(data.s[[#This Row],[الحافز]]+data.s[[#This Row],[عمولة انتاج]]+data.s[[#This Row],[متوسط المنحة]]+data.s[[#This Row],[رد مستحقات]]+data.s[[#This Row],[بدل سهر]]+data.s[[#This Row],[الإضافي]]))/30)*data.s[[#This Row],[أيام جزاء]] -> 1147.965842 | BO42: =IF(data.s[[#This Row],[أيام الغياب]]=1,data.s[[#This Row],[الحافز]]*20%,IF(data.s[[#This Row],[أيام الغياب]]=2,data.s[[#This Row],[الحافز]]*30%,IF(data.s[[#This Row],[أيام الغياب]]>2,data.s[[#This Row],[الحافز]]*100%,""))) ->  | BQ42: =IFERROR(IF(data.s[[#This Row],[أيام أجازات بعد السنوية]]<=2,data.s[[#This Row],[الحافز]]*0,IF(data.s[[#This Row],[أيام أجازات بعد السنوية]]=3,data.s[[#This Row],[الحافز]]*30%,IF(data.s[[#This Row],[أيام أجازات بعد السنوية]]=4,data.s[[#This Row],[الحافز]]*40%,IF(data.s[[#This Row],[أيام أجازات بعد السنوية]]=5,data.s[[#This Row],[الحافز]]*50%,IF(data.s[[#This Row],[أيام أجازات بعد السنوية]]>5,data.s[[#This Row],[الحافز]]*100%,""))))),"") -> 0 | BU42: 3 | CG42: =data.s[[#This Row],[مخالفات مرور]]+data.s[[#This Row],[سلفة]]+data.s[[#This Row],[تعويضات]]+data.s[[#This Row],[عجز]]+data.s[[#This Row],[تلفيات]]+data.s[[#This Row],[عهد]]+data.s[[#This Row],[سولار]] -> 0 | CH42: 11.57 | CI42: 3 | CP42: 0 | CQ42: =data.s[[#This Row],[متوسط المنحة]] -> 112.20495 | CR42: =IF(data.s[[#This Row],[التصنيف الادارى]]="سائق نقل",data.s[[#This Row],[إجمالي المستحق]]*5%,0) -> 350 | CS42: =IF($G42=data.s[[#Headers],[انقطاع]],$BE42-SUM(data.s[[#This Row],[تأمينات 2026]:[تنفيذ أحكام]],data.s[[#This Row],[الشهداء]:[خصم 5% تأمين من المستحق]],0),0) -> 0 | CT42: =IF($G42=CT$3,$BE42-SUM(data.s[[#This Row],[تأمينات 2026]:[تنفيذ أحكام]],data.s[[#This Row],[الشهداء]:[خصم 5% تأمين من المستحق]],0),0) -> 0 | CU42: =IF($G42=CU$3,$BE42-SUM(data.s[[#This Row],[تأمينات 2026]:[تنفيذ أحكام]],data.s[[#This Row],[الشهداء]:[خصم 5% تأمين من المستحق]],0),0) -> 0 | CV42: =IF($G42=data.s[[#Headers],[إعارة]],$BE42-SUM(data.s[[#This Row],[تأمينات 2026]:[تنفيذ أحكام]],data.s[[#This Row],[الشهداء]:[خصم 5% تأمين من المستحق]],0),0) -> 0 | CW42: =IF($G42=data.s[[#Headers],[انهاء]],$BE42-SUM(data.s[[#This Row],[تأمينات 2026]:[تنفيذ أحكام]],data.s[[#This Row],[الشهداء]:[خصم 5% تأمين من المستحق]],0),0) -> 0 | CX42: =IF($G42=data.s[[#Headers],[معاش]],$BE42-SUM(data.s[[#This Row],[تأمينات 2026]:[تنفيذ أحكام]],data.s[[#This Row],[الشهداء]:[خصم 5% تأمين من المستحق]],0),0) -> 0 | CY42: =SUM(data.s[[#This Row],[تأمينات 2026]:[تنفيذ أحكام]],data.s[[#This Row],[الشهداء]:[معاش]]) -> 2857.953192 | CZ42: =data.s[[#This Row],[إجمالي المستحق]]-data.s[[#This Row],[إجمالي المستقطع]] -> 4142.046808
B43: 302045 | C43: 35668 | D43: =VLOOKUP(data.s[[#This Row],[كود الشركة]],#REF!,MATCH(data.s[[#Headers],[التعامل المالي]],#REF!,0),FALSE) ->  | E43: اشرف حامد السيد احمد قابيل | H43: سائق نقل | I43: الخامسة | L43: فرع الاميرية | M43: المنطقه المركزية | N43: =data.s[[#This Row],[كود الشركة]]&data.s[[#This Row],[كود البيرول]]&data.s[[#This Row],[التعامل المالي]]&data.s[[#This Row],[اسم الموظف]]&data.s[[#This Row],[الموظف المختص]]&data.s[[#This Row],[حالة العمل]]&data.s[[#This Row],[التصنيف الادارى]]&data.s[[#This Row],[الدرجة]] ->  | P43: =IF(data.s[[#This Row],[ترقية 7/2025]]<>"","نعم","") ->  | Q43: 937.65 | R43: 1097.05 | T43: =IF(data.s[[#This Row],[الوظيفة]]="سائق ملاكي",data.s[[#This Row],[أساسي 7/2025]]*135%,0) -> 0 | U43: =IF(data.s[[#This Row],[الوظيفة]]="سائق ملاكي",data.s[[#This Row],[أساسي 7/2025]]*15%,"") ->  | Z43: =data.s[[#This Row],[أساسي 7/2025]]*15% -> 164.5575 | AE43: 0 | AF43: =IFERROR(VLOOKUP(data.s[[#This Row],[كود الشركة]:[كود الشركة]],#REF!,MATCH(data.s[[#Headers],[بدل تباع]],#REF!,0),FALSE),0) -> 0 | AG43: =SUM(data.s[[#This Row],[بدل مخاطر]:[بدل تفرغ]])-data.s[[#This Row],[بدل تمثيل]] -> 164.5575 | AS43: 1266.78 | AT43: 56.235 | AW43: =SUM(data.s[[#This Row],[علاوة 2014]:[علاوة اجتماعية]]) -> 1323.015 | AX43: 10 | AY43: =(data.s[[#This Row],[أساسي 7/2025]]*2)/12 -> 182.8416667 | BC43: =SUM(data.s[[#This Row],[أساسي 7/2025]:[حافز موانى]],data.s[[#This Row],[أومر الشغل للملاكي]],data.s[[#This Row],[إجمالي بدلات]],data.s[[#This Row],[إجمالي علاوات]:[متوسط المنحة]]) -> 2777.464167 | BD43: =IF(data.s[[#This Row],[الإجمالي]]<7000,7000-data.s[[#This Row],[الإجمالي]],0) -> 4222.535833 | BE43: =IF(data.s[[#This Row],[حالة العمل]]="إيقاف",data.s[[#This Row],[أساسي 7/2025]],SUM(data.s[[#This Row],[رد مستحقات]:[مكمل الأجر]])) -> 7000 | BI43: 2 | BJ43: =ROUND(data.s[[#This Row],[تأمينات 2026]]/11%,2) -> 13338.62 | BK43: 1467.248322 | BM43: =(((data.s[[#This Row],[إجمالي المستحق]]+data.s[[#This Row],[عمولة انتاج]])-(data.s[[#This Row],[الحافز]]+data.s[[#This Row],[عمولة انتاج]]+data.s[[#This Row],[متوسط المنحة]]+data.s[[#This Row],[رد مستحقات]]+data.s[[#This Row],[بدل سهر]]+data.s[[#This Row],[الإضافي]]))/30)*data.s[[#This Row],[أيام الغياب]] -> 0 | BN43: =(((data.s[[#This Row],[إجمالي المستحق]]+data.s[[#This Row],[عمولة انتاج]])-(data.s[[#This Row],[الحافز]]+data.s[[#This Row],[عمولة انتاج]]+data.s[[#This Row],[متوسط المنحة]]+data.s[[#This Row],[رد مستحقات]]+data.s[[#This Row],[بدل سهر]]+data.s[[#This Row],[الإضافي]]))/30)*data.s[[#This Row],[أيام جزاء]] -> 454.4772222 | BO43: =IF(data.s[[#This Row],[أيام الغياب]]=1,data.s[[#This Row],[الحافز]]*20%,IF(data.s[[#This Row],[أيام الغياب]]=2,data.s[[#This Row],[الحافز]]*30%,IF(data.s[[#This Row],[أيام الغياب]]>2,data.s[[#This Row],[الحافز]]*100%,""))) ->  | BQ43: =IFERROR(IF(data.s[[#This Row],[أيام أجازات بعد السنوية]]<=2,data.s[[#This Row],[الحافز]]*0,IF(data.s[[#This Row],[أيام أجازات بعد السنوية]]=3,data.s[[#This Row],[الحافز]]*30%,IF(data.s[[#This Row],[أيام أجازات بعد السنوية]]=4,data.s[[#This Row],[الحافز]]*40%,IF(data.s[[#This Row],[أيام أجازات بعد السنوية]]=5,data.s[[#This Row],[الحافز]]*50%,IF(data.s[[#This Row],[أيام أجازات بعد السنوية]]>5,data.s[[#This Row],[الحافز]]*100%,""))))),"") -> 0 | BU43: 3 | CG43: =data.s[[#This Row],[مخالفات مرور]]+data.s[[#This Row],[سلفة]]+data.s[[#This Row],[تعويضات]]+data.s[[#This Row],[عجز]]+data.s[[#This Row],[تلفيات]]+data.s[[#This Row],[عهد]]+data.s[[#This Row],[سولار]] -> 0 | CH43: 15.35 | CI43: 3 | CP43: 0 | CQ43: =data.s[[#This Row],[متوسط المنحة]] -> 182.8416667 | CR43: =IF(data.s[[#This Row],[التصنيف الادارى]]="سائق نقل",data.s[[#This Row],[إجمالي المستحق]]*5%,0) -> 350 | CS43: =IF($G43=data.s[[#Headers],[انقطاع]],$BE43-SUM(data.s[[#This Row],[تأمينات 2026]:[تنفيذ أحكام]],data.s[[#This Row],[الشهداء]:[خصم 5% تأمين من المستحق]],0),0) -> 0 | CT43: =IF($G43=CT$3,$BE43-SUM(data.s[[#This Row],[تأمينات 2026]:[تنفيذ أحكام]],data.s[[#This Row],[الشهداء]:[خصم 5% تأمين من المستحق]],0),0) -> 0 | CU43: =IF($G43=CU$3,$BE43-SUM(data.s[[#This Row],[تأمينات 2026]:[تنفيذ أحكام]],data.s[[#This Row],[الشهداء]:[خصم 5% تأمين من المستحق]],0),0) -> 0 | CV43: =IF($G43=data.s[[#Headers],[إعارة]],$BE43-SUM(data.s[[#This Row],[تأمينات 2026]:[تنفيذ أحكام]],data.s[[#This Row],[الشهداء]:[خصم 5% تأمين من المستحق]],0),0) -> 0 | CW43: =IF($G43=data.s[[#Headers],[انهاء]],$BE43-SUM(data.s[[#This Row],[تأمينات 2026]:[تنفيذ أحكام]],data.s[[#This Row],[الشهداء]:[خصم 5% تأمين من المستحق]],0),0) -> 0 | CX43: =IF($G43=data.s[[#Headers],[معاش]],$BE43-SUM(data.s[[#This Row],[تأمينات 2026]:[تنفيذ أحكام]],data.s[[#This Row],[الشهداء]:[خصم 5% تأمين من المستحق]],0),0) -> 0 | CY43: =SUM(data.s[[#This Row],[تأمينات 2026]:[تنفيذ أحكام]],data.s[[#This Row],[الشهداء]:[معاش]]) -> 2475.917211 | CZ43: =data.s[[#This Row],[إجمالي المستحق]]-data.s[[#This Row],[إجمالي المستقطع]] -> 4524.082789
B44: 302046 | C44: 29126 | D44: =VLOOKUP(data.s[[#This Row],[كود الشركة]],#REF!,MATCH(data.s[[#Headers],[التعامل المالي]],#REF!,0),FALSE) ->  | E44: عيد بيومي الشحات | H44: سائق نقل | I44: الخامسة | L44: فرع الاميرية | M44: المنطقه المركزية | N44: =data.s[[#This Row],[كود الشركة]]&data.s[[#This Row],[كود البيرول]]&data.s[[#This Row],[التعامل المالي]]&data.s[[#This Row],[اسم الموظف]]&data.s[[#This Row],[الموظف المختص]]&data.s[[#This Row],[حالة العمل]]&data.s[[#This Row],[التصنيف الادارى]]&data.s[[#This Row],[الدرجة]] ->  | P44: =IF(data.s[[#This Row],[ترقية 7/2025]]<>"","نعم","") ->  | Q44: 502.59 | R44: 588.03 | T44: =IF(data.s[[#This Row],[الوظيفة]]="سائق ملاكي",data.s[[#This Row],[أساسي 7/2025]]*135%,0) -> 0 | U44: =IF(data.s[[#This Row],[الوظيفة]]="سائق ملاكي",data.s[[#This Row],[أساسي 7/2025]]*15%,"") ->  | Z44: =data.s[[#This Row],[أساسي 7/2025]]*15% -> 88.2045 | AE44: 0 | AF44: =IFERROR(VLOOKUP(data.s[[#This Row],[كود الشركة]:[كود الشركة]],#REF!,MATCH(data.s[[#Headers],[بدل تباع]],#REF!,0),FALSE),0) -> 0 | AG44: =SUM(data.s[[#This Row],[بدل مخاطر]:[بدل تفرغ]])-data.s[[#This Row],[بدل تمثيل]] -> 88.2045 | AS44: 1157.598256 | AT44: 99.741 | AW44: =SUM(data.s[[#This Row],[علاوة 2014]:[علاوة اجتماعية]]) -> 1257.339256 | AX44: 10 | AY44: =(data.s[[#This Row],[أساسي 7/2025]]*2)/12 -> 98.005 | BC44: =SUM(data.s[[#This Row],[أساسي 7/2025]:[حافز موانى]],data.s[[#This Row],[أومر الشغل للملاكي]],data.s[[#This Row],[إجمالي بدلات]],data.s[[#This Row],[إجمالي علاوات]:[متوسط المنحة]]) -> 2041.578756 | BD44: =IF(data.s[[#This Row],[الإجمالي]]<7000,7000-data.s[[#This Row],[الإجمالي]],0) -> 4958.421244 | BE44: =IF(data.s[[#This Row],[حالة العمل]]="إيقاف",data.s[[#This Row],[أساسي 7/2025]],SUM(data.s[[#This Row],[رد مستحقات]:[مكمل الأجر]])) -> 7000 | BJ44: =ROUND(data.s[[#This Row],[تأمينات 2026]]/11%,2) -> 14041.07 | BK44: 1544.518207 | BM44: =(((data.s[[#This Row],[إجمالي المستحق]]+data.s[[#This Row],[عمولة انتاج]])-(data.s[[#This Row],[الحافز]]+data.s[[#This Row],[عمولة انتاج]]+data.s[[#This Row],[متوسط المنحة]]+data.s[[#This Row],[رد مستحقات]]+data.s[[#This Row],[بدل سهر]]+data.s[[#This Row],[الإضافي]]))/30)*data.s[[#This Row],[أيام الغياب]] -> 0 | BN44: =(((data.s[[#This Row],[إجمالي المستحق]]+data.s[[#This Row],[عمولة انتاج]])-(data.s[[#This Row],[الحافز]]+data.s[[#This Row],[عمولة انتاج]]+data.s[[#This Row],[متوسط المنحة]]+data.s[[#This Row],[رد مستحقات]]+data.s[[#This Row],[بدل سهر]]+data.s[[#This Row],[الإضافي]]))/30)*data.s[[#This Row],[أيام جزاء]] -> 0 | BO44: =IF(data.s[[#This Row],[أيام الغياب]]=1,data.s[[#This Row],[الحافز]]*20%,IF(data.s[[#This Row],[أيام الغياب]]=2,data.s[[#This Row],[الحافز]]*30%,IF(data.s[[#This Row],[أيام الغياب]]>2,data.s[[#This Row],[الحافز]]*100%,""))) ->  | BQ44: =IFERROR(IF(data.s[[#This Row],[أيام أجازات بعد السنوية]]<=2,data.s[[#This Row],[الحافز]]*0,IF(data.s[[#This Row],[أيام أجازات بعد السنوية]]=3,data.s[[#This Row],[الحافز]]*30%,IF(data.s[[#This Row],[أيام أجازات بعد السنوية]]=4,data.s[[#This Row],[الحافز]]*40%,IF(data.s[[#This Row],[أيام أجازات بعد السنوية]]=5,data.s[[#This Row],[الحافز]]*50%,IF(data.s[[#This Row],[أيام أجازات بعد السنوية]]>5,data.s[[#This Row],[الحافز]]*100%,""))))),"") -> 0 | BU44: 3 | BX44: 1000 | CE44: 750 | CG44: =data.s[[#This Row],[مخالفات مرور]]+data.s[[#This Row],[سلفة]]+data.s[[#This Row],[تعويضات]]+data.s[[#This Row],[عجز]]+data.s[[#This Row],[تلفيات]]+data.s[[#This Row],[عهد]]+data.s[[#This Row],[سولار]] -> 1750 | CH44: 18.07 | CI44: 3 | CP44: 0 | CQ44: =data.s[[#This Row],[متوسط المنحة]] -> 98.005 | CR44: =IF(data.s[[#This Row],[التصنيف الادارى]]="سائق نقل",data.s[[#This Row],[إجمالي المستحق]]*5%,0) -> 350 | CS44: =IF($G44=data.s[[#Headers],[انقطاع]],$BE44-SUM(data.s[[#This Row],[تأمينات 2026]:[تنفيذ أحكام]],data.s[[#This Row],[الشهداء]:[خصم 5% تأمين من المستحق]],0),0) -> 0 | CT44: =IF($G44=CT$3,$BE44-SUM(data.s[[#This Row],[تأمينات 2026]:[تنفيذ أحكام]],data.s[[#This Row],[الشهداء]:[خصم 5% تأمين من المستحق]],0),0) -> 0 | CU44: =IF($G44=CU$3,$BE44-SUM(data.s[[#This Row],[تأمينات 2026]:[تنفيذ أحكام]],data.s[[#This Row],[الشهداء]:[خصم 5% تأمين من المستحق]],0),0) -> 0 | CV44: =IF($G44=data.s[[#Headers],[إعارة]],$BE44-SUM(data.s[[#This Row],[تأمينات 2026]:[تنفيذ أحكام]],data.s[[#This Row],[الشهداء]:[خصم 5% تأمين من المستحق]],0),0) -> 0 | CW44: =IF($G44=data.s[[#Headers],[انهاء]],$BE44-SUM(data.s[[#This Row],[تأمينات 2026]:[تنفيذ أحكام]],data.s[[#This Row],[الشهداء]:[خصم 5% تأمين من المستحق]],0),0) -> 0 | CX44: =IF($G44=data.s[[#Headers],[معاش]],$BE44-SUM(data.s[[#This Row],[تأمينات 2026]:[تنفيذ أحكام]],data.s[[#This Row],[الشهداء]:[خصم 5% تأمين من المستحق]],0),0) -> 0 | CY44: =SUM(data.s[[#This Row],[تأمينات 2026]:[تنفيذ أحكام]],data.s[[#This Row],[الشهداء]:[معاش]]) -> 3766.593207 | CZ44: =data.s[[#This Row],[إجمالي المستحق]]-data.s[[#This Row],[إجمالي المستقطع]] -> 3233.406793
B45: 302047 | C45: 2567 | D45: =VLOOKUP(data.s[[#This Row],[كود الشركة]],#REF!,MATCH(data.s[[#Headers],[التعامل المالي]],#REF!,0),FALSE) ->  | E45: وليد عبد المقصود السيد | H45: سائق نقل | I45: الرابعة | J45: الرابعة | K45: سائق نقل | L45: فرع الاميرية | M45: المنطقه المركزية | N45: =data.s[[#This Row],[كود الشركة]]&data.s[[#This Row],[كود البيرول]]&data.s[[#This Row],[التعامل المالي]]&data.s[[#This Row],[اسم الموظف]]&data.s[[#This Row],[الموظف المختص]]&data.s[[#This Row],[حالة العمل]]&data.s[[#This Row],[التصنيف الادارى]]&data.s[[#This Row],[الدرجة]] ->  | P45: =IF(data.s[[#This Row],[ترقية 7/2025]]<>"","نعم","") -> نعم | Q45: 899.43 | R45: 1052.3331 | T45: =IF(data.s[[#This Row],[الوظيفة]]="سائق ملاكي",data.s[[#This Row],[أساسي 7/2025]]*135%,0) -> 0 | U45: =IF(data.s[[#This Row],[الوظيفة]]="سائق ملاكي",data.s[[#This Row],[أساسي 7/2025]]*15%,"") ->  | Z45: =data.s[[#This Row],[أساسي 7/2025]]*15% -> 157.849965 | AE45: 0 | AF45: =IFERROR(VLOOKUP(data.s[[#This Row],[كود الشركة]:[كود الشركة]],#REF!,MATCH(data.s[[#Headers],[بدل تباع]],#REF!,0),FALSE),0) -> 0 | AG45: =SUM(data.s[[#This Row],[بدل مخاطر]:[بدل تفرغ]])-data.s[[#This Row],[بدل تمثيل]] -> 157.849965 | AS45: 1259.944035 | AT45: 60.057 | AW45: =SUM(data.s[[#This Row],[علاوة 2014]:[علاوة اجتماعية]]) -> 1320.001035 | AX45: 10 | AY45: =(data.s[[#This Row],[أساسي 7/2025]]*2)/12 -> 175.38885 | BC45: =SUM(data.s[[#This Row],[أساسي 7/2025]:[حافز موانى]],data.s[[#This Row],[أومر الشغل للملاكي]],data.s[[#This Row],[إجمالي بدلات]],data.s[[#This Row],[إجمالي علاوات]:[متوسط المنحة]]) -> 2715.57295 | BD45: =IF(data.s[[#This Row],[الإجمالي]]<7000,7000-data.s[[#This Row],[الإجمالي]],0) -> 4284.42705 | BE45: =IF(data.s[[#This Row],[حالة العمل]]="إيقاف",data.s[[#This Row],[أساسي 7/2025]],SUM(data.s[[#This Row],[رد مستحقات]:[مكمل الأجر]])) -> 7000 | BI45: 5 | BJ45: =ROUND(data.s[[#This Row],[تأمينات 2026]]/11%,2) -> 14077.45 | BK45: 1548.519506 | BM45: =(((data.s[[#This Row],[إجمالي المستحق]]+data.s[[#This Row],[عمولة انتاج]])-(data.s[[#This Row],[الحافز]]+data.s[[#This Row],[عمولة انتاج]]+data.s[[#This Row],[متوسط المنحة]]+data.s[[#This Row],[رد مستحقات]]+data.s[[#This Row],[بدل سهر]]+data.s[[#This Row],[الإضافي]]))/30)*data.s[[#This Row],[أيام الغياب]] -> 0 | BN45: =(((data.s[[#This Row],[إجمالي المستحق]]+data.s[[#This Row],[عمولة انتاج]])-(data.s[[#This Row],[الحافز]]+data.s[[#This Row],[عمولة انتاج]]+data.s[[#This Row],[متوسط المنحة]]+data.s[[#This Row],[رد مستحقات]]+data.s[[#This Row],[بدل سهر]]+data.s[[#This Row],[الإضافي]]))/30)*data.s[[#This Row],[أيام جزاء]] -> 1137.435192 | BO45: =IF(data.s[[#This Row],[أيام الغياب]]=1,data.s[[#This Row],[الحافز]]*20%,IF(data.s[[#This Row],[أيام الغياب]]=2,data.s[[#This Row],[الحافز]]*30%,IF(data.s[[#This Row],[أيام الغياب]]>2,data.s[[#This Row],[الحافز]]*100%,""))) ->  | BQ45: =IFERROR(IF(data.s[[#This Row],[أيام أجازات بعد السنوية]]<=2,data.s[[#This Row],[الحافز]]*0,IF(data.s[[#This Row],[أيام أجازات بعد السنوية]]=3,data.s[[#This Row],[الحافز]]*30%,IF(data.s[[#This Row],[أيام أجازات بعد السنوية]]=4,data.s[[#This Row],[الحافز]]*40%,IF(data.s[[#This Row],[أيام أجازات بعد السنوية]]=5,data.s[[#This Row],[الحافز]]*50%,IF(data.s[[#This Row],[أيام أجازات بعد السنوية]]>5,data.s[[#This Row],[الحافز]]*100%,""))))),"") -> 0 | BU45: 3 | BX45: 1335 | CE45: 415 | CG45: =data.s[[#This Row],[مخالفات مرور]]+data.s[[#This Row],[سلفة]]+data.s[[#This Row],[تعويضات]]+data.s[[#This Row],[عجز]]+data.s[[#This Row],[تلفيات]]+data.s[[#This Row],[عهد]]+data.s[[#This Row],[سولار]] -> 1750 | CH45: 12.39 | CI45: 3 | CP45: 0 | CQ45: =data.s[[#This Row],[متوسط المنحة]] -> 175.38885 | CR45: =IF(data.s[[#This Row],[التصنيف الادارى]]="سائق نقل",data.s[[#This Row],[إجمالي المستحق]]*5%,0) -> 350 | CS45: =IF($G45=data.s[[#Headers],[انقطاع]],$BE45-SUM(data.s[[#This Row],[تأمينات 2026]:[تنفيذ أحكام]],data.s[[#This Row],[الشهداء]:[خصم 5% تأمين من المستحق]],0),0) -> 0 | CT45: =IF($G45=CT$3,$BE45-SUM(data.s[[#This Row],[تأمينات 2026]:[تنفيذ أحكام]],data.s[[#This Row],[الشهداء]:[خصم 5% تأمين من المستحق]],0),0) -> 0 | CU45: =IF($G45=CU$3,$BE45-SUM(data.s[[#This Row],[تأمينات 2026]:[تنفيذ أحكام]],data.s[[#This Row],[الشهداء]:[خصم 5% تأمين من المستحق]],0),0) -> 0 | CV45: =IF($G45=data.s[[#Headers],[إعارة]],$BE45-SUM(data.s[[#This Row],[تأمينات 2026]:[تنفيذ أحكام]],data.s[[#This Row],[الشهداء]:[خصم 5% تأمين من المستحق]],0),0) -> 0 | CW45: =IF($G45=data.s[[#Headers],[انهاء]],$BE45-SUM(data.s[[#This Row],[تأمينات 2026]:[تنفيذ أحكام]],data.s[[#This Row],[الشهداء]:[خصم 5% تأمين من المستحق]],0),0) -> 0 | CX45: =IF($G45=data.s[[#Headers],[معاش]],$BE45-SUM(data.s[[#This Row],[تأمينات 2026]:[تنفيذ أحكام]],data.s[[#This Row],[الشهداء]:[خصم 5% تأمين من المستحق]],0),0) -> 0 | CY45: =SUM(data.s[[#This Row],[تأمينات 2026]:[تنفيذ أحكام]],data.s[[#This Row],[الشهداء]:[معاش]]) -> 4979.733548 | CZ45: =data.s[[#This Row],[إجمالي المستحق]]-data.s[[#This Row],[إجمالي المستقطع]] -> 2020.266452
B46: 302048 | C46: 29102 | D46: =VLOOKUP(data.s[[#This Row],[كود الشركة]],#REF!,MATCH(data.s[[#Headers],[التعامل المالي]],#REF!,0),FALSE) ->  | E46: محمد احمد قرني مصطفي | H46: سائق نقل | I46: الرابعة | J46: الرابعة | K46: سائق نقل | L46: فرع الاميرية | M46: المنطقه المركزية | N46: =data.s[[#This Row],[كود الشركة]]&data.s[[#This Row],[كود البيرول]]&data.s[[#This Row],[التعامل المالي]]&data.s[[#This Row],[اسم الموظف]]&data.s[[#This Row],[الموظف المختص]]&data.s[[#This Row],[حالة العمل]]&data.s[[#This Row],[التصنيف الادارى]]&data.s[[#This Row],[الدرجة]] ->  | P46: =IF(data.s[[#This Row],[ترقية 7/2025]]<>"","نعم","") -> نعم | Q46: 919.47 | R46: 1075.7799 | T46: =IF(data.s[[#This Row],[الوظيفة]]="سائق ملاكي",data.s[[#This Row],[أساسي 7/2025]]*135%,0) -> 0 | U46: =IF(data.s[[#This Row],[الوظيفة]]="سائق ملاكي",data.s[[#This Row],[أساسي 7/2025]]*15%,"") ->  | Z46: =data.s[[#This Row],[أساسي 7/2025]]*15% -> 161.366985 | AE46: 0 | AF46: =IFERROR(VLOOKUP(data.s[[#This Row],[كود الشركة]:[كود الشركة]],#REF!,MATCH(data.s[[#Headers],[بدل تباع]],#REF!,0),FALSE),0) -> 0 | AG46: =SUM(data.s[[#This Row],[بدل مخاطر]:[بدل تفرغ]])-data.s[[#This Row],[بدل تمثيل]] -> 161.366985 | AS46: 1261.4407 | AT46: 58.053 | AW46: =SUM(data.s[[#This Row],[علاوة 2014]:[علاوة اجتماعية]]) -> 1319.4937 | AX46: 10 | AY46: =(data.s[[#This Row],[أساسي 7/2025]]*2)/12 -> 179.29665 | BC46: =SUM(data.s[[#This Row],[أساسي 7/2025]:[حافز موانى]],data.s[[#This Row],[أومر الشغل للملاكي]],data.s[[#This Row],[إجمالي بدلات]],data.s[[#This Row],[إجمالي علاوات]:[متوسط المنحة]]) -> 2745.937235 | BD46: =IF(data.s[[#This Row],[الإجمالي]]<7000,7000-data.s[[#This Row],[الإجمالي]],0) -> 4254.062765 | BE46: =IF(data.s[[#This Row],[حالة العمل]]="إيقاف",data.s[[#This Row],[أساسي 7/2025]],SUM(data.s[[#This Row],[رد مستحقات]:[مكمل الأجر]])) -> 7000 | BJ46: =ROUND(data.s[[#This Row],[تأمينات 2026]]/11%,2) -> 16700 | BK46: 1837 | BM46: =(((data.s[[#This Row],[إجمالي المستحق]]+data.s[[#This Row],[عمولة انتاج]])-(data.s[[#This Row],[الحافز]]+data.s[[#This Row],[عمولة انتاج]]+data.s[[#This Row],[متوسط المنحة]]+data.s[[#This Row],[رد مستحقات]]+data.s[[#This Row],[بدل سهر]]+data.s[[#This Row],[الإضافي]]))/30)*data.s[[#This Row],[أيام الغياب]] -> 0 | BN46: =(((data.s[[#This Row],[إجمالي المستحق]]+data.s[[#This Row],[عمولة انتاج]])-(data.s[[#This Row],[الحافز]]+data.s[[#This Row],[عمولة انتاج]]+data.s[[#This Row],[متوسط المنحة]]+data.s[[#This Row],[رد مستحقات]]+data.s[[#This Row],[بدل سهر]]+data.s[[#This Row],[الإضافي]]))/30)*data.s[[#This Row],[أيام جزاء]] -> 0 | BO46: =IF(data.s[[#This Row],[أيام الغياب]]=1,data.s[[#This Row],[الحافز]]*20%,IF(data.s[[#This Row],[أيام الغياب]]=2,data.s[[#This Row],[الحافز]]*30%,IF(data.s[[#This Row],[أيام الغياب]]>2,data.s[[#This Row],[الحافز]]*100%,""))) ->  | BQ46: =IFERROR(IF(data.s[[#This Row],[أيام أجازات بعد السنوية]]<=2,data.s[[#This Row],[الحافز]]*0,IF(data.s[[#This Row],[أيام أجازات بعد السنوية]]=3,data.s[[#This Row],[الحافز]]*30%,IF(data.s[[#This Row],[أيام أجازات بعد السنوية]]=4,data.s[[#This Row],[الحافز]]*40%,IF(data.s[[#This Row],[أيام أجازات بعد السنوية]]=5,data.s[[#This Row],[الحافز]]*50%,IF(data.s[[#This Row],[أيام أجازات بعد السنوية]]>5,data.s[[#This Row],[الحافز]]*100%,""))))),"") -> 0 | BU46: 3 | BX46: 1750 | CG46: =data.s[[#This Row],[مخالفات مرور]]+data.s[[#This Row],[سلفة]]+data.s[[#This Row],[تعويضات]]+data.s[[#This Row],[عجز]]+data.s[[#This Row],[تلفيات]]+data.s[[#This Row],[عهد]]+data.s[[#This Row],[سولار]] -> 1750 | CH46: 16.53 | CI46: 3 | CP46: 0 | CQ46: =data.s[[#This Row],[متوسط المنحة]] -> 179.29665 | CR46: =IF(data.s[[#This Row],[التصنيف الادارى]]="سائق نقل",data.s[[#This Row],[إجمالي المستحق]]*5%,0) -> 350 | CS46: =IF($G46=data.s[[#Headers],[انقطاع]],$BE46-SUM(data.s[[#This Row],[تأمينات 2026]:[تنفيذ أحكام]],data.s[[#This Row],[الشهداء]:[خصم 5% تأمين من المستحق]],0),0) -> 0 | CT46: =IF($G46=CT$3,$BE46-SUM(data.s[[#This Row],[تأمينات 2026]:[تنفيذ أحكام]],data.s[[#This Row],[الشهداء]:[خصم 5% تأمين من المستحق]],0),0) -> 0 | CU46: =IF($G46=CU$3,$BE46-SUM(data.s[[#This Row],[تأمينات 2026]:[تنفيذ أحكام]],data.s[[#This Row],[الشهداء]:[خصم 5% تأمين من المستحق]],0),0) -> 0 | CV46: =IF($G46=data.s[[#Headers],[إعارة]],$BE46-SUM(data.s[[#This Row],[تأمينات 2026]:[تنفيذ أحكام]],data.s[[#This Row],[الشهداء]:[خصم 5% تأمين من المستحق]],0),0) -> 0 | CW46: =IF($G46=data.s[[#Headers],[انهاء]],$BE46-SUM(data.s[[#This Row],[تأمينات 2026]:[تنفيذ أحكام]],data.s[[#This Row],[الشهداء]:[خصم 5% تأمين من المستحق]],0),0) -> 0 | CX46: =IF($G46=data.s[[#Headers],[معاش]],$BE46-SUM(data.s[[#This Row],[تأمينات 2026]:[تنفيذ أحكام]],data.s[[#This Row],[الشهداء]:[خصم 5% تأمين من المستحق]],0),0) -> 0 | CY46: =SUM(data.s[[#This Row],[تأمينات 2026]:[تنفيذ أحكام]],data.s[[#This Row],[الشهداء]:[معاش]]) -> 4138.82665 | CZ46: =data.s[[#This Row],[إجمالي المستحق]]-data.s[[#This Row],[إجمالي المستقطع]] -> 2861.17335
B47: 302049 | C47: 29552 | D47: =VLOOKUP(data.s[[#This Row],[كود الشركة]],#REF!,MATCH(data.s[[#Headers],[التعامل المالي]],#REF!,0),FALSE) ->  | E47: مجدي حمدي ابراهيم | H47: سائق نقل | I47: الخامسة | L47: فرع بنى سويف | M47: المنطقه الجنوبية | N47: =data.s[[#This Row],[كود الشركة]]&data.s[[#This Row],[كود البيرول]]&data.s[[#This Row],[التعامل المالي]]&data.s[[#This Row],[اسم الموظف]]&data.s[[#This Row],[الموظف المختص]]&data.s[[#This Row],[حالة العمل]]&data.s[[#This Row],[التصنيف الادارى]]&data.s[[#This Row],[الدرجة]] ->  | P47: =IF(data.s[[#This Row],[ترقية 7/2025]]<>"","نعم","") ->  | Q47: 575.42 | R47: 575.42 | T47: =IF(data.s[[#This Row],[الوظيفة]]="سائق ملاكي",data.s[[#This Row],[أساسي 7/2025]]*135%,0) -> 0 | U47: =IF(data.s[[#This Row],[الوظيفة]]="سائق ملاكي",data.s[[#This Row],[أساسي 7/2025]]*15%,"") ->  | AE47: 0 | AF47: =IFERROR(VLOOKUP(data.s[[#This Row],[كود الشركة]:[كود الشركة]],#REF!,MATCH(data.s[[#Headers],[بدل تباع]],#REF!,0),FALSE),0) -> 0 | AG47: =SUM(data.s[[#This Row],[بدل مخاطر]:[بدل تفرغ]])-data.s[[#This Row],[بدل تمثيل]] -> 0 | AS47: 1244.34 | AW47: =SUM(data.s[[#This Row],[علاوة 2014]:[علاوة اجتماعية]]) -> 1244.34 | AX47: 5 | BC47: =SUM(data.s[[#This Row],[أساسي 7/2025]:[حافز موانى]],data.s[[#This Row],[أومر الشغل للملاكي]],data.s[[#This Row],[إجمالي بدلات]],data.s[[#This Row],[إجمالي علاوات]:[متوسط المنحة]]) -> 1824.76 | BE47: =IF(data.s[[#This Row],[حالة العمل]]="إيقاف",data.s[[#This Row],[أساسي 7/2025]],SUM(data.s[[#This Row],[رد مستحقات]:[مكمل الأجر]])) -> 1824.76 | BJ47: =ROUND(data.s[[#This Row],[تأمينات 2026]]/11%,2) -> 3110 | BK47: 342.1 | BM47: =(((data.s[[#This Row],[إجمالي المستحق]]+data.s[[#This Row],[عمولة انتاج]])-(data.s[[#This Row],[الحافز]]+data.s[[#This Row],[عمولة انتاج]]+data.s[[#This Row],[متوسط المنحة]]+data.s[[#This Row],[رد مستحقات]]+data.s[[#This Row],[بدل سهر]]+data.s[[#This Row],[الإضافي]]))/30)*data.s[[#This Row],[أيام الغياب]] -> 0 | BN47: =(((data.s[[#This Row],[إجمالي المستحق]]+data.s[[#This Row],[عمولة انتاج]])-(data.s[[#This Row],[الحافز]]+data.s[[#This Row],[عمولة انتاج]]+data.s[[#This Row],[متوسط المنحة]]+data.s[[#This Row],[رد مستحقات]]+data.s[[#This Row],[بدل سهر]]+data.s[[#This Row],[الإضافي]]))/30)*data.s[[#This Row],[أيام جزاء]] -> 0 | BO47: =IF(data.s[[#This Row],[أيام الغياب]]=1,data.s[[#This Row],[الحافز]]*20%,IF(data.s[[#This Row],[أيام الغياب]]=2,data.s[[#This Row],[الحافز]]*30%,IF(data.s[[#This Row],[أيام الغياب]]>2,data.s[[#This Row],[الحافز]]*100%,""))) ->  | BQ47: =IFERROR(IF(data.s[[#This Row],[أيام أجازات بعد السنوية]]<=2,data.s[[#This Row],[الحافز]]*0,IF(data.s[[#This Row],[أيام أجازات بعد السنوية]]=3,data.s[[#This Row],[الحافز]]*30%,IF(data.s[[#This Row],[أيام أجازات بعد السنوية]]=4,data.s[[#This Row],[الحافز]]*40%,IF(data.s[[#This Row],[أيام أجازات بعد السنوية]]=5,data.s[[#This Row],[الحافز]]*50%,IF(data.s[[#This Row],[أيام أجازات بعد السنوية]]>5,data.s[[#This Row],[الحافز]]*100%,""))))),"") -> 0 | BU47: 3 | BY47: 250 | CG47: =data.s[[#This Row],[مخالفات مرور]]+data.s[[#This Row],[سلفة]]+data.s[[#This Row],[تعويضات]]+data.s[[#This Row],[عجز]]+data.s[[#This Row],[تلفيات]]+data.s[[#This Row],[عهد]]+data.s[[#This Row],[سولار]] -> 250 | CH47: 0 | CI47: 3 | CO47: 914.26 | CP47: 0 | CQ47: =data.s[[#This Row],[متوسط المنحة]] -> 0 | CR47: =IF(data.s[[#This Row],[التصنيف الادارى]]="سائق نقل",data.s[[#This Row],[إجمالي المستحق]]*5%,0) -> 91.238 | CS47: =IF($G47=data.s[[#Headers],[انقطاع]],$BE47-SUM(data.s[[#This Row],[تأمينات 2026]:[تنفيذ أحكام]],data.s[[#This Row],[الشهداء]:[خصم 5% تأمين من المستحق]],0),0) -> 0 | CT47: =IF($G47=CT$3,$BE47-SUM(data.s[[#This Row],[تأمينات 2026]:[تنفيذ أحكام]],data.s[[#This Row],[الشهداء]:[خصم 5% تأمين من المستحق]],0),0) -> 0 | CU47: =IF($G47=CU$3,$BE47-SUM(data.s[[#This Row],[تأمينات 2026]:[تنفيذ أحكام]],data.s[[#This Row],[الشهداء]:[خصم 5% تأمين من المستحق]],0),0) -> 0 | CV47: =IF($G47=data.s[[#Headers],[إعارة]],$BE47-SUM(data.s[[#This Row],[تأمينات 2026]:[تنفيذ أحكام]],data.s[[#This Row],[الشهداء]:[خصم 5% تأمين من المستحق]],0),0) -> 0 | CW47: =IF($G47=data.s[[#Headers],[انهاء]],$BE47-SUM(data.s[[#This Row],[تأمينات 2026]:[تنفيذ أحكام]],data.s[[#This Row],[الشهداء]:[خصم 5% تأمين من المستحق]],0),0) -> 0 | CX47: =IF($G47=data.s[[#Headers],[معاش]],$BE47-SUM(data.s[[#This Row],[تأمينات 2026]:[تنفيذ أحكام]],data.s[[#This Row],[الشهداء]:[خصم 5% تأمين من المستحق]],0),0) -> 0 | CY47: =SUM(data.s[[#This Row],[تأمينات 2026]:[تنفيذ أحكام]],data.s[[#This Row],[الشهداء]:[معاش]]) -> 1603.598 | CZ47: =data.s[[#This Row],[إجمالي المستحق]]-data.s[[#This Row],[إجمالي المستقطع]] -> 221.162
B48: 302050 | C48: 6288 | D48: =VLOOKUP(data.s[[#This Row],[كود الشركة]],#REF!,MATCH(data.s[[#Headers],[التعامل المالي]],#REF!,0),FALSE) ->  | E48: الشحات احمد علي | H48: سائق نقل | I48: الخامسة | L48: فرع الاميرية | M48: المنطقه المركزية | N48: =data.s[[#This Row],[كود الشركة]]&data.s[[#This Row],[كود البيرول]]&data.s[[#This Row],[التعامل المالي]]&data.s[[#This Row],[اسم الموظف]]&data.s[[#This Row],[الموظف المختص]]&data.s[[#This Row],[حالة العمل]]&data.s[[#This Row],[التصنيف الادارى]]&data.s[[#This Row],[الدرجة]] ->  | P48: =IF(data.s[[#This Row],[ترقية 7/2025]]<>"","نعم","") ->  | Q48: 1111.24 | R48: 1222.364 | T48: =IF(data.s[[#This Row],[الوظيفة]]="سائق ملاكي",data.s[[#This Row],[أساسي 7/2025]]*135%,0) -> 0 | U48: =IF(data.s[[#This Row],[الوظيفة]]="سائق ملاكي",data.s[[#This Row],[أساسي 7/2025]]*15%,"") ->  | Z48: =data.s[[#This Row],[أساسي 7/2025]]*15% -> 183.3546 | AE48: 0 | AF48: =IFERROR(VLOOKUP(data.s[[#This Row],[كود الشركة]:[كود الشركة]],#REF!,MATCH(data.s[[#Headers],[بدل تباع]],#REF!,0),FALSE),0) -> 0 | AG48: =SUM(data.s[[#This Row],[بدل مخاطر]:[بدل تفرغ]])-data.s[[#This Row],[بدل تمثيل]] -> 183.3546 | AS48: 1306.14189 | AT48: 55.562 | AW48: =SUM(data.s[[#This Row],[علاوة 2014]:[علاوة اجتماعية]]) -> 1361.70389 | AX48: 10 | AY48: =(data.s[[#This Row],[أساسي 7/2025]]*2)/12 -> 203.7273333 | BC48: =SUM(data.s[[#This Row],[أساسي 7/2025]:[حافز موانى]],data.s[[#This Row],[أومر الشغل للملاكي]],data.s[[#This Row],[إجمالي بدلات]],data.s[[#This Row],[إجمالي علاوات]:[متوسط المنحة]]) -> 2981.149823 | BD48: =IF(data.s[[#This Row],[الإجمالي]]<7000,7000-data.s[[#This Row],[الإجمالي]],0) -> 4018.850177 | BE48: =IF(data.s[[#This Row],[حالة العمل]]="إيقاف",data.s[[#This Row],[أساسي 7/2025]],SUM(data.s[[#This Row],[رد مستحقات]:[مكمل الأجر]])) -> 7000 | BJ48: =ROUND(data.s[[#This Row],[تأمينات 2026]]/11%,2) -> 14366.87 | BK48: 1580.355973 | BM48: =(((data.s[[#This Row],[إجمالي المستحق]]+data.s[[#This Row],[عمولة انتاج]])-(data.s[[#This Row],[الحافز]]+data.s[[#This Row],[عمولة انتاج]]+data.s[[#This Row],[متوسط المنحة]]+data.s[[#This Row],[رد مستحقات]]+data.s[[#This Row],[بدل سهر]]+data.s[[#This Row],[الإضافي]]))/30)*data.s[[#This Row],[أيام الغياب]] -> 0 | BN48: =(((data.s[[#This Row],[إجمالي المستحق]]+data.s[[#This Row],[عمولة انتاج]])-(data.s[[#This Row],[الحافز]]+data.s[[#This Row],[عمولة انتاج]]+data.s[[#This Row],[متوسط المنحة]]+data.s[[#This Row],[رد مستحقات]]+data.s[[#This Row],[بدل سهر]]+data.s[[#This Row],[الإضافي]]))/30)*data.s[[#This Row],[أيام جزاء]] -> 0 | BO48: =IF(data.s[[#This Row],[أيام الغياب]]=1,data.s[[#This Row],[الحافز]]*20%,IF(data.s[[#This Row],[أيام الغياب]]=2,data.s[[#This Row],[الحافز]]*30%,IF(data.s[[#This Row],[أيام الغياب]]>2,data.s[[#This Row],[الحافز]]*100%,""))) ->  | BQ48: =IFERROR(IF(data.s[[#This Row],[أيام أجازات بعد السنوية]]<=2,data.s[[#This Row],[الحافز]]*0,IF(data.s[[#This Row],[أيام أجازات بعد السنوية]]=3,data.s[[#This Row],[الحافز]]*30%,IF(data.s[[#This Row],[أيام أجازات بعد السنوية]]=4,data.s[[#This Row],[الحافز]]*40%,IF(data.s[[#This Row],[أيام أجازات بعد السنوية]]=5,data.s[[#This Row],[الحافز]]*50%,IF(data.s[[#This Row],[أيام أجازات بعد السنوية]]>5,data.s[[#This Row],[الحافز]]*100%,""))))),"") -> 0 | BU48: 3 | BX48: 1750 | CG48: =data.s[[#This Row],[مخالفات مرور]]+data.s[[#This Row],[سلفة]]+data.s[[#This Row],[تعويضات]]+data.s[[#This Row],[عجز]]+data.s[[#This Row],[تلفيات]]+data.s[[#This Row],[عهد]]+data.s[[#This Row],[سولار]] -> 1750 | CH48: 10.82 | CI48: 3 | CP48: 0 | CQ48: =data.s[[#This Row],[متوسط المنحة]] -> 203.7273333 | CR48: =IF(data.s[[#This Row],[التصنيف الادارى]]="سائق نقل",data.s[[#This Row],[إجمالي المستحق]]*5%,0) -> 350 | CS48: =IF($G48=data.s[[#Headers],[انقطاع]],$BE48-SUM(data.s[[#This Row],[تأمينات 2026]:[تنفيذ أحكام]],data.s[[#This Row],[الشهداء]:[خصم 5% تأمين من المستحق]],0),0) -> 0 | CT48: =IF($G48=CT$3,$BE48-SUM(data.s[[#This Row],[تأمينات 2026]:[تنفيذ أحكام]],data.s[[#This Row],[الشهداء]:[خصم 5% تأمين من المستحق]],0),0) -> 0 | CU48: =IF($G48=CU$3,$BE48-SUM(data.s[[#This Row],[تأمينات 2026]:[تنفيذ أحكام]],data.s[[#This Row],[الشهداء]:[خصم 5% تأمين من المستحق]],0),0) -> 0 | CV48: =IF($G48=data.s[[#Headers],[إعارة]],$BE48-SUM(data.s[[#This Row],[تأمينات 2026]:[تنفيذ أحكام]],data.s[[#This Row],[الشهداء]:[خصم 5% تأمين من المستحق]],0),0) -> 0 | CW48: =IF($G48=data.s[[#Headers],[انهاء]],$BE48-SUM(data.s[[#This Row],[تأمينات 2026]:[تنفيذ أحكام]],data.s[[#This Row],[الشهداء]:[خصم 5% تأمين من المستحق]],0),0) -> 0 | CX48: =IF($G48=data.s[[#Headers],[معاش]],$BE48-SUM(data.s[[#This Row],[تأمينات 2026]:[تنفيذ أحكام]],data.s[[#This Row],[الشهداء]:[خصم 5% تأمين من المستحق]],0),0) -> 0 | CY48: =SUM(data.s[[#This Row],[تأمينات 2026]:[تنفيذ أحكام]],data.s[[#This Row],[الشهداء]:[معاش]]) -> 3900.903306 | CZ48: =data.s[[#This Row],[إجمالي المستحق]]-data.s[[#This Row],[إجمالي المستقطع]] -> 3099.096694
B49: 302051 | C49: 44080 | D49: =VLOOKUP(data.s[[#This Row],[كود الشركة]],#REF!,MATCH(data.s[[#Headers],[التعامل المالي]],#REF!,0),FALSE) ->  | E49: عبد الراضى عبد الراضى متولى | H49: سائق نقل | I49: عقد مؤقت | L49: فرع الزقازيق | M49: المنطقه الشرقيه | N49: =data.s[[#This Row],[كود الشركة]]&data.s[[#This Row],[كود البيرول]]&data.s[[#This Row],[التعامل المالي]]&data.s[[#This Row],[اسم الموظف]]&data.s[[#This Row],[الموظف المختص]]&data.s[[#This Row],[حالة العمل]]&data.s[[#This Row],[التصنيف الادارى]]&data.s[[#This Row],[الدرجة]] ->  | P49: =IF(data.s[[#This Row],[ترقية 7/2025]]<>"","نعم","") ->  | Q49: 428.23 | R49: 428.23 | T49: =IF(data.s[[#This Row],[الوظيفة]]="سائق ملاكي",data.s[[#This Row],[أساسي 7/2025]]*135%,0) -> 0 | U49: =IF(data.s[[#This Row],[الوظيفة]]="سائق ملاكي",data.s[[#This Row],[أساسي 7/2025]]*15%,"") ->  | Z49: =data.s[[#This Row],[أساسي 7/2025]]*15% -> 64.2345 | AE49: 0 | AF49: =IFERROR(VLOOKUP(data.s[[#This Row],[كود الشركة]:[كود الشركة]],#REF!,MATCH(data.s[[#Headers],[بدل تباع]],#REF!,0),FALSE),0) -> 0 | AG49: =SUM(data.s[[#This Row],[بدل مخاطر]:[بدل تفرغ]])-data.s[[#This Row],[بدل تمثيل]] -> 64.2345 | AH49: 0 | AI49: 0 | AJ49: 0 | AL49: 0 | AM49: 0 | AN49: 0 | AO49: 0 | AP49: 0 | AQ49: 0 | AR49: 0 | AS49: 326.63 | AU49: 600 | AV49: 4 | AW49: =SUM(data.s[[#This Row],[علاوة 2014]:[علاوة اجتماعية]]) -> 930.63 | AX49: 10 | AY49: =(data.s[[#This Row],[أساسي 7/2025]]*2)/12 -> 71.37166667 | BC49: =SUM(data.s[[#This Row],[أساسي 7/2025]:[حافز موانى]],data.s[[#This Row],[أومر الشغل للملاكي]],data.s[[#This Row],[إجمالي بدلات]],data.s[[#This Row],[إجمالي علاوات]:[متوسط المنحة]]) -> 1504.466167 | BD49: =IF(data.s[[#This Row],[الإجمالي]]<7000,7000-data.s[[#This Row],[الإجمالي]],0) -> 5495.533833 | BE49: =IF(data.s[[#This Row],[حالة العمل]]="إيقاف",data.s[[#This Row],[أساسي 7/2025]],SUM(data.s[[#This Row],[رد مستحقات]:[مكمل الأجر]])) -> 7000 | BJ49: =ROUND(data.s[[#This Row],[تأمينات 2026]]/11%,2) -> 4835.47 | BK49: 531.9017 | BM49: =(((data.s[[#This Row],[إجمالي المستحق]]+data.s[[#This Row],[عمولة انتاج]])-(data.s[[#This Row],[الحافز]]+data.s[[#This Row],[عمولة انتاج]]+data.s[[#This Row],[متوسط المنحة]]+data.s[[#This Row],[رد مستحقات]]+data.s[[#This Row],[بدل سهر]]+data.s[[#This Row],[الإضافي]]))/30)*data.s[[#This Row],[أيام الغياب]] -> 0 | BN49: =(((data.s[[#This Row],[إجمالي المستحق]]+data.s[[#This Row],[عمولة انتاج]])-(data.s[[#This Row],[الحافز]]+data.s[[#This Row],[عمولة انتاج]]+data.s[[#This Row],[متوسط المنحة]]+data.s[[#This Row],[رد مستحقات]]+data.s[[#This Row],[بدل سهر]]+data.s[[#This Row],[الإضافي]]))/30)*data.s[[#This Row],[أيام جزاء]] -> 0 | BO49: =IF(data.s[[#This Row],[أيام الغياب]]=1,data.s[[#This Row],[الحافز]]*20%,IF(data.s[[#This Row],[أيام الغياب]]=2,data.s[[#This Row],[الحافز]]*30%,IF(data.s[[#This Row],[أيام الغياب]]>2,data.s[[#This Row],[الحافز]]*100%,""))) ->  | BQ49: =IFERROR(IF(data.s[[#This Row],[أيام أجازات بعد السنوية]]<=2,data.s[[#This Row],[الحافز]]*0,IF(data.s[[#This Row],[أيام أجازات بعد السنوية]]=3,data.s[[#This Row],[الحافز]]*30%,IF(data.s[[#This Row],[أيام أجازات بعد السنوية]]=4,data.s[[#This Row],[الحافز]]*40%,IF(data.s[[#This Row],[أيام أجازات بعد السنوية]]=5,data.s[[#This Row],[الحافز]]*50%,IF(data.s[[#This Row],[أيام أجازات بعد السنوية]]>5,data.s[[#This Row],[الحافز]]*100%,""))))),"") -> 0 | BU49: 3 | CG49: =data.s[[#This Row],[مخالفات مرور]]+data.s[[#This Row],[سلفة]]+data.s[[#This Row],[تعويضات]]+data.s[[#This Row],[عجز]]+data.s[[#This Row],[تلفيات]]+data.s[[#This Row],[عهد]]+data.s[[#This Row],[سولار]] -> 0 | CH49: 0 | CI49: 3 | CP49: 0 | CQ49: =data.s[[#This Row],[متوسط المنحة]] -> 71.37166667 | CR49: =IF(data.s[[#This Row],[التصنيف الادارى]]="سائق نقل",data.s[[#This Row],[إجمالي المستحق]]*5%,0) -> 350 | CS49: =IF($G49=data.s[[#Headers],[انقطاع]],$BE49-SUM(data.s[[#This Row],[تأمينات 2026]:[تنفيذ أحكام]],data.s[[#This Row],[الشهداء]:[خصم 5% تأمين من المستحق]],0),0) -> 0 | CT49: =IF($G49=CT$3,$BE49-SUM(data.s[[#This Row],[تأمينات 2026]:[تنفيذ أحكام]],data.s[[#This Row],[الشهداء]:[خصم 5% تأمين من المستحق]],0),0) -> 0 | CU49: =IF($G49=CU$3,$BE49-SUM(data.s[[#This Row],[تأمينات 2026]:[تنفيذ أحكام]],data.s[[#This Row],[الشهداء]:[خصم 5% تأمين من المستحق]],0),0) -> 0 | CV49: =IF($G49=data.s[[#Headers],[إعارة]],$BE49-SUM(data.s[[#This Row],[تأمينات 2026]:[تنفيذ أحكام]],data.s[[#This Row],[الشهداء]:[خصم 5% تأمين من المستحق]],0),0) -> 0 | CW49: =IF($G49=data.s[[#Headers],[انهاء]],$BE49-SUM(data.s[[#This Row],[تأمينات 2026]:[تنفيذ أحكام]],data.s[[#This Row],[الشهداء]:[خصم 5% تأمين من المستحق]],0),0) -> 0 | CX49: =IF($G49=data.s[[#Headers],[معاش]],$BE49-SUM(data.s[[#This Row],[تأمينات 2026]:[تنفيذ أحكام]],data.s[[#This Row],[الشهداء]:[خصم 5% تأمين من المستحق]],0),0) -> 0 | CY49: =SUM(data.s[[#This Row],[تأمينات 2026]:[تنفيذ أحكام]],data.s[[#This Row],[الشهداء]:[معاش]]) -> 959.2733667 | CZ49: =data.s[[#This Row],[إجمالي المستحق]]-data.s[[#This Row],[إجمالي المستقطع]] -> 6040.726633
B50: 302054 | C50: 44083 | D50: =VLOOKUP(data.s[[#This Row],[كود الشركة]],#REF!,MATCH(data.s[[#Headers],[التعامل المالي]],#REF!,0),FALSE) ->  | E50: علاء على عبد الجابر | G50: إنهاء | H50: سائق نقل | I50: عقد مؤقت | L50: فرع الاميرية | M50: المنطقه المركزية | N50: =data.s[[#This Row],[كود الشركة]]&data.s[[#This Row],[كود البيرول]]&data.s[[#This Row],[التعامل المالي]]&data.s[[#This Row],[اسم الموظف]]&data.s[[#This Row],[الموظف المختص]]&data.s[[#This Row],[حالة العمل]]&data.s[[#This Row],[التصنيف الادارى]]&data.s[[#This Row],[الدرجة]] ->  | P50: =IF(data.s[[#This Row],[ترقية 7/2025]]<>"","نعم","") ->  | Q50: 428.23 | R50: 428.23 | T50: =IF(data.s[[#This Row],[الوظيفة]]="سائق ملاكي",data.s[[#This Row],[أساسي 7/2025]]*135%,0) -> 0 | U50: =IF(data.s[[#This Row],[الوظيفة]]="سائق ملاكي",data.s[[#This Row],[أساسي 7/2025]]*15%,"") ->  | Z50: =data.s[[#This Row],[أساسي 7/2025]]*15% -> 64.2345 | AE50: 0 | AF50: =IFERROR(VLOOKUP(data.s[[#This Row],[كود الشركة]:[كود الشركة]],#REF!,MATCH(data.s[[#Headers],[بدل تباع]],#REF!,0),FALSE),0) -> 0 | AG50: =SUM(data.s[[#This Row],[بدل مخاطر]:[بدل تفرغ]])-data.s[[#This Row],[بدل تمثيل]] -> 64.2345 | AH50: 0 | AI50: 0 | AJ50: 0 | AL50: 0 | AM50: 0 | AN50: 0 | AO50: 0 | AP50: 0 | AQ50: 0 | AR50: 0 | AS50: 326.63 | AU50: 600 | AV50: 4 | AW50: =SUM(data.s[[#This Row],[علاوة 2014]:[علاوة اجتماعية]]) -> 930.63 | AX50: 10 | AY50: =(data.s[[#This Row],[أساسي 7/2025]]*2)/12 -> 71.37166667 | BC50: =SUM(data.s[[#This Row],[أساسي 7/2025]:[حافز موانى]],data.s[[#This Row],[أومر الشغل للملاكي]],data.s[[#This Row],[إجمالي بدلات]],data.s[[#This Row],[إجمالي علاوات]:[متوسط المنحة]]) -> 1504.466167 | BD50: =IF(data.s[[#This Row],[الإجمالي]]<7000,7000-data.s[[#This Row],[الإجمالي]],0) -> 5495.533833 | BE50: =IF(data.s[[#This Row],[حالة العمل]]="إيقاف",data.s[[#This Row],[أساسي 7/2025]],SUM(data.s[[#This Row],[رد مستحقات]:[مكمل الأجر]])) -> 7000 | BH50: 1 | BJ50: =ROUND(data.s[[#This Row],[تأمينات 2026]]/11%,2) -> 13576.31 | BK50: 1493.393933 | BM50: =(((data.s[[#This Row],[إجمالي المستحق]]+data.s[[#This Row],[عمولة انتاج]])-(data.s[[#This Row],[الحافز]]+data.s[[#This Row],[عمولة انتاج]]+data.s[[#This Row],[متوسط المنحة]]+data.s[[#This Row],[رد مستحقات]]+data.s[[#This Row],[بدل سهر]]+data.s[[#This Row],[الإضافي]]))/30)*data.s[[#This Row],[أيام الغياب]] -> 230.9542778 | BN50: =(((data.s[[#This Row],[إجمالي المستحق]]+data.s[[#This Row],[عمولة انتاج]])-(data.s[[#This Row],[الحافز]]+data.s[[#This Row],[عمولة انتاج]]+data.s[[#This Row],[متوسط المنحة]]+data.s[[#This Row],[رد مستحقات]]+data.s[[#This Row],[بدل سهر]]+data.s[[#This Row],[الإضافي]]))/30)*data.s[[#This Row],[أيام جزاء]] -> 0 | BO50: =IF(data.s[[#This Row],[أيام الغياب]]=1,data.s[[#This Row],[الحافز]]*20%,IF(data.s[[#This Row],[أيام الغياب]]=2,data.s[[#This Row],[الحافز]]*30%,IF(data.s[[#This Row],[أيام الغياب]]>2,data.s[[#This Row],[الحافز]]*100%,""))) -> 0 | BQ50: =IFERROR(IF(data.s[[#This Row],[أيام أجازات بعد السنوية]]<=2,data.s[[#This Row],[الحافز]]*0,IF(data.s[[#This Row],[أيام أجازات بعد السنوية]]=3,data.s[[#This Row],[الحافز]]*30%,IF(data.s[[#This Row],[أيام أجازات بعد السنوية]]=4,data.s[[#This Row],[الحافز]]*40%,IF(data.s[[#This Row],[أيام أجازات بعد السنوية]]=5,data.s[[#This Row],[الحافز]]*50%,IF(data.s[[#This Row],[أيام أجازات بعد السنوية]]>5,data.s[[#This Row],[الحافز]]*100%,""))))),"") -> 0 | BU50: 3 | BX50: 1000 | BY50: 500 | BZ50: 250 | CG50: =data.s[[#This Row],[مخالفات مرور]]+data.s[[#This Row],[سلفة]]+data.s[[#This Row],[تعويضات]]+data.s[[#This Row],[عجز]]+data.s[[#This Row],[تلفيات]]+data.s[[#This Row],[عهد]]+data.s[[#This Row],[سولار]] -> 1750 | CH50: 2.55 | CI50: 3 | CP50: 0 | CQ50: =data.s[[#This Row],[متوسط المنحة]] -> 71.37166667 | CR50: =IF(data.s[[#This Row],[التصنيف الادارى]]="سائق نقل",data.s[[#This Row],[إجمالي المستحق]]*5%,0) -> 350 | CS50: =IF($G50=data.s[[#Headers],[انقطاع]],$BE50-SUM(data.s[[#This Row],[تأمينات 2026]:[تنفيذ أحكام]],data.s[[#This Row],[الشهداء]:[خصم 5% تأمين من المستحق]],0),0) -> 0 | CT50: =IF($G50=CT$3,$BE50-SUM(data.s[[#This Row],[تأمينات 2026]:[تنفيذ أحكام]],data.s[[#This Row],[الشهداء]:[خصم 5% تأمين من المستحق]],0),0) -> 0 | CU50: =IF($G50=CU$3,$BE50-SUM(data.s[[#This Row],[تأمينات 2026]:[تنفيذ أحكام]],data.s[[#This Row],[الشهداء]:[خصم 5% تأمين من المستحق]],0),0) -> 0 | CV50: =IF($G50=data.s[[#Headers],[إعارة]],$BE50-SUM(data.s[[#This Row],[تأمينات 2026]:[تنفيذ أحكام]],data.s[[#This Row],[الشهداء]:[خصم 5% تأمين من المستحق]],0),0) -> 0 | CW50: =IF($G50=data.s[[#Headers],[انهاء]],$BE50-SUM(data.s[[#This Row],[تأمينات 2026]:[تنفيذ أحكام]],data.s[[#This Row],[الشهداء]:[خصم 5% تأمين من المستحق]],0),0) -> 3095.730123 | CX50: =IF($G50=data.s[[#Headers],[معاش]],$BE50-SUM(data.s[[#This Row],[تأمينات 2026]:[تنفيذ أحكام]],data.s[[#This Row],[الشهداء]:[خصم 5% تأمين من المستحق]],0),0) -> 0 | CY50: =SUM(data.s[[#This Row],[تأمينات 2026]:[تنفيذ أحكام]],data.s[[#This Row],[الشهداء]:[معاش]]) -> 7000 | CZ50: =data.s[[#This Row],[إجمالي المستحق]]-data.s[[#This Row],[إجمالي المستقطع]] -> 0
B51: 302055 | C51: 44084 | D51: =VLOOKUP(data.s[[#This Row],[كود الشركة]],#REF!,MATCH(data.s[[#Headers],[التعامل المالي]],#REF!,0),FALSE) ->  | E51: محمد عزت عبد اللطيف | G51: انقطاع | H51: سائق نقل | I51: عقد مؤقت | L51: ايقاف | M51: المنطقه الشرقيه | N51: =data.s[[#This Row],[كود الشركة]]&data.s[[#This Row],[كود البيرول]]&data.s[[#This Row],[التعامل المالي]]&data.s[[#This Row],[اسم الموظف]]&data.s[[#This Row],[الموظف المختص]]&data.s[[#This Row],[حالة العمل]]&data.s[[#This Row],[التصنيف الادارى]]&data.s[[#This Row],[الدرجة]] ->  | P51: =IF(data.s[[#This Row],[ترقية 7/2025]]<>"","نعم","") ->  | Q51: 428.23 | R51: 428.23 | T51: =IF(data.s[[#This Row],[الوظيفة]]="سائق ملاكي",data.s[[#This Row],[أساسي 7/2025]]*135%,0) -> 0 | U51: =IF(data.s[[#This Row],[الوظيفة]]="سائق ملاكي",data.s[[#This Row],[أساسي 7/2025]]*15%,"") ->  | Z51: =data.s[[#This Row],[أساسي 7/2025]]*15% -> 64.2345 | AE51: 0 | AF51: =IFERROR(VLOOKUP(data.s[[#This Row],[كود الشركة]:[كود الشركة]],#REF!,MATCH(data.s[[#Headers],[بدل تباع]],#REF!,0),FALSE),0) -> 0 | AG51: =SUM(data.s[[#This Row],[بدل مخاطر]:[بدل تفرغ]])-data.s[[#This Row],[بدل تمثيل]] -> 64.2345 | AH51: 0 | AI51: 0 | AJ51: 0 | AL51: 0 | AM51: 0 | AN51: 0 | AO51: 0 | AP51: 0 | AQ51: 0 | AR51: 0 | AS51: 326.63 | AU51: 600 | AV51: 4 | AW51: =SUM(data.s[[#This Row],[علاوة 2014]:[علاوة اجتماعية]]) -> 930.63 | AX51: 10 | AY51: =(data.s[[#This Row],[أساسي 7/2025]]*2)/12 -> 71.37166667 | BC51: =SUM(data.s[[#This Row],[أساسي 7/2025]:[حافز موانى]],data.s[[#This Row],[أومر الشغل للملاكي]],data.s[[#This Row],[إجمالي بدلات]],data.s[[#This Row],[إجمالي علاوات]:[متوسط المنحة]]) -> 1504.466167 | BD51: =IF(data.s[[#This Row],[الإجمالي]]<7000,7000-data.s[[#This Row],[الإجمالي]],0) -> 5495.533833 | BE51: =IF(data.s[[#This Row],[حالة العمل]]="إيقاف",data.s[[#This Row],[أساسي 7/2025]],SUM(data.s[[#This Row],[رد مستحقات]:[مكمل الأجر]])) -> 7000 | BJ51: =ROUND(data.s[[#This Row],[تأمينات 2026]]/11%,2) -> 12133.93 | BK51: 1334.732683 | BM51: =(((data.s[[#This Row],[إجمالي المستحق]]+data.s[[#This Row],[عمولة انتاج]])-(data.s[[#This Row],[الحافز]]+data.s[[#This Row],[عمولة انتاج]]+data.s[[#This Row],[متوسط المنحة]]+data.s[[#This Row],[رد مستحقات]]+data.s[[#This Row],[بدل سهر]]+data.s[[#This Row],[الإضافي]]))/30)*data.s[[#This Row],[أيام الغياب]] -> 0 | BN51: =(((data.s[[#This Row],[إجمالي المستحق]]+data.s[[#This Row],[عمولة انتاج]])-(data.s[[#This Row],[الحافز]]+data.s[[#This Row],[عمولة انتاج]]+data.s[[#This Row],[متوسط المنحة]]+data.s[[#This Row],[رد مستحقات]]+data.s[[#This Row],[بدل سهر]]+data.s[[#This Row],[الإضافي]]))/30)*data.s[[#This Row],[أيام جزاء]] -> 0 | BO51: =IF(data.s[[#This Row],[أيام الغياب]]=1,data.s[[#This Row],[الحافز]]*20%,IF(data.s[[#This Row],[أيام الغياب]]=2,data.s[[#This Row],[الحافز]]*30%,IF(data.s[[#This Row],[أيام الغياب]]>2,data.s[[#This Row],[الحافز]]*100%,""))) ->  | BQ51: =IFERROR(IF(data.s[[#This Row],[أيام أجازات بعد السنوية]]<=2,data.s[[#This Row],[الحافز]]*0,IF(data.s[[#This Row],[أيام أجازات بعد السنوية]]=3,data.s[[#This Row],[الحافز]]*30%,IF(data.s[[#This Row],[أيام أجازات بعد السنوية]]=4,data.s[[#This Row],[الحافز]]*40%,IF(data.s[[#This Row],[أيام أجازات بعد السنوية]]=5,data.s[[#This Row],[الحافز]]*50%,IF(data.s[[#This Row],[أيام أجازات بعد السنوية]]>5,data.s[[#This Row],[الحافز]]*100%,""))))),"") -> 0 | BU51: 3 | CG51: =data.s[[#This Row],[مخالفات مرور]]+data.s[[#This Row],[سلفة]]+data.s[[#This Row],[تعويضات]]+data.s[[#This Row],[عجز]]+data.s[[#This Row],[تلفيات]]+data.s[[#This Row],[عهد]]+data.s[[#This Row],[سولار]] -> 0 | CH51: 2 | CI51: 3 | CP51: 0 | CQ51: =data.s[[#This Row],[متوسط المنحة]] -> 71.37166667 | CR51: =IF(data.s[[#This Row],[التصنيف الادارى]]="سائق نقل",data.s[[#This Row],[إجمالي المستحق]]*5%,0) -> 350 | CS51: =IF($G51=data.s[[#Headers],[انقطاع]],$BE51-SUM(data.s[[#This Row],[تأمينات 2026]:[تنفيذ أحكام]],data.s[[#This Row],[الشهداء]:[خصم 5% تأمين من المستحق]],0),0) -> 5235.89565 | CT51: =IF($G51=CT$3,$BE51-SUM(data.s[[#This Row],[تأمينات 2026]:[تنفيذ أحكام]],data.s[[#This Row],[الشهداء]:[خصم 5% تأمين من المستحق]],0),0) -> 0 | CU51: =IF($G51=CU$3,$BE51-SUM(data.s[[#This Row],[تأمينات 2026]:[تنفيذ أحكام]],data.s[[#This Row],[الشهداء]:[خصم 5% تأمين من المستحق]],0),0) -> 0 | CV51: =IF($G51=data.s[[#Headers],[إعارة]],$BE51-SUM(data.s[[#This Row],[تأمينات 2026]:[تنفيذ أحكام]],data.s[[#This Row],[الشهداء]:[خصم 5% تأمين من المستحق]],0),0) -> 0 | CW51: =IF($G51=data.s[[#Headers],[انهاء]],$BE51-SUM(data.s[[#This Row],[تأمينات 2026]:[تنفيذ أحكام]],data.s[[#This Row],[الشهداء]:[خصم 5% تأمين من المستحق]],0),0) -> 0 | CX51: =IF($G51=data.s[[#Headers],[معاش]],$BE51-SUM(data.s[[#This Row],[تأمينات 2026]:[تنفيذ أحكام]],data.s[[#This Row],[الشهداء]:[خصم 5% تأمين من المستحق]],0),0) -> 0 | CY51: =SUM(data.s[[#This Row],[تأمينات 2026]:[تنفيذ أحكام]],data.s[[#This Row],[الشهداء]:[معاش]]) -> 7000 | CZ51: =data.s[[#This Row],[إجمالي المستحق]]-data.s[[#This Row],[إجمالي المستقطع]] -> 0
B52: 302056 | C52: 44085 | D52: =VLOOKUP(data.s[[#This Row],[كود الشركة]],#REF!,MATCH(data.s[[#Headers],[التعامل المالي]],#REF!,0),FALSE) ->  | E52: اشرف اسماعيل الصاوى | H52: سائق نقل | I52: عقد مؤقت | L52: فرع الاميرية | M52: المنطقه المركزية | N52: =data.s[[#This Row],[كود الشركة]]&data.s[[#This Row],[كود البيرول]]&data.s[[#This Row],[التعامل المالي]]&data.s[[#This Row],[اسم الموظف]]&data.s[[#This Row],[الموظف المختص]]&data.s[[#This Row],[حالة العمل]]&data.s[[#This Row],[التصنيف الادارى]]&data.s[[#This Row],[الدرجة]] ->  | P52: =IF(data.s[[#This Row],[ترقية 7/2025]]<>"","نعم","") ->  | Q52: 428.23 | R52: 428.31 | T52: =IF(data.s[[#This Row],[الوظيفة]]="سائق ملاكي",data.s[[#This Row],[أساسي 7/2025]]*135%,0) -> 0 | U52: =IF(data.s[[#This Row],[الوظيفة]]="سائق ملاكي",data.s[[#This Row],[أساسي 7/2025]]*15%,"") ->  | Z52: =data.s[[#This Row],[أساسي 7/2025]]*15% -> 64.2465 | AE52: 0 | AF52: =IFERROR(VLOOKUP(data.s[[#This Row],[كود الشركة]:[كود الشركة]],#REF!,MATCH(data.s[[#Headers],[بدل تباع]],#REF!,0),FALSE),0) -> 0 | AG52: =SUM(data.s[[#This Row],[بدل مخاطر]:[بدل تفرغ]])-data.s[[#This Row],[بدل تمثيل]] -> 64.2465 | AH52: 0 | AI52: 0 | AJ52: 0 | AL52: 0 | AM52: 0 | AN52: 0 | AO52: 0 | AP52: 0 | AQ52: 0 | AR52: 0 | AS52: 326.63 | AU52: 600 | AV52: 4 | AW52: =SUM(data.s[[#This Row],[علاوة 2014]:[علاوة اجتماعية]]) -> 930.63 | AX52: 10 | AY52: =(data.s[[#This Row],[أساسي 7/2025]]*2)/12 -> 71.385 | BC52: =SUM(data.s[[#This Row],[أساسي 7/2025]:[حافز موانى]],data.s[[#This Row],[أومر الشغل للملاكي]],data.s[[#This Row],[إجمالي بدلات]],data.s[[#This Row],[إجمالي علاوات]:[متوسط المنحة]]) -> 1504.5715 | BD52: =IF(data.s[[#This Row],[الإجمالي]]<7000,7000-data.s[[#This Row],[الإجمالي]],0) -> 5495.4285 | BE52: =IF(data.s[[#This Row],[حالة العمل]]="إيقاف",data.s[[#This Row],[أساسي 7/2025]],SUM(data.s[[#This Row],[رد مستحقات]:[مكمل الأجر]])) -> 7000 | BH52: 0 | BJ52: =ROUND(data.s[[#This Row],[تأمينات 2026]]/11%,2) -> 11219.63 | BK52: 1234.1595 | BM52: =(((data.s[[#This Row],[إجمالي المستحق]]+data.s[[#This Row],[عمولة انتاج]])-(data.s[[#This Row],[الحافز]]+data.s[[#This Row],[عمولة انتاج]]+data.s[[#This Row],[متوسط المنحة]]+data.s[[#This Row],[رد مستحقات]]+data.s[[#This Row],[بدل سهر]]+data.s[[#This Row],[الإضافي]]))/30)*data.s[[#This Row],[أيام الغياب]] -> 0 | BN52: =(((data.s[[#This Row],[إجمالي المستحق]]+data.s[[#This Row],[عمولة انتاج]])-(data.s[[#This Row],[الحافز]]+data.s[[#This Row],[عمولة انتاج]]+data.s[[#This Row],[متوسط المنحة]]+data.s[[#This Row],[رد مستحقات]]+data.s[[#This Row],[بدل سهر]]+data.s[[#This Row],[الإضافي]]))/30)*data.s[[#This Row],[أيام جزاء]] -> 0 | BO52: =IF(data.s[[#This Row],[أيام الغياب]]=1,data.s[[#This Row],[الحافز]]*20%,IF(data.s[[#This Row],[أيام الغياب]]=2,data.s[[#This Row],[الحافز]]*30%,IF(data.s[[#This Row],[أيام الغياب]]>2,data.s[[#This Row],[الحافز]]*100%,""))) ->  | BQ52: =IFERROR(IF(data.s[[#This Row],[أيام أجازات بعد السنوية]]<=2,data.s[[#This Row],[الحافز]]*0,IF(data.s[[#This Row],[أيام أجازات بعد السنوية]]=3,data.s[[#This Row],[الحافز]]*30%,IF(data.s[[#This Row],[أيام أجازات بعد السنوية]]=4,data.s[[#This Row],[الحافز]]*40%,IF(data.s[[#This Row],[أيام أجازات بعد السنوية]]=5,data.s[[#This Row],[الحافز]]*50%,IF(data.s[[#This Row],[أيام أجازات بعد السنوية]]>5,data.s[[#This Row],[الحافز]]*100%,""))))),"") -> 0 | BU52: 3 | BW52: 230.77 | BX52: 1000 | BY52: 500 | BZ52: 250 | CG52: =data.s[[#This Row],[مخالفات مرور]]+data.s[[#This Row],[سلفة]]+data.s[[#This Row],[تعويضات]]+data.s[[#This Row],[عجز]]+data.s[[#This Row],[تلفيات]]+data.s[[#This Row],[عهد]]+data.s[[#This Row],[سولار]] -> 1750 | CH52: 2 | CI52: 3 | CP52: 0 | CQ52: =data.s[[#This Row],[متوسط المنحة]] -> 71.385 | CR52: =IF(data.s[[#This Row],[التصنيف الادارى]]="سائق نقل",data.s[[#This Row],[إجمالي المستحق]]*5%,0) -> 350 | CS52: =IF($G52=data.s[[#Headers],[انقطاع]],$BE52-SUM(data.s[[#This Row],[تأمينات 2026]:[تنفيذ أحكام]],data.s[[#This Row],[الشهداء]:[خصم 5% تأمين من المستحق]],0),0) -> 0 | CT52: =IF($G52=CT$3,$BE52-SUM(data.s[[#This Row],[تأمينات 2026]:[تنفيذ أحكام]],data.s[[#This Row],[الشهداء]:[خصم 5% تأمين من المستحق]],0),0) -> 0 | CU52: =IF($G52=CU$3,$BE52-SUM(data.s[[#This Row],[تأمينات 2026]:[تنفيذ أحكام]],data.s[[#This Row],[الشهداء]:[خصم 5% تأمين من المستحق]],0),0) -> 0 | CV52: =IF($G52=data.s[[#Headers],[إعارة]],$BE52-SUM(data.s[[#This Row],[تأمينات 2026]:[تنفيذ أحكام]],data.s[[#This Row],[الشهداء]:[خصم 5% تأمين من المستحق]],0),0) -> 0 | CW52: =IF($G52=data.s[[#Headers],[انهاء]],$BE52-SUM(data.s[[#This Row],[تأمينات 2026]:[تنفيذ أحكام]],data.s[[#This Row],[الشهداء]:[خصم 5% تأمين من المستحق]],0),0) -> 0 | CX52: =IF($G52=data.s[[#Headers],[معاش]],$BE52-SUM(data.s[[#This Row],[تأمينات 2026]:[تنفيذ أحكام]],data.s[[#This Row],[الشهداء]:[خصم 5% تأمين من المستحق]],0),0) -> 0 | CY52: =SUM(data.s[[#This Row],[تأمينات 2026]:[تنفيذ أحكام]],data.s[[#This Row],[الشهداء]:[معاش]]) -> 3644.3145 | CZ52: =data.s[[#This Row],[إجمالي المستحق]]-data.s[[#This Row],[إجمالي المستقطع]] -> 3355.6855
B53: 302058 | C53: 44260 | D53: =VLOOKUP(data.s[[#This Row],[كود الشركة]],#REF!,MATCH(data.s[[#Headers],[التعامل المالي]],#REF!,0),FALSE) ->  | E53: محمد موسى عبد القادر | H53: سائق نقل | I53: الخامسة | L53: فرع سفاجا | M53: المنطقه الجنوبية | N53: =data.s[[#This Row],[كود الشركة]]&data.s[[#This Row],[كود البيرول]]&data.s[[#This Row],[التعامل المالي]]&data.s[[#This Row],[اسم الموظف]]&data.s[[#This Row],[الموظف المختص]]&data.s[[#This Row],[حالة العمل]]&data.s[[#This Row],[التصنيف الادارى]]&data.s[[#This Row],[الدرجة]] ->  | P53: =IF(data.s[[#This Row],[ترقية 7/2025]]<>"","نعم","") ->  | Q53: 428.23 | R53: 428.23 | T53: =IF(data.s[[#This Row],[الوظيفة]]="سائق ملاكي",data.s[[#This Row],[أساسي 7/2025]]*135%,0) -> 0 | U53: =IF(data.s[[#This Row],[الوظيفة]]="سائق ملاكي",data.s[[#This Row],[أساسي 7/2025]]*15%,"") ->  | Z53: =data.s[[#This Row],[أساسي 7/2025]]*15% -> 64.2345 | AE53: 0 | AF53: =IFERROR(VLOOKUP(data.s[[#This Row],[كود الشركة]:[كود الشركة]],#REF!,MATCH(data.s[[#Headers],[بدل تباع]],#REF!,0),FALSE),0) -> 0 | AG53: =SUM(data.s[[#This Row],[بدل مخاطر]:[بدل تفرغ]])-data.s[[#This Row],[بدل تمثيل]] -> 64.2345 | AS53: 928 | AW53: =SUM(data.s[[#This Row],[علاوة 2014]:[علاوة اجتماعية]]) -> 928 | AX53: 10 | AY53: =(data.s[[#This Row],[أساسي 7/2025]]*2)/12 -> 71.37166667 | BC53: =SUM(data.s[[#This Row],[أساسي 7/2025]:[حافز موانى]],data.s[[#This Row],[أومر الشغل للملاكي]],data.s[[#This Row],[إجمالي بدلات]],data.s[[#This Row],[إجمالي علاوات]:[متوسط المنحة]]) -> 1501.836167 | BD53: =IF(data.s[[#This Row],[الإجمالي]]<7000,7000-data.s[[#This Row],[الإجمالي]],0) -> 5498.163833 | BE53: =IF(data.s[[#This Row],[حالة العمل]]="إيقاف",data.s[[#This Row],[أساسي 7/2025]],SUM(data.s[[#This Row],[رد مستحقات]:[مكمل الأجر]])) -> 7000 | BJ53: =ROUND(data.s[[#This Row],[تأمينات 2026]]/11%,2) -> 7289.7 | BK53: 801.8667413 | BM53: =(((data.s[[#This Row],[إجمالي المستحق]]+data.s[[#This Row],[عمولة انتاج]])-(data.s[[#This Row],[الحافز]]+data.s[[#This Row],[عمولة انتاج]]+data.s[[#This Row],[متوسط المنحة]]+data.s[[#This Row],[رد مستحقات]]+data.s[[#This Row],[بدل سهر]]+data.s[[#This Row],[الإضافي]]))/30)*data.s[[#This Row],[أيام الغياب]] -> 0 | BN53: =(((data.s[[#This Row],[إجمالي المستحق]]+data.s[[#This Row],[عمولة انتاج]])-(data.s[[#This Row],[الحافز]]+data.s[[#This Row],[عمولة انتاج]]+data.s[[#This Row],[متوسط المنحة]]+data.s[[#This Row],[رد مستحقات]]+data.s[[#This Row],[بدل سهر]]+data.s[[#This Row],[الإضافي]]))/30)*data.s[[#This Row],[أيام جزاء]] -> 0 | BO53: =IF(data.s[[#This Row],[أيام الغياب]]=1,data.s[[#This Row],[الحافز]]*20%,IF(data.s[[#This Row],[أيام الغياب]]=2,data.s[[#This Row],[الحافز]]*30%,IF(data.s[[#This Row],[أيام الغياب]]>2,data.s[[#This Row],[الحافز]]*100%,""))) ->  | BQ53: =IFERROR(IF(data.s[[#This Row],[أيام أجازات بعد السنوية]]<=2,data.s[[#This Row],[الحافز]]*0,IF(data.s[[#This Row],[أيام أجازات بعد السنوية]]=3,data.s[[#This Row],[الحافز]]*30%,IF(data.s[[#This Row],[أيام أجازات بعد السنوية]]=4,data.s[[#This Row],[الحافز]]*40%,IF(data.s[[#This Row],[أيام أجازات بعد السنوية]]=5,data.s[[#This Row],[الحافز]]*50%,IF(data.s[[#This Row],[أيام أجازات بعد السنوية]]>5,data.s[[#This Row],[الحافز]]*100%,""))))),"") -> 0 | BU53: 3 | BX53: 1000 | BY53: 250 | BZ53: 500 | CG53: =data.s[[#This Row],[مخالفات مرور]]+data.s[[#This Row],[سلفة]]+data.s[[#This Row],[تعويضات]]+data.s[[#This Row],[عجز]]+data.s[[#This Row],[تلفيات]]+data.s[[#This Row],[عهد]]+data.s[[#This Row],[سولار]] -> 1750 | CH53: 5.35 | CI53: 3 | CP53: 0 | CQ53: =data.s[[#This Row],[متوسط المنحة]] -> 71.37166667 | CR53: =IF(data.s[[#This Row],[التصنيف الادارى]]="سائق نقل",data.s[[#This Row],[إجمالي المستحق]]*5%,0) -> 350 | CS53: =IF($G53=data.s[[#Headers],[انقطاع]],$BE53-SUM(data.s[[#This Row],[تأمينات 2026]:[تنفيذ أحكام]],data.s[[#This Row],[الشهداء]:[خصم 5% تأمين من المستحق]],0),0) -> 0 | CT53: =IF($G53=CT$3,$BE53-SUM(data.s[[#This Row],[تأمينات 2026]:[تنفيذ أحكام]],data.s[[#This Row],[الشهداء]:[خصم 5% تأمين من المستحق]],0),0) -> 0 | CU53: =IF($G53=CU$3,$BE53-SUM(data.s[[#This Row],[تأمينات 2026]:[تنفيذ أحكام]],data.s[[#This Row],[الشهداء]:[خصم 5% تأمين من المستحق]],0),0) -> 0 | CV53: =IF($G53=data.s[[#Headers],[إعارة]],$BE53-SUM(data.s[[#This Row],[تأمينات 2026]:[تنفيذ أحكام]],data.s[[#This Row],[الشهداء]:[خصم 5% تأمين من المستحق]],0),0) -> 0 | CW53: =IF($G53=data.s[[#Headers],[انهاء]],$BE53-SUM(data.s[[#This Row],[تأمينات 2026]:[تنفيذ أحكام]],data.s[[#This Row],[الشهداء]:[خصم 5% تأمين من المستحق]],0),0) -> 0 | CX53: =IF($G53=data.s[[#Headers],[معاش]],$BE53-SUM(data.s[[#This Row],[تأمينات 2026]:[تنفيذ أحكام]],data.s[[#This Row],[الشهداء]:[خصم 5% تأمين من المستحق]],0),0) -> 0 | CY53: =SUM(data.s[[#This Row],[تأمينات 2026]:[تنفيذ أحكام]],data.s[[#This Row],[الشهداء]:[معاش]]) -> 2984.588408 | CZ53: =data.s[[#This Row],[إجمالي المستحق]]-data.s[[#This Row],[إجمالي المستقطع]] -> 4015.411592
B54: 302059 | C54: 302059 | D54: =VLOOKUP(data.s[[#This Row],[كود الشركة]],#REF!,MATCH(data.s[[#Headers],[التعامل المالي]],#REF!,0),FALSE) ->  | E54: سعيد الشحات بيومي | H54: سائق نقل | I54: الخامسة | L54: فرع الاميرية | M54: المنطقه المركزية | N54: =data.s[[#This Row],[كود الشركة]]&data.s[[#This Row],[كود البيرول]]&data.s[[#This Row],[التعامل المالي]]&data.s[[#This Row],[اسم الموظف]]&data.s[[#This Row],[الموظف المختص]]&data.s[[#This Row],[حالة العمل]]&data.s[[#This Row],[التصنيف الادارى]]&data.s[[#This Row],[الدرجة]] ->  | P54: =IF(data.s[[#This Row],[ترقية 7/2025]]<>"","نعم","") ->  | Q54: 428.23 | R54: 428.23 | T54: =IF(data.s[[#This Row],[الوظيفة]]="سائق ملاكي",data.s[[#This Row],[أساسي 7/2025]]*135%,0) -> 0 | U54: =IF(data.s[[#This Row],[الوظيفة]]="سائق ملاكي",data.s[[#This Row],[أساسي 7/2025]]*15%,"") ->  | Z54: =data.s[[#This Row],[أساسي 7/2025]]*15% -> 64.2345 | AF54: =IFERROR(VLOOKUP(data.s[[#This Row],[كود الشركة]:[كود الشركة]],#REF!,MATCH(data.s[[#Headers],[بدل تباع]],#REF!,0),FALSE),0) -> 0 | AG54: =SUM(data.s[[#This Row],[بدل مخاطر]:[بدل تفرغ]])-data.s[[#This Row],[بدل تمثيل]] -> 64.2345 | AH54: 28.79 | AI54: 30.29 | AJ54: 65 | AL54: 200 | AU54: 600 | AV54: 10 | AW54: =SUM(data.s[[#This Row],[علاوة 2014]:[علاوة اجتماعية]]) -> 934.08 | AX54: 10 | AY54: =(data.s[[#This Row],[أساسي 7/2025]]*2)/12 -> 71.37166667 | BC54: =SUM(data.s[[#This Row],[أساسي 7/2025]:[حافز موانى]],data.s[[#This Row],[أومر الشغل للملاكي]],data.s[[#This Row],[إجمالي بدلات]],data.s[[#This Row],[إجمالي علاوات]:[متوسط المنحة]]) -> 1507.916167 | BD54: =IF(data.s[[#This Row],[الإجمالي]]<7000,7000-data.s[[#This Row],[الإجمالي]],0) -> 5492.083833 | BE54: =IF(data.s[[#This Row],[حالة العمل]]="إيقاف",data.s[[#This Row],[أساسي 7/2025]],SUM(data.s[[#This Row],[رد مستحقات]:[مكمل الأجر]])) -> 7000 | BI54: 5 | BJ54: =ROUND(data.s[[#This Row],[تأمينات 2026]]/11%,2) -> 11235.9 | BK54: 1235.94845 | BM54: =(((data.s[[#This Row],[إجمالي المستحق]]+data.s[[#This Row],[عمولة انتاج]])-(data.s[[#This Row],[الحافز]]+data.s[[#This Row],[عمولة انتاج]]+data.s[[#This Row],[متوسط المنحة]]+data.s[[#This Row],[رد مستحقات]]+data.s[[#This Row],[بدل سهر]]+data.s[[#This Row],[الإضافي]]))/30)*data.s[[#This Row],[أيام الغياب]] -> 0 | BN54: =(((data.s[[#This Row],[إجمالي المستحق]]+data.s[[#This Row],[عمولة انتاج]])-(data.s[[#This Row],[الحافز]]+data.s[[#This Row],[عمولة انتاج]]+data.s[[#This Row],[متوسط المنحة]]+data.s[[#This Row],[رد مستحقات]]+data.s[[#This Row],[بدل سهر]]+data.s[[#This Row],[الإضافي]]))/30)*data.s[[#This Row],[أيام جزاء]] -> 1154.771389 | BO54: =IF(data.s[[#This Row],[أيام الغياب]]=1,data.s[[#This Row],[الحافز]]*20%,IF(data.s[[#This Row],[أيام الغياب]]=2,data.s[[#This Row],[الحافز]]*30%,IF(data.s[[#This Row],[أيام الغياب]]>2,data.s[[#This Row],[الحافز]]*100%,""))) ->  | BQ54: =IFERROR(IF(data.s[[#This Row],[أيام أجازات بعد السنوية]]<=2,data.s[[#This Row],[الحافز]]*0,IF(data.s[[#This Row],[أيام أجازات بعد السنوية]]=3,data.s[[#This Row],[الحافز]]*30%,IF(data.s[[#This Row],[أيام أجازات بعد السنوية]]=4,data.s[[#This Row],[الحافز]]*40%,IF(data.s[[#This Row],[أيام أجازات بعد السنوية]]=5,data.s[[#This Row],[الحافز]]*50%,IF(data.s[[#This Row],[أيام أجازات بعد السنوية]]>5,data.s[[#This Row],[الحافز]]*100%,""))))),"") -> 0 | BU54: 3 | BX54: 1500 | BZ54: 250 | CG54: =data.s[[#This Row],[مخالفات مرور]]+data.s[[#This Row],[سلفة]]+data.s[[#This Row],[تعويضات]]+data.s[[#This Row],[عجز]]+data.s[[#This Row],[تلفيات]]+data.s[[#This Row],[عهد]]+data.s[[#This Row],[سولار]] -> 1750 | CH54: 11.49 | CI54: 3 | CP54: 0 | CQ54: =data.s[[#This Row],[متوسط المنحة]] -> 71.37166667 | CR54: =IF(data.s[[#This Row],[التصنيف الادارى]]="سائق نقل",data.s[[#This Row],[إجمالي المستحق]]*5%,0) -> 350 | CS54: =IF($G54=data.s[[#Headers],[انقطاع]],$BE54-SUM(data.s[[#This Row],[تأمينات 2026]:[تنفيذ أحكام]],data.s[[#This Row],[الشهداء]:[خصم 5% تأمين من المستحق]],0),0) -> 0 | CT54: =IF($G54=CT$3,$BE54-SUM(data.s[[#This Row],[تأمينات 2026]:[تنفيذ أحكام]],data.s[[#This Row],[الشهداء]:[خصم 5% تأمين من المستحق]],0),0) -> 0 | CU54: =IF($G54=CU$3,$BE54-SUM(data.s[[#This Row],[تأمينات 2026]:[تنفيذ أحكام]],data.s[[#This Row],[الشهداء]:[خصم 5% تأمين من المستحق]],0),0) -> 0 | CV54: =IF($G54=data.s[[#Headers],[إعارة]],$BE54-SUM(data.s[[#This Row],[تأمينات 2026]:[تنفيذ أحكام]],data.s[[#This Row],[الشهداء]:[خصم 5% تأمين من المستحق]],0),0) -> 0 | CW54: =IF($G54=data.s[[#Headers],[انهاء]],$BE54-SUM(data.s[[#This Row],[تأمينات 2026]:[تنفيذ أحكام]],data.s[[#This Row],[الشهداء]:[خصم 5% تأمين من المستحق]],0),0) -> 0 | CX54: =IF($G54=data.s[[#Headers],[معاش]],$BE54-SUM(data.s[[#This Row],[تأمينات 2026]:[تنفيذ أحكام]],data.s[[#This Row],[الشهداء]:[خصم 5% تأمين من المستحق]],0),0) -> 0 | CY54: =SUM(data.s[[#This Row],[تأمينات 2026]:[تنفيذ أحكام]],data.s[[#This Row],[الشهداء]:[معاش]]) -> 4579.581506 | CZ54: =data.s[[#This Row],[إجمالي المستحق]]-data.s[[#This Row],[إجمالي المستقطع]] -> 2420.418494
B55: 302061 | C55: 302061 | D55: =VLOOKUP(data.s[[#This Row],[كود الشركة]],#REF!,MATCH(data.s[[#Headers],[التعامل المالي]],#REF!,0),FALSE) ->  | E55: محمد أسامة محمود إبراهيم | H55: سائق نقل | I55: الخامسة | L55: فرع الاميرية | M55: المنطقه المركزية | N55: =data.s[[#This Row],[كود الشركة]]&data.s[[#This Row],[كود البيرول]]&data.s[[#This Row],[التعامل المالي]]&data.s[[#This Row],[اسم الموظف]]&data.s[[#This Row],[الموظف المختص]]&data.s[[#This Row],[حالة العمل]]&data.s[[#This Row],[التصنيف الادارى]]&data.s[[#This Row],[الدرجة]] ->  | P55: =IF(data.s[[#This Row],[ترقية 7/2025]]<>"","نعم","") ->  | Q55: 428.23 | R55: 428.23 | T55: =IF(data.s[[#This Row],[الوظيفة]]="سائق ملاكي",data.s[[#This Row],[أساسي 7/2025]]*135%,0) -> 0 | U55: =IF(data.s[[#This Row],[الوظيفة]]="سائق ملاكي",data.s[[#This Row],[أساسي 7/2025]]*15%,"") ->  | Z55: =data.s[[#This Row],[أساسي 7/2025]]*15% -> 64.2345 | AF55: =IFERROR(VLOOKUP(data.s[[#This Row],[كود الشركة]:[كود الشركة]],#REF!,MATCH(data.s[[#Headers],[بدل تباع]],#REF!,0),FALSE),0) -> 0 | AG55: =SUM(data.s[[#This Row],[بدل مخاطر]:[بدل تفرغ]])-data.s[[#This Row],[بدل تمثيل]] -> 64.2345 | AH55: 28.79 | AI55: 30.29 | AJ55: 65 | AL55: 200 | AU55: 600 | AV55: 10 | AW55: =SUM(data.s[[#This Row],[علاوة 2014]:[علاوة اجتماعية]]) -> 934.08 | AX55: 10 | AY55: =(data.s[[#This Row],[أساسي 7/2025]]*2)/12 -> 71.37166667 | BC55: =SUM(data.s[[#This Row],[أساسي 7/2025]:[حافز موانى]],data.s[[#This Row],[أومر الشغل للملاكي]],data.s[[#This Row],[إجمالي بدلات]],data.s[[#This Row],[إجمالي علاوات]:[متوسط المنحة]]) -> 1507.916167 | BD55: =IF(data.s[[#This Row],[الإجمالي]]<7000,7000-data.s[[#This Row],[الإجمالي]],0) -> 5492.083833 | BE55: =IF(data.s[[#This Row],[حالة العمل]]="إيقاف",data.s[[#This Row],[أساسي 7/2025]],SUM(data.s[[#This Row],[رد مستحقات]:[مكمل الأجر]])) -> 7000 | BH55: 7 | BI55: 1 | BJ55: =ROUND(data.s[[#This Row],[تأمينات 2026]]/11%,2) -> 16700 | BK55: 1837 | BM55: =(((data.s[[#This Row],[إجمالي المستحق]]+data.s[[#This Row],[عمولة انتاج]])-(data.s[[#This Row],[الحافز]]+data.s[[#This Row],[عمولة انتاج]]+data.s[[#This Row],[متوسط المنحة]]+data.s[[#This Row],[رد مستحقات]]+data.s[[#This Row],[بدل سهر]]+data.s[[#This Row],[الإضافي]]))/30)*data.s[[#This Row],[أيام الغياب]] -> 1616.679944 | BN55: =(((data.s[[#This Row],[إجمالي المستحق]]+data.s[[#This Row],[عمولة انتاج]])-(data.s[[#This Row],[الحافز]]+data.s[[#This Row],[عمولة انتاج]]+data.s[[#This Row],[متوسط المنحة]]+data.s[[#This Row],[رد مستحقات]]+data.s[[#This Row],[بدل سهر]]+data.s[[#This Row],[الإضافي]]))/30)*data.s[[#This Row],[أيام جزاء]] -> 230.9542778 | BO55: =IF(data.s[[#This Row],[أيام الغياب]]=1,data.s[[#This Row],[الحافز]]*20%,IF(data.s[[#This Row],[أيام الغياب]]=2,data.s[[#This Row],[الحافز]]*30%,IF(data.s[[#This Row],[أيام الغياب]]>2,data.s[[#This Row],[الحافز]]*100%,""))) -> 0 | BQ55: =IFERROR(IF(data.s[[#This Row],[أيام أجازات بعد السنوية]]<=2,data.s[[#This Row],[الحافز]]*0,IF(data.s[[#This Row],[أيام أجازات بعد السنوية]]=3,data.s[[#This Row],[الحافز]]*30%,IF(data.s[[#This Row],[أيام أجازات بعد السنوية]]=4,data.s[[#This Row],[الحافز]]*40%,IF(data.s[[#This Row],[أيام أجازات بعد السنوية]]=5,data.s[[#This Row],[الحافز]]*50%,IF(data.s[[#This Row],[أيام أجازات بعد السنوية]]>5,data.s[[#This Row],[الحافز]]*100%,""))))),"") -> 0 | BU55: 3 | BW55: 1760.11 | BX55: 612.15 | CG55: =data.s[[#This Row],[مخالفات مرور]]+data.s[[#This Row],[سلفة]]+data.s[[#This Row],[تعويضات]]+data.s[[#This Row],[عجز]]+data.s[[#This Row],[تلفيات]]+data.s[[#This Row],[عهد]]+data.s[[#This Row],[سولار]] -> 612.15 | CH55: 13.23 | CI55: 3 | CP55: 0 | CQ55: =data.s[[#This Row],[متوسط المنحة]] -> 71.37166667 | CR55: =IF(data.s[[#This Row],[التصنيف الادارى]]="سائق نقل",data.s[[#This Row],[إجمالي المستحق]]*5%,0) -> 350 | CS55: =IF($G55=data.s[[#Headers],[انقطاع]],$BE55-SUM(data.s[[#This Row],[تأمينات 2026]:[تنفيذ أحكام]],data.s[[#This Row],[الشهداء]:[خصم 5% تأمين من المستحق]],0),0) -> 0 | CT55: =IF($G55=CT$3,$BE55-SUM(data.s[[#This Row],[تأمينات 2026]:[تنفيذ أحكام]],data.s[[#This Row],[الشهداء]:[خصم 5% تأمين من المستحق]],0),0) -> 0 | CU55: =IF($G55=CU$3,$BE55-SUM(data.s[[#This Row],[تأمينات 2026]:[تنفيذ أحكام]],data.s[[#This Row],[الشهداء]:[خصم 5% تأمين من المستحق]],0),0) -> 0 | CV55: =IF($G55=data.s[[#Headers],[إعارة]],$BE55-SUM(data.s[[#This Row],[تأمينات 2026]:[تنفيذ أحكام]],data.s[[#This Row],[الشهداء]:[خصم 5% تأمين من المستحق]],0),0) -> 0 | CW55: =IF($G55=data.s[[#Headers],[انهاء]],$BE55-SUM(data.s[[#This Row],[تأمينات 2026]:[تنفيذ أحكام]],data.s[[#This Row],[الشهداء]:[خصم 5% تأمين من المستحق]],0),0) -> 0 | CX55: =IF($G55=data.s[[#Headers],[معاش]],$BE55-SUM(data.s[[#This Row],[تأمينات 2026]:[تنفيذ أحكام]],data.s[[#This Row],[الشهداء]:[خصم 5% تأمين من المستحق]],0),0) -> 0 | CY55: =SUM(data.s[[#This Row],[تأمينات 2026]:[تنفيذ أحكام]],data.s[[#This Row],[الشهداء]:[معاش]]) -> 6497.495889 | CZ55: =data.s[[#This Row],[إجمالي المستحق]]-data.s[[#This Row],[إجمالي المستقطع]] -> 502.5041111
B56: 302062 | C56: 302062 | D56: =VLOOKUP(data.s[[#This Row],[كود الشركة]],#REF!,MATCH(data.s[[#Headers],[التعامل المالي]],#REF!,0),FALSE) ->  | E56: إبراهيم أبو الفتوح إبراهيم | F56: إيقاف الصرف | G56: انقطاع | H56: سائق نقل | I56: الخامسة | L56: فرع الاميرية | M56: المنطقه المركزية | N56: =data.s[[#This Row],[كود الشركة]]&data.s[[#This Row],[كود البيرول]]&data.s[[#This Row],[التعامل المالي]]&data.s[[#This Row],[اسم الموظف]]&data.s[[#This Row],[الموظف المختص]]&data.s[[#This Row],[حالة العمل]]&data.s[[#This Row],[التصنيف الادارى]]&data.s[[#This Row],[الدرجة]] ->  | P56: =IF(data.s[[#This Row],[ترقية 7/2025]]<>"","نعم","") ->  | Q56: 428.23 | R56: 428.23 | T56: =IF(data.s[[#This Row],[الوظيفة]]="سائق ملاكي",data.s[[#This Row],[أساسي 7/2025]]*135%,0) -> 0 | U56: =IF(data.s[[#This Row],[الوظيفة]]="سائق ملاكي",data.s[[#This Row],[أساسي 7/2025]]*15%,"") ->  | Z56: =data.s[[#This Row],[أساسي 7/2025]]*15% -> 64.2345 | AF56: =IFERROR(VLOOKUP(data.s[[#This Row],[كود الشركة]:[كود الشركة]],#REF!,MATCH(data.s[[#Headers],[بدل تباع]],#REF!,0),FALSE),0) -> 0 | AG56: =SUM(data.s[[#This Row],[بدل مخاطر]:[بدل تفرغ]])-data.s[[#This Row],[بدل تمثيل]] -> 64.2345 | AH56: 28.79 | AI56: 30.29 | AJ56: 65 | AL56: 200 | AU56: 600 | AV56: 10 | AW56: =SUM(data.s[[#This Row],[علاوة 2014]:[علاوة اجتماعية]]) -> 934.08 | AX56: 10 | AY56: =(data.s[[#This Row],[أساسي 7/2025]]*2)/12 -> 71.37166667 | BC56: =SUM(data.s[[#This Row],[أساسي 7/2025]:[حافز موانى]],data.s[[#This Row],[أومر الشغل للملاكي]],data.s[[#This Row],[إجمالي بدلات]],data.s[[#This Row],[إجمالي علاوات]:[متوسط المنحة]]) -> 1507.916167 | BD56: =IF(data.s[[#This Row],[الإجمالي]]<7000,7000-data.s[[#This Row],[الإجمالي]],0) -> 5492.083833 | BE56: =IF(data.s[[#This Row],[حالة العمل]]="إيقاف",data.s[[#This Row],[أساسي 7/2025]],SUM(data.s[[#This Row],[رد مستحقات]:[مكمل الأجر]])) -> 7000 | BJ56: =ROUND(data.s[[#This Row],[تأمينات 2026]]/11%,2) -> 13161.45 | BK56: 1447.75906 | BM56: =(((data.s[[#This Row],[إجمالي المستحق]]+data.s[[#This Row],[عمولة انتاج]])-(data.s[[#This Row],[الحافز]]+data.s[[#This Row],[عمولة انتاج]]+data.s[[#This Row],[متوسط المنحة]]+data.s[[#This Row],[رد مستحقات]]+data.s[[#This Row],[بدل سهر]]+data.s[[#This Row],[الإضافي]]))/30)*data.s[[#This Row],[أيام الغياب]] -> 0 | BN56: =(((data.s[[#This Row],[إجمالي المستحق]]+data.s[[#This Row],[عمولة انتاج]])-(data.s[[#This Row],[الحافز]]+data.s[[#This Row],[عمولة انتاج]]+data.s[[#This Row],[متوسط المنحة]]+data.s[[#This Row],[رد مستحقات]]+data.s[[#This Row],[بدل سهر]]+data.s[[#This Row],[الإضافي]]))/30)*data.s[[#This Row],[أيام جزاء]] -> 0 | BO56: =IF(data.s[[#This Row],[أيام الغياب]]=1,data.s[[#This Row],[الحافز]]*20%,IF(data.s[[#This Row],[أيام الغياب]]=2,data.s[[#This Row],[الحافز]]*30%,IF(data.s[[#This Row],[أيام الغياب]]>2,data.s[[#This Row],[الحافز]]*100%,""))) ->  | BQ56: =IFERROR(IF(data.s[[#This Row],[أيام أجازات بعد السنوية]]<=2,data.s[[#This Row],[الحافز]]*0,IF(data.s[[#This Row],[أيام أجازات بعد السنوية]]=3,data.s[[#This Row],[الحافز]]*30%,IF(data.s[[#This Row],[أيام أجازات بعد السنوية]]=4,data.s[[#This Row],[الحافز]]*40%,IF(data.s[[#This Row],[أيام أجازات بعد السنوية]]=5,data.s[[#This Row],[الحافز]]*50%,IF(data.s[[#This Row],[أيام أجازات بعد السنوية]]>5,data.s[[#This Row],[الحافز]]*100%,""))))),"") -> 0 | BU56: 3 | CG56: =data.s[[#This Row],[مخالفات مرور]]+data.s[[#This Row],[سلفة]]+data.s[[#This Row],[تعويضات]]+data.s[[#This Row],[عجز]]+data.s[[#This Row],[تلفيات]]+data.s[[#This Row],[عهد]]+data.s[[#This Row],[سولار]] -> 0 | CH56: 3.84 | CI56: 3 | CP56: 0 | CQ56: =data.s[[#This Row],[متوسط المنحة]] -> 71.37166667 | CR56: =IF(data.s[[#This Row],[التصنيف الادارى]]="سائق نقل",data.s[[#This Row],[إجمالي المستحق]]*5%,0) -> 350 | CS56: =IF($G56=data.s[[#Headers],[انقطاع]],$BE56-SUM(data.s[[#This Row],[تأمينات 2026]:[تنفيذ أحكام]],data.s[[#This Row],[الشهداء]:[خصم 5% تأمين من المستحق]],0),0) -> 5121.029273 | CT56: =IF($G56=CT$3,$BE56-SUM(data.s[[#This Row],[تأمينات 2026]:[تنفيذ أحكام]],data.s[[#This Row],[الشهداء]:[خصم 5% تأمين من المستحق]],0),0) -> 0 | CU56: =IF($G56=CU$3,$BE56-SUM(data.s[[#This Row],[تأمينات 2026]:[تنفيذ أحكام]],data.s[[#This Row],[الشهداء]:[خصم 5% تأمين من المستحق]],0),0) -> 0 | CV56: =IF($G56=data.s[[#Headers],[إعارة]],$BE56-SUM(data.s[[#This Row],[تأمينات 2026]:[تنفيذ أحكام]],data.s[[#This Row],[الشهداء]:[خصم 5% تأمين من المستحق]],0),0) -> 0 | CW56: =IF($G56=data.s[[#Headers],[انهاء]],$BE56-SUM(data.s[[#This Row],[تأمينات 2026]:[تنفيذ أحكام]],data.s[[#This Row],[الشهداء]:[خصم 5% تأمين من المستحق]],0),0) -> 0 | CX56: =IF($G56=data.s[[#Headers],[معاش]],$BE56-SUM(data.s[[#This Row],[تأمينات 2026]:[تنفيذ أحكام]],data.s[[#This Row],[الشهداء]:[خصم 5% تأمين من المستحق]],0),0) -> 0 | CY56: =SUM(data.s[[#This Row],[تأمينات 2026]:[تنفيذ أحكام]],data.s[[#This Row],[الشهداء]:[معاش]]) -> 7000 | CZ56: =data.s[[#This Row],[إجمالي المستحق]]-data.s[[#This Row],[إجمالي المستقطع]] -> 0
B57: 302063 | C57: 302063 | D57: =VLOOKUP(data.s[[#This Row],[كود الشركة]],#REF!,MATCH(data.s[[#Headers],[التعامل المالي]],#REF!,0),FALSE) ->  | E57: ياسر صلاح الدين مرعى | H57: سائق نقل | I57: الخامسة | L57: فرع الاميرية | M57: المنطقه المركزية | N57: =data.s[[#This Row],[كود الشركة]]&data.s[[#This Row],[كود البيرول]]&data.s[[#This Row],[التعامل المالي]]&data.s[[#This Row],[اسم الموظف]]&data.s[[#This Row],[الموظف المختص]]&data.s[[#This Row],[حالة العمل]]&data.s[[#This Row],[التصنيف الادارى]]&data.s[[#This Row],[الدرجة]] ->  | P57: =IF(data.s[[#This Row],[ترقية 7/2025]]<>"","نعم","") ->  | Q57: 428.23 | R57: 428.23 | T57: =IF(data.s[[#This Row],[الوظيفة]]="سائق ملاكي",data.s[[#This Row],[أساسي 7/2025]]*135%,0) -> 0 | U57: =IF(data.s[[#This Row],[الوظيفة]]="سائق ملاكي",data.s[[#This Row],[أساسي 7/2025]]*15%,"") ->  | Z57: =data.s[[#This Row],[أساسي 7/2025]]*15% -> 64.2345 | AF57: =IFERROR(VLOOKUP(data.s[[#This Row],[كود الشركة]:[كود الشركة]],#REF!,MATCH(data.s[[#Headers],[بدل تباع]],#REF!,0),FALSE),0) -> 0 | AG57: =SUM(data.s[[#This Row],[بدل مخاطر]:[بدل تفرغ]])-data.s[[#This Row],[بدل تمثيل]] -> 64.2345 | AH57: 28.79 | AI57: 30.29 | AJ57: 65 | AL57: 200 | AU57: 600 | AV57: 10 | AW57: =SUM(data.s[[#This Row],[علاوة 2014]:[علاوة اجتماعية]]) -> 934.08 | AX57: 10 | AY57: =(data.s[[#This Row],[أساسي 7/2025]]*2)/12 -> 71.37166667 | BC57: =SUM(data.s[[#This Row],[أساسي 7/2025]:[حافز موانى]],data.s[[#This Row],[أومر الشغل للملاكي]],data.s[[#This Row],[إجمالي بدلات]],data.s[[#This Row],[إجمالي علاوات]:[متوسط المنحة]]) -> 1507.916167 | BD57: =IF(data.s[[#This Row],[الإجمالي]]<7000,7000-data.s[[#This Row],[الإجمالي]],0) -> 5492.083833 | BE57: =IF(data.s[[#This Row],[حالة العمل]]="إيقاف",data.s[[#This Row],[أساسي 7/2025]],SUM(data.s[[#This Row],[رد مستحقات]:[مكمل الأجر]])) -> 7000 | BJ57: =ROUND(data.s[[#This Row],[تأمينات 2026]]/11%,2) -> 16633.15 | BK57: 1829.64694 | BM57: =(((data.s[[#This Row],[إجمالي المستحق]]+data.s[[#This Row],[عمولة انتاج]])-(data.s[[#This Row],[الحافز]]+data.s[[#This Row],[عمولة انتاج]]+data.s[[#This Row],[متوسط المنحة]]+data.s[[#This Row],[رد مستحقات]]+data.s[[#This Row],[بدل سهر]]+data.s[[#This Row],[الإضافي]]))/30)*data.s[[#This Row],[أيام الغياب]] -> 0 | BN57: =(((data.s[[#This Row],[إجمالي المستحق]]+data.s[[#This Row],[عمولة انتاج]])-(data.s[[#This Row],[الحافز]]+data.s[[#This Row],[عمولة انتاج]]+data.s[[#This Row],[متوسط المنحة]]+data.s[[#This Row],[رد مستحقات]]+data.s[[#This Row],[بدل سهر]]+data.s[[#This Row],[الإضافي]]))/30)*data.s[[#This Row],[أيام جزاء]] -> 0 | BO57: =IF(data.s[[#This Row],[أيام الغياب]]=1,data.s[[#This Row],[الحافز]]*20%,IF(data.s[[#This Row],[أيام الغياب]]=2,data.s[[#This Row],[الحافز]]*30%,IF(data.s[[#This Row],[أيام الغياب]]>2,data.s[[#This Row],[الحافز]]*100%,""))) ->  | BQ57: =IFERROR(IF(data.s[[#This Row],[أيام أجازات بعد السنوية]]<=2,data.s[[#This Row],[الحافز]]*0,IF(data.s[[#This Row],[أيام أجازات بعد السنوية]]=3,data.s[[#This Row],[الحافز]]*30%,IF(data.s[[#This Row],[أيام أجازات بعد السنوية]]=4,data.s[[#This Row],[الحافز]]*40%,IF(data.s[[#This Row],[أيام أجازات بعد السنوية]]=5,data.s[[#This Row],[الحافز]]*50%,IF(data.s[[#This Row],[أيام أجازات بعد السنوية]]>5,data.s[[#This Row],[الحافز]]*100%,""))))),"") -> 0 | BU57: 3 | BW57: 1751.82 | BY57: 1750 | CG57: =data.s[[#This Row],[مخالفات مرور]]+data.s[[#This Row],[سلفة]]+data.s[[#This Row],[تعويضات]]+data.s[[#This Row],[عجز]]+data.s[[#This Row],[تلفيات]]+data.s[[#This Row],[عهد]]+data.s[[#This Row],[سولار]] -> 1750 | CH57: 12.48 | CI57: 3 | CP57: 0 | CQ57: =data.s[[#This Row],[متوسط المنحة]] -> 71.37166667 | CR57: =IF(data.s[[#This Row],[التصنيف الادارى]]="سائق نقل",data.s[[#This Row],[إجمالي المستحق]]*5%,0) -> 350 | CS57: =IF($G57=data.s[[#Headers],[انقطاع]],$BE57-SUM(data.s[[#This Row],[تأمينات 2026]:[تنفيذ أحكام]],data.s[[#This Row],[الشهداء]:[خصم 5% تأمين من المستحق]],0),0) -> 0 | CT57: =IF($G57=CT$3,$BE57-SUM(data.s[[#This Row],[تأمينات 2026]:[تنفيذ أحكام]],data.s[[#This Row],[الشهداء]:[خصم 5% تأمين من المستحق]],0),0) -> 0 | CU57: =IF($G57=CU$3,$BE57-SUM(data.s[[#This Row],[تأمينات 2026]:[تنفيذ أحكام]],data.s[[#This Row],[الشهداء]:[خصم 5% تأمين من المستحق]],0),0) -> 0 | CV57: =IF($G57=data.s[[#Headers],[إعارة]],$BE57-SUM(data.s[[#This Row],[تأمينات 2026]:[تنفيذ أحكام]],data.s[[#This Row],[الشهداء]:[خصم 5% تأمين من المستحق]],0),0) -> 0 | CW57: =IF($G57=data.s[[#Headers],[انهاء]],$BE57-SUM(data.s[[#This Row],[تأمينات 2026]:[تنفيذ أحكام]],data.s[[#This Row],[الشهداء]:[خصم 5% تأمين من المستحق]],0),0) -> 0 | CX57: =IF($G57=data.s[[#Headers],[معاش]],$BE57-SUM(data.s[[#This Row],[تأمينات 2026]:[تنفيذ أحكام]],data.s[[#This Row],[الشهداء]:[خصم 5% تأمين من المستحق]],0),0) -> 0 | CY57: =SUM(data.s[[#This Row],[تأمينات 2026]:[تنفيذ أحكام]],data.s[[#This Row],[الشهداء]:[معاش]]) -> 5771.318607 | CZ57: =data.s[[#This Row],[إجمالي المستحق]]-data.s[[#This Row],[إجمالي المستقطع]] -> 1228.681393
B58: 302064 | C58: 302064 | D58: =VLOOKUP(data.s[[#This Row],[كود الشركة]],#REF!,MATCH(data.s[[#Headers],[التعامل المالي]],#REF!,0),FALSE) ->  | E58: محمد عمر ابراهيم احمد | H58: سائق نقل | L58: فرع الزقازيق | M58: المنطقه الشرقيه | N58: =data.s[[#This Row],[كود الشركة]]&data.s[[#This Row],[كود البيرول]]&data.s[[#This Row],[التعامل المالي]]&data.s[[#This Row],[اسم الموظف]]&data.s[[#This Row],[الموظف المختص]]&data.s[[#This Row],[حالة العمل]]&data.s[[#This Row],[التصنيف الادارى]]&data.s[[#This Row],[الدرجة]] ->  | P58: =IF(data.s[[#This Row],[ترقية 7/2025]]<>"","نعم","") ->  | Q58: 428.23 | R58: 428.23 | T58: =IF(data.s[[#This Row],[الوظيفة]]="سائق ملاكي",data.s[[#This Row],[أساسي 7/2025]]*135%,0) -> 0 | U58: =IF(data.s[[#This Row],[الوظيفة]]="سائق ملاكي",data.s[[#This Row],[أساسي 7/2025]]*15%,"") ->  | Z58: =data.s[[#This Row],[أساسي 7/2025]]*15% -> 64.2345 | AF58: =IFERROR(VLOOKUP(data.s[[#This Row],[كود الشركة]:[كود الشركة]],#REF!,MATCH(data.s[[#Headers],[بدل تباع]],#REF!,0),FALSE),0) -> 0 | AG58: =SUM(data.s[[#This Row],[بدل مخاطر]:[بدل تفرغ]])-data.s[[#This Row],[بدل تمثيل]] -> 64.2345 | AH58: 28.79 | AI58: 30.29 | AJ58: 65 | AL58: 200 | AU58: 600 | AV58: 10 | AW58: =SUM(data.s[[#This Row],[علاوة 2014]:[علاوة اجتماعية]]) -> 934.08 | AX58: 10 | AY58: =(data.s[[#This Row],[أساسي 7/2025]]*2)/12 -> 71.37166667 | BC58: =SUM(data.s[[#This Row],[أساسي 7/2025]:[حافز موانى]],data.s[[#This Row],[أومر الشغل للملاكي]],data.s[[#This Row],[إجمالي بدلات]],data.s[[#This Row],[إجمالي علاوات]:[متوسط المنحة]]) -> 1507.916167 | BD58: =IF(data.s[[#This Row],[الإجمالي]]<7000,7000-data.s[[#This Row],[الإجمالي]],0) -> 5492.083833 | BE58: =IF(data.s[[#This Row],[حالة العمل]]="إيقاف",data.s[[#This Row],[أساسي 7/2025]],SUM(data.s[[#This Row],[رد مستحقات]:[مكمل الأجر]])) -> 7000 | BJ58: =ROUND(data.s[[#This Row],[تأمينات 2026]]/11%,2) -> 11063.56 | BK58: 1216.991325 | BM58: =(((data.s[[#This Row],[إجمالي المستحق]]+data.s[[#This Row],[عمولة انتاج]])-(data.s[[#This Row],[الحافز]]+data.s[[#This Row],[عمولة انتاج]]+data.s[[#This Row],[متوسط المنحة]]+data.s[[#This Row],[رد مستحقات]]+data.s[[#This Row],[بدل سهر]]+data.s[[#This Row],[الإضافي]]))/30)*data.s[[#This Row],[أيام الغياب]] -> 0 | BN58: =(((data.s[[#This Row],[إجمالي المستحق]]+data.s[[#This Row],[عمولة انتاج]])-(data.s[[#This Row],[الحافز]]+data.s[[#This Row],[عمولة انتاج]]+data.s[[#This Row],[متوسط المنحة]]+data.s[[#This Row],[رد مستحقات]]+data.s[[#This Row],[بدل سهر]]+data.s[[#This Row],[الإضافي]]))/30)*data.s[[#This Row],[أيام جزاء]] -> 0 | BO58: =IF(data.s[[#This Row],[أيام الغياب]]=1,data.s[[#This Row],[الحافز]]*20%,IF(data.s[[#This Row],[أيام الغياب]]=2,data.s[[#This Row],[الحافز]]*30%,IF(data.s[[#This Row],[أيام الغياب]]>2,data.s[[#This Row],[الحافز]]*100%,""))) ->  | BQ58: =IFERROR(IF(data.s[[#This Row],[أيام أجازات بعد السنوية]]<=2,data.s[[#This Row],[الحافز]]*0,IF(data.s[[#This Row],[أيام أجازات بعد السنوية]]=3,data.s[[#This Row],[الحافز]]*30%,IF(data.s[[#This Row],[أيام أجازات بعد السنوية]]=4,data.s[[#This Row],[الحافز]]*40%,IF(data.s[[#This Row],[أيام أجازات بعد السنوية]]=5,data.s[[#This Row],[الحافز]]*50%,IF(data.s[[#This Row],[أيام أجازات بعد السنوية]]>5,data.s[[#This Row],[الحافز]]*100%,""))))),"") -> 0 | BU58: 3 | BW58: 381.64 | BX58: 1108.3 | CG58: =data.s[[#This Row],[مخالفات مرور]]+data.s[[#This Row],[سلفة]]+data.s[[#This Row],[تعويضات]]+data.s[[#This Row],[عجز]]+data.s[[#This Row],[تلفيات]]+data.s[[#This Row],[عهد]]+data.s[[#This Row],[سولار]] -> 1108.3 | CH58: 5.85 | CI58: 3 | CP58: 0 | CQ58: =data.s[[#This Row],[متوسط المنحة]] -> 71.37166667 | CR58: =IF(data.s[[#This Row],[التصنيف الادارى]]="سائق نقل",data.s[[#This Row],[إجمالي المستحق]]*5%,0) -> 350 | CS58: =IF($G58=data.s[[#Headers],[انقطاع]],$BE58-SUM(data.s[[#This Row],[تأمينات 2026]:[تنفيذ أحكام]],data.s[[#This Row],[الشهداء]:[خصم 5% تأمين من المستحق]],0),0) -> 0 | CT58: =IF($G58=CT$3,$BE58-SUM(data.s[[#This Row],[تأمينات 2026]:[تنفيذ أحكام]],data.s[[#This Row],[الشهداء]:[خصم 5% تأمين من المستحق]],0),0) -> 0 | CU58: =IF($G58=CU$3,$BE58-SUM(data.s[[#This Row],[تأمينات 2026]:[تنفيذ أحكام]],data.s[[#This Row],[الشهداء]:[خصم 5% تأمين من المستحق]],0),0) -> 0 | CV58: =IF($G58=data.s[[#Headers],[إعارة]],$BE58-SUM(data.s[[#This Row],[تأمينات 2026]:[تنفيذ أحكام]],data.s[[#This Row],[الشهداء]:[خصم 5% تأمين من المستحق]],0),0) -> 0 | CW58: =IF($G58=data.s[[#Headers],[انهاء]],$BE58-SUM(data.s[[#This Row],[تأمينات 2026]:[تنفيذ أحكام]],data.s[[#This Row],[الشهداء]:[خصم 5% تأمين من المستحق]],0),0) -> 0 | CX58: =IF($G58=data.s[[#Headers],[معاش]],$BE58-SUM(data.s[[#This Row],[تأمينات 2026]:[تنفيذ أحكام]],data.s[[#This Row],[الشهداء]:[خصم 5% تأمين من المستحق]],0),0) -> 0 | CY58: =SUM(data.s[[#This Row],[تأمينات 2026]:[تنفيذ أحكام]],data.s[[#This Row],[الشهداء]:[معاش]]) -> 3140.152992 | CZ58: =data.s[[#This Row],[إجمالي المستحق]]-data.s[[#This Row],[إجمالي المستقطع]] -> 3859.847008
B59: 302065 | C59: 44270 | D59: =VLOOKUP(data.s[[#This Row],[كود الشركة]],#REF!,MATCH(data.s[[#Headers],[التعامل المالي]],#REF!,0),FALSE) ->  | E59: محمد جمال احمد | H59: سائق نقل | L59: فرع الاميرية | M59: المنطقه المركزية | N59: =data.s[[#This Row],[كود الشركة]]&data.s[[#This Row],[كود البيرول]]&data.s[[#This Row],[التعامل المالي]]&data.s[[#This Row],[اسم الموظف]]&data.s[[#This Row],[الموظف المختص]]&data.s[[#This Row],[حالة العمل]]&data.s[[#This Row],[التصنيف الادارى]]&data.s[[#This Row],[الدرجة]] ->  | P59: =IF(data.s[[#This Row],[ترقية 7/2025]]<>"","نعم","") ->  | R59: 428.23 | T59: =IF(data.s[[#This Row],[الوظيفة]]="سائق ملاكي",data.s[[#This Row],[أساسي 7/2025]]*135%,0) -> 0 | U59: =IF(data.s[[#This Row],[الوظيفة]]="سائق ملاكي",data.s[[#This Row],[أساسي 7/2025]]*15%,"") ->  | Z59: =data.s[[#This Row],[أساسي 7/2025]]*15% -> 64.2345 | AF59: =IFERROR(VLOOKUP(data.s[[#This Row],[كود الشركة]:[كود الشركة]],#REF!,MATCH(data.s[[#Headers],[بدل تباع]],#REF!,0),FALSE),0) -> 0 | AG59: =SUM(data.s[[#This Row],[بدل مخاطر]:[بدل تفرغ]])-data.s[[#This Row],[بدل تمثيل]] -> 64.2345 | AH59: 28.79 | AI59: 30.29 | AJ59: 65 | AL59: 200 | AU59: 600 | AV59: 10 | AW59: =SUM(data.s[[#This Row],[علاوة 2014]:[علاوة اجتماعية]]) -> 934.08 | AX59: 10 | AY59: =(data.s[[#This Row],[أساسي 7/2025]]*2)/12 -> 71.37166667 | BC59: =SUM(data.s[[#This Row],[أساسي 7/2025]:[حافز موانى]],data.s[[#This Row],[أومر الشغل للملاكي]],data.s[[#This Row],[إجمالي بدلات]],data.s[[#This Row],[إجمالي علاوات]:[متوسط المنحة]]) -> 1507.916167 | BD59: =IF(data.s[[#This Row],[الإجمالي]]<7000,7000-data.s[[#This Row],[الإجمالي]],0) -> 5492.083833 | BE59: =IF(data.s[[#This Row],[حالة العمل]]="إيقاف",data.s[[#This Row],[أساسي 7/2025]],SUM(data.s[[#This Row],[رد مستحقات]:[مكمل الأجر]])) -> 7000 | BJ59: =ROUND(data.s[[#This Row],[تأمينات 2026]]/11%,2) -> 16700 | BK59: 1837 | BM59: =(((data.s[[#This Row],[إجمالي المستحق]]+data.s[[#This Row],[عمولة انتاج]])-(data.s[[#This Row],[الحافز]]+data.s[[#This Row],[عمولة انتاج]]+data.s[[#This Row],[متوسط المنحة]]+data.s[[#This Row],[رد مستحقات]]+data.s[[#This Row],[بدل سهر]]+data.s[[#This Row],[الإضافي]]))/30)*data.s[[#This Row],[أيام الغياب]] -> 0 | BN59: =(((data.s[[#This Row],[إجمالي المستحق]]+data.s[[#This Row],[عمولة انتاج]])-(data.s[[#This Row],[الحافز]]+data.s[[#This Row],[عمولة انتاج]]+data.s[[#This Row],[متوسط المنحة]]+data.s[[#This Row],[رد مستحقات]]+data.s[[#This Row],[بدل سهر]]+data.s[[#This Row],[الإضافي]]))/30)*data.s[[#This Row],[أيام جزاء]] -> 0 | BO59: =IF(data.s[[#This Row],[أيام الغياب]]=1,data.s[[#This Row],[الحافز]]*20%,IF(data.s[[#This Row],[أيام الغياب]]=2,data.s[[#This Row],[الحافز]]*30%,IF(data.s[[#This Row],[أيام الغياب]]>2,data.s[[#This Row],[الحافز]]*100%,""))) ->  | BQ59: =IFERROR(IF(data.s[[#This Row],[أيام أجازات بعد السنوية]]<=2,data.s[[#This Row],[الحافز]]*0,IF(data.s[[#This Row],[أيام أجازات بعد السنوية]]=3,data.s[[#This Row],[الحافز]]*30%,IF(data.s[[#This Row],[أيام أجازات بعد السنوية]]=4,data.s[[#This Row],[الحافز]]*40%,IF(data.s[[#This Row],[أيام أجازات بعد السنوية]]=5,data.s[[#This Row],[الحافز]]*50%,IF(data.s[[#This Row],[أيام أجازات بعد السنوية]]>5,data.s[[#This Row],[الحافز]]*100%,""))))),"") -> 0 | BU59: 3 | BX59: 1635.9 | CG59: =data.s[[#This Row],[مخالفات مرور]]+data.s[[#This Row],[سلفة]]+data.s[[#This Row],[تعويضات]]+data.s[[#This Row],[عجز]]+data.s[[#This Row],[تلفيات]]+data.s[[#This Row],[عهد]]+data.s[[#This Row],[سولار]] -> 1635.9 | CH59: 7.44 | CI59: 3 | CP59: 0 | CQ59: =data.s[[#This Row],[متوسط المنحة]] -> 71.37166667 | CR59: =IF(data.s[[#This Row],[التصنيف الادارى]]="سائق نقل",data.s[[#This Row],[إجمالي المستحق]]*5%,0) -> 350 | CS59: =IF($G59=data.s[[#Headers],[انقطاع]],$BE59-SUM(data.s[[#This Row],[تأمينات 2026]:[تنفيذ أحكام]],data.s[[#This Row],[الشهداء]:[خصم 5% تأمين من المستحق]],0),0) -> 0 | CT59: =IF($G59=CT$3,$BE59-SUM(data.s[[#This Row],[تأمينات 2026]:[تنفيذ أحكام]],data.s[[#This Row],[الشهداء]:[خصم 5% تأمين من المستحق]],0),0) -> 0 | CU59: =IF($G59=CU$3,$BE59-SUM(data.s[[#This Row],[تأمينات 2026]:[تنفيذ أحكام]],data.s[[#This Row],[الشهداء]:[خصم 5% تأمين من المستحق]],0),0) -> 0 | CV59: =IF($G59=data.s[[#Headers],[إعارة]],$BE59-SUM(data.s[[#This Row],[تأمينات 2026]:[تنفيذ أحكام]],data.s[[#This Row],[الشهداء]:[خصم 5% تأمين من المستحق]],0),0) -> 0 | CW59: =IF($G59=data.s[[#Headers],[انهاء]],$BE59-SUM(data.s[[#This Row],[تأمينات 2026]:[تنفيذ أحكام]],data.s[[#This Row],[الشهداء]:[خصم 5% تأمين من المستحق]],0),0) -> 0 | CX59: =IF($G59=data.s[[#Headers],[معاش]],$BE59-SUM(data.s[[#This Row],[تأمينات 2026]:[تنفيذ أحكام]],data.s[[#This Row],[الشهداء]:[خصم 5% تأمين من المستحق]],0),0) -> 0 | CY59: =SUM(data.s[[#This Row],[تأمينات 2026]:[تنفيذ أحكام]],data.s[[#This Row],[الشهداء]:[معاش]]) -> 3907.711667 | CZ59: =data.s[[#This Row],[إجمالي المستحق]]-data.s[[#This Row],[إجمالي المستقطع]] -> 3092.288333
B60: 302066 | C60: 302066 | D60: =VLOOKUP(data.s[[#This Row],[كود الشركة]],#REF!,MATCH(data.s[[#Headers],[التعامل المالي]],#REF!,0),FALSE) ->  | E60: على محمد على احمد | H60: سائق نقل | L60: فرع الاميرية | M60: المنطقه المركزية | N60: =data.s[[#This Row],[كود الشركة]]&data.s[[#This Row],[كود البيرول]]&data.s[[#This Row],[التعامل المالي]]&data.s[[#This Row],[اسم الموظف]]&data.s[[#This Row],[الموظف المختص]]&data.s[[#This Row],[حالة العمل]]&data.s[[#This Row],[التصنيف الادارى]]&data.s[[#This Row],[الدرجة]] ->  | P60: =IF(data.s[[#This Row],[ترقية 7/2025]]<>"","نعم","") ->  | R60: 428.23 | T60: =IF(data.s[[#This Row],[الوظيفة]]="سائق ملاكي",data.s[[#This Row],[أساسي 7/2025]]*135%,0) -> 0 | U60: =IF(data.s[[#This Row],[الوظيفة]]="سائق ملاكي",data.s[[#This Row],[أساسي 7/2025]]*15%,"") ->  | Z60: =data.s[[#This Row],[أساسي 7/2025]]*15% -> 64.2345 | AF60: =IFERROR(VLOOKUP(data.s[[#This Row],[كود الشركة]:[كود الشركة]],#REF!,MATCH(data.s[[#Headers],[بدل تباع]],#REF!,0),FALSE),0) -> 0 | AG60: =SUM(data.s[[#This Row],[بدل مخاطر]:[بدل تفرغ]])-data.s[[#This Row],[بدل تمثيل]] -> 64.2345 | AH60: 28.79 | AI60: 30.29 | AJ60: 65 | AL60: 200 | AU60: 600 | AV60: 10 | AW60: =SUM(data.s[[#This Row],[علاوة 2014]:[علاوة اجتماعية]]) -> 934.08 | AX60: 10 | AY60: =(data.s[[#This Row],[أساسي 7/2025]]*2)/12 -> 71.37166667 | BC60: =SUM(data.s[[#This Row],[أساسي 7/2025]:[حافز موانى]],data.s[[#This Row],[أومر الشغل للملاكي]],data.s[[#This Row],[إجمالي بدلات]],data.s[[#This Row],[إجمالي علاوات]:[متوسط المنحة]]) -> 1507.916167 | BD60: =IF(data.s[[#This Row],[الإجمالي]]<7000,7000-data.s[[#This Row],[الإجمالي]],0) -> 5492.083833 | BE60: =IF(data.s[[#This Row],[حالة العمل]]="إيقاف",data.s[[#This Row],[أساسي 7/2025]],SUM(data.s[[#This Row],[رد مستحقات]:[مكمل الأجر]])) -> 7000 | BJ60: =ROUND(data.s[[#This Row],[تأمينات 2026]]/11%,2) -> 14344.67 | BK60: 1577.913333 | BM60: =(((data.s[[#This Row],[إجمالي المستحق]]+data.s[[#This Row],[عمولة انتاج]])-(data.s[[#This Row],[الحافز]]+data.s[[#This Row],[عمولة انتاج]]+data.s[[#This Row],[متوسط المنحة]]+data.s[[#This Row],[رد مستحقات]]+data.s[[#This Row],[بدل سهر]]+data.s[[#This Row],[الإضافي]]))/30)*data.s[[#This Row],[أيام الغياب]] -> 0 | BN60: =(((data.s[[#This Row],[إجمالي المستحق]]+data.s[[#This Row],[عمولة انتاج]])-(data.s[[#This Row],[الحافز]]+data.s[[#This Row],[عمولة انتاج]]+data.s[[#This Row],[متوسط المنحة]]+data.s[[#This Row],[رد مستحقات]]+data.s[[#This Row],[بدل سهر]]+data.s[[#This Row],[الإضافي]]))/30)*data.s[[#This Row],[أيام جزاء]] -> 0 | BO60: =IF(data.s[[#This Row],[أيام الغياب]]=1,data.s[[#This Row],[الحافز]]*20%,IF(data.s[[#This Row],[أيام الغياب]]=2,data.s[[#This Row],[الحافز]]*30%,IF(data.s[[#This Row],[أيام الغياب]]>2,data.s[[#This Row],[الحافز]]*100%,""))) ->  | BQ60: =IFERROR(IF(data.s[[#This Row],[أيام أجازات بعد السنوية]]<=2,data.s[[#This Row],[الحافز]]*0,IF(data.s[[#This Row],[أيام أجازات بعد السنوية]]=3,data.s[[#This Row],[الحافز]]*30%,IF(data.s[[#This Row],[أيام أجازات بعد السنوية]]=4,data.s[[#This Row],[الحافز]]*40%,IF(data.s[[#This Row],[أيام أجازات بعد السنوية]]=5,data.s[[#This Row],[الحافز]]*50%,IF(data.s[[#This Row],[أيام أجازات بعد السنوية]]>5,data.s[[#This Row],[الحافز]]*100%,""))))),"") -> 0 | BU60: 3 | CG60: =data.s[[#This Row],[مخالفات مرور]]+data.s[[#This Row],[سلفة]]+data.s[[#This Row],[تعويضات]]+data.s[[#This Row],[عجز]]+data.s[[#This Row],[تلفيات]]+data.s[[#This Row],[عهد]]+data.s[[#This Row],[سولار]] -> 0 | CH60: 10.33 | CI60: 3 | CP60: 0 | CQ60: =data.s[[#This Row],[متوسط المنحة]] -> 71.37166667 | CR60: =IF(data.s[[#This Row],[التصنيف الادارى]]="سائق نقل",data.s[[#This Row],[إجمالي المستحق]]*5%,0) -> 350 | CS60: =IF($G60=data.s[[#Headers],[انقطاع]],$BE60-SUM(data.s[[#This Row],[تأمينات 2026]:[تنفيذ أحكام]],data.s[[#This Row],[الشهداء]:[خصم 5% تأمين من المستحق]],0),0) -> 0 | CT60: =IF($G60=CT$3,$BE60-SUM(data.s[[#This Row],[تأمينات 2026]:[تنفيذ أحكام]],data.s[[#This Row],[الشهداء]:[خصم 5% تأمين من المستحق]],0),0) -> 0 | CU60: =IF($G60=CU$3,$BE60-SUM(data.s[[#This Row],[تأمينات 2026]:[تنفيذ أحكام]],data.s[[#This Row],[الشهداء]:[خصم 5% تأمين من المستحق]],0),0) -> 0 | CV60: =IF($G60=data.s[[#Headers],[إعارة]],$BE60-SUM(data.s[[#This Row],[تأمينات 2026]:[تنفيذ أحكام]],data.s[[#This Row],[الشهداء]:[خصم 5% تأمين من المستحق]],0),0) -> 0 | CW60: =IF($G60=data.s[[#Headers],[انهاء]],$BE60-SUM(data.s[[#This Row],[تأمينات 2026]:[تنفيذ أحكام]],data.s[[#This Row],[الشهداء]:[خصم 5% تأمين من المستحق]],0),0) -> 0 | CX60: =IF($G60=data.s[[#Headers],[معاش]],$BE60-SUM(data.s[[#This Row],[تأمينات 2026]:[تنفيذ أحكام]],data.s[[#This Row],[الشهداء]:[خصم 5% تأمين من المستحق]],0),0) -> 0 | CY60: =SUM(data.s[[#This Row],[تأمينات 2026]:[تنفيذ أحكام]],data.s[[#This Row],[الشهداء]:[معاش]]) -> 2015.615 | CZ60: =data.s[[#This Row],[إجمالي المستحق]]-data.s[[#This Row],[إجمالي المستقطع]] -> 4984.385
B61: 302067 | C61: 302067 | D61: =VLOOKUP(data.s[[#This Row],[كود الشركة]],#REF!,MATCH(data.s[[#Headers],[التعامل المالي]],#REF!,0),FALSE) ->  | E61: محمد زكي محمد إسماعيل | H61: سائق نقل | L61: فرع الاميرية | M61: المنطقه المركزية | N61: =data.s[[#This Row],[كود الشركة]]&data.s[[#This Row],[كود البيرول]]&data.s[[#This Row],[التعامل المالي]]&data.s[[#This Row],[اسم الموظف]]&data.s[[#This Row],[الموظف المختص]]&data.s[[#This Row],[حالة العمل]]&data.s[[#This Row],[التصنيف الادارى]]&data.s[[#This Row],[الدرجة]] ->  | P61: =IF(data.s[[#This Row],[ترقية 7/2025]]<>"","نعم","") ->  | R61: 428.23 | T61: =IF(data.s[[#This Row],[الوظيفة]]="سائق ملاكي",data.s[[#This Row],[أساسي 7/2025]]*135%,0) -> 0 | U61: =IF(data.s[[#This Row],[الوظيفة]]="سائق ملاكي",data.s[[#This Row],[أساسي 7/2025]]*15%,"") ->  | Z61: =data.s[[#This Row],[أساسي 7/2025]]*15% -> 64.2345 | AF61: =IFERROR(VLOOKUP(data.s[[#This Row],[كود الشركة]:[كود الشركة]],#REF!,MATCH(data.s[[#Headers],[بدل تباع]],#REF!,0),FALSE),0) -> 0 | AG61: =SUM(data.s[[#This Row],[بدل مخاطر]:[بدل تفرغ]])-data.s[[#This Row],[بدل تمثيل]] -> 64.2345 | AH61: 28.79 | AI61: 30.29 | AJ61: 65 | AL61: 200 | AU61: 600 | AV61: 10 | AW61: =SUM(data.s[[#This Row],[علاوة 2014]:[علاوة اجتماعية]]) -> 934.08 | AX61: 10 | AY61: =(data.s[[#This Row],[أساسي 7/2025]]*2)/12 -> 71.37166667 | BC61: =SUM(data.s[[#This Row],[أساسي 7/2025]:[حافز موانى]],data.s[[#This Row],[أومر الشغل للملاكي]],data.s[[#This Row],[إجمالي بدلات]],data.s[[#This Row],[إجمالي علاوات]:[متوسط المنحة]]) -> 1507.916167 | BD61: =IF(data.s[[#This Row],[الإجمالي]]<7000,7000-data.s[[#This Row],[الإجمالي]],0) -> 5492.083833 | BE61: =IF(data.s[[#This Row],[حالة العمل]]="إيقاف",data.s[[#This Row],[أساسي 7/2025]],SUM(data.s[[#This Row],[رد مستحقات]:[مكمل الأجر]])) -> 7000 | BJ61: =ROUND(data.s[[#This Row],[تأمينات 2026]]/11%,2) -> 6990 | BK61: 768.9 | BM61: =(((data.s[[#This Row],[إجمالي المستحق]]+data.s[[#This Row],[عمولة انتاج]])-(data.s[[#This Row],[الحافز]]+data.s[[#This Row],[عمولة انتاج]]+data.s[[#This Row],[متوسط المنحة]]+data.s[[#This Row],[رد مستحقات]]+data.s[[#This Row],[بدل سهر]]+data.s[[#This Row],[الإضافي]]))/30)*data.s[[#This Row],[أيام الغياب]] -> 0 | BN61: =(((data.s[[#This Row],[إجمالي المستحق]]+data.s[[#This Row],[عمولة انتاج]])-(data.s[[#This Row],[الحافز]]+data.s[[#This Row],[عمولة انتاج]]+data.s[[#This Row],[متوسط المنحة]]+data.s[[#This Row],[رد مستحقات]]+data.s[[#This Row],[بدل سهر]]+data.s[[#This Row],[الإضافي]]))/30)*data.s[[#This Row],[أيام جزاء]] -> 0 | BO61: =IF(data.s[[#This Row],[أيام الغياب]]=1,data.s[[#This Row],[الحافز]]*20%,IF(data.s[[#This Row],[أيام الغياب]]=2,data.s[[#This Row],[الحافز]]*30%,IF(data.s[[#This Row],[أيام الغياب]]>2,data.s[[#This Row],[الحافز]]*100%,""))) ->  | BQ61: =IFERROR(IF(data.s[[#This Row],[أيام أجازات بعد السنوية]]<=2,data.s[[#This Row],[الحافز]]*0,IF(data.s[[#This Row],[أيام أجازات بعد السنوية]]=3,data.s[[#This Row],[الحافز]]*30%,IF(data.s[[#This Row],[أيام أجازات بعد السنوية]]=4,data.s[[#This Row],[الحافز]]*40%,IF(data.s[[#This Row],[أيام أجازات بعد السنوية]]=5,data.s[[#This Row],[الحافز]]*50%,IF(data.s[[#This Row],[أيام أجازات بعد السنوية]]>5,data.s[[#This Row],[الحافز]]*100%,""))))),"") -> 0 | BU61: 3 | CE61: 616.25 | CG61: =data.s[[#This Row],[مخالفات مرور]]+data.s[[#This Row],[سلفة]]+data.s[[#This Row],[تعويضات]]+data.s[[#This Row],[عجز]]+data.s[[#This Row],[تلفيات]]+data.s[[#This Row],[عهد]]+data.s[[#This Row],[سولار]] -> 616.25 | CH61: 10.53 | CI61: 3 | CP61: 0 | CQ61: =data.s[[#This Row],[متوسط المنحة]] -> 71.37166667 | CR61: =IF(data.s[[#This Row],[التصنيف الادارى]]="سائق نقل",data.s[[#This Row],[إجمالي المستحق]]*5%,0) -> 350 | CS61: =IF($G61=data.s[[#Headers],[انقطاع]],$BE61-SUM(data.s[[#This Row],[تأمينات 2026]:[تنفيذ أحكام]],data.s[[#This Row],[الشهداء]:[خصم 5% تأمين من المستحق]],0),0) -> 0 | CT61: =IF($G61=CT$3,$BE61-SUM(data.s[[#This Row],[تأمينات 2026]:[تنفيذ أحكام]],data.s[[#This Row],[الشهداء]:[خصم 5% تأمين من المستحق]],0),0) -> 0 | CU61: =IF($G61=CU$3,$BE61-SUM(data.s[[#This Row],[تأمينات 2026]:[تنفيذ أحكام]],data.s[[#This Row],[الشهداء]:[خصم 5% تأمين من المستحق]],0),0) -> 0 | CV61: =IF($G61=data.s[[#Headers],[إعارة]],$BE61-SUM(data.s[[#This Row],[تأمينات 2026]:[تنفيذ أحكام]],data.s[[#This Row],[الشهداء]:[خصم 5% تأمين من المستحق]],0),0) -> 0 | CW61: =IF($G61=data.s[[#Headers],[انهاء]],$BE61-SUM(data.s[[#This Row],[تأمينات 2026]:[تنفيذ أحكام]],data.s[[#This Row],[الشهداء]:[خصم 5% تأمين من المستحق]],0),0) -> 0 | CX61: =IF($G61=data.s[[#Headers],[معاش]],$BE61-SUM(data.s[[#This Row],[تأمينات 2026]:[تنفيذ أحكام]],data.s[[#This Row],[الشهداء]:[خصم 5% تأمين من المستحق]],0),0) -> 0 | CY61: =SUM(data.s[[#This Row],[تأمينات 2026]:[تنفيذ أحكام]],data.s[[#This Row],[الشهداء]:[معاش]]) -> 1823.051667 | CZ61: =data.s[[#This Row],[إجمالي المستحق]]-data.s[[#This Row],[إجمالي المستقطع]] -> 5176.948333
B62: 302068 | C62: 302068 | D62: =VLOOKUP(data.s[[#This Row],[كود الشركة]],#REF!,MATCH(data.s[[#Headers],[التعامل المالي]],#REF!,0),FALSE) ->  | E62: احمد بكرى محمد عمر | H62: سائق نقل | L62: فرع الاميرية | M62: المنطقه المركزية | N62: =data.s[[#This Row],[كود الشركة]]&data.s[[#This Row],[كود البيرول]]&data.s[[#This Row],[التعامل المالي]]&data.s[[#This Row],[اسم الموظف]]&data.s[[#This Row],[الموظف المختص]]&data.s[[#This Row],[حالة العمل]]&data.s[[#This Row],[التصنيف الادارى]]&data.s[[#This Row],[الدرجة]] ->  | P62: =IF(data.s[[#This Row],[ترقية 7/2025]]<>"","نعم","") ->  | R62: 423.23 | T62: =IF(data.s[[#This Row],[الوظيفة]]="سائق ملاكي",data.s[[#This Row],[أساسي 7/2025]]*135%,0) -> 0 | U62: =IF(data.s[[#This Row],[الوظيفة]]="سائق ملاكي",data.s[[#This Row],[أساسي 7/2025]]*15%,"") ->  | Z62: =data.s[[#This Row],[أساسي 7/2025]]*15% -> 63.4845 | AF62: =IFERROR(VLOOKUP(data.s[[#This Row],[كود الشركة]:[كود الشركة]],#REF!,MATCH(data.s[[#Headers],[بدل تباع]],#REF!,0),FALSE),0) -> 0 | AG62: =SUM(data.s[[#This Row],[بدل مخاطر]:[بدل تفرغ]])-data.s[[#This Row],[بدل تمثيل]] -> 63.4845 | AH62: 28.79 | AI62: 30.29 | AJ62: 65 | AL62: 200 | AU62: 600 | AV62: 10 | AW62: =SUM(data.s[[#This Row],[علاوة 2014]:[علاوة اجتماعية]]) -> 934.08 | AX62: 10 | AY62: =(data.s[[#This Row],[أساسي 7/2025]]*2)/12 -> 70.53833333 | BC62: =SUM(data.s[[#This Row],[أساسي 7/2025]:[حافز موانى]],data.s[[#This Row],[أومر الشغل للملاكي]],data.s[[#This Row],[إجمالي بدلات]],data.s[[#This Row],[إجمالي علاوات]:[متوسط المنحة]]) -> 1501.332833 | BD62: =IF(data.s[[#This Row],[الإجمالي]]<7000,7000-data.s[[#This Row],[الإجمالي]],0) -> 5498.667167 | BE62: =IF(data.s[[#This Row],[حالة العمل]]="إيقاف",data.s[[#This Row],[أساسي 7/2025]],SUM(data.s[[#This Row],[رد مستحقات]:[مكمل الأجر]])) -> 7000 | BJ62: =ROUND(data.s[[#This Row],[تأمينات 2026]]/11%,2) -> 7911.67 | BK62: 870.2833333 | BM62: =(((data.s[[#This Row],[إجمالي المستحق]]+data.s[[#This Row],[عمولة انتاج]])-(data.s[[#This Row],[الحافز]]+data.s[[#This Row],[عمولة انتاج]]+data.s[[#This Row],[متوسط المنحة]]+data.s[[#This Row],[رد مستحقات]]+data.s[[#This Row],[بدل سهر]]+data.s[[#This Row],[الإضافي]]))/30)*data.s[[#This Row],[أيام الغياب]] -> 0 | BN62: =(((data.s[[#This Row],[إجمالي المستحق]]+data.s[[#This Row],[عمولة انتاج]])-(data.s[[#This Row],[الحافز]]+data.s[[#This Row],[عمولة انتاج]]+data.s[[#This Row],[متوسط المنحة]]+data.s[[#This Row],[رد مستحقات]]+data.s[[#This Row],[بدل سهر]]+data.s[[#This Row],[الإضافي]]))/30)*data.s[[#This Row],[أيام جزاء]] -> 0 | BO62: =IF(data.s[[#This Row],[أيام الغياب]]=1,data.s[[#This Row],[الحافز]]*20%,IF(data.s[[#This Row],[أيام الغياب]]=2,data.s[[#This Row],[الحافز]]*30%,IF(data.s[[#This Row],[أيام الغياب]]>2,data.s[[#This Row],[الحافز]]*100%,""))) ->  | BQ62: =IFERROR(IF(data.s[[#This Row],[أيام أجازات بعد السنوية]]<=2,data.s[[#This Row],[الحافز]]*0,IF(data.s[[#This Row],[أيام أجازات بعد السنوية]]=3,data.s[[#This Row],[الحافز]]*30%,IF(data.s[[#This Row],[أيام أجازات بعد السنوية]]=4,data.s[[#This Row],[الحافز]]*40%,IF(data.s[[#This Row],[أيام أجازات بعد السنوية]]=5,data.s[[#This Row],[الحافز]]*50%,IF(data.s[[#This Row],[أيام أجازات بعد السنوية]]>5,data.s[[#This Row],[الحافز]]*100%,""))))),"") -> 0 | BU62: 3 | CG62: =data.s[[#This Row],[مخالفات مرور]]+data.s[[#This Row],[سلفة]]+data.s[[#This Row],[تعويضات]]+data.s[[#This Row],[عجز]]+data.s[[#This Row],[تلفيات]]+data.s[[#This Row],[عهد]]+data.s[[#This Row],[سولار]] -> 0 | CH62: 14.43 | CI62: 3 | CP62: 0 | CQ62: =data.s[[#This Row],[متوسط المنحة]] -> 70.53833333 | CR62: =IF(data.s[[#This Row],[التصنيف الادارى]]="سائق نقل",data.s[[#This Row],[إجمالي المستحق]]*5%,0) -> 350 | CS62: =IF($G62=data.s[[#Headers],[انقطاع]],$BE62-SUM(data.s[[#This Row],[تأمينات 2026]:[تنفيذ أحكام]],data.s[[#This Row],[الشهداء]:[خصم 5% تأمين من المستحق]],0),0) -> 0 | CT62: =IF($G62=CT$3,$BE62-SUM(data.s[[#This Row],[تأمينات 2026]:[تنفيذ أحكام]],data.s[[#This Row],[الشهداء]:[خصم 5% تأمين من المستحق]],0),0) -> 0 | CU62: =IF($G62=CU$3,$BE62-SUM(data.s[[#This Row],[تأمينات 2026]:[تنفيذ أحكام]],data.s[[#This Row],[الشهداء]:[خصم 5% تأمين من المستحق]],0),0) -> 0 | CV62: =IF($G62=data.s[[#Headers],[إعارة]],$BE62-SUM(data.s[[#This Row],[تأمينات 2026]:[تنفيذ أحكام]],data.s[[#This Row],[الشهداء]:[خصم 5% تأمين من المستحق]],0),0) -> 0 | CW62: =IF($G62=data.s[[#Headers],[انهاء]],$BE62-SUM(data.s[[#This Row],[تأمينات 2026]:[تنفيذ أحكام]],data.s[[#This Row],[الشهداء]:[خصم 5% تأمين من المستحق]],0),0) -> 0 | CX62: =IF($G62=data.s[[#Headers],[معاش]],$BE62-SUM(data.s[[#This Row],[تأمينات 2026]:[تنفيذ أحكام]],data.s[[#This Row],[الشهداء]:[خصم 5% تأمين من المستحق]],0),0) -> 0 | CY62: =SUM(data.s[[#This Row],[تأمينات 2026]:[تنفيذ أحكام]],data.s[[#This Row],[الشهداء]:[معاش]]) -> 1311.251667 | CZ62: =data.s[[#This Row],[إجمالي المستحق]]-data.s[[#This Row],[إجمالي المستقطع]] -> 5688.748333
B63: 302069 | C63: 302069 | D63: =VLOOKUP(data.s[[#This Row],[كود الشركة]],#REF!,MATCH(data.s[[#Headers],[التعامل المالي]],#REF!,0),FALSE) ->  | E63: شاذلى امام محمد | H63: سائق نقل | L63: فرع الاميرية | M63: المنطقه المركزية | N63: =data.s[[#This Row],[كود الشركة]]&data.s[[#This Row],[كود البيرول]]&data.s[[#This Row],[التعامل المالي]]&data.s[[#This Row],[اسم الموظف]]&data.s[[#This Row],[الموظف المختص]]&data.s[[#This Row],[حالة العمل]]&data.s[[#This Row],[التصنيف الادارى]]&data.s[[#This Row],[الدرجة]] ->  | P63: =IF(data.s[[#This Row],[ترقية 7/2025]]<>"","نعم","") ->  | R63: 428.23 | T63: =IF(data.s[[#This Row],[الوظيفة]]="سائق ملاكي",data.s[[#This Row],[أساسي 7/2025]]*135%,0) -> 0 | U63: =IF(data.s[[#This Row],[الوظيفة]]="سائق ملاكي",data.s[[#This Row],[أساسي 7/2025]]*15%,"") ->  | Z63: =data.s[[#This Row],[أساسي 7/2025]]*15% -> 64.2345 | AF63: =IFERROR(VLOOKUP(data.s[[#This Row],[كود الشركة]:[كود الشركة]],#REF!,MATCH(data.s[[#Headers],[بدل تباع]],#REF!,0),FALSE),0) -> 0 | AG63: =SUM(data.s[[#This Row],[بدل مخاطر]:[بدل تفرغ]])-data.s[[#This Row],[بدل تمثيل]] -> 64.2345 | AH63: 28.79 | AI63: 30.29 | AJ63: 65 | AL63: 200 | AU63: 600 | AV63: 10 | AW63: =SUM(data.s[[#This Row],[علاوة 2014]:[علاوة اجتماعية]]) -> 934.08 | AX63: 10 | AY63: =(data.s[[#This Row],[أساسي 7/2025]]*2)/12 -> 71.37166667 | BC63: =SUM(data.s[[#This Row],[أساسي 7/2025]:[حافز موانى]],data.s[[#This Row],[أومر الشغل للملاكي]],data.s[[#This Row],[إجمالي بدلات]],data.s[[#This Row],[إجمالي علاوات]:[متوسط المنحة]]) -> 1507.916167 | BD63: =IF(data.s[[#This Row],[الإجمالي]]<7000,7000-data.s[[#This Row],[الإجمالي]],0) -> 5492.083833 | BE63: =IF(data.s[[#This Row],[حالة العمل]]="إيقاف",data.s[[#This Row],[أساسي 7/2025]],SUM(data.s[[#This Row],[رد مستحقات]:[مكمل الأجر]])) -> 7000 | BJ63: =ROUND(data.s[[#This Row],[تأمينات 2026]]/11%,2) -> 14622 | BK63: 1608.42 | BM63: =(((data.s[[#This Row],[إجمالي المستحق]]+data.s[[#This Row],[عمولة انتاج]])-(data.s[[#This Row],[الحافز]]+data.s[[#This Row],[عمولة انتاج]]+data.s[[#This Row],[متوسط المنحة]]+data.s[[#This Row],[رد مستحقات]]+data.s[[#This Row],[بدل سهر]]+data.s[[#This Row],[الإضافي]]))/30)*data.s[[#This Row],[أيام الغياب]] -> 0 | BN63: =(((data.s[[#This Row],[إجمالي المستحق]]+data.s[[#This Row],[عمولة انتاج]])-(data.s[[#This Row],[الحافز]]+data.s[[#This Row],[عمولة انتاج]]+data.s[[#This Row],[متوسط المنحة]]+data.s[[#This Row],[رد مستحقات]]+data.s[[#This Row],[بدل سهر]]+data.s[[#This Row],[الإضافي]]))/30)*data.s[[#This Row],[أيام جزاء]] -> 0 | BO63: =IF(data.s[[#This Row],[أيام الغياب]]=1,data.s[[#This Row],[الحافز]]*20%,IF(data.s[[#This Row],[أيام الغياب]]=2,data.s[[#This Row],[الحافز]]*30%,IF(data.s[[#This Row],[أيام الغياب]]>2,data.s[[#This Row],[الحافز]]*100%,""))) ->  | BQ63: =IFERROR(IF(data.s[[#This Row],[أيام أجازات بعد السنوية]]<=2,data.s[[#This Row],[الحافز]]*0,IF(data.s[[#This Row],[أيام أجازات بعد السنوية]]=3,data.s[[#This Row],[الحافز]]*30%,IF(data.s[[#This Row],[أيام أجازات بعد السنوية]]=4,data.s[[#This Row],[الحافز]]*40%,IF(data.s[[#This Row],[أيام أجازات بعد السنوية]]=5,data.s[[#This Row],[الحافز]]*50%,IF(data.s[[#This Row],[أيام أجازات بعد السنوية]]>5,data.s[[#This Row],[الحافز]]*100%,""))))),"") -> 0 | BU63: 3 | CG63: =data.s[[#This Row],[مخالفات مرور]]+data.s[[#This Row],[سلفة]]+data.s[[#This Row],[تعويضات]]+data.s[[#This Row],[عجز]]+data.s[[#This Row],[تلفيات]]+data.s[[#This Row],[عهد]]+data.s[[#This Row],[سولار]] -> 0 | CH63: 22.69 | CI63: 3 | CP63: 0 | CQ63: =data.s[[#This Row],[متوسط المنحة]] -> 71.37166667 | CR63: =IF(data.s[[#This Row],[التصنيف الادارى]]="سائق نقل",data.s[[#This Row],[إجمالي المستحق]]*5%,0) -> 350 | CS63: =IF($G63=data.s[[#Headers],[انقطاع]],$BE63-SUM(data.s[[#This Row],[تأمينات 2026]:[تنفيذ أحكام]],data.s[[#This Row],[الشهداء]:[خصم 5% تأمين من المستحق]],0),0) -> 0 | CT63: =IF($G63=CT$3,$BE63-SUM(data.s[[#This Row],[تأمينات 2026]:[تنفيذ أحكام]],data.s[[#This Row],[الشهداء]:[خصم 5% تأمين من المستحق]],0),0) -> 0 | CU63: =IF($G63=CU$3,$BE63-SUM(data.s[[#This Row],[تأمينات 2026]:[تنفيذ أحكام]],data.s[[#This Row],[الشهداء]:[خصم 5% تأمين من المستحق]],0),0) -> 0 | CV63: =IF($G63=data.s[[#Headers],[إعارة]],$BE63-SUM(data.s[[#This Row],[تأمينات 2026]:[تنفيذ أحكام]],data.s[[#This Row],[الشهداء]:[خصم 5% تأمين من المستحق]],0),0) -> 0 | CW63: =IF($G63=data.s[[#Headers],[انهاء]],$BE63-SUM(data.s[[#This Row],[تأمينات 2026]:[تنفيذ أحكام]],data.s[[#This Row],[الشهداء]:[خصم 5% تأمين من المستحق]],0),0) -> 0 | CX63: =IF($G63=data.s[[#Headers],[معاش]],$BE63-SUM(data.s[[#This Row],[تأمينات 2026]:[تنفيذ أحكام]],data.s[[#This Row],[الشهداء]:[خصم 5% تأمين من المستحق]],0),0) -> 0 | CY63: =SUM(data.s[[#This Row],[تأمينات 2026]:[تنفيذ أحكام]],data.s[[#This Row],[الشهداء]:[معاش]]) -> 2058.481667 | CZ63: =data.s[[#This Row],[إجمالي المستحق]]-data.s[[#This Row],[إجمالي المستقطع]] -> 4941.518333
